Workbook

Sheet Instructions (hidden)
A1: Instructions
A3: Purpose
A4: This rating model is prepared to determine the rates sought by each rating category/TA to cover funding requirements for the forthcoming year.
A6: Conventions
A7: All yellow cells are input cells.
A8: The majority of tabs in this spreadsheet have been protected to ensure that values aren't inadvertantly changed.
A9: Should a user need to amend the content of a tab the password required is "gwrcrates".
A11: Process
A12: To run the rates model the following actions should be completed
B13: 1) | C13: On each of the tabs shaded green in the structure diagram below delete all values in the shaded yellow cell
B14: 2) | C14: In the control tab;
C15: a) | D15: In cell B5 enter the current rating year in the YYYY/YY date format
C16: b) | D16: Adjust the EDR rating basis if required by the rates funding policy
C17: c) | D17: Obtain "Flood protection" information from the Landcare & Wairarapa Accountant and enter in the relevant cells
C18: d) | D18: Obtian Water levy split from the water supply accountant and enter in the relevant cells
B19: 3) | C19: Obtain Capital Values (CVs) & corresponding assessments from each Territorial Authority (TA) and Equalised Capital Values (ECVs) & corresponding assessments from Quotable Value and enter into the relevant yellow cells on the "UHCC Adjustments" and "Capital values" tab
B20: 4) | C20: In the ESSBase retrieve the information required from the financial accounting system
B21: 5) | C21: Email the ESSBase extract to the respective management accountants and obtain confirmation that these rates values are correct before proceeding further.
B22: 6) | C22: Populate the "Class rates" tab with data provided by the Landcare & Wairarapa Accountant
B23: 7) | C23: Use the rating model from the previous year to populate the yellow cells using the PASTE SPECIAL>>VALUES comand in the "Comparison - TA" and "Comparison - Category" tabs.
B24: 8) | C24: On the "Check" tab if cell B7 says "Error" then a rounding/check total error occurs within the model and the error should be investigated and reconciled where possible. Explanations of the difference can be entered in the "Check" tab for future reference. If cell B7 reads "OK" then no rounding/check total errors have been found in the data that has been entered.
B25: 9) | C25: Once all checks have been completed the individual that has completed steps 1 through 9 above should forward the model to their manager for reivew and approval.
B26: 10) | C26: Once approval of the results is obtained the values can be used for distribution as required.
A28: Strucutre diagram
A29: The flow diagram below sets out the structure of this excel spreadsheet.

Sheet >>Input tabs

Sheet Control
A1: Control
A2: =check_total -> 0
A4: Years
A5: Current rating year | B5: 2024/25
A6: Previous rating year | B6: =VALUE(LEFT(year_current,4))-1&"/"&VALUE(RIGHT(year_current,2))-1 -> 2023/24
A9: GST
A10: GST % | B10: 0.15
A12: Error tolerance
A13: $ error tolerance | B13: 2
A15: TA's
A16: TA full name | B16: TA short name
A17: Wellington city | B17: Wellington
A18: Hutt city | B18: Hutt
A19: Upper Hutt city | B19: Upper Hutt
A20: Porirua city | B20: Porirua
A21: Kāpiti Coast district | B21: Kapiti
A22: Masterton district | B22: Masterton
A23: Carterton district | B23: Carterton
A24: South Wairarapa district | B24: South Wairarapa
A25: Tararua district | B25: Tararua
A28: TA's for rates check tab
A29: Excludes WCC, KCDC and UHC as they have their own rates check tab
A30: TA full name
A31: Hutt city
A32: Porirua city
A33: Masterton district
A34: Carterton district
A35: South Wairarapa district
A36: Tararua district
A39: TA's
A40: TA full name | B40: Category group | C40: Concatenated row
A41: Wellington city | B41: District wide | C41: =A41&B41 -> Wellington cityDistrict wide
A42: Hutt city | B42: District wide | C42: =A42&B42 -> Hutt cityDistrict wide
A43: Upper Hutt city | B43: District wide | C43: Upper Hutt cityDistrict wide
A44: Porirua city | B44: District wide | C44: Porirua cityDistrict wide
A45: Kāpiti Coast district | B45: District wide | C45: Kāpiti Coast districtDistrict wide
A46: Masterton district | B46: District wide | C46: Masterton districtDistrict wide
A47: Carterton district | B47: District wide | C47: Carterton districtDistrict wide
A48: South Wairarapa district | B48: District wide | C48: South Wairarapa districtDistrict wide
A49: Tararua district | B49: District wide | C49: Tararua districtDistrict wide
A50: Region wide | C50: Region wide
A53: PT target differentials
A54: Category group | B54: Differential
A55: Wellington CBD | B55: 7
A56: Business - excl Wairarapa | B56: 1.4
A57: Business - Wairarapa | B57: 1
A58: Residential - excl Wairarapa & Otaki | B58: 1
A59: Residential - Wairarapa & Otaki | B59: 0.5
A60: Rural | B60: 0.25
A61: Tararua | B61: 0
A64: TA & Category | H64: PT differentials to use for rating model transition | N64: onwards | P64: Calculation of differentials using the 2017/18 Transport rate
A65: TA full name | B65: Rating area | C65: Category group | D65: Concatenated name | E65: PT differential category | F65: PT differential | H65: 2017/18 | I65: 2018/19 | J65: 2019/20 | K65: 2020/21 | L65: 2021/22 | M65: 2022/23 | N65: 2023/24 | P65: Rate levied | Q65: ECV | R65: Cents/ECV$
A66: Wellington city | B66: Wellington city | C66: Wellington CBD | D66: =B66&C66 -> Wellington cityWellington CBD | E66: Wellington CBD | F66: =IF(VALUE(LEFT(year_current,4))>2022,N66,INDEX($H66:$M66,,MATCH(year_current,$H$65:$M$65,0))) -> 7 | H66: =R66/R$95 -> 6.743205131 | I66: =($N66-$H66)/6+H66 -> 6.786004276 | J66: 6.82880342 | K66: 6.871602565 | L66: 6.91440171 | M66: =($N66-$H66)/6+L66 -> 6.957200855 | N66: =INDEX($B$55:$B$61,MATCH(E66,$A$55:$A$61,0),) -> 7 | P66: 25019166.08 | Q66: 9699270191 | R66: =(P66*100)/Q66 -> 0.2579489548
A67: Wellington city | B67: Wellington city | C67: Business | D67: =B67&C67 -> Wellington cityBusiness | E67: Business - excl Wairarapa | F67: 1.4 | H67: 0.6610222218 | I67: 0.7841851849 | J67: 0.9073481479 | K67: 1.030511111 | L67: 1.153674074 | M67: 1.276837037 | N67: =INDEX($B$55:$B$61,MATCH(E67,$A$55:$A$61,0),) -> 1.4 | P67: 1192769.666 | Q67: 4717078733 | R67: =(P67*100)/Q67 -> 0.02528619372
A68: Wellington city | B68: Wellington city | C68: Residential | D68: Wellington cityResidential | E68: Residential - excl Wairarapa & Otaki | F68: 1 | H68: 0.6610222218 | I68: 0.7175185182 | J68: 0.7740148146 | K68: 0.8305111109 | L68: 0.8870074073 | M68: 0.9435037036 | N68: 1 | P68: 12199002 | Q68: 4.824372595e+10 | R68: =(P68*100)/Q68 -> 0.02528619372
A69: Wellington city | B69: Wellington city | C69: Rural | D69: Wellington cityRural | E69: Rural | F69: 0.25 | H69: 0.1697782208 | I69: 0.1831485174 | J69: 0.1965188139 | K69: 0.2098891104 | L69: 0.2232594069 | M69: 0.2366297035 | N69: 0.25 | P69: 46420.2668 | Q69: 714756729.4 | R69: 0.006494554705
A70: Hutt city | B70: Hutt city | C70: Business | D70: Hutt cityBusiness | E70: Business - excl Wairarapa | F70: 1.4 | H70: 1.420333234 | I70: 1.416944362 | J70: 1.413555489 | K70: 1.410166617 | L70: 1.406777745 | M70: 1.403388872 | N70: 1.4 | P70: 2092334.59 | Q70: 3850999697 | R70: 0.05433224499
A71: Hutt city | B71: Hutt city | C71: Residential | D71: Hutt cityResidential | E71: Residential - excl Wairarapa & Otaki | F71: 1 | H71: 1.420333234 | I71: 1.350277695 | J71: 1.280222156 | K71: 1.210166617 | L71: 1.140111078 | M71: 1.070055539 | N71: 1 | P71: 9399014.05 | Q71: 1.729914538e+10 | R71: 0.05433224499
A72: Hutt city | B72: Hutt city | C72: Rural | D72: Hutt cityRural | E72: Rural | F72: 0.25 | H72: 0.3619633154 | I72: 0.3433027628 | J72: 0.3246422102 | K72: 0.3059816577 | L72: 0.2873211051 | M72: 0.2686605526 | N72: 0.25 | P72: 44664.56015 | Q72: 322575294.9 | R72: 0.0138462433
A73: Upper Hutt city | B73: Upper Hutt city | C73: Business | D73: Upper Hutt cityBusiness | E73: Business - excl Wairarapa | F73: 1.4 | H73: 1.596786638 | I73: 1.563988865 | J73: 1.531191092 | K73: 1.498393319 | L73: 1.465595546 | M73: 1.432797773 | N73: 1.4 | P73: 725473.2635 | Q73: 1187700996 | R73: 0.0610821466
A74: Upper Hutt city | B74: Upper Hutt city | C74: Residential | D74: Upper Hutt cityResidential | E74: Residential - excl Wairarapa & Otaki | F74: 1 | H74: 1.596786638 | I74: 1.497322199 | J74: 1.397857759 | K74: 1.298393319 | L74: 1.198928879 | M74: 1.09946444 | N74: 1 | P74: 3744588.865 | Q74: 6130414651 | R74: 0.0610821466
A75: Upper Hutt city | B75: Upper Hutt city | C75: Rural | D75: Upper Hutt cityRural | E75: Rural | F75: 0.25 | H75: 0.406960705 | I75: 0.3808005875 | J75: 0.35464047 | K75: 0.3284803525 | L75: 0.302320235 | M75: 0.2761601175 | N75: 0.25 | P75: 126321.4349 | Q75: 811441419.6 | R75: 0.01556753598
A76: Porirua city | B76: Porirua city | C76: Business | D76: Porirua cityBusiness | E76: Business - excl Wairarapa | F76: 1.4 | H76: 1.647808317 | I76: =($N76-$H76)/6+H76 -> 1.606506931 | J76: 1.565205544 | K76: 1.523904158 | L76: 1.482602772 | M76: 1.441301386 | N76: 1.4 | P76: 691972.2213 | Q76: 1097778116 | R76: 0.0630338874
A77: Porirua city | B77: Porirua city | C77: Residential | D77: Porirua cityResidential | E77: Residential - excl Wairarapa & Otaki | F77: 1 | H77: 1.647808317 | I77: 1.539840264 | J77: 1.431872211 | K77: 1.323904158 | L77: 1.215936106 | M77: 1.107968053 | N77: 1 | P77: 5277337.683 | Q77: 8372223102 | R77: 0.0630338874
A78: Porirua city | B78: Porirua city | C78: Rural | D78: Porirua cityRural | E78: Rural | F78: 0.25 | H78: 0.4198516904 | I78: 0.3915430753 | J78: 0.3632344603 | K78: 0.3349258452 | L78: 0.3066172301 | M78: 0.2783086151 | N78: 0.25 | P78: 96761.34374 | Q78: 602474380.3 | R78: 0.016060657
A79: Kāpiti Coast district | B79: Kāpiti Coast district | C79: Business | D79: Kāpiti Coast districtBusiness | E79: Business - excl Wairarapa | F79: 1.4 | H79: 0.7039765706 | I79: 0.8199804755 | J79: 0.9359843804 | K79: 1.051988285 | L79: 1.16799219 | M79: 1.283996095 | N79: 1.4 | P79: 403085.5329 | Q79: 1496826987 | R79: 0.02692933361
A80: Kāpiti Coast district | B80: Kāpiti Coast district excl Ōtaki | C80: Residential | D80: Kāpiti Coast district excl Ōtaki Residential | E80: Residential - excl Wairarapa & Otaki | F80: 1 | H80: 0.7039765706 | I80: 0.7533138088 | J80: 0.802651047 | K80: 0.8519882853 | L80: 0.9013255235 | M80: 0.9506627618 | N80: 1 | P80: 2549190.973 | Q80: 9466223746 | R80: =(P80*100)/Q80 -> 0.02692933361 | T80: Green cells not consistent with formulas above and below due to Otaki carveout
A81: Kāpiti Coast district | B81: Ōtaki rating area | C81: Residential | D81: Ōtaki rating areaResidential | E81: Residential - Wairarapa & Otaki | F81: 0.5 | H81: =H80 -> 0.7039765706 | I81: 0.6699804755 | J81: 0.6359843804 | K81: 0.6019882853 | L81: 0.5679921902 | M81: 0.5339960951 | N81: 0.5
A82: Kāpiti Coast district | B82: Kāpiti Coast district | C82: Rural | D82: Kāpiti Coast districtRural | E82: Rural | F82: 0.25 | H82: =R82/R$95 -> 0.1821240752 | I82: 0.1934367293 | J82: 0.2047493834 | K82: 0.2160620376 | L82: 0.2273746917 | M82: 0.2386873459 | N82: =INDEX($B$55:$B$61,MATCH(E82,$A$55:$A$61,0),) -> 0.25 | P82: 138343.5821 | Q82: 1985748559 | R82: =(P82*100)/Q82 -> 0.006966822737
A83: Masterton district | B83: Masterton district | C83: Business | D83: Masterton districtBusiness | E83: Business - Wairarapa | F83: 1 | H83: =R83/R$95 -> 0.2489874227 | I83: 0.3741561856 | J83: 0.4993249485 | K83: 0.6244937114 | L83: 0.7496624742 | M83: 0.8748312371 | N83: 1 | P83: 38506.17602 | Q83: 404283094.1 | R83: 0.009524557565
A84: Masterton district | B84: Masterton district | C84: Residential | D84: Masterton districtResidential | E84: Residential - Wairarapa & Otaki | F84: 0.5 | H84: =R84/R$95 -> 0.2489874227 | I84: 0.2908228523 | J84: 0.3326582818 | K84: 0.3744937114 | L84: 0.4163291409 | M84: 0.4581645705 | N84: 0.5 | P84: 199517.2283 | Q84: 2094766366 | R84: 0.009524557565
A85: Masterton district | B85: Masterton district | C85: Rural | D85: Masterton districtRural | E85: Rural | F85: 0.25 | H85: 0.07152899945 | I85: 0.1012741662 | J85: 0.131019333 | K85: 0.1607644997 | L85: 0.1905096665 | M85: 0.2202548332 | N85: 0.25 | P85: 68725.16171 | Q85: 2511691056 | R85: 0.002736210791
A86: Carterton district | B86: Carterton district | C86: Business | D86: Carterton districtBusiness | E86: Business - Wairarapa | F86: 1 | H86: 0.4467021244 | I86: =($N86-$H86)/6+H86 -> 0.538918437 | J86: 0.6311347496 | K86: 0.7233510622 | L86: 0.8155673748 | M86: 0.9077836874 | N86: 1 | P86: 16823.53518 | Q86: 98453654.54 | R86: 0.01708777115
A87: Carterton district | B87: Carterton district | C87: Residential | D87: Carterton districtResidential | E87: Residential - Wairarapa & Otaki | F87: 0.5 | H87: 0.4467021244 | I87: 0.4555851037 | J87: 0.4644680829 | K87: 0.4733510622 | L87: 0.4822340415 | M87: 0.4911170207 | N87: 0.5 | P87: 109887.4071 | Q87: 643076303.8 | R87: 0.01708777115
A88: Carterton district | B88: Carterton district | C88: Rural | D88: Carterton districtRural | E88: Rural | F88: 0.25 | H88: 0.1197167956 | I88: 0.141430663 | J88: 0.1631445304 | K88: 0.1848583978 | L88: 0.2065722652 | M88: 0.2282861326 | N88: 0.25 | P88: 72077.97135 | Q88: 1573910635 | R88: 0.004579546625
A89: South Wairarapa district | B89: South Wairarapa district | C89: Business | D89: South Wairarapa districtBusiness | E89: Business - Wairarapa | F89: 1 | H89: 0.5902497269 | I89: 0.6585414391 | J89: 0.7268331513 | K89: 0.7951248635 | L89: 0.8634165756 | M89: 0.9317082878 | N89: 1 | P89: 44332.49903 | Q89: 196344625.2 | R89: 0.02257892162
A90: South Wairarapa district | B90: South Wairarapa district | C90: Residential | D90: South Wairarapa districtResidential | E90: Residential - Wairarapa & Otaki | F90: 0.5 | H90: 0.5902497269 | I90: 0.5752081058 | J90: 0.5601664846 | K90: 0.5451248635 | L90: 0.5300832423 | M90: 0.5150416212 | N90: 0.5 | P90: 206694.8687 | Q90: 915432863.5 | R90: 0.02257892162
A91: South Wairarapa district | B91: South Wairarapa district | C91: Rural | D91: South Wairarapa districtRural | E91: Rural | F91: 0.25 | H91: 0.1534427564 | I91: 0.1695356303 | J91: 0.1856285043 | K91: 0.2017213782 | L91: 0.2178142521 | M91: 0.2339071261 | N91: 0.25 | P91: 153385.1807 | Q91: 2613181710 | R91: 0.005869671448
A92: Tararua district | B92: Tararua district | C92: Rural | D92: Tararua districtRural | E92: Tararua | F92: 0 | H92: 0 | I92: 0 | J92: 0 | K92: 0 | L92: 0 | M92: 0 | N92: 0 | P92: 0 | Q92: 7041800 | R92: 0
A93: Region wide | D93: =A93&C93 -> Region wide | P93: =SUM(P66:P92) -> 64656396.14 | Q93: =SUM(Q66:Q92) -> 1.27056566e+11
P95: =SUMIF($C$66:$C$78,"Residential",P$66:P$78) -> 30619942.6 | Q95: =SUMIF($C$66:$C$78,"Residential",Q$66:Q$78) -> 8.004550909e+10 | R95: =(P95*100)/Q95 -> 0.03825316741
A98: WRS rates
A99: Category group | B99: Rating basis
A100: Wellington CBD | B100: Remainder
A101: Business | B101: Remainder
A102: Residential | B102: 15
A103: Rural | B103: 15
A106: Flood protection
A107: From Essbase / Landcare & Wairarapa Accountant
A108: TA full name | B108: [not used] | C108: River management | D108: [not used] | E108: Total
A109: Wellington city | C109: 265571.54 | E109: =SUM(B109:D109) -> 265571.54
A110: Hutt city | C110: 8942063.71 | E110: =SUM(B110:D110) -> 8942063.71
A111: Upper Hutt city | C111: 1468314.42 | E111: 1468314.42
A112: Porirua city | C112: 92070 | E112: 92070
A113: Kāpiti Coast district | C113: 1748053.49 | E113: 1748053.49
A114: Masterton district | E114: 0
A115: Carterton district | C115: 27451.4 | E115: 27451.4
A116: South Wairarapa district | E116: 0
A117: Tararua district | E117: 0
A118: Non district Wide | E118: 0
A119: Special Rates | E119: 0
A120: External Revenue | E120: 0
A121: Total | C121: =SUM(C109:C120) -> 12543524.56 | E121: =SUM(B121:D121) -> 12543524.56
A123: Non district-wide breakdown
A124: Greytown River Management Rate | D124: 98709.62
A125: Donalds Creek Stopbank River Management Rate | D125: 3051.22
A126: South Wairarapa district River Management Rates | D126: =SUM(D124:D125) -> 101760.84
A129: Stadium Rate
A130: =B65 -> Rating area | B130: Category group | C130: Concatenated name | D130: Stadium differential
A131: Wellington city | B131: Wellington CBD | C131: Wellington cityWellington CBD | D131: 2
A132: Wellington city | B132: Business | C132: Wellington cityBusiness | D132: 1.2
A133: Wellington city | B133: Residential | C133: Wellington cityResidential | D133: 1.2
A134: Wellington city | B134: Rural | C134: Wellington cityRural | D134: 1.2
A135: =B70 -> Hutt city | B135: Business | C135: Hutt cityBusiness | D135: 1
A136: Hutt city | B136: Residential | C136: Hutt cityResidential | D136: 1
A137: Hutt city | B137: Rural | C137: Hutt cityRural | D137: 1
A138: Upper Hutt city | B138: Business | C138: Upper Hutt cityBusiness | D138: 1
A139: Upper Hutt city | B139: Residential | C139: Upper Hutt cityResidential | D139: 1
A140: Upper Hutt city | B140: Rural | C140: Upper Hutt cityRural | D140: 1
A141: Porirua city | B141: Business | C141: Porirua cityBusiness | D141: 1
A142: Porirua city | B142: Residential | C142: Porirua cityResidential | D142: 1
A143: Porirua city | B143: Rural | C143: Porirua cityRural | D143: 1
A144: Kāpiti Coast district | B144: Business | C144: Kāpiti Coast districtBusiness | D144: 0.5
A145: Kāpiti Coast district excl Ōtaki | B145: Residential | C145: Kāpiti Coast district excl Ōtaki Residential | D145: 0.5
A146: Ōtaki rating area | B146: Residential | C146: Ōtaki rating areaResidential | D146: 0.5
A147: Kāpiti Coast district | B147: Rural | C147: Kāpiti Coast districtRural | D147: 0.5
A148: Masterton district | B148: Business | C148: Masterton districtBusiness | D148: 0.5
A149: Masterton district | B149: Residential | C149: Masterton districtResidential | D149: 0.5
A150: Masterton district | B150: Rural | C150: Masterton districtRural | D150: 0.5
A151: Carterton district | B151: Business | C151: Carterton districtBusiness | D151: 0.5
A152: Carterton district | B152: Residential | C152: Carterton districtResidential | D152: 0.5
A153: Carterton district | B153: Rural | C153: Carterton districtRural | D153: 0.5
A154: South Wairarapa district | B154: Business | C154: South Wairarapa districtBusiness | D154: 0.5
A155: South Wairarapa district | B155: Residential | C155: South Wairarapa districtResidential | D155: 0.5
A156: South Wairarapa district | B156: Rural | C156: South Wairarapa districtRural | D156: 0.5
A157: Tararua district | B157: Rural | C157: Tararua districtRural | D157: 0.5
A160: Water levy
A161: Need numbers for each city - March 31 comes from Wellington Water
A162: TA full name | B162: Share of levy | C162: =year_current -> 2024/25
A163: Wellington city | B163: =C163/$C$172 -> 0.5037866963 | C163: 34122161.23
A164: Hutt city | B164: =C164/$C$172 -> 0.2689228642 | C164: 18214513
A165: Upper Hutt city | B165: =C165/$C$172 -> 0.1149957757 | C165: 7788821
A166: Porirua city | B166: =C166/$C$172 -> 0.1122946638 | C166: 7605871
A167: Kāpiti Coast district
A168: Masterton district
A169: Carterton district
A170: South Wairarapa district
A171: Tararua district
A172: Region wide | B172: =SUM(B163:B171) -> 1 | C172: =SUM(C163:C171) -> 67731366.23

Sheet Capital values
A1: Wellington Regional Council
A2: Rateable values
A3: =check_total -> 0
A5: Capital values
A6: =Control!A40 -> TA full name | B6: Rating area | C6: =Control!B40 -> Category group | D6: =Control!C40 -> Concatenated row | E6: ="CV "&year_previous -> CV 2023/24 | F6: ="CV "&year_current -> CV 2024/25 | G6: ="ECV "&year_previous -> ECV 2023/24 | H6: ="ECV "&year_current -> ECV 2024/25 | J6: Check CV | K6: Check ECV
A7: =Control!A51 -> 0 | C7: =Control!B51 -> 0 | D7: =Control!C51 -> 0
A8: =Control!A41 -> Wellington city | C8: =Control!B41 -> District wide | D8: =Control!C41 -> Wellington cityDistrict wide | E8: =SUMIF($A$19:$A$45,$A8,E$19:E$45) -> 115410735050 | F8: =SUMIF($A$19:$A$45,$A8,F$19:F$45) -> 117326906550 | G8: 106123065450 | H8: 99003634434 | K8: =ISBLANK(G8)+ISBLANK(H8) -> 0
A9: =Control!A42 -> Hutt city | C9: =Control!B42 -> District wide | D9: =Control!C42 -> Hutt cityDistrict wide | E9: 39038769400 | F9: 39707176000 | G9: 39922244678 | H9: 38393867363 | K9: =ISBLANK(G9)+ISBLANK(H9) -> 0
A10: =Control!A43 -> Upper Hutt city | C10: =Control!B43 -> District wide | D10: =Control!C43 -> Upper Hutt cityDistrict wide | E10: 16508539950 | F10: 16856900350 | G10: 16770869806 | H10: 15516301703 | K10: 0
A11: =Control!A44 -> Porirua city | C11: =Control!B44 -> District wide | D11: =Control!C44 -> Porirua cityDistrict wide | E11: 19107939000 | F11: =SUMIF($A$19:$A$45,$A11,F$19:F$45) -> 19409983800 | G11: 19355103521 | H11: 18992714263 | K11: 0
A12: =Control!A45 -> Kāpiti Coast district | C12: =Control!B45 -> District wide | D12: =Control!C45 -> Kāpiti Coast districtDistrict wide | E12: 19946308650 | F12: 23142666100 | G12: 25661831864 | H12: 23073590904 | K12: 0
A13: =Control!A46 -> Masterton district | C13: =Control!B46 -> District wide | D13: =Control!C46 -> Masterton districtDistrict wide | E13: 8934202155 | F13: 10529984800 | G13: 11670482332 | H13: 10956106252 | K13: 0
A14: =Control!A47 -> Carterton district | C14: =Control!B47 -> District wide | D14: =Control!C47 -> Carterton districtDistrict wide | E14: 3767174800 | F14: 4626940700 | G14: 5134246088 | H14: 4589109075 | K14: 0
A15: =Control!A48 -> South Wairarapa district | C15: =Control!B48 -> District wide | D15: =Control!C48 -> South Wairarapa districtDistrict wide | E15: 6431251700 | F15: 7891083050 | G15: 8666167417 | H15: 7645492004 | K15: 0
A16: =Control!A49 -> Tararua district | C16: =Control!B49 -> District wide | D16: =Control!C49 -> Tararua districtDistrict wide | E16: 15976500 | F16: 20442000 | G16: 23756925 | H16: 21568275 | K16: =ISBLANK(G16)+ISBLANK(H16) -> 0
A17: =Control!A50 -> Region wide | C17: =Control!B50 -> 0 | D17: =Control!C50 -> Region wide | E17: =SUM(E8:E16) -> 229160897205 | F17: =SUM(F8:F16) -> 239512083350 | G17: =SUM(G8:G16) -> 233327768081 | H17: =SUM(H8:H16) -> 218192384273
A19: =Control!A66 -> Wellington city | B19: =Control!B66 -> Wellington city | C19: =Control!C66 -> Wellington CBD | D19: =Control!D66 -> Wellington cityWellington CBD | E19: 13125483300 | F19: 13368376300 | G19: =E19 * (INDEX(G$8:G$16,MATCH($A19&"District wide",$D$8:$D$16,0))/INDEX(E$8:E$16,MATCH($A19&"District wide",$D$8:$D$16,0))) -> 1.206921109e+10 | H19: =F19 * (INDEX(H$8:H$16,MATCH($A19&"District wide",$D$8:$D$16,0))/INDEX(F$8:F$16,MATCH($A19&"District wide",$D$8:$D$16,0))) -> 1.128059947e+10 | J19: =ISBLANK(E19)+ISBLANK(F19) -> 0
A20: =Control!A67 -> Wellington city | B20: =Control!B67 -> Wellington city | C20: =Control!C67 -> Business | D20: =Control!D67 -> Wellington cityBusiness | E20: 6562077350 | F20: 6480398350 | G20: 6033994704 | H20: =F20 * (INDEX(H$8:H$16,MATCH($A20&"District wide",$D$8:$D$16,0))/INDEX(F$8:F$16,MATCH($A20&"District wide",$D$8:$D$16,0))) -> 5468336361 | J20: 0
A21: =Control!A68 -> Wellington city | B21: =Control!B68 -> Wellington city | C21: =Control!C68 -> Residential | D21: =Control!D68 -> Wellington cityResidential | E21: 94298860050 | F21: 96040762550 | G21: 8.671016689e+10 | H21: 8.104180725e+10 | J21: 0
A22: =Control!A69 -> Wellington city | B22: =Control!B69 -> Wellington city | C22: =Control!C69 -> Rural | D22: =Control!D69 -> Wellington cityRural | E22: 1424314350 | F22: 1437369350 | G22: 1309692767 | H22: 1212891347 | J22: 0
A23: =Control!A70 -> Hutt city | B23: =Control!B70 -> Hutt city | C23: =Control!C70 -> Business | D23: =Control!D70 -> Hutt cityBusiness | E23: 6730624900 | F23: =1131253000+5610988000 -> 6742241000 | G23: 6882943756 | H23: 6519242433 | J23: 0
A24: =Control!A71 -> Hutt city | B24: =Control!B71 -> Hutt city | C24: =Control!C71 -> Residential | D24: =Control!D71 -> Hutt cityResidential | E24: 31752589000 | F24: 32406254500 | G24: 3.24711728e+10 | H24: 3.13344227e+10 | J24: 0
A25: =Control!A72 -> Hutt city | B25: =Control!B72 -> Hutt city | C25: =Control!C72 -> Rural | D25: =Control!D72 -> Hutt cityRural | E25: 555555500 | F25: 558680500 | G25: 568128118.4 | H25: 540202229.8 | J25: 0
A26: =Control!A73 -> Upper Hutt city | B26: =Control!B73 -> Upper Hutt city | C26: =Control!C73 -> Business | D26: =Control!D73 -> Upper Hutt cityBusiness | E26: 1983151950 | F26: 2074242950 | G26: 2014665334 | H26: 1909282178 | J26: 0
A27: =Control!A74 -> Upper Hutt city | B27: =Control!B74 -> Upper Hutt city | C27: =Control!C74 -> Residential | D27: =Control!D74 -> Upper Hutt cityResidential | E27: 12668638000 | F27: 12920826400 | G27: 1.286994968e+10 | H27: 1.189325656e+10 | J27: 0
A28: =Control!A75 -> Upper Hutt city | B28: =Control!B75 -> Upper Hutt city | C28: =Control!C75 -> Rural | D28: =Control!D75 -> Upper Hutt cityRural | E28: 1856750000 | F28: 1861831000 | G28: 1886254787 | H28: 1713762964 | J28: 0
A29: =Control!A76 -> Porirua city | B29: =Control!B76 -> Porirua city | C29: =Control!C76 -> Business | D29: =Control!D76 -> Porirua cityBusiness | E29: 1724715000 | F29: 1752175500 | G29: 1747024489 | H29: 1714507799 | J29: 0
A30: =Control!A77 -> Porirua city | B30: =Control!B77 -> Porirua city | C30: =Control!C77 -> Residential | D30: =Control!D77 -> Porirua cityResidential | E30: 16092655000 | F30: 16374013500 | G30: 1.63008163e+10 | H30: 1.602201027e+10 | J30: 0
A31: =Control!A78 -> Porirua city | B31: =Control!B78 -> Porirua city | C31: =Control!C78 -> Rural | D31: =Control!D78 -> Porirua cityRural | E31: 1290569000 | F31: 1283794800 | G31: 1307262735 | H31: 1256196196 | J31: 0
A32: =Control!A79 -> Kāpiti Coast district | B32: =Control!B79 -> Kāpiti Coast district | C32: =Control!C79 -> Business | D32: =Control!D79 -> Kāpiti Coast districtBusiness | E32: 1758315500 | F32: 2118502900 | G32: 2262152738 | H32: 2112179687 | J32: 0
A33: =Control!A80 -> Kāpiti Coast district | B33: =Control!B80 -> Kāpiti Coast district excl Ōtaki | C33: =Control!C80 -> Residential | D33: =Control!D80 -> Kāpiti Coast district excl Ōtaki Residential | E33: 13794244800 | F33: 15678065400 | G33: 1.774692235e+10 | H33: 1.563127021e+10 | J33: 0
A34: =Control!A81 -> Kāpiti Coast district | B34: =Control!B81 -> Ōtaki rating area | C34: =Control!C81 -> Residential | D34: =Control!D81 -> Ōtaki rating areaResidential | E34: 1711698400 | F34: 2036169400 | G34: 2202177722 | H34: 2030091933 | J34: 0
A35: =Control!A82 -> Kāpiti Coast district | B35: =Control!B82 -> Kāpiti Coast district | C35: =Control!C82 -> Rural | D35: =Control!D82 -> Kāpiti Coast districtRural | E35: 2682049950 | F35: 3309928400 | G35: 3450579056 | H35: 3300049074 | J35: 0
A36: =Control!A83 -> Masterton district | B36: =Control!B83 -> Masterton district | C36: =Control!C83 -> Business | D36: =Control!D83 -> Masterton districtBusiness | E36: 746922100 | F36: 954405000 | G36: 975682105.7 | H36: 993027320.2 | J36: 0
A37: =Control!A84 -> Masterton district | B37: =Control!B84 -> Masterton district | C37: =Control!C84 -> Residential | D37: =Control!D84 -> Masterton districtResidential | E37: 4196271900 | F37: 4684053500 | G37: 5481465073 | H37: 4873605120 | J37: 0
A38: =Control!A85 -> Masterton district | B38: =Control!B85 -> Masterton district | C38: =Control!C85 -> Rural | D38: =Control!D85 -> Masterton districtRural | E38: 3991008155 | F38: 4891526300 | G38: 5213335153 | H38: 5089473812 | J38: 0
A39: =Control!A86 -> Carterton district | B39: =Control!B86 -> Carterton district | C39: =Control!C86 -> Business | D39: =Control!D86 -> Carterton districtBusiness | E39: 133858500 | F39: 198752500 | G39: 182434454.6 | H39: 197127424.1 | J39: 0
A40: =Control!A87 -> Carterton district | B40: =Control!B87 -> Carterton district | C40: =Control!C87 -> Residential | D40: =Control!D87 -> Carterton districtResidential | E40: 1338796500 | F40: 1604807000 | G40: 1824632797 | H40: 1591685488 | J40: 0
A41: =Control!A88 -> Carterton district | B41: =Control!B88 -> Carterton district | C41: =Control!C88 -> Rural | D41: =Control!D88 -> Carterton districtRural | E41: 2294519800 | F41: 2823381200 | G41: 3127178836 | H41: 2800296163 | J41: 0
A42: =Control!A89 -> South Wairarapa district | B42: =Control!B89 -> South Wairarapa district | C42: =Control!C89 -> Business | D42: =Control!D89 -> South Wairarapa districtBusiness | E42: 286688000 | F42: 402740000 | G42: 386314565.2 | H42: 390205682.8 | J42: 0
A43: =Control!A90 -> South Wairarapa district | B43: =Control!B90 -> South Wairarapa district | C43: =Control!C90 -> Residential | D43: =Control!D90 -> South Wairarapa districtResidential | E43: 2195790500 | F43: 2562801500 | G43: 2958846734 | H43: 2483040446 | J43: 0
A44: =Control!A91 -> South Wairarapa district | B44: =Control!B91 -> South Wairarapa district | C44: =Control!C91 -> Rural | D44: =Control!D91 -> South Wairarapa districtRural | E44: 3948773200 | F44: 4925541550 | G44: 5321006118 | H44: 4772245875 | J44: 0
A45: =Control!A92 -> Tararua district | B45: =Control!B92 -> Tararua district | C45: =Control!C92 -> Rural | D45: =Control!D92 -> Tararua districtRural | E45: 15976500 | F45: 20442000 | G45: 23756925 | H45: 21568275 | J45: 0
A46: =Control!A93 -> Region wide | C46: =Control!C93 -> 0 | D46: =Control!D93 -> Region wide | E46: =SUM(E19:E45) -> 229160897205 | F46: =SUM(F19:F45) -> 239512083350 | G46: =SUM(G19:G45) -> 2.333277681e+11 | H46: =SUM(H19:H45) -> 2.181923843e+11
A48: Greytown Urban -CV | E48: 1186162500 | F48: 1429473500 | J48: =ISBLANK(E48)+ISBLANK(F48) -> 0
A49: Featherston Urban - LV | E49: 285363500 | F49: 334432000 | J49: =ISBLANK(E49)+ISBLANK(F49) -> 0
A51: Check totals | E51: =Total_CV-E17 -> 0 | F51: =F17-F46 -> 0
A54: No. of Assessments (#)
A55: =Control!A40 -> TA full name | B55: Rating area | C55: =Control!B40 -> Category group | D55: =Control!C40 -> Concatenated row | E55: ="CV assessments "&year_previous -> CV assessments 2023/24 | F55: ="CV assessments "&year_current -> CV assessments 2024/25 | G55: ="ECV assessments "&year_previous -> ECV assessments 2023/24 | H55: ="ECV assessments "&year_current -> ECV assessments 2024/25
A56: =Control!A51 -> 0 | C56: =Control!B51 -> 0 | D56: =Control!C51 -> 0
A57: =Control!A41 -> Wellington city | C57: =Control!B41 -> District wide | D57: =Control!C41 -> Wellington cityDistrict wide | E57: =SUMIF($A$68:$A$94,$A57,E$68:E$94) -> 80373 | F57: 81121 | G57: 80846 | H57: 81994 | K57: =ISBLANK(G57)+ISBLANK(H57) -> 0
A58: =Control!A42 -> Hutt city | C58: =Control!B42 -> District wide | D58: =Control!C42 -> Hutt cityDistrict wide | E58: 41092 | F58: 42082 | G58: 41732 | H58: 42581 | K58: 0
A59: =Control!A43 -> Upper Hutt city | C59: =Control!B43 -> District wide | D59: =Control!C43 -> Upper Hutt cityDistrict wide | E59: 17778 | F59: 18072 | G59: 17867 | H59: 18200 | K59: 0
A60: =Control!A44 -> Porirua city | C60: =Control!B44 -> District wide | D60: =Control!C44 -> Porirua cityDistrict wide | E60: 19954 | F60: 20191 | G60: 20013 | H60: 20139 | K60: 0
A61: =Control!A45 -> Kāpiti Coast district | C61: =Control!B45 -> District wide | D61: =Control!C45 -> Kāpiti Coast districtDistrict wide | E61: 25753 | F61: 26046 | G61: 25599 | H61: 25913 | K61: 0
A62: =Control!A46 -> Masterton district | C62: =Control!B46 -> District wide | D62: =Control!C46 -> Masterton districtDistrict wide | E62: 13374 | F62: 13522 | G62: 13204 | H62: 13415 | K62: 0
A63: =Control!A47 -> Carterton district | C63: =Control!B47 -> District wide | D63: =Control!C47 -> Carterton districtDistrict wide | E63: 5129 | F63: 5162 | G63: 5144 | H63: 5224 | K63: 0
A64: =Control!A48 -> South Wairarapa district | C64: =Control!B48 -> District wide | D64: =Control!C48 -> South Wairarapa districtDistrict wide | E64: 7242 | F64: 7036 | G64: 7228 | H64: 7340 | K64: 0
A65: =Control!A49 -> Tararua district | C65: =Control!B49 -> District wide | D65: =Control!C49 -> Tararua districtDistrict wide | E65: 11 | F65: 11 | G65: 11 | H65: 11 | K65: 0
A66: =Control!A50 -> Region wide | C66: =Control!B50 -> 0 | D66: =Control!C50 -> Region wide | E66: =SUM(E57:E65) -> 210706 | F66: =SUM(F57:F65) -> 213243 | G66: =SUM(G57:G65) -> 211644 | H66: =SUM(H57:H65) -> 214817
A68: =Control!A66 -> Wellington city | B68: =Control!B66 -> Wellington city | C68: =Control!C66 -> Wellington CBD | D68: =Control!D66 -> Wellington cityWellington CBD | E68: 3007 | F68: 2991 | J68: =ISBLANK(E68)+ISBLANK(F68) -> 0
A69: =Control!A67 -> Wellington city | B69: =Control!B67 -> Wellington city | C69: =Control!C67 -> Business | D69: =Control!D67 -> Wellington cityBusiness | E69: 1883 | F69: 1841 | J69: 0
A70: =Control!A68 -> Wellington city | B70: =Control!B68 -> Wellington city | C70: =Control!C68 -> Residential | D70: =Control!D68 -> Wellington cityResidential | E70: 74588 | F70: 75387 | J70: 0
A71: =Control!A69 -> Wellington city | B71: =Control!B69 -> Wellington city | C71: =Control!C69 -> Rural | D71: =Control!D69 -> Wellington cityRural | E71: 895 | F71: 902 | J71: 0
A72: =Control!A70 -> Hutt city | B72: =Control!B70 -> Hutt city | C72: =Control!C70 -> Business | D72: =Control!D70 -> Hutt cityBusiness | E72: 2322 | F72: =359+2156 -> 2515 | J72: 0
A73: =Control!A71 -> Hutt city | B73: =Control!B71 -> Hutt city | C73: =Control!C71 -> Residential | D73: =Control!D71 -> Hutt cityResidential | E73: 38327 | F73: 39121 | J73: 0
A74: =Control!A72 -> Hutt city | B74: =Control!B72 -> Hutt city | C74: =Control!C72 -> Rural | D74: =Control!D72 -> Hutt cityRural | E74: 443 | F74: 446 | J74: 0
A75: =Control!A73 -> Upper Hutt city | B75: =Control!B73 -> Upper Hutt city | C75: =Control!C73 -> Business | D75: =Control!D73 -> Upper Hutt cityBusiness | E75: 770 | F75: 819 | J75: 0
A76: =Control!A74 -> Upper Hutt city | B76: =Control!B74 -> Upper Hutt city | C76: =Control!C74 -> Residential | D76: =Control!D74 -> Upper Hutt cityResidential | E76: 15652 | F76: 15899 | J76: 0
A77: =Control!A75 -> Upper Hutt city | B77: =Control!B75 -> Upper Hutt city | C77: =Control!C75 -> Rural | D77: =Control!D75 -> Upper Hutt cityRural | E77: 1356 | F77: 1354 | J77: 0
A78: =Control!A76 -> Porirua city | B78: =Control!B76 -> Porirua city | C78: =Control!C76 -> Business | D78: =Control!D76 -> Porirua cityBusiness | E78: 814 | F78: 856 | J78: 0
A79: =Control!A77 -> Porirua city | B79: =Control!B77 -> Porirua city | C79: =Control!C77 -> Residential | D79: =Control!D77 -> Porirua cityResidential | E79: 18490 | F79: 18678 | J79: =ISBLANK(E79)+ISBLANK(F79) -> 0
A80: =Control!A78 -> Porirua city | B80: =Control!B78 -> Porirua city | C80: =Control!C78 -> Rural | D80: =Control!D78 -> Porirua cityRural | E80: 650 | F80: 657 | J80: 0
A81: =Control!A79 -> Kāpiti Coast district | B81: =Control!B79 -> Kāpiti Coast district | C81: =Control!C79 -> Business | D81: =Control!D79 -> Kāpiti Coast districtBusiness | E81: 1254 | F81: 1245 | J81: 0
A82: =Control!A80 -> Kāpiti Coast district | B82: =Control!B80 -> Kāpiti Coast district excl Ōtaki | C82: =Control!C80 -> Residential | D82: =Control!D80 -> Kāpiti Coast district excl Ōtaki Residential | E82: 18439 | F82: 18667 | J82: 0
A83: =Control!A81 -> Kāpiti Coast district | B83: =Control!B81 -> Ōtaki rating area | C83: =Control!C81 -> Residential | D83: =Control!D81 -> Ōtaki rating areaResidential | E83: 3322 | F83: 3389 | J83: 0
A84: =Control!A82 -> Kāpiti Coast district | B84: =Control!B82 -> Kāpiti Coast district | C84: =Control!C82 -> Rural | D84: =Control!D82 -> Kāpiti Coast districtRural | E84: 2738 | F84: 2745 | J84: 0
A85: =Control!A83 -> Masterton district | B85: =Control!B83 -> Masterton district | C85: =Control!C83 -> Business | D85: =Control!D83 -> Masterton districtBusiness | E85: 584 | F85: 601 | J85: =ISBLANK(E85)+ISBLANK(F85) -> 0
A86: =Control!A84 -> Masterton district | B86: =Control!B84 -> Masterton district | C86: =Control!C84 -> Residential | D86: =Control!D84 -> Masterton districtResidential | E86: 8716 | F86: 8805 | J86: 0
A87: =Control!A85 -> Masterton district | B87: =Control!B85 -> Masterton district | C87: =Control!C85 -> Rural | D87: =Control!D85 -> Masterton districtRural | E87: 4074 | F87: 4116 | J87: 0
A88: =Control!A86 -> Carterton district | B88: =Control!B86 -> Carterton district | C88: =Control!C86 -> Business | D88: =Control!D86 -> Carterton districtBusiness | E88: 237 | F88: 234 | J88: 0
A89: =Control!A87 -> Carterton district | B89: =Control!B87 -> Carterton district | C89: =Control!C87 -> Residential | D89: =Control!D87 -> Carterton districtResidential | E89: 2678 | F89: 2689 | J89: 0
A90: =Control!A88 -> Carterton district | B90: =Control!B88 -> Carterton district | C90: =Control!C88 -> Rural | D90: =Control!D88 -> Carterton districtRural | E90: 2214 | F90: 2239 | J90: 0
A91: =Control!A89 -> South Wairarapa district | B91: =Control!B89 -> South Wairarapa district | C91: =Control!C89 -> Business | D91: =Control!D89 -> South Wairarapa districtBusiness | E91: 314 | F91: 320 | J91: 0
A92: =Control!A90 -> South Wairarapa district | B92: =Control!B90 -> South Wairarapa district | C92: =Control!C90 -> Residential | D92: =Control!D90 -> South Wairarapa districtResidential | E92: 3594 | F92: 3355 | J92: 0
A93: =Control!A91 -> South Wairarapa district | B93: =Control!B91 -> South Wairarapa district | C93: =Control!C91 -> Rural | D93: =Control!D91 -> South Wairarapa districtRural | E93: 3334 | F93: 3361 | J93: 0
A94: =Control!A92 -> Tararua district | B94: =Control!B92 -> Tararua district | C94: =Control!C92 -> Rural | D94: =Control!D92 -> Tararua districtRural | E94: 11 | F94: 11 | J94: 0
A95: =Control!A93 -> Region wide | C95: =Control!C93 -> 0 | D95: =Control!D93 -> Region wide | E95: =SUM(E68:E94) -> 210706 | F95: =SUM(F68:F94) -> 213243
A97: Check totals | E97: =Total_assessments-E66 -> 0 | F97: =F66-F95 -> 0
A100: Number of Assessments Contiguous for EDR
A101: =Control!A40 -> TA full name | C101: =Control!B40 -> Category group | D101: =Control!C40 -> Concatenated row | E101: ="Contiguous assements "&year_previous -> Contiguous assements 2023/24 | F101: ="Contiguous assements "&year_current -> Contiguous assements 2024/25
A102: =Control!A51 -> 0 | C102: =Control!B51 -> 0 | D102: =Control!C51 -> 0
A103: =Control!A41 -> Wellington city | C103: =Control!B41 -> District wide | D103: =Control!C41 -> Wellington cityDistrict wide | E103: =SUMIF($A$114:$A$140,$A103,E$114:E$140) -> 0 | F103: =SUMIF($A$114:$A$140,$A103,F$114:F$140) -> 0
A104: =Control!A42 -> Hutt city | C104: =Control!B42 -> District wide | D104: =Control!C42 -> Hutt cityDistrict wide | E104: =SUMIF($A$114:$A$140,$A104,E$114:E$140) -> 0 | F104: 19
A105: =Control!A43 -> Upper Hutt city | C105: =Control!B43 -> District wide | D105: =Control!C43 -> Upper Hutt cityDistrict wide | E105: 96 | F105: 92
A106: =Control!A44 -> Porirua city | C106: =Control!B44 -> District wide | D106: =Control!C44 -> Porirua cityDistrict wide | E106: 0 | F106: 0
A107: =Control!A45 -> Kāpiti Coast district | C107: =Control!B45 -> District wide | D107: =Control!C45 -> Kāpiti Coast districtDistrict wide | E107: 284 | F107: 357
A108: =Control!A46 -> Masterton district | C108: =Control!B46 -> District wide | D108: =Control!C46 -> Masterton districtDistrict wide | E108: 591 | F108: 603
A109: =Control!A47 -> Carterton district | C109: =Control!B47 -> District wide | D109: =Control!C47 -> Carterton districtDistrict wide | E109: 398 | F109: 405
A110: =Control!A48 -> South Wairarapa district | C110: =Control!B48 -> District wide | D110: =Control!C48 -> South Wairarapa districtDistrict wide | E110: 625 | F110: 356
A111: =Control!A49 -> Tararua district | C111: =Control!B49 -> District wide | D111: =Control!C49 -> Tararua districtDistrict wide | E111: 0 | F111: 0
A112: =Control!A50 -> Region wide | C112: =Control!B50 -> 0 | D112: =Control!C50 -> Region wide | E112: =SUM(E103:E111) -> 1994 | F112: =SUM(F103:F111) -> 1832
A114: =Control!A66 -> Wellington city | B114: =Control!B66 -> Wellington city | C114: =Control!C66 -> Wellington CBD | D114: =Control!D66 -> Wellington cityWellington CBD
A115: =Control!A67 -> Wellington city | B115: =Control!B67 -> Wellington city | C115: =Control!C67 -> Business | D115: =Control!D67 -> Wellington cityBusiness
A116: =Control!A68 -> Wellington city | B116: =Control!B68 -> Wellington city | C116: =Control!C68 -> Residential | D116: =Control!D68 -> Wellington cityResidential
A117: =Control!A69 -> Wellington city | B117: =Control!B69 -> Wellington city | C117: =Control!C69 -> Rural | D117: =Control!D69 -> Wellington cityRural
A118: =Control!A70 -> Hutt city | B118: =Control!B70 -> Hutt city | C118: =Control!C70 -> Business | D118: =Control!D70 -> Hutt cityBusiness
A119: =Control!A71 -> Hutt city | B119: =Control!B71 -> Hutt city | C119: =Control!C71 -> Residential | D119: =Control!D71 -> Hutt cityResidential | E119: 0 | F119: 19
A120: =Control!A72 -> Hutt city | B120: =Control!B72 -> Hutt city | C120: =Control!C72 -> Rural | D120: =Control!D72 -> Hutt cityRural
A121: =Control!A73 -> Upper Hutt city | B121: =Control!B73 -> Upper Hutt city | C121: =Control!C73 -> Business | D121: =Control!D73 -> Upper Hutt cityBusiness | E121: 13 | F121: 17
A122: =Control!A74 -> Upper Hutt city | B122: =Control!B74 -> Upper Hutt city | C122: =Control!C74 -> Residential | D122: =Control!D74 -> Upper Hutt cityResidential | E122: 35 | F122: 21
A123: =Control!A75 -> Upper Hutt city | B123: =Control!B75 -> Upper Hutt city | C123: =Control!C75 -> Rural | D123: =Control!D75 -> Upper Hutt cityRural | E123: 48 | F123: 54
A124: =Control!A76 -> Porirua city | B124: =Control!B76 -> Porirua city | C124: =Control!C76 -> Business | D124: =Control!D76 -> Porirua cityBusiness
A125: =Control!A77 -> Porirua city | B125: =Control!B77 -> Porirua city | C125: =Control!C77 -> Residential | D125: =Control!D77 -> Porirua cityResidential
A126: =Control!A78 -> Porirua city | B126: =Control!B78 -> Porirua city | C126: =Control!C78 -> Rural | D126: =Control!D78 -> Porirua cityRural
A127: =Control!A79 -> Kāpiti Coast district | B127: =Control!B79 -> Kāpiti Coast district | C127: =Control!C79 -> Business | D127: =Control!D79 -> Kāpiti Coast districtBusiness
A128: =Control!A80 -> Kāpiti Coast district | B128: =Control!B80 -> Kāpiti Coast district excl Ōtaki | C128: =Control!C80 -> Residential | D128: =Control!D80 -> Kāpiti Coast district excl Ōtaki Residential | E128: 125 | F128: 198
A129: =Control!A81 -> Kāpiti Coast district | B129: =Control!B81 -> Ōtaki rating area | C129: =Control!C81 -> Residential | D129: =Control!D81 -> Ōtaki rating areaResidential | E129: 37 | F129: 37
A130: =Control!A82 -> Kāpiti Coast district | B130: =Control!B82 -> Kāpiti Coast district | C130: =Control!C82 -> Rural | D130: =Control!D82 -> Kāpiti Coast districtRural | E130: 122 | F130: 122
A131: =Control!A83 -> Masterton district | B131: =Control!B83 -> Masterton district | C131: =Control!C83 -> Business | D131: =Control!D83 -> Masterton districtBusiness
A132: =Control!A84 -> Masterton district | B132: =Control!B84 -> Masterton district | C132: =Control!C84 -> Residential | D132: =Control!D84 -> Masterton districtResidential | E132: 159 | F132: 132
A133: =Control!A85 -> Masterton district | B133: =Control!B85 -> Masterton district | C133: =Control!C85 -> Rural | D133: =Control!D85 -> Masterton districtRural | E133: 432 | F133: 471
A134: =Control!A86 -> Carterton district | B134: =Control!B86 -> Carterton district | C134: =Control!C86 -> Business | D134: =Control!D86 -> Carterton districtBusiness
A135: =Control!A87 -> Carterton district | B135: =Control!B87 -> Carterton district | C135: =Control!C87 -> Residential | D135: =Control!D87 -> Carterton districtResidential | E135: 76 | F135: 77
A136: =Control!A88 -> Carterton district | B136: =Control!B88 -> Carterton district | C136: =Control!C88 -> Rural | D136: =Control!D88 -> Carterton districtRural | E136: 322 | F136: 328
A137: =Control!A89 -> South Wairarapa district | B137: =Control!B89 -> South Wairarapa district | C137: =Control!C89 -> Business | D137: =Control!D89 -> South Wairarapa districtBusiness
A138: =Control!A90 -> South Wairarapa district | B138: =Control!B90 -> South Wairarapa district | C138: =Control!C90 -> Residential | D138: =Control!D90 -> South Wairarapa districtResidential | E138: 89 | F138: 89
A139: =Control!A91 -> South Wairarapa district | B139: =Control!B91 -> South Wairarapa district | C139: =Control!C91 -> Rural | D139: =Control!D91 -> South Wairarapa districtRural | E139: 536 | F139: 267
A140: =Control!A92 -> Tararua district | B140: =Control!B92 -> Tararua district | C140: =Control!C92 -> Rural | D140: =Control!D92 -> Tararua districtRural | E140: 0
A141: =Control!A93 -> Region wide | C141: =Control!C93 -> 0 | D141: =Control!D93 -> Region wide | E141: =SUM(E114:E140) -> 1994 | F141: =SUM(F114:F140) -> 1832
A143: Check totals | E143: =E112-E141 -> 0 | F143: =F112-F141 -> 0

Sheet UHCC Adjustments
A1: Wellington Regional Council
A2: ="UHCC Adjustments "&year_current -> UHCC Adjustments 2024/25
A3: Printed: | B3: =NOW() -> 2024-08-15T13:49:01.710
A4: =check_total -> 0
A6: TA full name | B6: Category group | C6: Sub category group | D6: CV | E6: Rateable Land Value
A8: Trentham Military Camp
A9: Upper Hutt city | B9: Business | C9: Trentham Military Camp | D9: 95597000 | E9: 46709000
A10: Upper Hutt city | B10: Residential | C10: Trentham Military Camp | D10: 44959000 | E10: 24597000
A11: Upper Hutt city | B11: Rural | C11: Trentham Military Camp | D11: 9304000 | E11: 6514500
A12: Upper Hutt city | B12: Business & Residential | C12: Trentham Military Camp | D12: =D10+D9 -> 140556000 | E12: =E10+E9 -> 71306000
A13: Upper Hutt | B13: Total | C13: Trentham Military Camp | D13: =+D9+D10+D11 -> 149860000 | E13: =+E9+E10+E11 -> 77820500
A15: Rest of Upper Hutt
A16: Upper Hutt city | B16: Business | C16: Rest of Upper Hutt city | D16: =+D23-D9 -> 1978645950 | E16: 628056650
A17: Upper Hutt city | B17: Residential | C17: Rest of Upper Hutt city | D17: 12875867400 | E17: 8131761000
A18: Upper Hutt city | B18: Rural | C18: Rest of Upper Hutt city | D18: 1852527000 | E18: 1041772500
A19: Upper Hutt city | B19: Business & Residential | C19: Rest of Upper Hutt city | D19: 14854513350 | E19: 8759817650
A20: Upper Hutt | B20: Total | C20: Rest of Upper Hutt city | D20: =+D27-D13 -> 16707040350 | E20: 9801590150
A22: All Upper Hutt
A23: Upper Hutt city | B23: Business | C23: Total | D23: =INDEX(capital_values,MATCH($A16&B16,capital_values_rows,0),MATCH(D$6&" "&year_current,capital_values_header,0)) -> 2074242950 | E23: 674765650
A24: Upper Hutt city | B24: Residential | C24: Total | D24: =INDEX(capital_values,MATCH($A17&B17,capital_values_rows,0),MATCH(D$6&" "&year_current,capital_values_header,0)) -> 12920826400 | E24: 8156358000
A25: Upper Hutt city | B25: Rural | C25: Total | D25: =INDEX(capital_values,MATCH($A18&B18,capital_values_rows,0),MATCH(D$6&" "&year_current,capital_values_header,0)) -> 1861831000 | E25: 1048287000
A26: Upper Hutt city | B26: Business & Residential | C26: Total | D26: =D24+D23 -> 14995069350 | E26: =E24+E23 -> 8831123650
A27: Upper Hutt | B27: All | C27: Total | D27: =+'Capital values'!F10 -> 16856900350 | E27: =+E23+E24+E25 -> 9879410650
A29: Trentham Military Camp share of rates
A30: Upper Hutt city | B30: Business | C30: Trentham % of Share | D30: =+D9/D23 -> 0.04608765815 | E30: 0.06922255156
A31: Upper Hutt city | B31: Residential | C31: Trentham % of Share | D31: 0.003479576198 | E31: 0.003015684206
A32: Upper Hutt city | B32: Rural | C32: Trentham % of Share | D32: 0.00499723122 | E32: 0.006214424103
A33: Upper Hutt city | B33: Business & Residential | C33: % of Share | D33: 0.009373481157 | E33: 0.008074397192
A34: Upper Hutt | B34: All | C34: % of Share | D34: 0.008890127894 | E34: 0.007877038698

Sheet CV Analysis
A1: Greater Wellington Regional Council | C1: WARNING THIS TAB CONTAINS MANUALLY ENTERED INFORMATION, NOT JUST IN THE YELLOW CELLS. ENSURE IT IS SHOWING WHAT YOU REQUIRE BEFORE USING
A2: Analysis of Capital Value and Assessments
C5: Capital Values proposal | D5: ="Capital Values "&year_current -> Capital Values 2024/25 | F5: proposal | G5: ="CV assessments "&year_current -> CV assessments 2024/25 | I5: proposal | J5: ="Contiguous assements "&year_current -> Contiguous assements 2024/25 | L5: CV Average proposal | M5: CV Average 2020/21 | O5: CV Average movement | P5: change in CV | Q5: change in assessment
A7: =Control!A66 -> Wellington city | B7: =Control!C66 -> Wellington CBD | C7: 9921148650 | D7: ='Capital values'!F19 -> 13368376300 | F7: 3340 | G7: ='Capital values'!F68 -> 2991 | J7: ='Capital values'!F114 -> 0 | L7: =C7/F7 -> 2970403.787 | M7: =D7/G7 -> 4469534.035 | O7: =M7-L7 -> 1499130.248 | P7: =D7-C7 -> 3447227650 | Q7: =G7-F7 -> -349
A8: =Control!A67 -> Wellington city | B8: =Control!C67 -> Business | C8: 4638515650 | D8: ='Capital values'!F20 -> 6480398350 | F8: 1897 | G8: ='Capital values'!F69 -> 1841 | J8: ='Capital values'!F115 -> 0 | L8: =C8/F8 -> 2445184.844 | M8: =D8/G8 -> 3520042.558 | O8: =M8-L8 -> 1074857.714 | P8: =D8-C8 -> 1841882700 | Q8: =G8-F8 -> -56
A9: =Control!A68 -> Wellington city | B9: =Control!C68 -> Residential | C9: 57499964050 | D9: ='Capital values'!F21 -> 96040762550 | F9: 71826 | G9: ='Capital values'!F70 -> 75387 | J9: ='Capital values'!F116 -> 0 | L9: =C9/F9 -> 800545.2629 | M9: 1273969.816 | O9: 473424.5536 | P9: 38540798500 | Q9: 3561
A10: =Control!A69 -> Wellington city | B10: =Control!C69 -> Rural | C10: 794922100 | D10: ='Capital values'!F22 -> 1437369350 | F10: 790 | G10: ='Capital values'!F71 -> 902 | J10: ='Capital values'!F117 -> 0 | L10: =C10/F10 -> 1006230.506 | M10: =D10/G10 -> 1593535.865 | O10: =M10-L10 -> 587305.3584 | P10: 642447250 | Q10: 112
A11: =Control!A70 -> Hutt city | B11: =Control!C70 -> Business | C11: 3813013500 | D11: ='Capital values'!F23 -> 6742241000 | F11: 2359 | G11: ='Capital values'!F72 -> 2515 | J11: ='Capital values'!F118 -> 0 | L11: 1616368.588 | M11: 2680811.531 | O11: 1064442.942 | P11: 2929227500 | Q11: 156
A12: =Control!A71 -> Hutt city | B12: =Control!C71 -> Residential | C12: 17395848500 | D12: ='Capital values'!F24 -> 32406254500 | F12: 36551 | G12: ='Capital values'!F73 -> 39121 | I12: 125 | J12: ='Capital values'!F119 -> 19 | L12: 475933.5859 | M12: 828359.5639 | O12: =M12-L12 -> 352425.978 | P12: 15010406000 | Q12: 2570
A13: =Control!A72 -> Hutt city | B13: =Control!C72 -> Rural | C13: 316542000 | D13: ='Capital values'!F25 -> 558680500 | F13: 488 | G13: ='Capital values'!F74 -> 446 | J13: ='Capital values'!F120 -> 0 | L13: 648651.6393 | M13: 1252646.861 | O13: 603995.2216 | P13: 242138500 | Q13: -42
A14: =Control!A73 -> Upper Hutt city | B14: =Control!C73 -> Business | C14: 1182339500 | D14: ='Capital values'!F26 -> 2074242950 | F14: 746 | G14: ='Capital values'!F75 -> 819 | J14: ='Capital values'!F121 -> 17 | L14: 1584905.496 | M14: 2532653.175 | O14: =M14-L14 -> 947747.6786 | P14: 891903450 | Q14: 73
A15: =Control!A74 -> Upper Hutt city | B15: =Control!C74 -> Residential | C15: 6233760420 | D15: ='Capital values'!F27 -> 12920826400 | F15: 14902 | G15: ='Capital values'!F76 -> 15899 | I15: 29 | J15: ='Capital values'!F122 -> 21 | L15: 418317.0326 | M15: 812681.7033 | O15: 394364.6706 | P15: 6687065980 | Q15: 997
A16: =Control!A75 -> Upper Hutt city | B16: =Control!C75 -> Rural | C16: 861586340 | D16: ='Capital values'!F28 -> 1861831000 | F16: 1266 | G16: ='Capital values'!F77 -> 1354 | I16: 67 | J16: ='Capital values'!F123 -> 54 | L16: 680557.9305 | M16: 1375059.823 | O16: =M16-L16 -> 694501.8923 | P16: 1000244660 | Q16: 88
A17: =Control!A76 -> Porirua city | B17: =Control!C76 -> Business | C17: 1101735500 | D17: ='Capital values'!F29 -> 1752175500 | F17: 798 | G17: ='Capital values'!F78 -> 856 | J17: ='Capital values'!F124 -> 0 | L17: 1380620.927 | M17: 2046933.995 | O17: =M17-L17 -> 666313.068 | P17: 650440000 | Q17: 58
A18: =Control!A77 -> Porirua city | B18: =Control!C77 -> Residential | C18: 8642049050 | D18: ='Capital values'!F30 -> 16374013500 | F18: 17394 | G18: ='Capital values'!F79 -> 18678 | J18: ='Capital values'!F125 -> 0 | L18: 496840.81 | M18: 876647.0447 | O18: 379806.2346 | P18: 7731964450 | Q18: 1284
A19: =Control!A78 -> Porirua city | B19: =Control!C78 -> Rural | C19: 623527750 | D19: ='Capital values'!F31 -> 1283794800 | F19: 616 | G19: ='Capital values'!F80 -> 657 | J19: ='Capital values'!F126 -> 0 | L19: 1012220.373 | M19: 1954025.571 | O19: 941805.1974 | P19: 660267050 | Q19: 41
A20: =Control!A79 -> Kāpiti Coast district | B20: =Control!C79 -> Business | C20: 1476489000 | D20: ='Capital values'!F32 -> 2118502900 | F20: 1333 | G20: ='Capital values'!F81 -> 1245 | J20: ='Capital values'!F127 -> 0 | L20: 1107643.661 | M20: 1701608.755 | O20: 593965.0941 | P20: 642013900 | Q20: -88
A21: =Control!A80 -> Kāpiti Coast district | B21: =Control!C80 -> Residential | C21: 10311045500 | D21: ='Capital values'!F33 -> 15678065400 | F21: 17951 | G21: ='Capital values'!F82 -> 18667 | I21: 163 | J21: ='Capital values'!F128 -> 198 | L21: 574399.5042 | M21: 839881.3628 | O21: 265481.8586 | P21: 5367019900 | Q21: 716
A22: =Control!A81 -> Kāpiti Coast district | B22: =Control!C81 -> Residential | C22: 1121512900 | D22: ='Capital values'!F34 -> 2036169400 | F22: 3173 | G22: ='Capital values'!F83 -> 3389 | I22: 44 | J22: ='Capital values'!F129 -> 37 | L22: 353455.0583 | M22: 600817.1732 | O22: 247362.1149 | P22: 914656500 | Q22: 216
A23: =Control!A82 -> Kāpiti Coast district | B23: =Control!C82 -> Rural | C23: 1985010700 | D23: ='Capital values'!F35 -> 3309928400 | F23: 2647 | G23: ='Capital values'!F84 -> 2745 | I23: 155 | J23: ='Capital values'!F130 -> 122 | L23: 749909.5958 | M23: 1205802.696 | O23: 455893.1 | P23: 1324917700 | Q23: 98
A24: =Control!A83 -> Masterton district | B24: =Control!C83 -> Business | C24: 433209100 | D24: ='Capital values'!F36 -> 954405000 | F24: 549 | G24: ='Capital values'!F85 -> 601 | J24: ='Capital values'!F131 -> 0 | L24: =C24/F24 -> 789087.6138 | M24: 1588028.286 | O24: 798940.6723 | P24: 521195900 | Q24: 52
A25: =Control!A84 -> Masterton district | B25: =Control!C84 -> Residential | C25: 2678795300 | D25: ='Capital values'!F37 -> 4684053500 | F25: 8086 | G25: ='Capital values'!F86 -> 8805 | I25: 19 | J25: ='Capital values'!F132 -> 132 | L25: 331288.0658 | M25: 531976.5474 | O25: 200688.4816 | P25: 2005258200 | Q25: 719
A26: =Control!A85 -> Masterton district | B26: =Control!C85 -> Rural | C26: 2808505600 | D26: ='Capital values'!F38 -> 4891526300 | F26: 3895 | G26: ='Capital values'!F87 -> 4116 | I26: 445 | J26: ='Capital values'!F133 -> 471 | L26: 721054.0693 | M26: 1188417.468 | O26: 467363.3991 | P26: 2083020700 | Q26: 221
A27: =Control!A86 -> Carterton district | B27: =Control!C86 -> Business | C27: 97126500 | D27: ='Capital values'!F39 -> 198752500 | F27: 226 | G27: ='Capital values'!F88 -> 234 | J27: ='Capital values'!F134 -> 0 | L27: 429763.2743 | M27: 849369.6581 | O27: 419606.3838 | P27: 101626000 | Q27: 8
A28: =Control!A87 -> Carterton district | B28: =Control!C87 -> Residential | C28: 858895500 | D28: ='Capital values'!F40 -> 1604807000 | F28: 2397 | G28: ='Capital values'!F89 -> 2689 | I28: 70 | J28: ='Capital values'!F135 -> 77 | L28: 358321.0263 | M28: 596804.3882 | O28: 238483.362 | P28: 745911500 | Q28: 292
A29: =Control!A88 -> Carterton district | B29: =Control!C88 -> Rural | C29: 1749109700 | D29: ='Capital values'!F41 -> 2823381200 | F29: 2048 | G29: ='Capital values'!F90 -> 2239 | I29: 303 | J29: ='Capital values'!F136 -> 328 | L29: 854057.4707 | M29: 1261000.983 | O29: 406943.5119 | P29: 1074271500 | Q29: 191
A30: =Control!A89 -> South Wairarapa district | B30: =Control!C89 -> Business | C30: 211288600 | D30: ='Capital values'!F42 -> 402740000 | F30: 312 | G30: ='Capital values'!F91 -> 320 | J30: ='Capital values'!F137 -> 0 | L30: 677207.0513 | M30: 1258562.5 | O30: 581355.4487 | P30: 191451400 | Q30: 8
A31: =Control!A90 -> South Wairarapa district | B31: =Control!C90 -> Residential | C31: 1373326100 | D31: ='Capital values'!F43 -> 2562801500 | F31: 3307 | G31: ='Capital values'!F92 -> 3355 | I31: 102 | J31: ='Capital values'!F138 -> 89 | L31: 415278.5304 | M31: 763875.2608 | O31: 348596.7304 | P31: 1189475400 | Q31: 48
A32: =Control!A91 -> South Wairarapa district | B32: =Control!C91 -> Rural | C32: 2970196100 | D32: ='Capital values'!F44 -> 4925541550 | F32: 3127 | G32: ='Capital values'!F93 -> 3361 | I32: 300 | J32: ='Capital values'!F139 -> 267 | L32: 949854.8449 | M32: 1465498.825 | O32: 515643.9799 | P32: 1955345450 | Q32: 234
A33: =Control!A92 -> Tararua district | B33: =Control!C92 -> Rural | C33: 10673500 | D33: ='Capital values'!F45 -> 20442000 | F33: 10 | G33: ='Capital values'!F94 -> 11 | I33: 1 | J33: ='Capital values'!F140 -> 0 | L33: =C33/F33 -> 1067350 | M33: =D33/G33 -> 1858363.636 | O33: =M33-L33 -> 791013.6364 | P33: 9768500 | Q33: 1
A34: =Control!A93 -> Region wide | B34: =Control!C93 -> 0 | C34: =SUM(C7:C33) -> 141110137110 | D34: =SUM(D7:D33) -> 239512083350 | F34: =SUM(F7:F33) -> 202034 | G34: =SUM(G7:G33) -> 213243 | I34: =SUM(I7:I33) -> 1823 | J34: =SUM(J7:J33) -> 1832 | L34: =C34/F34 -> 698447.4747 | M34: =D34/G34 -> 1123188.491 | O34: =M34-L34 -> 424741.0161 | P34: =SUM(P7:P33) -> 98401946240 | Q34: =SUM(Q7:Q33) -> 11209
A36: Greytown Urban -CV | C36: 739130000 | D36: =+'Capital values'!F48 -> 1429473500
A37: Featherston Urban - LV | C37: 162213500 | D37: =+'Capital values'!F49 -> 334432000
A39: Wellington CBD | C39: =SUMIF($B$7:$B$33,$A39,C$7:C$33) -> 9921148650 | D39: =SUMIF($B$7:$B$33,$A39,D$7:D$33) -> 13368376300 | F39: =SUMIF($B$7:$B$33,$A39,F$7:F$33) -> 3340 | G39: 2991 | I39: 0 | J39: 0 | L39: 2970403.787 | M39: 4469534.035 | O39: =SUMIF($B$7:$B$33,$A39,O$7:O$33) -> 1499130.248 | P39: =SUMIF($B$7:$B$33,$A39,P$7:P$33) -> 3447227650 | Q39: =SUMIF($B$7:$B$33,$A39,Q$7:Q$33) -> -349
A40: Business | C40: =SUMIF($B$7:$B$33,$A40,C$7:C$33) -> 12953717350 | D40: =SUMIF($B$7:$B$33,$A40,D$7:D$33) -> 20723458200 | F40: 8220 | G40: 8431 | I40: 0 | J40: 17 | L40: 10030781.46 | M40: 16178010.46 | O40: 6147229.002 | P40: 7769740850 | Q40: 211
A41: Residential | C41: 106115197320 | D41: 184307753750 | F41: 175587 | G41: 185990 | I41: 552 | J41: 573 | L41: 4224378.876 | M41: 7125012.861 | O41: 2900633.984 | P41: 78192556430 | Q41: 10403
A42: Rural | C42: 12120073790 | D42: 21112495100 | F42: 14887 | G42: 15831 | I42: 1271 | J42: 1242 | L42: 7689886.43 | M42: 13154351.73 | O42: 5464465.297 | P42: 8992421310 | Q42: 944
A43: Total | C43: =SUM(C39:C42) -> 141110137110 | D43: =SUM(D39:D42) -> 239512083350 | F43: =SUM(F39:F42) -> 202034 | G43: =SUM(G39:G42) -> 213243 | I43: =SUM(I39:I42) -> 1823 | J43: =SUM(J39:J42) -> 1832 | L43: =C43/F43 -> 698447.4747 | M43: =D43/G43 -> 1123188.491 | O43: =M43-L43 -> 424741.0161 | P43: =SUM(P39:P42) -> 98401946240 | Q43: =SUM(Q39:Q42) -> 11209

Sheet ESSbase
A1: Wellington Regional Council
A2: ESSBase values
A3: =check_total -> 0
B5: Model naming convention | C5: Essbase name | D5: Essbase name | F5: Last Year Base | G5: Current Year Base | H5: Change | J5: Proposed Budget Base
F6: =year_previous -> 2023/24 | G6: =year_current -> 2024/25 | H6: =year_current -> 2024/25 | J6: =year_current -> 2024/25
B8: General rate | C8: WRC - Mgmt | D8: General Rates | F8: 77979014.25 | G8: 93556533.65 | H8: =G8/F8-1 -> 0.1997655337 | J8: 93556533.65 | K8: =+G8-J8 -> 0
B9: Remission of rates | D9: Remission of Regional Rates | F9: 0 | G9: 0 | H9: 0 | J9: 0 | K9: =+G9-J9 -> 0
B10: Public transport rate | D10: Transport Rate | F10: 113009367.3 | G10: 137936857.8 | H10: =G10/F10-1 -> 0.220578976 | J10: 137936857.8 | K10: 0
B11: River management rate | D11: River Rate | F11: 10784664.15 | G11: 12543524.56 | H11: =G11/F11-1 -> 0.1630890295 | J11: 12543524.56 | K11: 0
B12: Stadium purposes rate | D12: Stadium Rate | F12: 0 | G12: 0 | H12: 0 | K12: 0
B13: Economic Development rate | D13: Economic Development Rate | F13: 4743498.53 | G13: 4995999.85 | H13: =G13/F13-1 -> 0.05323103157 | J13: 4995999.85 | K13: 0
B14: District-Wide Rates | D14: District-Wide Rates | F14: 206516544.2 | G14: =SUM(G8:G13) -> 249032915.9 | H14: =G14/F14-1 -> 0.2058739255 | J14: =SUM(J8:J13) -> 249032915.9 | K14: =+G14-J14 -> 0
B15: Rates penalties | D15: Rates Penalties | F15: 0 | G15: 0 | H15: 0 | K15: 0
B16: Remission of rates penalties | D16: Remission of Rates Penalties | F16: 0 | G16: 0 | H16: 0 | K16: 0
B17: Pest management rate | D17: Pest Rate | F17: 0 | G17: 0 | H17: =G17/F17-1 ->  | K17: 0
B18: River management rate - Non district wide | D18: River Mgmt Rates - Non District Wide | F18: 101615.5 | G18: 101760.84 | H18: =G18/F18-1 -> 0.001430293607 | J18: 101760.84 | K18: 0
B19: Special Rates | D19: Special Rates | F19: 1858215.18 | G19: =2180019.45+0.015 -> 2180019.465 | H19: 0.1731792359 | J19: 2180019.45 | K19: 0.01500000013
B20: Total Other Rates | D20: Total Other Rates | F20: 1959830.68 | G20: =SUM(G15:G19) -> 2281780.305 | H20: 0.164274204 | J20: =SUM(J15:J19) -> 2281780.29 | K20: 0.01500000013
B21: Total Regnl Rates | D21: Total Regnl Rates | F21: 208476374.9 | G21: =G14+G20 -> 251314696.2 | H21: 0.2054828577 | J21: =J14+J20 -> 251314696.2 | K21: 0.0150000155
B22: Bulk water levies | D22: Bulk Water Levies | F22: 53139640.27 | G22: 67731366.23 | H22: 0.2745921103 | J22: 67731366.23 | K22: 0
B23: Total Regnl Rates & levies | D23: Total Regnl Rates & levies | F23: 261616015.2 | G23: =G21+G22 -> 319046062.4 | H23: 0.2195203806 | J23: 319046062.4 | K23: 0.0150000453
B24: Warm Greater Wellington rate | D24: Warm Greater Wellington rate | F24: 1138472.035 | G24: 775399.48 | H24: -0.3189121416 | J24: 775399.48 | K24: 0
B25: Total Rates & Levies | D25: Total Rates & Levies | F25: 262754487.2 | G25: =G23+G24 -> 319821461.9 | H25: 0.217187441 | J25: 319821461.9 | K25: 0.0150000453
B30: Total River, Drainage etc | D30: Total River, Drainage etc
B32: General Rates | C32: Te Hunga Whiriwhiri Department | D32: General Rates | F32: 5119805.23 | G32: 6219519.28 | H32: =G32/F32-1 -> 0.2147960715 | J32: 6219519.28 | K32: =+G32-J32 -> 0
B33: General Rates | C33: Managing Emergencies | D33: General Rates | F33: 2379996.23 | G33: 2135112.08 | H33: =G33/F33-1 -> -0.102892663 | J33: 2135112.08 | K33: =+G33-J33 -> 0
B34: General Rates | C34: Fit for the Future | D34: General Rates | F34: 1990261.72 | G34: 222155.4 | H34: 0 | J34: 222155.4 | K34: =+G34-J34 -> 0
B35: General Rates | C35: Old 30000 | D35: General Rates | F35: 27981496.15 | G35: 35337939.03 | H35: 0 | J35: 35337939.03 | K35: 0
B36: General Rates | C36: Parks & Forests Group | D36: General Rates | F36: 8944772.77 | G36: 9477216.69 | H36: =G36/F36-1 -> 0.05952570665 | J36: 9477216.69 | K36: 0
B37: General Rates | C37: Wairarapa Water Use (was Env Edu) activity | D37: General Rates | F37: 0 | G37: 0 | J37: 0 | K37: 0
B38: General Rates | C38: Catchment Management (excluding forests) | D38: General Rates | F38: 36272885.81 | G38: 47426123.66 | H38: 0.3074814038 | J38: 47426123.66 | K38: 0
B39: General Rates | C39: Strategy Group | D39: General Rates | F39: 8990282.92 | G39: 7297970.2 | H39: -0.1882379826 | J39: 7297970.2 | K39: 0
C40: Metlink | D40: General Rates | F40: 0 | G40: 0 | J40: 0 | K40: 0
B41: General Rates | C41: Investment Management. | D41: General Rates | F41: -13700486.58 | G41: -14559503.04 | H41: 0.06269970449 | J41: -14559503.04 | K41: =+G41-J41 -> 0
B43: General Rates | C43: WRC - Mgmt | D43: General Rates | F43: 77979014.25 | G43: =SUM(G32:G41) -> 93556533.3 | H43: =G43/F43-1 -> 0.1997655292 | J43: =SUM(J32:J41) -> 93556533.3 | K43: =+G43-J43 -> 0
B51: Warm Greater Wellington rate | C51: Warm Greater Wellington management | D51: Warm Greater Wellington rate | F51: 1138472.035 | G51: 775400.12 | H51: =G51/F51-1 -> -0.3189115795 | J51: 2868617.589
B52: External Income | C52: Warm Greater Wellington management | D52: External Income | F52: 0 | G52: 0 | H52: 0 | J52: 0

Sheet Class Rates
A1: Wellington Regional Council
A2: ="Class rates "&year_current -> Class rates 2024/25
A3: Printed : | B3: =NOW() -> 2024-08-15T13:49:01.710
A4: =check_total -> 0
A6: 2021-06-14 | B6: Revenue Required | D6: Class | E6: $ per Hectare | F6: Class Total | G6: Class Areas | H6: Scheme Total | I6: Var
A7: Draft | B7: ex gst | E7: ex gst | F7: ex gst | G7: Hectares | H7: ex gst | I7: $ | K7: Lookup index
A8: River Management | K8: Scheme | L8: Class | M8: Concat
A9: Lower Wairarapa Valley Development Scheme | B9: 1081007.46 | D9: A | E9: 0.3214183309 | F9: =E9*G9+J9 -> 935938.7211 | G9: 2911902.126 | H9: =SUM(F9:F11) -> 1081007.46 | I9: =B9-H9 -> 0 | K9: =A9 -> Lower Wairarapa Valley Development Scheme | L9: =D9 -> A | M9: =K9&L9 -> Lower Wairarapa Valley Development SchemeA
D10: Sa | E10: 26.38288741 | F10: =E10*G10 -> 11371.02447 | G10: 431 | K10: =K9 -> Lower Wairarapa Valley Development Scheme | L10: =D10 -> Sa | M10: Lower Wairarapa Valley Development SchemeSa
D11: Sb | E11: 52.80320473 | F11: 133697.7144 | G11: 2532 | K11: =K10 -> Lower Wairarapa Valley Development Scheme | L11: =D11 -> Sb | M11: Lower Wairarapa Valley Development SchemeSb
A12: Waiohine Rural | B12: 98709.62 | D12: A | E12: 48.85790909 | F12: =E12*G12 -> 5495.146751 | G12: 112.472 | H12: =SUM(F12:F17) -> 98709.61289 | I12: =B12-H12 -> 0.007106809091 | K12: =A12 -> Waiohine Rural | L12: =D12 -> A | M12: Waiohine RuralA
D13: B | E13: 40.715 | F13: =E13*G13 -> 15585.21749 | G13: 382.7881 | K13: =K12 -> Waiohine Rural | L13: B | M13: Waiohine RuralB
D14: C | E14: 32.57190909 | F14: 41685.58788 | G14: 1279.8018 | K14: =K13 -> Waiohine Rural | L14: C | M14: Waiohine RuralC
D15: D | E15: 24.42909091 | F15: 9036.376914 | G15: 369.9023 | K15: =K14 -> Waiohine Rural | L15: D | M15: Waiohine RuralD
D16: E | E16: 16.286 | F16: 12982.77251 | G16: 797.1738 | K16: =K15 -> Waiohine Rural | L16: E | M16: Waiohine RuralE
D17: S | E17: 814.2989091 | F17: 13924.51135 | G17: 17.1 | K17: =K16 -> Waiohine Rural | L17: S | M17: Waiohine RuralS
A18: Mangatarere | B18: 10566.47 | D18: A | E18: 36.91790909 | F18: 792.1475754 | G18: 21.457 | H18: =SUM(F18:F21) -> 10566.48256 | I18: =B18-H18 -> -0.01255798182 | K18: =A18 -> Mangatarere | L18: A | M18: MangatarereA
D19: B | E19: 35.31281818 | F19: 7399.843425 | G19: 209.5512 | K19: =K18 -> Mangatarere | L19: B | M19: MangatarereB
D20: C | E20: 29.92418182 | F20: 471.8564686 | G20: 15.7684 | K20: =K19 -> Mangatarere | L20: C | M20: MangatarereC
D21: D | E21: 26.48463636 | F21: 1902.635089 | G21: 71.8392 | K21: =K20 -> Mangatarere | L21: D | M21: MangatarereD
A22: Catchment Schemes | K22: =K21 -> Mangatarere | L22: 0 | M22: Mangatarere0
A23: Awhea-Opouawe | B23: 26093.32 | F23: =+H23 -> 26093.32 | H23: =+H98 -> 26093.32 | I23: =B23-H23 -> 0 | K23: =A23 -> Awhea-Opouawe | L23: 0 | M23: Awhea-Opouawe0
F24: =E24*G24 -> 0 | H24: see bottom of sheet | K24: =K23 -> Awhea-Opouawe | L24: 0 | M24: Awhea-Opouawe0
A25: Whareama | B25: 22672.22 | D25: A | E25: 5.32687 | F25: =E25*G25 -> 3810.76842 | G25: 715.3860372 | H25: =SUM(F25:F29) -> 22672.2216 | I25: =B25-H25 -> -0.001600211701 | K25: =A25 -> Whareama | L25: A | M25: WhareamaA
D26: B | E26: 2.0487611 | F26: =E26*G26 -> 1951.577995 | G26: 952.5649402 | K26: =K25 -> Whareama | L26: B | M26: WhareamaB
D27: C | E27: 0.3585356 | F27: =E27*G27 -> 16340.66092 | G27: 45576.1183 | K27: =K26 -> Whareama | L27: C | M27: WhareamaC
D28: E | E28: 0.2560938 | F28: =E28*G28 -> 3.944484755 | G28: 15.4025 | K28: =K27 -> Whareama | L28: E | M28: WhareamaE
D29: F | E29: 0.20484615 | F29: =E29*G29 -> 565.2697804 | G29: 2759.484523 | K29: =K28 -> Whareama | L29: F | M29: WhareamaF
A30: Homewood | B30: 13532.02 | D30: A | E30: 2.22558 | F30: 5107.258253 | G30: 2294.798773 | H30: =SUM(F30:F33) -> 13532.02303 | I30: =B30-H30 -> -0.003027431183 | K30: =A30 -> Homewood | L30: A | M30: HomewoodA
D31: B | E31: 2.119635 | F31: 1171.092498 | G31: 552.497245 | K31: =K30 -> Homewood | L31: B | M31: HomewoodB
D32: C | E32: 1.85472 | F32: 6792.863558 | G32: 3662.473882 | K32: =K31 -> Homewood | L32: C | M32: HomewoodC
D33: D | E33: 0.264915 | F33: =E33*G33 -> 460.8087179 | G33: 1739.458762 | K33: =K32 -> Homewood | L33: D | M33: HomewoodD
A34: Mataikona-Whakataki | B34: 7516.53 | F34: =+H34 -> 7516.53 | H34: =+H102 -> 7516.53 | I34: =B34-H34 -> 0 | K34: =A34 -> Mataikona-Whakataki | L34: 0 | M34: Mataikona-Whakataki0
F35: 0 | H35: see bottom of sheet | K35: =A35 -> 0 | L35: 0 | M35: 00
A36: Maungaraki | B36: 7989.3 | F36: =+H36 -> 7989.295173 | G36: 3305.470824 | H36: =+H108 -> 7989.295173 | I36: =B36-H36 -> 0.004826519641 | K36: =A36 -> Maungaraki | L36: 0 | M36: Maungaraki0
F37: - | G37: 2972.005702 | H37: see bottom of sheet | K37: =A37 -> 0 | L37: 0 | M37: 00
A38: Upper Kaiwhata | B38: 2859.43 | D38: A | E38: 11.955195 | F38: =E38*G38 -> 389.9079252 | G38: 32.6141 | H38: =SUM(F38:F43) -> 2859.423898 | I38: =B38-H38 -> 0.006102491499 | K38: =A38 -> Upper Kaiwhata | L38: A | M38: Upper KaiwhataA
D39: B | E39: 5.23047 | F39: 275.1635197 | G39: 52.6078 | K39: =K38 -> Upper Kaiwhata | L39: B | M39: Upper KaiwhataB
D40: C | E40: 0.74718 | F40: 715.9423469 | G40: 958.1926 | K40: =K39 -> Upper Kaiwhata | L40: C | M40: Upper KaiwhataC
D41: D | E41: 0.44835 | F41: 920.3184951 | G41: 2052.6787 | K41: =K40 -> Upper Kaiwhata | L41: D | M41: Upper KaiwhataD
D42: E | E42: 0.29883 | F42: 490.4463703 | G42: 1641.222 | K42: =K41 -> Upper Kaiwhata | L42: E | M42: Upper KaiwhataE
D43: F | E43: 0.14952 | F43: 67.64524032 | G43: 452.416 | K43: =K42 -> Upper Kaiwhata | L43: F | M43: Upper KaiwhataF
A44: Lower Kaiwhata | B44: 4917.43 | D44: A | E44: 19.40232 | F44: 894.6773994 | G44: 46.11187731 | H44: =SUM(F44:F48) -> 4917.432031 | I44: =B44-H44 -> -0.00203114723 | K44: =A44 -> Lower Kaiwhata | L44: A | M44: Lower KaiwhataA
D45: B | E45: 8.488515 | F45: 378.4848833 | G45: 44.58787942 | K45: =K44 -> Lower Kaiwhata | L45: B | M45: Lower KaiwhataB
D46: C | E46: 1.212645 | F46: 1406.074618 | G46: 1159.510506 | K46: =K45 -> Lower Kaiwhata | L46: C | M46: Lower KaiwhataC
D47: D | E47: 0.727545 | F47: 2153.540985 | G47: 2960.010701 | K47: =K46 -> Lower Kaiwhata | L47: D | M47: Lower KaiwhataD
D48: F | E48: 0.2429175 | F48: 84.65414547 | G48: 348.4892833 | K48: =K47 -> Lower Kaiwhata | L48: F | M48: Lower KaiwhataF
A49: Pump Drainage | L49: =D49 -> 0 | M49: =K49&L49 -> 0
A50: Te Hopai | B50: 63475.8 | D50: A | E50: 50.91843 | F50: =E50*G50 -> 63475.79573 | G50: 1246.6173 | H50: =F50 -> 63475.79573 | I50: =B50-H50 -> 0.004273161008 | K50: =A50 -> Te Hopai | L50: A | M50: Te HopaiA
A51: Moonmoot Pump | B51: 32518.23 | D51: A | E51: 142.79744 | F51: =E51*G51 -> 32518.23073 | G51: 227.722785 | H51: =F51 -> 32518.23073 | I51: =B51-H51 -> -0.0007276704018 | K51: =A51 -> Moonmoot Pump | L51: A | M51: Moonmoot PumpA
A52: Onoke Pump | B52: 56571.68 | D52: A | E52: 79.29562 | F52: =E52*G52 -> 56571.6799 | G52: 713.42755 | H52: =F52 -> 56571.6799 | I52: =B52-H52 -> 9.766899166e-05 | K52: =A52 -> Onoke Pump | L52: A | M52: Onoke PumpA
A53: Pouawha Pump | B53: 113103.95 | D53: A | E53: 119.62282 | F53: =E53*G53 -> 113103.9505 | G53: 945.5048 | H53: =F53 -> 113103.9505 | I53: =B53-H53 -> -0.0004995360068 | K53: =A53 -> Pouawha Pump | L53: A | M53: Pouawha PumpA
A54: Gravity Drainage | L54: 0 | M54: 0
A55: Okawa | B55: 4350 | D55: A | E55: 15.4255 | F55: =E55*G55 -> 4350.007356 | G55: 282.0010603 | H55: =F55 -> 4350.007356 | I55: =B55-H55 -> -0.007356389111 | K55: =A55 -> Okawa | L55: A | M55: OkawaA
A56: Taumata | B56: 5839 | D56: A | E56: 20.0955 | F56: 5839.002738 | G56: 290.5627 | H56: =F56 -> 5839.002738 | I56: =B56-H56 -> -0.002737850001 | K56: =A56 -> Taumata | L56: A | M56: TaumataA
A57: East Pukio | B57: 9548 | D57: A | E57: 84.1198 | F57: 9548.001075 | G57: 113.5048 | H57: =F57 -> 9548.001075 | I57: -0.00107504 | K57: =A57 -> East Pukio | L57: A | M57: East PukioA
A58: Longbush | B58: 8561 | D58: A | E58: 30.47168048 | F58: 6647.285003 | G58: 218.1463214 | H58: =SUM(F58:F59) -> 8561.002949 | I58: -0.002949031297 | K58: =A58 -> Longbush | L58: A | M58: LongbushA
D59: B | E59: 15.23577085 | F59: 1913.717946 | G59: 125.6069 | I59: 0 | K59: =K58 -> Longbush | L59: B | M59: LongbushB
A60: Otahoua | B60: 7470 | D60: A | E60: 80.57 | F60: 7470.0014 | G60: 92.7144272 | H60: =F60 -> 7470.0014 | I60: =B60-H60 -> -0.001399731197 | K60: =A60 -> Otahoua | L60: A | M60: OtahouaA
A61: Te Whiti | B61: 4208 | D61: A | E61: 29.7861 | F61: 4208.001491 | G61: 141.274 | H61: =F61 -> 4208.001491 | I61: -0.001491399999 | K61: =A61 -> Te Whiti | L61: A | M61: Te WhitiA
A62: Ahikouka | B62: 6050 | D62: A | E62: 53.9134 | F62: 6050.005399 | G62: 112.2171 | H62: =F62 -> 6050.005399 | I62: -0.00539914 | K62: =A62 -> Ahikouka | L62: A | M62: AhikoukaA
A63: Battersea | B63: 31560 | D63: A | E63: 46.3541 | F63: =E63*G63 -> 7819.065213 | G63: 168.6812 | H63: =SUM(F63:F68) -> 31559.99942 | I63: 0.0005794077988 | K63: =A63 -> Battersea | L63: A | M63: BatterseaA
D64: B | E64: 38.3792 | F64: 7497.789285 | G64: 195.3607497 | K64: =K63 -> Battersea | L64: B | M64: BatterseaB
D65: C | E65: 29.9058 | F65: 9486.930207 | G65: 317.2271 | K65: =K64 -> Battersea | L65: =D65 -> C | M65: BatterseaC
D66: D | E66: 17.9435 | F66: =E66*G66 -> 2738.050701 | G66: 152.5929 | K66: =K65 -> Battersea | L66: D | M66: =K66&L66 -> BatterseaD
D67: E | E67: 15.4513 | F67: 2964.888152 | G67: 191.886 | K67: =K66 -> Battersea | L67: E | M67: =K67&L67 -> BatterseaE
D68: F | E68: 14.953 | F68: 1053.275862 | G68: 70.4391 | K68: =K67 -> Battersea | L68: F | M68: =K68&L68 -> BatterseaF
A69: Manaia | B69: 16918 | D69: A | E69: 96.954 | F69: 16918.00762 | G69: 174.4952 | H69: =F69 -> 16918.00762 | I69: =B69-H69 -> -0.007620799999 | K69: =A69 -> Manaia | L69: A | M69: =K69&L69 -> ManaiaA
A70: Whakawiriwiri | B70: 17480 | D70: A | E70: 24.2217 | F70: 17480.00884 | G70: 721.6673 | H70: =F70 -> 17480.00884 | I70: =B70-H70 -> -0.008840409999 | K70: =A70 -> Whakawiriwiri | L70: A | M70: =K70&L70 -> WhakawiriwiriA
A71: Hectare based Scheme Rates | B71: =SUM(B9:B70) -> 1653517.46 | F71: =SUM(F8:F70) -> 1653517.496 | H71: =SUM(H8:H70) -> 1653517.496 | I71: =SUM(I8:I70) -> -0.03632771191
H72: =+H71-F71 -> 0
A74: Schemes recovered based on capital value
A75: Rate | B75: Total rates | C75: Properties | D75: CV | E75: ECV | F75: Cents per $ | H75: Scheme total | I75: Check
A77: Te Kauru schemes (targeted portion only) | B77: 499237.44 | C77: 13486 | D77: 10553368400 | E77: n/a | F77: =B77/D77*100 -> 0.004730598052 | H77: =F77*D77/100 -> 499237.44 | I77: =B77-H77 -> 0
A80: Waiohine FMP scheme (targeted portion only) | B80: 27264.66 | C80: 1287 | D80: 1197734000 | E80: n/a | F80: =B80/D80*100 -> 0.002276353514 | H80: =F80*D80/100 -> 27264.66 | I80: =B80-H80 -> 0
A84: Land management rate (targeted portion only)
A85: Masterton district | B85: =E85/$E$88*$B$88 -> 0 | C85: =INDEX('Capital values'!$F$57:$F$65,MATCH(A85,'Capital values'!$A$8:$A$16,0)) -> 13522 | D85: =INDEX('Capital values'!$F$8:$F$16,MATCH(A85,'Capital values'!$A$8:$A$16,0)) -> 10529984800 | E85: =INDEX('Capital values'!$H$8:$H$16,MATCH(A85,'Capital values'!$A$8:$A$16,0)) -> 10956106252 | F85: =B85/D85*100 -> 0 | H85: =F85*D85/100 -> 0 | I85: =B85-H85 -> 0 | K85: to remove
A86: Carterton district | B86: =E86/$E$88*$B$88 -> 0 | C86: =INDEX('Capital values'!$F$57:$F$65,MATCH(A86,'Capital values'!$A$8:$A$16,0)) -> 5162 | D86: =INDEX('Capital values'!$F$8:$F$16,MATCH(A86,'Capital values'!$A$8:$A$16,0)) -> 4626940700 | E86: =INDEX('Capital values'!$H$8:$H$16,MATCH(A86,'Capital values'!$A$8:$A$16,0)) -> 4589109075 | F86: =B86/D86*100 -> 0 | H86: =F86*D86/100 -> 0 | I86: =B86-H86 -> 0 | K86: to remove
A87: South Wairarapa district | B87: =E87/$E$88*$B$88 -> 0 | C87: =INDEX('Capital values'!$F$57:$F$65,MATCH(A87,'Capital values'!$A$8:$A$16,0)) -> 7036 | D87: =INDEX('Capital values'!$F$8:$F$16,MATCH(A87,'Capital values'!$A$8:$A$16,0)) -> 7891083050 | E87: =INDEX('Capital values'!$H$8:$H$16,MATCH(A87,'Capital values'!$A$8:$A$16,0)) -> 7645492004 | F87: =B87/D87*100 -> 0 | H87: =F87*D87/100 -> 0 | I87: =B87-H87 -> 0 | K87: to remove
A88: Total | B88: 0 | C88: =SUM(C85:C87) -> 25720 | D88: =SUM(D85:D87) -> 23048008550 | E88: =SUM(E85:E87) -> 23190707331 | F88: =B88/D88*100 -> 0 | H88: =SUM(H85:H87) -> 0 | I88: =B88-H88 -> 0 | K88: to remove
A91: Total Scheme Rates | B91: =SUM(B88,B80,B77,B71) -> 2180019.56 | H91: =SUM(H88,H80,H77,H71) -> 2180019.596
A92: Checks | B92: =IF(ABS(INDEX(ESSbase!$G$8:$G$25,MATCH("Special Rates",ESSbase!$B$8:$B$25,0),)-B91)>tolerance_dollar,1,0) -> 0 | F92: =IF(ABS(H71-F71)>tolerance_dollar,1,0) -> 0 | H92: =IF(ABS(INDEX(ESSbase!$G$8:$G$25,MATCH("Special Rates",ESSbase!$B$8:$B$25,0),)-H91)>tolerance_dollar,1,0) -> 0
A95: Catchment Schemes | B95: $GST Excl | E95: Rate Base | K95: 163331000
A96: Awhea-Opouawe Catchment Scheme | B96: 26093.32 | E96: land value | F96: $163,331,000 x 0.006014 cents | H96: 9822.12 | K96: =H96/K95*100 -> 0.006013628766
E97: charge per dwelling | F97: $160.3074 / $80.25 | H97: 16271.2 | J97: =+H97/96 -> 169.4916667 | K97: =K95*K96/100 -> 9822.12
E98: GST Inclusive | F98: $184.35 / $92.2875 | H98: =SUM(H96:H97) -> 26093.32
A100: Mataikona Whakataki Catchment Scheme | B100: =+B34 -> 7516.53 | E100: land value within scheme area | F100: $90,324,483 x 0.004801 cents | H100: 4336.48 | K100: 90324483
E101: charge per dwelling | F101: 25.85 | H101: 3180.05 | J101: =+H101/233 -> 13.64828326 | K101: =+H100/K100*100 -> 0.004801001739
H102: =SUM(H100:H101) -> 7516.53 | K102: =K100*K101/100 -> 4336.48
A104: Maungaraki Catchment Scheme | B104: =+B36 -> 7989.3 | E104: Class A | F104: 1.1577 | G104: 3305.470824 | H104: =F104*G104 -> 3826.743573
E105: Class B | F105: 0.54478 | G105: 2972.005702 | H105: =F105*G105 -> 1619.089266
E106: Charge per dwelling | F106: 40.859 | G106: 19 | H106: =F106*G106 -> 776.321
E107: River frontage | F107: 0.0381359 | G107: 46338 | H107: =F107*G107 -> 1767.141334
H108: =SUM(H104:H107) -> 7989.295173

Sheet >>District wide rates
L7: New category to be added in GL
L8: New category to be added in GL, was "River Mgmt Rates"

Sheet Gen
A1: Wellington Regional Council
A2: ="General rate "&year_current -> General rate 2024/25
A3: Printed: | B3: =NOW() -> 2024-08-15T13:49:01.710
A4: =check_total -> 0
B6: CV | C6: ="ECV "&year_current -> ECV 2024/25 | D6: General Rate | E6: Rates sought
B7: $ | C7: $ | D7: $ | E7: Cents per $
A9: By TA
A10: Wellington city | B10: =INDEX(capital_values,MATCH($A10&"district wide",capital_values_rows,0),MATCH(B$6&" "&year_current,capital_values_header,0)) -> 117326906550 | C10: =INDEX(capital_values,MATCH($A10&"district wide",capital_values_rows,0),MATCH(C$6,capital_values_header,0)) -> 99003634434 | D10: =C10/C$19*D$19 -> 42450779.79 | E10: =D10/B10*100 -> 0.03618162367
A11: Hutt city | B11: 39707176000 | C11: 38393867363 | D11: =C11/C$19*D$19 -> 16462523 | E11: =D11/B11*100 -> 0.04145981824
A12: Upper Hutt city | B12: 16856900350 | C12: 15516301703 | D12: 6653080.066 | E12: =D12/B12*100 -> 0.03946799191
A13: Porirua city | B13: 19409983800 | C13: 18992714263 | D13: 8143696.293 | E13: 0.04195622406
A14: Kāpiti Coast district | B14: 23142666100 | C14: 23073590904 | D14: 9893494.638 | E14: 0.04275002109
A15: Masterton district | B15: 10529984800 | C15: 10956106252 | D15: 4697759.395 | E15: 0.04461316407
A16: Carterton district | B16: 4626940700 | C16: 4589109075 | D16: 1967718.255 | E16: 0.0425274146
A17: South Wairarapa district | B17: 7891083050 | C17: 7645492004 | D17: 3278234.171 | E17: 0.04154352641
A18: Tararua district | B18: 20442000 | C18: 21568275 | D18: 9248.045263 | E18: 0.04524041318
A19: Region wide | B19: =SUM(B10:B18) -> 239512083350 | C19: =SUM(C10:C18) -> 218192384273 | D19: =+ESSbase!G8 -> 93556533.65 | E19: 0.0390613001
A22: Upper Hutt breakdown
A23: Trentham Military Camp | B23: =SUMIFS('UHCC Adjustments'!$D$9:$D$27,'UHCC Adjustments'!$B$9:$B$27,"Total",'UHCC Adjustments'!$C$9:$C$27,A23) -> 149860000 | D23: =+D12*'UHCC Adjustments'!$E$34 -> 52406.56914 | E23: =D23/B23*100 -> 0.03497035175
A24: Rest of Upper Hutt city | B24: =SUMIFS('UHCC Adjustments'!$D$9:$D$27,'UHCC Adjustments'!$B$9:$B$27,"Total",'UHCC Adjustments'!$C$9:$C$27,A24) -> 16707040350 | D24: =+D12-D23 -> 6600673.497 | E24: =D24/B24*100 -> 0.03950833516
A25: Total Upper Hutt city | B25: =+B24+B23 -> 16856900350 | D25: =+D24+D23 -> 6653080.066 | E25: =D25/B25*100 -> 0.03946799191
A28: Check Upper Hutt total | B28: =B25-B12 -> 0 | D28: =D25-D12 -> 0
A29: Check totals | B29: =B19-SUM(B10:B18) -> 0 | C29: =C19-SUM(C10:C18) -> 0 | D29: =D19-SUM(D10:D18) -> 0

Sheet Remission
A1: Wellington Regional Council
A2: General rate 2022/23
A3: Printed: | B3: 2022-04-04
A4: All error checks ok
B6: CV | C6: ="ECV "&year_current -> ECV 2024/25 | D6: Remission of Regional Rates | E6: Rates sought
B7: $ | C7: $ | D7: $ | E7: Cents per $
A9: By TA
A10: Wellington city | B10: =INDEX(capital_values,MATCH($A10&"district wide",capital_values_rows,0),MATCH(B$6&" "&year_current,capital_values_header,0)) -> 117326906550 | C10: =INDEX(capital_values,MATCH($A10&"District wide",capital_values_rows,0),MATCH(C$6,capital_values_header,0)) -> 99003634434 | D10: =C10/C$19*D$19 -> 0 | E10: =D10/B10*100 -> 0
A11: Hutt city | B11: 39707176000 | C11: =INDEX(capital_values,MATCH($A11&"district wide",capital_values_rows,0),MATCH(C$6,capital_values_header,0)) -> 38393867363 | D11: =C11/C$19*D$19 -> 0 | E11: =D11/B11*100 -> 0
A12: Upper Hutt city | B12: 16856900350 | C12: 15516301703 | D12: 0 | E12: 0
A13: Porirua city | B13: 19409983800 | C13: 18992714263 | D13: 0 | E13: 0
A14: Kāpiti Coast district | B14: 23142666100 | C14: 23073590904 | D14: 0 | E14: 0
A15: Masterton district | B15: 10529984800 | C15: 10956106252 | D15: 0 | E15: 0
A16: Carterton district | B16: 4626940700 | C16: 4589109075 | D16: 0 | E16: 0
A17: South Wairarapa district | B17: 7891083050 | C17: 7645492004 | D17: 0 | E17: 0
A18: Tararua district | B18: 20442000 | C18: 21568275 | D18: 0 | E18: 0
A19: Region wide | B19: =SUM(B10:B18) -> 239512083350 | C19: =SUM(C10:C18) -> 218192384273 | D19: =+ESSbase!G9 -> 0 | E19: 0
B22: CV | C22: ECV | D22: differetial | E22: ECV multiplied | F22: General rate | G22: Rates sought
A23: Wellington city differentials | B23: $ | C23: $ | E23: $ | F23: $ | G23: Cents/$
A24: Wellington cityWellington CBD | B24: ='Capital values'!F19 -> 13368376300 | C24: =B24/$B$28*$C$10 -> 1.128059947e+10 | D24: 1.7 | E24: =C24*D24 -> 1.91770191e+10 | F24: =E24/$E$28*$D$10 -> 0 | G24: =F24/B24*100 -> 0
A25: Wellington cityBusiness | B25: ='Capital values'!F20 -> 6480398350 | C25: =B25/$B$28*$C$10 -> 5468336361 | D25: 1.3 | E25: =C25*D25 -> 7108837270 | F25: =E25/$E$28*$D$10 -> 0 | G25: =F25/B25*100 -> 0
A26: Wellington cityResidential | B26: ='Capital values'!F21 -> 96040762550 | C26: =B26/$B$28*$C$10 -> 8.104180725e+10 | D26: 1 | E26: =C26*D26 -> 8.104180725e+10 | F26: =E26/$E$28*$D$10 -> 0 | G26: =F26/B26*100 -> 0
A27: Wellington cityRural | B27: ='Capital values'!F22 -> 1437369350 | C27: =B27/$B$28*$C$10 -> 1212891347 | D27: 1 | E27: =C27*D27 -> 1212891347 | F27: =E27/$E$28*$D$10 -> 0 | G27: =F27/B27*100 -> 0
A28: Total Upper Hutt city | B28: =SUM(B24:B27) -> 117326906550 | C28: =SUM(C24:C27) -> 99003634434 | E28: =SUM(E24:E27) -> 1.08540555e+11 | F28: =SUM(F24:F27) -> 0 | G28: =F28/B28*100 -> 0
A33: Upper Hutt breakdown
A34: Trentham Military Camp | B34: =SUMIFS('UHCC Adjustments'!$D$9:$D$27,'UHCC Adjustments'!$B$9:$B$27,"Total",'UHCC Adjustments'!$C$9:$C$27,A34) -> 149860000 | D34: =+D12*'UHCC Adjustments'!$E$34 -> 0 | E34: =D34/B34*100 -> 0
A35: Rest of Upper Hutt city | B35: =SUMIFS('UHCC Adjustments'!$D$9:$D$27,'UHCC Adjustments'!$B$9:$B$27,"Total",'UHCC Adjustments'!$C$9:$C$27,A35) -> 16707040350 | D35: =D12-D34 -> 0 | E35: =D35/B35*100 -> 0
A36: Total Upper Hutt city | B36: =SUM(B34:B35) -> 16856900350 | D36: =SUM(D34:D35) -> 0 | E36: =D36/B36*100 -> 0
A39: Check Upper Hutt total | B39: OK | D39: OK
A40: Check totals | B40: OK | C40: OK | D40: OK

Sheet River management
A1: Wellington Regional Council
A2: ="River management rate "&year_current -> River management rate 2024/25
A3: Printed: | B3: =NOW() -> 2024-08-15T13:49:01.710
A4: =check_total -> 0
B6: CV | C6: River management rate | D6: Rates sought
B7: $ | C7: $ | D7: Cents per $
A9: By TA
A10: Wellington city | B10: =INDEX(capital_values,MATCH($A10&"district wide",capital_values_rows,0),MATCH(B$6&" "&year_current,capital_values_header,0)) -> 117326906550 | C10: =INDEX(Control!$C$109:$C$120,MATCH(A10,Control!$A$109:$A$120,0),) -> 265571.54 | D10: =C10/B10*100 -> 0.0002263517788
A11: Hutt city | B11: 39707176000 | C11: =INDEX(Control!$C$109:$C$120,MATCH(A11,Control!$A$109:$A$120,0),) -> 8942063.71 | D11: 0.02252001933
A12: Upper Hutt city | B12: 16856900350 | C12: =INDEX(Control!$C$109:$C$120,MATCH(A12,Control!$A$109:$A$120,0),) -> 1468314.42 | D12: 0.008710465089
A13: Porirua city | B13: 19409983800 | C13: =INDEX(Control!$C$109:$C$120,MATCH(A13,Control!$A$109:$A$120,0),) -> 92070 | D13: 0.000474343518
A14: Kāpiti Coast district | B14: 23142666100 | C14: =INDEX(Control!$C$109:$C$120,MATCH(A14,Control!$A$109:$A$120,0),) -> 1748053.49 | D14: 0.007553379902
A15: Masterton district | B15: 10529984800 | C15: =INDEX(Control!$C$109:$C$120,MATCH(A15,Control!$A$109:$A$120,0),) -> 0 | D15: =C15/B15*100 -> 0
A16: Carterton district | B16: 4626940700 | C16: =INDEX(Control!$C$109:$C$120,MATCH(A16,Control!$A$109:$A$120,0),) -> 27451.4 | D16: 0.0005932948309
A17: South Wairarapa district | B17: 7891083050 | C17: =INDEX(Control!$C$109:$C$120,MATCH(A17,Control!$A$109:$A$120,0),) -> 0 | D17: 0
A18: Tararua district | B18: 20442000 | C18: =INDEX(Control!$C$109:$C$120,MATCH(A18,Control!$A$109:$A$120,0),) -> 0 | D18: 0
A19: Region wide | B19: =SUM(B10:B18) -> 239512083350 | C19: =INDEX(ess_base_estract,MATCH(C6,ESSbase!$B$8:$B$25,0),MATCH(year_current,ESSbase!$F$6:$G$6,0)) -> 12543524.56 | D19: 0.005237115549
A22: Upper Hutt breakdown
A23: Trentham Military Camp | B23: =SUMIFS('UHCC Adjustments'!$D$9:$D$27,'UHCC Adjustments'!$B$9:$B$27,"Total",'UHCC Adjustments'!$C$9:$C$27,A23) -> 149860000 | C23: =+C12*'UHCC Adjustments'!$E$34 -> 11565.96951 | D23: =C23/B23*100 -> 0.007717849664
A24: Rest of Upper Hutt city | B24: =SUMIFS('UHCC Adjustments'!$D$9:$D$27,'UHCC Adjustments'!$B$9:$B$27,"Total",'UHCC Adjustments'!$C$9:$C$27,A24) -> 16707040350 | C24: =+C12-C23 -> 1456748.45 | D24: =C24/B24*100 -> 0.008719368721
A25: Total Upper Hutt city | B25: =+B24+B23 -> 16856900350 | C25: =+C24+C23 -> 1468314.42 | D25: =C25/B25*100 -> 0.008710465089
A28: Non district wide
A29: Greytown River Management Rate | B29: =INDEX('Capital values'!$F$48:$F$49,MATCH("Greytown Urban -CV",'Capital values'!$A$48:$A$49,0),) -> 1429473500 | C29: =INDEX(Control!$D$124:$D$125,MATCH(A29,Control!$A$124:$A$125,0),) -> 98709.62 | D29: =C29/B29*100 -> 0.00690531304
A30: Donalds Creek Stopbank River Management Rate | B30: =INDEX('Capital values'!$F$48:$F$49,MATCH("Featherston Urban - LV",'Capital values'!$A$48:$A$49,0),) -> 334432000 | C30: =INDEX(Control!$D$124:$D$125,MATCH(A30,Control!$A$124:$A$125,0),) -> 3051.22 | D30: =C30/B30*100 -> 0.0009123588652
A31: Total non-district wide rates | C31: =INDEX(ess_base_estract,MATCH(C6&" - Non district Wide",ESSbase!$B$8:$B$25,0),MATCH(year_current,ESSbase!$F$6:$G$6,0)) -> 101760.84
A34: Check Upper Hutt total | B34: =B25-B12 -> 0 | C34: =C25-C12 -> 0
A35: Check Non district Wide total | C35: =IF(ABS(C31-SUM(C29:C30))>tolerance_dollar,1,0) -> 0
A36: Check totals | B36: =B19-SUM(B10:B18) -> 0 | C36: =IF(ABS(C19-SUM(C10:C18))>tolerance_dollar,1,0) -> 0

Sheet Stadium
A1: Wellington Regional Council
A2: ="Stadium purposes rate "&year_current -> Stadium purposes rate 2024/25
A3: Printed: | C3: =NOW() -> 2024-08-15T13:49:01.710
A4: =check_total -> 0
A6: =Control!A65 -> TA full name | B6: =Control!B65 -> Rating area | C6: =Control!C65 -> Category group | D6: =Control!D65 -> Concatenated name | E6: CV | F6: ECV | G6: Differential | H6: ECV multiplied | I6: Stadium purposes rate | J6: Rates sought
A7: =Control!A51 -> 0 | C7: =Control!B51 -> 0 | D7: =Control!C51 -> 0 | E7: $ | F7: $ | G7: # | H7: # | I7: $ | J7: Cents per $
A9: By TA
A10: =Control!A41 -> Wellington city | C10: =Control!B41 -> District wide | D10: =Control!C41 -> Wellington cityDistrict wide | E10: =INDEX(capital_values,MATCH($D10,capital_values_rows,0),MATCH(E$6&" "&year_current,capital_values_header,0)) -> 117326906550 | F10: 99003634434 | I10: =SUMIF($A$23:$A$49,$A10,$I$23:$I$49) -> 0 | J10: =I10/E10*100 -> 0
A11: =Control!A42 -> Hutt city | C11: =Control!B42 -> District wide | D11: =Control!C42 -> Hutt cityDistrict wide | E11: 39707176000 | F11: 38393867363 | I11: 0 | J11: 0
A12: =Control!A43 -> Upper Hutt city | C12: =Control!B43 -> District wide | D12: =Control!C43 -> Upper Hutt cityDistrict wide | E12: 16856900350 | F12: 15516301703 | I12: 0 | J12: 0
A13: =Control!A44 -> Porirua city | C13: =Control!B44 -> District wide | D13: =Control!C44 -> Porirua cityDistrict wide | E13: 19409983800 | F13: 18992714263 | I13: 0 | J13: 0
A14: =Control!A45 -> Kāpiti Coast district | C14: =Control!B45 -> District wide | D14: =Control!C45 -> Kāpiti Coast districtDistrict wide | E14: 23142666100 | F14: 23073590904 | I14: 0 | J14: 0
A15: =Control!A46 -> Masterton district | C15: =Control!B46 -> District wide | D15: =Control!C46 -> Masterton districtDistrict wide | E15: 10529984800 | F15: 10956106252 | I15: 0 | J15: 0
A16: =Control!A47 -> Carterton district | C16: =Control!B47 -> District wide | D16: =Control!C47 -> Carterton districtDistrict wide | E16: 4626940700 | F16: 4589109075 | I16: 0 | J16: 0
A17: =Control!A48 -> South Wairarapa district | C17: =Control!B48 -> District wide | D17: =Control!C48 -> South Wairarapa districtDistrict wide | E17: 7891083050 | F17: 7645492004 | I17: 0 | J17: 0
A18: =Control!A49 -> Tararua district | C18: =Control!B49 -> District wide | D18: =Control!C49 -> Tararua districtDistrict wide | E18: 20442000 | F18: 21568275 | I18: 0 | J18: 0
A19: Region wide | E19: =SUM(E10:E18) -> 239512083350 | F19: =SUM(F10:F18) -> 218192384273 | I19: =SUM(I10:I18) -> 0
A22: By TA & Category
A23: =Control!A66 -> Wellington city | B23: =Control!B66 -> Wellington city | C23: =Control!C66 -> Wellington CBD | D23: =Control!D66 -> Wellington cityWellington CBD | E23: =INDEX(capital_values,MATCH($D23,capital_values_rows,0),MATCH(E$6&" "&year_current,capital_values_header,0)) -> 13368376300 | F23: =INDEX($F$10:$F$18,MATCH(A23,$A$10:$A$18,0),)/INDEX($E$10:$E$18,MATCH(A23,$A$10:$A$18,0),)*E23 -> 1.128059947e+10 | G23: =INDEX(stadium_rate_differentials,MATCH($D23,concat_rating_category_stadium,0),) -> 2 | H23: =F23*G23 -> 2.256119895e+10 | I23: =I$50*H23/H$50 -> 0 | J23: =I23/E23*100 -> 0
A24: =Control!A67 -> Wellington city | B24: =Control!B67 -> Wellington city | C24: =Control!C67 -> Business | D24: =Control!D67 -> Wellington cityBusiness | E24: 6480398350 | F24: =INDEX($F$10:$F$18,MATCH(A24,$A$10:$A$18,0),)/INDEX($E$10:$E$18,MATCH(A24,$A$10:$A$18,0),)*E24 -> 5468336361 | G24: 1.2 | H24: =F24*G24 -> 6562003633 | I24: 0 | J24: 0
A25: =Control!A68 -> Wellington city | B25: =Control!B68 -> Wellington city | C25: =Control!C68 -> Residential | D25: =Control!D68 -> Wellington cityResidential | E25: 96040762550 | F25: 8.104180725e+10 | G25: 1.2 | H25: 9.72501687e+10 | I25: 0 | J25: 0
A26: =Control!A69 -> Wellington city | B26: =Control!B69 -> Wellington city | C26: =Control!C69 -> Rural | D26: =Control!D69 -> Wellington cityRural | E26: 1437369350 | F26: 1212891347 | G26: 1.2 | H26: 1455469616 | I26: 0 | J26: 0
A27: =Control!A70 -> Hutt city | B27: =Control!B70 -> Hutt city | C27: =Control!C70 -> Business | D27: =Control!D70 -> Hutt cityBusiness | E27: 6742241000 | F27: 6519242433 | G27: 1 | H27: 6519242433 | I27: 0 | J27: 0
A28: =Control!A71 -> Hutt city | B28: =Control!B71 -> Hutt city | C28: =Control!C71 -> Residential | D28: =Control!D71 -> Hutt cityResidential | E28: =INDEX(capital_values,MATCH($D28,capital_values_rows,0),MATCH(E$6&" "&year_current,capital_values_header,0)) -> 32406254500 | F28: 3.13344227e+10 | G28: 1 | H28: 3.13344227e+10 | I28: 0 | J28: 0
A29: =Control!A72 -> Hutt city | B29: =Control!B72 -> Hutt city | C29: =Control!C72 -> Rural | D29: =Control!D72 -> Hutt cityRural | E29: 558680500 | F29: 540202229.8 | G29: 1 | H29: 540202229.8 | I29: 0 | J29: 0
A30: =Control!A73 -> Upper Hutt city | B30: =Control!B73 -> Upper Hutt city | C30: =Control!C73 -> Business | D30: =Control!D73 -> Upper Hutt cityBusiness | E30: 2074242950 | F30: 1909282178 | G30: 1 | H30: 1909282178 | I30: 0 | J30: 0
A31: =Control!A74 -> Upper Hutt city | B31: =Control!B74 -> Upper Hutt city | C31: =Control!C74 -> Residential | D31: =Control!D74 -> Upper Hutt cityResidential | E31: 12920826400 | F31: 1.189325656e+10 | G31: 1 | H31: 1.189325656e+10 | I31: 0 | J31: 0
A32: =Control!A75 -> Upper Hutt city | B32: =Control!B75 -> Upper Hutt city | C32: =Control!C75 -> Rural | D32: =Control!D75 -> Upper Hutt cityRural | E32: 1861831000 | F32: 1713762964 | G32: 1 | H32: 1713762964 | I32: 0 | J32: 0
A33: =Control!A76 -> Porirua city | B33: =Control!B76 -> Porirua city | C33: =Control!C76 -> Business | D33: =Control!D76 -> Porirua cityBusiness | E33: 1752175500 | F33: 1714507799 | G33: 1 | H33: 1714507799 | I33: 0 | J33: 0
A34: =Control!A77 -> Porirua city | B34: =Control!B77 -> Porirua city | C34: =Control!C77 -> Residential | D34: =Control!D77 -> Porirua cityResidential | E34: 16374013500 | F34: 1.602201027e+10 | G34: 1 | H34: 1.602201027e+10 | I34: 0 | J34: =I34/E34*100 -> 0
A35: =Control!A78 -> Porirua city | B35: =Control!B78 -> Porirua city | C35: =Control!C78 -> Rural | D35: =Control!D78 -> Porirua cityRural | E35: 1283794800 | F35: 1256196196 | G35: 1 | H35: 1256196196 | I35: 0 | J35: 0
A36: =Control!A79 -> Kāpiti Coast district | B36: =Control!B79 -> Kāpiti Coast district | C36: =Control!C79 -> Business | D36: =Control!D79 -> Kāpiti Coast districtBusiness | E36: 2118502900 | F36: 2112179687 | G36: 0.5 | H36: 1056089844 | I36: 0 | J36: 0
A37: =Control!A80 -> Kāpiti Coast district | B37: =Control!B80 -> Kāpiti Coast district excl Ōtaki | C37: =Control!C80 -> Residential | D37: =Control!D80 -> Kāpiti Coast district excl Ōtaki Residential | E37: 15678065400 | F37: 1.563127021e+10 | G37: 0.5 | H37: 7815635105 | I37: 0 | J37: 0
A38: =Control!A81 -> Kāpiti Coast district | B38: =Control!B81 -> Ōtaki rating area | C38: =Control!C81 -> Residential | D38: =Control!D81 -> Ōtaki rating areaResidential | E38: 2036169400 | F38: 2030091933 | G38: 0.5 | H38: 1015045966 | I38: 0 | J38: 0
A39: =Control!A82 -> Kāpiti Coast district | B39: =Control!B82 -> Kāpiti Coast district | C39: =Control!C82 -> Rural | D39: =Control!D82 -> Kāpiti Coast districtRural | E39: 3309928400 | F39: 3300049074 | G39: 0.5 | H39: 1650024537 | I39: 0 | J39: 0
A40: =Control!A83 -> Masterton district | B40: =Control!B83 -> Masterton district | C40: =Control!C83 -> Business | D40: =Control!D83 -> Masterton districtBusiness | E40: 954405000 | F40: 993027320.2 | G40: 0.5 | H40: 496513660.1 | I40: 0 | J40: 0
A41: =Control!A84 -> Masterton district | B41: =Control!B84 -> Masterton district | C41: =Control!C84 -> Residential | D41: =Control!D84 -> Masterton districtResidential | E41: 4684053500 | F41: 4873605120 | G41: 0.5 | H41: 2436802560 | I41: 0 | J41: 0
A42: =Control!A85 -> Masterton district | B42: =Control!B85 -> Masterton district | C42: =Control!C85 -> Rural | D42: =Control!D85 -> Masterton districtRural | E42: 4891526300 | F42: 5089473812 | G42: 0.5 | H42: 2544736906 | I42: 0 | J42: 0
A43: =Control!A86 -> Carterton district | B43: =Control!B86 -> Carterton district | C43: =Control!C86 -> Business | D43: =Control!D86 -> Carterton districtBusiness | E43: 198752500 | F43: 197127424.1 | G43: 0.5 | H43: 98563712.03 | I43: 0 | J43: 0
A44: =Control!A87 -> Carterton district | B44: =Control!B87 -> Carterton district | C44: =Control!C87 -> Residential | D44: =Control!D87 -> Carterton districtResidential | E44: 1604807000 | F44: 1591685488 | G44: 0.5 | H44: 795842744.1 | I44: 0 | J44: 0
A45: =Control!A88 -> Carterton district | B45: =Control!B88 -> Carterton district | C45: =Control!C88 -> Rural | D45: =Control!D88 -> Carterton districtRural | E45: 2823381200 | F45: 2800296163 | G45: 0.5 | H45: 1400148081 | I45: 0 | J45: 0
A46: =Control!A89 -> South Wairarapa district | B46: =Control!B89 -> South Wairarapa district | C46: =Control!C89 -> Business | D46: =Control!D89 -> South Wairarapa districtBusiness | E46: 402740000 | F46: 390205682.8 | G46: 0.5 | H46: 195102841.4 | I46: 0 | J46: 0
A47: =Control!A90 -> South Wairarapa district | B47: =Control!B90 -> South Wairarapa district | C47: =Control!C90 -> Residential | D47: =Control!D90 -> South Wairarapa districtResidential | E47: 2562801500 | F47: 2483040446 | G47: 0.5 | H47: 1241520223 | I47: 0 | J47: 0
A48: =Control!A91 -> South Wairarapa district | B48: =Control!B91 -> South Wairarapa district | C48: =Control!C91 -> Rural | D48: =Control!D91 -> South Wairarapa districtRural | E48: 4925541550 | F48: 4772245875 | G48: 0.5 | H48: 2386122938 | I48: 0 | J48: 0
A49: =Control!A92 -> Tararua district | B49: =Control!B92 -> Tararua district | C49: =Control!C92 -> Rural | D49: =Control!D92 -> Tararua districtRural | E49: 20442000 | F49: 21568275 | G49: 0.5 | H49: 10784137.5 | I49: 0 | J49: 0
A50: Region wide | E50: =SUM(E23:E49) -> 239512083350 | F50: =SUM(F23:F49) -> 2.181923843e+11 | H50: =SUM(H23:H49) -> 2.238746575e+11 | I50: =INDEX(ess_base_estract,MATCH(I6,ESSbase!$B$8:$B$25,0),MATCH(year_current,ESSbase!$F$6:$G$6,0)) -> 0
A53: Upper Hutt breakdown
A54: =$A$12 -> Upper Hutt city | B54: Trentham Military Camp | C54: Business | D54: =B54&C54 -> Trentham Military CampBusiness | E54: =SUMIFS('UHCC Adjustments'!$D$9:$D$27,'UHCC Adjustments'!$B$9:$B$27,C54,'UHCC Adjustments'!$C$9:$C$27,B54) -> 95597000 | I54: =SUMIFS($I$23:$I$49,$A$23:$A$49,A54,$C$23:$C$49,C54) * IF(B54="Trentham Military Camp", INDEX('UHCC Adjustments'!$E$30:$E$34,MATCH(C54,'UHCC Adjustments'!$B$30:$B$34,0),), 1-INDEX('UHCC Adjustments'!$E$30:$E$34,MATCH(C54,'UHCC Adjustments'!$B$30:$B$34,0),)) -> 0 | J54: =I54/E54*100 -> 0
A55: Upper Hutt city | B55: Rest of Upper Hutt City | C55: Business | D55: Rest of Upper Hutt CityBusiness | E55: =SUMIFS('UHCC Adjustments'!$D$9:$D$27,'UHCC Adjustments'!$B$9:$B$27,C55,'UHCC Adjustments'!$C$9:$C$27,B55) -> 1978645950 | I55: =SUMIFS($I$23:$I$49,$A$23:$A$49,A55,$C$23:$C$49,C55) * IF(B55="Trentham Military Camp", INDEX('UHCC Adjustments'!$E$30:$E$34,MATCH(C55,'UHCC Adjustments'!$B$30:$B$34,0),), 1-INDEX('UHCC Adjustments'!$E$30:$E$34,MATCH(C55,'UHCC Adjustments'!$B$30:$B$34,0),)) -> 0 | J55: 0
A56: Upper Hutt city | B56: Trentham Military Camp | C56: Residential | D56: Trentham Military CampResidential | E56: =SUMIFS('UHCC Adjustments'!$D$9:$D$27,'UHCC Adjustments'!$B$9:$B$27,C56,'UHCC Adjustments'!$C$9:$C$27,B56) -> 44959000 | I56: =SUMIFS($I$23:$I$49,$A$23:$A$49,A56,$C$23:$C$49,C56) * IF(B56="Trentham Military Camp", INDEX('UHCC Adjustments'!$E$30:$E$34,MATCH(C56,'UHCC Adjustments'!$B$30:$B$34,0),), 1-INDEX('UHCC Adjustments'!$E$30:$E$34,MATCH(C56,'UHCC Adjustments'!$B$30:$B$34,0),)) -> 0 | J56: 0
A57: Upper Hutt city | B57: Rest of Upper Hutt City | C57: Residential | D57: Rest of Upper Hutt CityResidential | E57: =SUMIFS('UHCC Adjustments'!$D$9:$D$27,'UHCC Adjustments'!$B$9:$B$27,C57,'UHCC Adjustments'!$C$9:$C$27,B57) -> 12875867400 | I57: =SUMIFS($I$23:$I$49,$A$23:$A$49,A57,$C$23:$C$49,C57) * IF(B57="Trentham Military Camp", INDEX('UHCC Adjustments'!$E$30:$E$34,MATCH(C57,'UHCC Adjustments'!$B$30:$B$34,0),), 1-INDEX('UHCC Adjustments'!$E$30:$E$34,MATCH(C57,'UHCC Adjustments'!$B$30:$B$34,0),)) -> 0 | J57: 0
A58: Upper Hutt city | B58: Trentham Military Camp | C58: Rural | D58: Trentham Military CampRural | E58: =SUMIFS('UHCC Adjustments'!$D$9:$D$27,'UHCC Adjustments'!$B$9:$B$27,C58,'UHCC Adjustments'!$C$9:$C$27,B58) -> 9304000 | I58: =SUMIFS($I$23:$I$49,$A$23:$A$49,A58,$C$23:$C$49,C58) * IF(B58="Trentham Military Camp", INDEX('UHCC Adjustments'!$E$30:$E$34,MATCH(C58,'UHCC Adjustments'!$B$30:$B$34,0),), 1-INDEX('UHCC Adjustments'!$E$30:$E$34,MATCH(C58,'UHCC Adjustments'!$B$30:$B$34,0),)) -> 0 | J58: 0
A59: Upper Hutt city | B59: Rest of Upper Hutt City | C59: Rural | D59: Rest of Upper Hutt CityRural | E59: =SUMIFS('UHCC Adjustments'!$D$9:$D$27,'UHCC Adjustments'!$B$9:$B$27,C59,'UHCC Adjustments'!$C$9:$C$27,B59) -> 1852527000 | I59: =SUMIFS($I$23:$I$49,$A$23:$A$49,A59,$C$23:$C$49,C59) * IF(B59="Trentham Military Camp", INDEX('UHCC Adjustments'!$E$30:$E$34,MATCH(C59,'UHCC Adjustments'!$B$30:$B$34,0),), 1-INDEX('UHCC Adjustments'!$E$30:$E$34,MATCH(C59,'UHCC Adjustments'!$B$30:$B$34,0),)) -> 0 | J59: 0
A60: Total | E60: =SUM(E54:E59) -> 16856900350 | I60: =SUM(I54:I59) -> 0
A63: Check Upper Hutt total | E63: =E60-E12 -> 0 | I63: =I60-I12 -> 0
A64: Check TA totals | E64: =INDEX(capital_values,MATCH("Region wide",capital_values_rows,0),MATCH(E6&" "&year_current,capital_values_header,0))-SUM(E10:E18) -> 0 | F64: =INDEX(capital_values,MATCH("Region wide",capital_values_rows,0),MATCH(F6&" "&year_current,capital_values_header,0))-SUM(F10:F18) -> 0 | I64: =INDEX(ess_base_estract,MATCH(I6,ESSbase!$B$8:$B$25,0),MATCH(year_current,ESSbase!$F$6:$G$6,0))-SUM(I10:I18) -> 0
A65: Check category totals | E65: =INDEX(capital_values,MATCH("Region wide",capital_values_rows,0),MATCH(E6&" "&year_current,capital_values_header,0))-SUM(E23:E49) -> 0 | F65: =INDEX(capital_values,MATCH("Region wide",capital_values_rows,0),MATCH(F6&" "&year_current,capital_values_header,0))-SUM(F23:F49) -> 0 | H65: =H50-SUM(H23:H49) -> 0 | I65: =INDEX(ess_base_estract,MATCH(I6,ESSbase!$B$8:$B$25,0),MATCH(year_current,ESSbase!$F$6:$G$6,0))-SUM(I23:I49) -> 0
A66: Category matches TA | E66: =E50-E19 -> 0 | F66: =F50-F19 -> 0 | I66: =I50-I19 -> 0

Sheet Economic Development
A1: Wellington Regional Council
A2: ="Economic Development Rate "&year_current -> Economic Development Rate 2024/25
A3: Printed: | B3: =NOW() -> 2024-08-15T13:49:01.710
A4: =check_total -> 0
A6: =Control!A65 -> TA full name | B6: =Control!B65 -> Rating area | C6: =Control!C65 -> Category group | D6: =Control!D65 -> Concatenated name | E6: CV assessments | F6: Contiguous assements | G6: Rateable properties | H6: Rating basis | I6: CV | J6: ECV | K6: Economic development rate | L6: Rates sought
A7: =Control!A51 -> 0 | C7: =Control!B51 -> 0 | D7: =Control!C51 -> 0 | E7: # | F7: # | G7: # | H7: $ | I7: $ | J7: $ | K7: $ | L7: Cents per $
A9: By TA
A10: =Control!A41 -> Wellington city | C10: =Control!B41 -> District wide | D10: =Control!C41 -> Wellington cityDistrict wide | I10: =INDEX(capital_values,MATCH($D10,capital_values_rows,0),MATCH(I$6&" "&year_current,capital_values_header,0)) -> 117326906550 | J10: 99003634434 | K10: =SUMIF($A$23:$A$49,$A10,$K$23:$K$49) -> 2237351.295
A11: =Control!A42 -> Hutt city | C11: =Control!B42 -> District wide | D11: =Control!C42 -> Hutt cityDistrict wide | I11: 39707176000 | J11: 38393867363 | K11: =SUMIF($A$23:$A$49,$A11,$K$23:$K$49) -> 1018658.265
A12: =Control!A43 -> Upper Hutt city | C12: =Control!B43 -> District wide | D12: =Control!C43 -> Upper Hutt cityDistrict wide | I12: 16856900350 | J12: 15516301703 | K12: 382267.5597
A13: =Control!A44 -> Porirua city | C13: =Control!B44 -> District wide | D13: =Control!C44 -> Porirua cityDistrict wide | I13: 19409983800 | J13: 18992714263 | K13: 401911.8077
A14: =Control!A45 -> Kāpiti Coast district | C14: =Control!B45 -> District wide | D14: =Control!C45 -> Kāpiti Coast districtDistrict wide | I14: 23142666100 | J14: 23073590904 | K14: 504498.4178
A15: =Control!A46 -> Masterton district | C15: =Control!B46 -> District wide | D15: =Control!C46 -> Masterton districtDistrict wide | I15: 10529984800 | J15: 10956106252 | K15: 249573.8212
A16: =Control!A47 -> Carterton district | C16: =Control!B47 -> District wide | D16: =Control!C47 -> Carterton districtDistrict wide | I16: 4626940700 | J16: 4589109075 | K16: 80709.30904
A17: =Control!A48 -> South Wairarapa district | C17: =Control!B48 -> District wide | D17: =Control!C48 -> South Wairarapa districtDistrict wide | I17: 7891083050 | J17: 7645492004 | K17: 120864.3742
A18: =Control!A49 -> Tararua district | C18: =Control!B49 -> District wide | D18: =Control!C49 -> Tararua districtDistrict wide | I18: 20442000 | J18: 21568275 | K18: 165
A19: Region wide | I19: =SUM(I10:I18) -> 239512083350 | J19: =SUM(J10:J18) -> 218192384273 | K19: =SUM(K10:K18) -> 4995999.85
A22: By TA & Category
A23: =Control!A66 -> Wellington city | B23: =Control!B66 -> Wellington city | C23: =Control!C66 -> Wellington CBD | D23: =Control!D66 -> Wellington cityWellington CBD | E23: =INDEX(assessments,MATCH($D23,assessments_rows,0),MATCH(E$6&" "&year_current,assessments_header,0)) -> 2991 | F23: =INDEX(assessments_contiguous,MATCH($D23,assessments_contiguous_rows,0),MATCH(F$6&" "&year_current,assessments_contiguous_header,0)) -> 0 | G23: =E23-F23 -> 2991 | H23: =INDEX(WRS_value,MATCH($C23,WRS_categories,0),) -> Remainder | I23: =INDEX(capital_values,MATCH($D23,capital_values_rows,0),MATCH(I$6&" "&year_current,capital_values_header,0)) -> 13368376300 | J23: =INDEX($J$10:$J$18,MATCH(A23,$A$10:$A$18,0),)/INDEX($I$10:$I$18,MATCH(A23,$A$10:$A$18,0),)*I23 -> 1.128059947e+10 | K23: =IF(H23="Remainder", J23/SUMIF($H$23:$H$49,"Remainder",$J$23:$J$49) *($K$50-SUMPRODUCT($H$23:$H$49,$G$23:$G$49)), H23*G23) -> 736158.9514 | L23: =K23/I23*100 -> 0.005506719252
A24: =Control!A67 -> Wellington city | B24: =Control!B67 -> Wellington city | C24: =Control!C67 -> Business | D24: =Control!D67 -> Wellington cityBusiness | E24: 1841 | F24: 0 | G24: =E24-F24 -> 1841 | H24: Remainder | I24: 6480398350 | J24: =INDEX($J$10:$J$18,MATCH(A24,$A$10:$A$18,0),)/INDEX($I$10:$I$18,MATCH(A24,$A$10:$A$18,0),)*I24 -> 5468336361 | K24: =IF(H24="Remainder", J24/SUMIF($H$23:$H$49,"Remainder",$J$23:$J$49) *($K$50-SUMPRODUCT($H$23:$H$49,$G$23:$G$49)), H24*G24) -> 356857.3435 | L24: 0.005506719252
A25: =Control!A68 -> Wellington city | B25: =Control!B68 -> Wellington city | C25: =Control!C68 -> Residential | D25: =Control!D68 -> Wellington cityResidential | E25: 75387 | F25: 0 | G25: 75387 | H25: 15 | I25: 96040762550 | J25: 8.104180725e+10 | K25: 1130805 | L25: 0.00117742193
A26: =Control!A69 -> Wellington city | B26: =Control!B69 -> Wellington city | C26: =Control!C69 -> Rural | D26: =Control!D69 -> Wellington cityRural | E26: 902 | F26: 0 | G26: 902 | H26: 15 | I26: 1437369350 | J26: 1212891347 | K26: 13530 | L26: 0.0009413029435
A27: =Control!A70 -> Hutt city | B27: =Control!B70 -> Hutt city | C27: =Control!C70 -> Business | D27: =Control!D70 -> Hutt cityBusiness | E27: 2515 | F27: 0 | G27: 2515 | H27: Remainder | I27: 6742241000 | J27: 6519242433 | K27: 425438.2655 | L27: 0.006310042395
A28: =Control!A71 -> Hutt city | B28: =Control!B71 -> Hutt city | C28: =Control!C71 -> Residential | D28: =Control!D71 -> Hutt cityResidential | E28: 39121 | F28: 19 | G28: 39102 | H28: 15 | I28: =INDEX(capital_values,MATCH($D28,capital_values_rows,0),MATCH(I$6&" "&year_current,capital_values_header,0)) -> 32406254500 | J28: 3.13344227e+10 | K28: 586530 | L28: 0.001809928389
A29: =Control!A72 -> Hutt city | B29: =Control!B72 -> Hutt city | C29: =Control!C72 -> Rural | D29: =Control!D72 -> Hutt cityRural | E29: 446 | F29: 0 | G29: 446 | H29: 15 | I29: 558680500 | J29: 540202229.8 | K29: 6690 | L29: 0.001197464383
A30: =Control!A73 -> Upper Hutt city | B30: =Control!B73 -> Upper Hutt city | C30: =Control!C73 -> Business | D30: =Control!D73 -> Upper Hutt cityBusiness | E30: 819 | F30: 17 | G30: 802 | H30: Remainder | I30: 2074242950 | J30: 1909282178 | K30: 124597.5597 | L30: 0.006006893247
A31: =Control!A74 -> Upper Hutt city | B31: =Control!B74 -> Upper Hutt city | C31: =Control!C74 -> Residential | D31: =Control!D74 -> Upper Hutt cityResidential | E31: 15899 | F31: 21 | G31: 15878 | H31: 15 | I31: 12920826400 | J31: 1.189325656e+10 | K31: 238170 | L31: 0.00184330315
A32: =Control!A75 -> Upper Hutt city | B32: =Control!B75 -> Upper Hutt city | C32: =Control!C75 -> Rural | D32: =Control!D75 -> Upper Hutt cityRural | E32: 1354 | F32: 54 | G32: 1300 | H32: 15 | I32: 1861831000 | J32: 1713762964 | K32: 19500 | L32: 0.00104735607
A33: =Control!A76 -> Porirua city | B33: =Control!B76 -> Porirua city | C33: =Control!C76 -> Business | D33: =Control!D76 -> Porirua cityBusiness | E33: 856 | F33: 0 | G33: 856 | H33: Remainder | I33: 1752175500 | J33: 1714507799 | K33: 111886.8077 | L33: 0.006385593662
A34: =Control!A77 -> Porirua city | B34: =Control!B77 -> Porirua city | C34: =Control!C77 -> Residential | D34: =Control!D77 -> Porirua cityResidential | E34: 18678 | F34: 0 | G34: 18678 | H34: 15 | I34: 16374013500 | J34: 1.602201027e+10 | K34: 280170 | L34: 0.001711064914
A35: =Control!A78 -> Porirua city | B35: =Control!B78 -> Porirua city | C35: =Control!C78 -> Rural | D35: =Control!D78 -> Porirua cityRural | E35: 657 | F35: 0 | G35: 657 | H35: 15 | I35: 1283794800 | J35: 1256196196 | K35: 9855 | L35: 0.0007676460444
A36: =Control!A79 -> Kāpiti Coast district | B36: =Control!B79 -> Kāpiti Coast district | C36: =Control!C79 -> Business | D36: =Control!D79 -> Kāpiti Coast districtBusiness | E36: 1245 | F36: 0 | G36: 1245 | H36: Remainder | I36: 2118502900 | J36: 2112179687 | K36: 137838.4178 | L36: 0.006506406852
A37: =Control!A80 -> Kāpiti Coast district | B37: =Control!B80 -> Kāpiti Coast district excl Ōtaki | C37: =Control!C80 -> Residential | D37: =Control!D80 -> Kāpiti Coast district excl Ōtaki Residential | E37: 18667 | F37: 198 | G37: 18469 | H37: 15 | I37: 15678065400 | J37: 1.563127021e+10 | K37: 277035 | L37: 0.001767022862
A38: =Control!A81 -> Kāpiti Coast district | B38: =Control!B81 -> Ōtaki rating area | C38: =Control!C81 -> Residential | D38: =Control!D81 -> Ōtaki rating areaResidential | E38: 3389 | F38: 37 | G38: =E38-F38 -> 3352 | H38: 15 | I38: 2036169400 | J38: =INDEX($J$10:$J$18,MATCH(A38,$A$10:$A$18,0),)/INDEX($I$10:$I$18,MATCH(A38,$A$10:$A$18,0),)*I38 -> 2030091933 | K38: 50280 | L38: =K38/I38*100 -> 0.002469342678
A39: =Control!A82 -> Kāpiti Coast district | B39: =Control!B82 -> Kāpiti Coast district | C39: =Control!C82 -> Rural | D39: =Control!D82 -> Kāpiti Coast districtRural | E39: 2745 | F39: 122 | G39: 2623 | H39: 15 | I39: 3309928400 | J39: 3300049074 | K39: 39345 | L39: 0.001188696408
A40: =Control!A83 -> Masterton district | B40: =Control!B83 -> Masterton district | C40: =Control!C83 -> Business | D40: =Control!D83 -> Masterton districtBusiness | E40: 601 | F40: 0 | G40: 601 | H40: Remainder | I40: 954405000 | J40: 993027320.2 | K40: 64803.82115 | L40: 0.006789970835
A41: =Control!A84 -> Masterton district | B41: =Control!B84 -> Masterton district | C41: =Control!C84 -> Residential | D41: =Control!D84 -> Masterton districtResidential | E41: 8805 | F41: 132 | G41: 8673 | H41: 15 | I41: 4684053500 | J41: 4873605120 | K41: 130095 | L41: 0.002777402094
A42: =Control!A85 -> Masterton district | B42: =Control!B85 -> Masterton district | C42: =Control!C85 -> Rural | D42: =Control!D85 -> Masterton districtRural | E42: 4116 | F42: 471 | G42: 3645 | H42: 15 | I42: 4891526300 | J42: 5089473812 | K42: 54675 | L42: 0.00111774928
A43: =Control!A86 -> Carterton district | B43: =Control!B86 -> Carterton district | C43: =Control!C86 -> Business | D43: =Control!D86 -> Carterton districtBusiness | E43: 234 | F43: 0 | G43: 234 | H43: Remainder | I43: 198752500 | J43: 197127424.1 | K43: 12864.30904 | L43: 0.006472526907
A44: =Control!A87 -> Carterton district | B44: =Control!B87 -> Carterton district | C44: =Control!C87 -> Residential | D44: =Control!D87 -> Carterton districtResidential | E44: 2689 | F44: 77 | G44: 2612 | H44: 15 | I44: 1604807000 | J44: 1591685488 | K44: 39180 | L44: 0.002441415074
A45: =Control!A88 -> Carterton district | B45: =Control!B88 -> Carterton district | C45: =Control!C88 -> Rural | D45: =Control!D88 -> Carterton districtRural | E45: 2239 | F45: 328 | G45: 1911 | H45: 15 | I45: 2823381200 | J45: 2800296163 | K45: 28665 | L45: 0.001015272043
A46: =Control!A89 -> South Wairarapa district | B46: =Control!B89 -> South Wairarapa district | C46: =Control!C89 -> Business | D46: =Control!D89 -> South Wairarapa districtBusiness | E46: 320 | F46: 0 | G46: 320 | H46: Remainder | I46: 402740000 | J46: 390205682.8 | K46: 25464.37421 | L46: 0.006322782492
A47: =Control!A90 -> South Wairarapa district | B47: =Control!B90 -> South Wairarapa district | C47: =Control!C90 -> Residential | D47: =Control!D90 -> South Wairarapa districtResidential | E47: 3355 | F47: 89 | G47: 3266 | H47: 15 | I47: 2562801500 | J47: 2483040446 | K47: 48990 | L47: 0.001911579964
A48: =Control!A91 -> South Wairarapa district | B48: =Control!B91 -> South Wairarapa district | C48: =Control!C91 -> Rural | D48: =Control!D91 -> South Wairarapa districtRural | E48: 3361 | F48: 267 | G48: 3094 | H48: 15 | I48: 4925541550 | J48: 4772245875 | K48: 46410 | L48: 0.0009422314182
A49: =Control!A92 -> Tararua district | B49: =Control!B92 -> Tararua district | C49: =Control!C92 -> Rural | D49: =Control!D92 -> Tararua districtRural | E49: 11 | F49: 0 | G49: 11 | H49: 15 | I49: 20442000 | J49: 21568275 | K49: 165 | L49: 0.0008071617259
A50: Region wide | E50: =SUM(E23:E49) -> 213243 | F50: =SUM(F23:F49) -> 1832 | G50: =SUM(G23:G49) -> 211411 | I50: =SUM(I23:I49) -> 239512083350 | J50: =SUM(J23:J49) -> 2.181923843e+11 | K50: =INDEX(ess_base_estract,MATCH(K6,ESSbase!$B$8:$B$25,0),MATCH(year_current,ESSbase!$F$6:$G$6,0)) -> 4995999.85
A52: Check TA totals | I52: =INDEX(capital_values,MATCH("Region wide",capital_values_rows,0),MATCH(I6&" "&year_current,capital_values_header,0))-SUM(I10:I18) -> 0 | J52: =INDEX(capital_values,MATCH("Region wide",capital_values_rows,0),MATCH(J6&" "&year_current,capital_values_header,0))-SUM(J10:J18) -> 0 | K52: =INDEX(ess_base_estract,MATCH(K6,ESSbase!$B$8:$B$25,0),MATCH(year_current,ESSbase!$F$6:$G$6,0))-SUM(K10:K18) -> 0
A53: Check category totals | E53: =INDEX(assessments,MATCH("region wide",assessments_rows,0),MATCH("CV assessments "&year_current,assessments_header,0))-SUM(E23:E49) -> 0 | F53: =INDEX(assessments_contiguous,MATCH("region wide",assessments_contiguous_rows,0),MATCH("Contiguous assements "&year_current,assessments_contiguous_header,0))-SUM(F23:F49) -> 0 | G53: =G50-SUM(G23:G49) -> 0 | I53: =INDEX(capital_values,MATCH("Region wide",capital_values_rows,0),MATCH(I6&" "&year_current,capital_values_header,0))-SUM(I23:I49) -> 0 | J53: =INDEX(capital_values,MATCH("Region wide",capital_values_rows,0),MATCH(J6&" "&year_current,capital_values_header,0))-SUM(J23:J49) -> 0 | K53: =INDEX(ess_base_estract,MATCH(K6,ESSbase!$B$8:$B$25,0),MATCH(year_current,ESSbase!$F$6:$G$6,0))-SUM(K23:K49) -> 0
A54: Category matches TA | I54: =I50-I19 -> 0 | J54: =J50-J19 -> 0 | K54: =K50-K19 -> 0

Sheet Public transport
A1: Wellington Regional Council
A2: ="Public transport rate "&year_current -> Public transport rate 2024/25
A3: Printed: | B3: =NOW() -> 2024-08-15T13:49:01.710
A4: =check_total -> 0
A6: =Control!A40 -> TA full name | C6: =Control!B40 -> Category group | D6: =Control!C40 -> Concatenated row | E6: ="CV" -> CV | F6: ECV | G6: Differential | H6: ECV multiplied | I6: Public transport rate | J6: Rates sought
E7: $ | F7: $ | G7: # | H7: # | I7: $ | J7: Cents/$
A9: By TA
A10: =Control!A41 -> Wellington city | C10: =Control!B41 -> District wide | D10: =Control!C41 -> Wellington cityDistrict wide | E10: =INDEX(capital_values,MATCH($D10,capital_values_rows,0),MATCH(E$6&" "&year_current,capital_values_header,0)) -> 117326906550 | F10: 99003634434 | I10: =SUMIF($A$23:$A$49,$A10,$I$23:$I$49) -> 85197041.6
A11: =Control!A42 -> Hutt city | C11: =Control!B42 -> District wide | D11: =Control!C42 -> Hutt cityDistrict wide | E11: 39707176000 | F11: 38393867363 | I11: 20591768.36
A12: =Control!A43 -> Upper Hutt city | C12: =Control!B43 -> District wide | D12: =Control!C43 -> Upper Hutt cityDistrict wide | E12: 16856900350 | F12: 15516301703 | I12: 7605776.258
A13: =Control!A44 -> Porirua city | C13: =Control!B44 -> District wide | D13: =Control!C44 -> Porirua cityDistrict wide | E13: 19409983800 | F13: 18992714263 | I13: 9503672.137
A14: =Control!A45 -> Kāpiti Coast district | C14: =Control!B45 -> District wide | D14: =Control!C45 -> Kāpiti Coast districtDistrict wide | E14: 23142666100 | F14: 23073590904 | I14: 10361912.34
A15: =Control!A46 -> Masterton district | C15: =Control!B46 -> District wide | D15: =Control!C46 -> Masterton districtDistrict wide | E15: 10529984800 | F15: 10956106252 | I15: 2385101.848
A16: =Control!A47 -> Carterton district | C16: =Control!B47 -> District wide | D16: =Control!C47 -> Carterton districtDistrict wide | E16: 4626940700 | F16: 4589109075 | I16: 858764.898
A17: =Control!A48 -> South Wairarapa district | C17: =Control!B48 -> District wide | D17: =Control!C48 -> South Wairarapa districtDistrict wide | E17: 7891083050 | F17: 7645492004 | I17: 1432820.377
A18: =Control!A49 -> Tararua district | C18: =Control!B49 -> District wide | D18: =Control!C49 -> Tararua districtDistrict wide | E18: 20442000 | F18: 21568275 | I18: 0
A19: Region wide | E19: =SUM(E10:E18) -> 239512083350 | F19: =SUM(F10:F18) -> 218192384273 | I19: =SUM(I10:I18) -> 137936857.8
A22: By TA & Category
A23: =Control!A66 -> Wellington city | B23: =Control!B66 -> Wellington city | C23: =Control!C66 -> Wellington CBD | D23: =Control!D66 -> Wellington cityWellington CBD | E23: =INDEX(capital_values,MATCH($D23,capital_values_rows,0),MATCH(E$6&" "&year_current,capital_values_header,0)) -> 13368376300 | F23: 1.128059947e+10 | G23: =INDEX(PT_differentials,MATCH($D23,Concat_rating_category,0),) -> 7 | H23: =F23*G23 -> 7.896419631e+10 | I23: =I$50*H23/H$50 -> 40053106.49 | J23: =I23/E23*100 -> 0.2996108547
A24: =Control!A67 -> Wellington city | B24: =Control!B67 -> Wellington city | C24: =Control!C67 -> Business | D24: =Control!D67 -> Wellington cityBusiness | E24: 6480398350 | F24: 5468336361 | G24: =INDEX(PT_differentials,MATCH($D24,Concat_rating_category,0),) -> 1.4 | H24: 7655670906 | I24: 3883195.377 | J24: 0.05992217094
A25: =Control!A68 -> Wellington city | B25: =Control!B68 -> Wellington city | C25: =Control!C68 -> Residential | D25: =Control!D68 -> Wellington cityResidential | E25: 96040762550 | F25: 8.104180725e+10 | G25: 1 | H25: 8.104180725e+10 | I25: 41106935.64 | J25: 0.04280155067
A26: =Control!A69 -> Wellington city | B26: =Control!B69 -> Wellington city | C26: =Control!C69 -> Rural | D26: =Control!D69 -> Wellington cityRural | E26: 1437369350 | F26: 1212891347 | G26: 0.25 | H26: 303222836.6 | I26: 153804.0927 | J26: 0.01070038767
A27: =Control!A70 -> Hutt city | B27: =Control!B70 -> Hutt city | C27: =Control!C70 -> Business | D27: =Control!D70 -> Hutt cityBusiness | E27: 6742241000 | F27: 6519242433 | G27: 1.4 | H27: 9126939407 | I27: 4629468.709 | J27: 0.06866364921
A28: =Control!A71 -> Hutt city | B28: =Control!B71 -> Hutt city | C28: =Control!C71 -> Residential | D28: =Control!D71 -> Hutt cityResidential | E28: 32406254500 | F28: 3.13344227e+10 | G28: 1 | H28: 3.13344227e+10 | I28: 15893797.79 | J28: 0.04904546372
A29: =Control!A72 -> Hutt city | B29: =Control!B72 -> Hutt city | C29: =Control!C72 -> Rural | D29: =Control!D72 -> Hutt cityRural | E29: 558680500 | F29: 540202229.8 | G29: 0.25 | H29: =F29*G29 -> 135050557.5 | I29: =I$50*H29/H$50 -> 68501.86049 | J29: =I29/E29*100 -> 0.01226136593
A30: =Control!A73 -> Upper Hutt city | B30: =Control!B73 -> Upper Hutt city | C30: =Control!C73 -> Business | D30: =Control!D73 -> Upper Hutt cityBusiness | E30: 2074242950 | F30: 1909282178 | G30: 1.4 | H30: 2672995049 | I30: 1355826.569 | J30: 0.06536488742
A31: =Control!A74 -> Upper Hutt city | B31: =Control!B74 -> Upper Hutt city | C31: =Control!C74 -> Residential | D31: =Control!D74 -> Upper Hutt cityResidential | E31: 12920826400 | F31: 1.189325656e+10 | G31: 1 | H31: 1.189325656e+10 | I31: 6032631.164 | J31: 0.0466892053
A32: =Control!A75 -> Upper Hutt city | B32: =Control!B75 -> Upper Hutt city | C32: =Control!C75 -> Rural | D32: =Control!D75 -> Upper Hutt cityRural | E32: 1861831000 | F32: 1713762964 | G32: 0.25 | H32: 428440741.1 | I32: 217318.5245 | J32: 0.01167230132
A33: =Control!A76 -> Porirua city | B33: =Control!B76 -> Porirua city | C33: =Control!C76 -> Business | D33: =Control!D76 -> Porirua cityBusiness | E33: 1752175500 | F33: 1714507799 | G33: 1.4 | H33: 2400310919 | I33: 1217512.662 | J33: 0.06948577137
A34: =Control!A77 -> Porirua city | B34: =Control!B77 -> Porirua city | C34: =Control!C77 -> Residential | D34: =Control!D77 -> Porirua cityResidential | E34: 16374013500 | F34: 1.602201027e+10 | G34: 1 | H34: 1.602201027e+10 | I34: 8126863.989 | J34: 0.04963269384
A35: =Control!A78 -> Porirua city | B35: =Control!B78 -> Porirua city | C35: =Control!C78 -> Rural | D35: =Control!D78 -> Porirua cityRural | E35: 1283794800 | F35: 1256196196 | G35: 0.25 | H35: 314049048.9 | I35: 159295.4856 | J35: 0.01240817346
A36: =Control!A79 -> Kāpiti Coast district | B36: =Control!B79 -> Kāpiti Coast district | C36: =Control!C79 -> Business | D36: =Control!D79 -> Kāpiti Coast districtBusiness | E36: 2118502900 | F36: 2112179687 | G36: 1.4 | H36: 2957051562 | I36: 1499908.904 | J36: 0.07080041776
A37: =Control!A80 -> Kāpiti Coast district | B37: =Control!B80 -> Kāpiti Coast district excl Ōtaki | C37: =Control!C80 -> Residential | D37: =Control!D80 -> Kāpiti Coast district excl Ōtaki Residential | E37: 15678065400 | F37: 1.563127021e+10 | G37: 1 | H37: 1.563127021e+10 | I37: 7928668.429 | J37: 0.05057172697
A38: =Control!A81 -> Kāpiti Coast district | B38: =Control!B81 -> Ōtaki rating area | C38: =Control!C81 -> Residential | D38: =Control!D81 -> Ōtaki rating areaResidential | E38: 2036169400 | F38: 2030091933 | G38: 0.5 | H38: 1015045966 | I38: 514863.0149 | J38: 0.02528586349
A39: =Control!A82 -> Kāpiti Coast district | B39: =Control!B82 -> Kāpiti Coast district | C39: =Control!C82 -> Rural | D39: =Control!D82 -> Kāpiti Coast districtRural | E39: 3309928400 | F39: 3300049074 | G39: 0.25 | H39: 825012268.4 | I39: 418471.9884 | J39: 0.01264293174
A40: =Control!A83 -> Masterton district | B40: =Control!B83 -> Masterton district | C40: =Control!C83 -> Business | D40: =Control!D83 -> Masterton districtBusiness | E40: 954405000 | F40: 993027320.2 | G40: 1 | H40: 993027320.2 | I40: 503694.4699 | J40: 0.05277575766
A41: =Control!A84 -> Masterton district | B41: =Control!B84 -> Masterton district | C41: =Control!C84 -> Residential | D41: =Control!D84 -> Masterton districtResidential | E41: 4684053500 | F41: 4873605120 | G41: 0.5 | H41: 2436802560 | I41: 1236022.362 | J41: 0.02638787883
A42: =Control!A85 -> Masterton district | B42: =Control!B85 -> Masterton district | C42: =Control!C85 -> Rural | D42: =Control!D85 -> Masterton districtRural | E42: 4891526300 | F42: 5089473812 | G42: 0.25 | H42: 1272368453 | I42: 645385.0165 | J42: 0.01319393942
A43: =Control!A86 -> Carterton district | B43: =Control!B86 -> Carterton district | C43: =Control!C86 -> Business | D43: =Control!D86 -> Carterton districtBusiness | E43: 198752500 | F43: 197127424.1 | G43: 1 | H43: 197127424.1 | I43: 99989.18594 | J43: 0.05030839156
A44: =Control!A87 -> Carterton district | B44: =Control!B87 -> Carterton district | C44: =Control!C87 -> Residential | D44: =Control!D87 -> Carterton districtResidential | E44: 1604807000 | F44: 1591685488 | G44: 0.5 | H44: 795842744.1 | I44: 403676.2947 | J44: 0.02515419578
A45: =Control!A88 -> Carterton district | B45: =Control!B88 -> Carterton district | C45: =Control!C88 -> Rural | D45: =Control!D88 -> Carterton districtRural | E45: 2823381200 | F45: 2800296163 | G45: 0.25 | H45: 700074040.7 | I45: 355099.4173 | J45: 0.01257709789
A46: =Control!A89 -> South Wairarapa district | B46: =Control!B89 -> South Wairarapa district | C46: =Control!C89 -> Business | D46: =Control!D89 -> South Wairarapa districtBusiness | E46: 402740000 | F46: 390205682.8 | G46: 1 | H46: 390205682.8 | I46: 197924.5088 | J46: 0.04914448746
A47: =Control!A90 -> South Wairarapa district | B47: =Control!B90 -> South Wairarapa district | C47: =Control!C90 -> Residential | D47: =Control!D90 -> South Wairarapa districtResidential | E47: 2562801500 | F47: 2483040446 | G47: 0.5 | H47: 1241520223 | I47: 629737.8309 | J47: 0.02457224373
A48: =Control!A91 -> South Wairarapa district | B48: =Control!B91 -> South Wairarapa district | C48: =Control!C91 -> Rural | D48: =Control!D91 -> South Wairarapa districtRural | E48: 4925541550 | F48: 4772245875 | G48: 0.25 | H48: 1193061469 | I48: 605158.0373 | J48: 0.01228612186
A49: =Control!A92 -> Tararua district | B49: =Control!B92 -> Tararua district | C49: =Control!C92 -> Rural | D49: =Control!D92 -> Tararua districtRural | E49: 20442000 | F49: 21568275 | G49: 0 | H49: 0 | I49: 0 | J49: 0
A50: Region wide | E50: =SUM(E23:E49) -> 239512083350 | F50: =SUM(F23:F49) -> 2.181923843e+11 | H50: =SUM(H23:H49) -> 2.719407825e+11 | I50: =INDEX(ess_base_estract,MATCH(I6,ESSbase!$B$8:$B$25,0),MATCH(year_current,ESSbase!$F$6:$G$6,0)) -> 137936857.8
A53: Upper Hutt breakdown
A54: =$A$12 -> Upper Hutt city | B54: Trentham Military Camp | C54: Business | D54: =B54&C54 -> Trentham Military CampBusiness | E54: =SUMIFS('UHCC Adjustments'!$D$9:$D$27,'UHCC Adjustments'!$B$9:$B$27,C54,'UHCC Adjustments'!$C$9:$C$27,B54) -> 95597000 | I54: =SUMIFS($I$23:$I$49,$A$23:$A$49,A54,$C$23:$C$49,C54) * IF(B54="Trentham Military Camp", INDEX('UHCC Adjustments'!$E$30:$E$34,MATCH(C54,'UHCC Adjustments'!$B$30:$B$34,0),), 1-INDEX('UHCC Adjustments'!$E$30:$E$34,MATCH(C54,'UHCC Adjustments'!$B$30:$B$34,0),)) -> 93853.77458 | J54: =I54/E54*100 -> 0.09817648523
A55: Upper Hutt city | B55: Rest of Upper Hutt City | C55: Business | D55: Rest of Upper Hutt CityBusiness | E55: =SUMIFS('UHCC Adjustments'!$D$9:$D$27,'UHCC Adjustments'!$B$9:$B$27,C55,'UHCC Adjustments'!$C$9:$C$27,B55) -> 1978645950 | I55: =SUMIFS($I$23:$I$49,$A$23:$A$49,A55,$C$23:$C$49,C55) * IF(B55="Trentham Military Camp", INDEX('UHCC Adjustments'!$E$30:$E$34,MATCH(C55,'UHCC Adjustments'!$B$30:$B$34,0),), 1-INDEX('UHCC Adjustments'!$E$30:$E$34,MATCH(C55,'UHCC Adjustments'!$B$30:$B$34,0),)) -> 1261972.794 | J55: 0.06377961628
A56: Upper Hutt city | B56: Trentham Military Camp | C56: Residential | D56: Trentham Military CampResidential | E56: =SUMIFS('UHCC Adjustments'!$D$9:$D$27,'UHCC Adjustments'!$B$9:$B$27,C56,'UHCC Adjustments'!$C$9:$C$27,B56) -> 44959000 | I56: =SUMIFS($I$23:$I$49,$A$23:$A$49,A56,$C$23:$C$49,C56) * IF(B56="Trentham Military Camp", INDEX('UHCC Adjustments'!$E$30:$E$34,MATCH(C56,'UHCC Adjustments'!$B$30:$B$34,0),), 1-INDEX('UHCC Adjustments'!$E$30:$E$34,MATCH(C56,'UHCC Adjustments'!$B$30:$B$34,0),)) -> 18192.51052 | J56: 0.04046466897
A57: Upper Hutt city | B57: Rest of Upper Hutt City | C57: Residential | D57: Rest of Upper Hutt CityResidential | E57: =SUMIFS('UHCC Adjustments'!$D$9:$D$27,'UHCC Adjustments'!$B$9:$B$27,C57,'UHCC Adjustments'!$C$9:$C$27,B57) -> 12875867400 | I57: =SUMIFS($I$23:$I$49,$A$23:$A$49,A57,$C$23:$C$49,C57) * IF(B57="Trentham Military Camp", INDEX('UHCC Adjustments'!$E$30:$E$34,MATCH(C57,'UHCC Adjustments'!$B$30:$B$34,0),), 1-INDEX('UHCC Adjustments'!$E$30:$E$34,MATCH(C57,'UHCC Adjustments'!$B$30:$B$34,0),)) -> 6014438.654 | J57: 0.04671093967
A58: Upper Hutt city | B58: Trentham Military Camp | C58: Rural | D58: Trentham Military CampRural | E58: =SUMIFS('UHCC Adjustments'!$D$9:$D$27,'UHCC Adjustments'!$B$9:$B$27,C58,'UHCC Adjustments'!$C$9:$C$27,B58) -> 9304000 | I58: =SUMIFS($I$23:$I$49,$A$23:$A$49,A58,$C$23:$C$49,C58) * IF(B58="Trentham Military Camp", INDEX('UHCC Adjustments'!$E$30:$E$34,MATCH(C58,'UHCC Adjustments'!$B$30:$B$34,0),), 1-INDEX('UHCC Adjustments'!$E$30:$E$34,MATCH(C58,'UHCC Adjustments'!$B$30:$B$34,0),)) -> 1350.509477 | J58: 0.01451536411
A59: Upper Hutt city | B59: Rest of Upper Hutt City | C59: Rural | D59: Rest of Upper Hutt CityRural | E59: =SUMIFS('UHCC Adjustments'!$D$9:$D$27,'UHCC Adjustments'!$B$9:$B$27,C59,'UHCC Adjustments'!$C$9:$C$27,B59) -> 1852527000 | I59: =SUMIFS($I$23:$I$49,$A$23:$A$49,A59,$C$23:$C$49,C59) * IF(B59="Trentham Military Camp", INDEX('UHCC Adjustments'!$E$30:$E$34,MATCH(C59,'UHCC Adjustments'!$B$30:$B$34,0),), 1-INDEX('UHCC Adjustments'!$E$30:$E$34,MATCH(C59,'UHCC Adjustments'!$B$30:$B$34,0),)) -> 215968.015 | J59: 0.01165802253
A60: Total | E60: =SUM(E54:E59) -> 16856900350 | I60: =SUM(I54:I59) -> 7605776.258
A63: Check Upper Hutt total | E63: =E60-E12 -> 0 | I63: =I60-I12 -> 0
A64: Check TA totals | E64: =INDEX(capital_values,MATCH("Region wide",capital_values_rows,0),MATCH(E6&" "&year_current,capital_values_header,0))-SUM(E10:E18) -> 0 | F64: =INDEX(capital_values,MATCH("Region wide",capital_values_rows,0),MATCH(F6&" "&year_current,capital_values_header,0))-SUM(F10:F18) -> 0 | I64: =INDEX(ess_base_estract,MATCH(I6,ESSbase!$B$8:$B$25,0),MATCH(year_current,ESSbase!$F$6:$G$6,0))-SUM(I10:I18) -> 0
A65: Check category totals | E65: =INDEX(capital_values,MATCH("Region wide",capital_values_rows,0),MATCH(E6&" "&year_current,capital_values_header,0))-SUM(E23:E49) -> 0 | F65: =INDEX(capital_values,MATCH("Region wide",capital_values_rows,0),MATCH(F6&" "&year_current,capital_values_header,0))-SUM(F23:F49) -> 0 | H65: =H50-SUM(H23:H49) -> 0 | I65: =INDEX(ess_base_estract,MATCH(I6,ESSbase!$B$8:$B$25,0),MATCH(year_current,ESSbase!$F$6:$G$6,0))-SUM(I23:I49) -> 0
A66: Category matches TA | E66: =E50-E19 -> 0 | F66: =F50-F19 -> 0 | I66: =I50-I19 -> 0

Sheet >>Other rates & levies

Sheet Water levy
A1: Wellington Regional Council
A2: ="Water supply levy "&year_current -> Water supply levy 2024/25
A3: Printed : | B3: =NOW() -> 2024-08-15T13:49:01.710
A4: =check_total -> 0
B6: Share | C6: Bulk Water Levies
B7: % | C7: $
A9: By TA
A10: Wellington city | B10: =INDEX(Control!$B$163:$B$171,MATCH(A10,Control!$A$163:$A$171,0),) -> 0.5037866963 | C10: =B10*$C$19 -> 34122161.23
A11: Hutt city | B11: =INDEX(Control!$B$163:$B$171,MATCH(A11,Control!$A$163:$A$171,0),) -> 0.2689228642 | C11: =B11*$C$19 -> 18214513
A12: Upper Hutt city | B12: =INDEX(Control!$B$163:$B$171,MATCH(A12,Control!$A$163:$A$171,0),) -> 0.1149957757 | C12: =B12*$C$19 -> 7788821
A13: Porirua city | B13: =INDEX(Control!$B$163:$B$171,MATCH(A13,Control!$A$163:$A$171,0),) -> 0.1122946638 | C13: =B13*$C$19 -> 7605871
A14: Kāpiti Coast district | B14: =INDEX(Control!$B$163:$B$171,MATCH(A14,Control!$A$163:$A$171,0),) -> 0 | C14: 0
A15: Masterton district | B15: =INDEX(Control!$B$163:$B$171,MATCH(A15,Control!$A$163:$A$171,0),) -> 0 | C15: 0
A16: Carterton district | B16: =INDEX(Control!$B$163:$B$171,MATCH(A16,Control!$A$163:$A$171,0),) -> 0 | C16: 0
A17: South Wairarapa district | B17: =INDEX(Control!$B$163:$B$171,MATCH(A17,Control!$A$163:$A$171,0),) -> 0 | C17: 0
A18: Tararua district | B18: =INDEX(Control!$B$163:$B$171,MATCH(A18,Control!$A$163:$A$171,0),) -> 0 | C18: =B18*$C$19 -> 0
A19: Region wide | B19: =SUM(B10:B18) -> 1 | C19: =INDEX(ess_base_estract,MATCH(C6,ESSbase!$B$8:$B$25,0),MATCH(year_current,ESSbase!$F$6:$G$6,0)) -> 67731366.23
A21: Checks | B21: =1-B19 -> 0 | C21: =ROUND(SUM(C19-SUM(C10:C18)),0) -> 0

Sheet >>Output tabs

Sheet Comparison - TA
A1: Comparison of proposed vs current
A2: =check_total -> 0
A4: =year_previous&" rates" -> 2023/24 rates
B5: TA
B6: Wellington city | C6: Hutt city | D6: Upper Hutt city | E6: Porirua city | F6: Kāpiti Coast district | G6: Masterton District | H6: Carterton District | I6: South Wairarapa District | J6: Tararua District | K6: Other | L6: Region wide
A7: General rate | B7: 35466726.06 | C7: 13342163.74 | D7: 5604887.521 | E7: 6468548.11 | F7: 8576280.35 | G7: 3900318.919 | H7: 1715884.278 | I7: 2896265.618 | J7: 7939.65334 | K7: 0 | L7: =INDEX(ess_base_estract,MATCH(A7,ESSbase!$B$8:$B$25,0),MATCH(year_previous,ESSbase!$F$6:$G$6,0)) -> 77979014.25 | M7: =ROUND(L7-SUM(B7:K7),-1) -> 0
A8: Remission of rates | B8: 0 | C8: 0 | D8: 0 | E8: 0 | F8: 0 | G8: 0 | H8: 0 | I8: 0 | J8: 0 | K8: 0 | L8: =INDEX(ess_base_estract,MATCH(A8,ESSbase!$B$8:$B$25,0),MATCH(year_previous,ESSbase!$F$6:$G$6,0)) -> 0 | M8: =ROUND(L8-SUM(B8:K8),-1) -> 0
A9: Public transport rate | B9: 70029425.52 | C9: 16439971.21 | D9: 6288941.781 | E9: 7421828.118 | F9: 8902112.007 | G9: 1953274.226 | H9: 730197.5648 | I9: 1243616.872 | J9: 0 | K9: 0 | L9: =INDEX(ess_base_estract,MATCH(A9,ESSbase!$B$8:$B$25,0),MATCH(year_previous,ESSbase!$F$6:$G$6,0)) -> 113009367.3 | M9: 0
A10: River management rate | B10: 65822.26 | C10: 8043451 | D10: 1071377 | E10: 48031.4 | F10: 1529637.21 | G10: 0 | H10: 26344.84 | I10: 0 | J10: 0 | K10: 0 | L10: =INDEX(ess_base_estract,MATCH(A10,ESSbase!$B$8:$B$25,0),MATCH(year_previous,ESSbase!$F$6:$G$6,0)) -> 10784664.15 | M10: =ROUND(L10-SUM(B10:K10),-1) -> 0
A11: Stadium purposes rate | B11: 0 | C11: 0 | D11: 0 | E11: 0 | F11: 0 | G11: 0 | H11: 0 | I11: 0 | J11: 0 | K11: 0 | L11: =INDEX(ess_base_estract,MATCH(A11,ESSbase!$B$8:$B$25,0),MATCH(year_previous,ESSbase!$F$6:$G$6,0)) -> 0 | M11: 0
A12: Economic development rate | B12: 2122307.725 | C12: 957977.5858 | D12: 364056.8691 | E12: 382644.6149 | F12: 486941.9333 | G12: 236344.9681 | H12: 77387.3242 | I12: 115672.5094 | J12: 165 | K12: 0 | L12: =INDEX(ess_base_estract,MATCH(A12,ESSbase!$B$8:$B$25,0),MATCH(year_previous,ESSbase!$F$6:$G$6,0)) -> 4743498.53 | M12: 0
A13: District-Wide Rates | B13: =SUM(B7:B12) -> 107684281.6 | C13: 38783563.54 | D13: 13329263.17 | E13: 14321052.24 | F13: 19494971.5 | G13: 6089938.112 | H13: 2549814.007 | I13: 4255555 | J13: 8104.65334 | K13: 0 | L13: =INDEX(ess_base_estract,MATCH(A13,ESSbase!$B$8:$B$25,0),MATCH(year_previous,ESSbase!$F$6:$G$6,0)) -> 206516544.2 | M13: =ROUND(L13-SUM(B13:K13),-1) -> 0
A14: Rates Penalties | B14: 0 | C14: 0 | D14: 0 | E14: 0 | F14: 0 | G14: 0 | H14: 0 | I14: 0 | J14: 0 | K14: 0 | L14: =INDEX(ess_base_estract,MATCH(A14,ESSbase!$B$8:$B$25,0),MATCH(year_previous,ESSbase!$F$6:$G$6,0)) -> 0 | M14: 0
A15: Remission of Rates Penalties | B15: 0 | C15: 0 | D15: 0 | E15: 0 | F15: 0 | G15: 0 | H15: 0 | I15: 0 | J15: 0 | K15: 0 | L15: =INDEX(ess_base_estract,MATCH(A15,ESSbase!$B$8:$B$25,0),MATCH(year_previous,ESSbase!$F$6:$G$6,0)) -> 0 | M15: 0
A16: Pest management rate | B16: 0 | C16: 0 | D16: 0 | E16: 0 | F16: 0 | G16: 0 | H16: 0 | I16: 0 | J16: 0 | K16: 0 | L16: =INDEX(ess_base_estract,MATCH(A16,ESSbase!$B$8:$B$25,0),MATCH(year_previous,ESSbase!$F$6:$G$6,0)) -> 0 | M16: =ROUND(L16-SUM(B16:K16),-1) -> 0
A17: River management rate - Non district wide | B17: 0 | C17: 0 | D17: 0 | E17: 0 | F17: 0 | G17: 0 | H17: 0 | I17: 101615.5 | J17: 0 | K17: 0 | L17: =INDEX(ess_base_estract,MATCH(A17,ESSbase!$B$8:$B$25,0),MATCH(year_previous,ESSbase!$F$6:$G$6,0)) -> 101615.5 | M17: 0
A18: Special rates | B18: 0 | C18: 0 | D18: 0 | E18: 0 | F18: 0 | G18: 0 | H18: 0 | I18: 0 | J18: 0 | K18: 1858215.177 | L18: =INDEX(ess_base_estract,MATCH(A18,ESSbase!$B$8:$B$25,0),MATCH(year_previous,ESSbase!$F$6:$G$6,0)) -> 1858215.18 | M18: 0
A19: Total Other Rates | B19: =SUM(B14:B18) -> 0 | C19: 0 | D19: 0 | E19: 0 | F19: 0 | G19: 0 | H19: 0 | I19: 101615.5 | J19: 0 | K19: 1858215.177 | L19: =INDEX(ess_base_estract,MATCH(A19,ESSbase!$B$8:$B$25,0),MATCH(year_previous,ESSbase!$F$6:$G$6,0)) -> 1959830.68 | M19: 0
A20: Total Regnl Rates | B20: =SUM(B19,B13) -> 107684281.6 | C20: 38783563.54 | D20: 13329263.17 | E20: 14321052.24 | F20: 19494971.5 | G20: 6089938.112 | H20: 2549814.007 | I20: 4357170.5 | J20: 8104.65334 | K20: 1858215.177 | L20: =INDEX(ess_base_estract,MATCH(A20,ESSbase!$B$8:$B$25,0),MATCH(year_previous,ESSbase!$F$6:$G$6,0)) -> 208476374.9 | M20: 0
A21: Bulk Water Levies | B21: 26268095.83 | C21: 14309063.76 | D21: 6187300.321 | E21: 6375180.36 | F21: 0 | G21: 0 | H21: 0 | I21: 0 | J21: 0 | K21: 0 | L21: =INDEX(ess_base_estract,MATCH(A21,ESSbase!$B$8:$B$25,0),MATCH(year_previous,ESSbase!$F$6:$G$6,0)) -> 53139640.27 | M21: 0
A22: Total Regnl Rates & levies | B22: =SUM(B20:B21) -> 133952377.4 | C22: =SUM(C20:C21) -> 53092627.3 | D22: 19516563.49 | E22: 20696232.6 | F22: 19494971.5 | G22: 6089938.112 | H22: 2549814.007 | I22: 4357170.5 | J22: 8104.65334 | K22: 1858215.177 | L22: =INDEX(ess_base_estract,MATCH(A22,ESSbase!$B$8:$B$25,0),MATCH(year_previous,ESSbase!$F$6:$G$6,0)) -> 261616015.2 | M22: 0
A23: Warm Greater Wellington rate | K23: 1138472.035 | L23: =INDEX(ess_base_estract,MATCH(A23,ESSbase!$B$8:$B$25,0),MATCH(year_previous,ESSbase!$F$6:$G$6,0)) -> 1138472.035 | M23: 0
A24: Total Rates & Levies | B24: =SUM(B22:B23) -> 133952377.4 | C24: 53092627.3 | D24: 19516563.49 | E24: 20696232.6 | F24: 19494971.5 | G24: 6089938.112 | H24: 2549814.007 | I24: 4357170.5 | J24: 8104.65334 | K24: 2996687.211 | L24: =INDEX(ess_base_estract,MATCH(A24,ESSbase!$B$8:$B$25,0),MATCH(year_previous,ESSbase!$F$6:$G$6,0)) -> 262754487.2 | M24: 0
A27: =year_current&" rates" -> 2024/25 rates
B28: TA
B29: Wellington city | C29: Hutt city | D29: Upper Hutt city | E29: Porirua city | F29: Kāpiti Coast district | G29: Masterton District | H29: Carterton District | I29: South Wairarapa district | J29: Tararua District | K29: Other | L29: Region wide
A30: General rate | B30: =IFERROR(INDEX(Gen!$D$10:$D$18,MATCH(B$29,Gen!$A$10:$A$18,0),),0) -> 42450779.79 | C30: =IFERROR(INDEX(Gen!$D$10:$D$18,MATCH(C$29,Gen!$A$10:$A$18,0),),0) -> 16462523 | D30: =IFERROR(INDEX(Gen!$D$10:$D$18,MATCH(D$29,Gen!$A$10:$A$18,0),),0) -> 6653080.066 | E30: =IFERROR(INDEX(Gen!$D$10:$D$18,MATCH(E$29,Gen!$A$10:$A$18,0),),0) -> 8143696.293 | F30: =IFERROR(INDEX(Gen!$D$10:$D$18,MATCH(F$29,Gen!$A$10:$A$18,0),),0) -> 9893494.638 | G30: =IFERROR(INDEX(Gen!$D$10:$D$18,MATCH(G$29,Gen!$A$10:$A$18,0),),0) -> 4697759.395 | H30: =IFERROR(INDEX(Gen!$D$10:$D$18,MATCH(H$29,Gen!$A$10:$A$18,0),),0) -> 1967718.255 | I30: =IFERROR(INDEX(Gen!$D$10:$D$18,MATCH(I$29,Gen!$A$10:$A$18,0),),0) -> 3278234.171 | J30: =IFERROR(INDEX(Gen!$D$10:$D$18,MATCH(J$29,Gen!$A$10:$A$18,0),),0) -> 9248.045263 | K30: =IFERROR(INDEX(Gen!$D$10:$D$18,MATCH(K$29,Gen!$A$10:$A$18,0),),0) -> 0 | L30: =INDEX(ess_base_estract,MATCH(A30,ESSbase!$B$8:$B$25,0),MATCH(year_current,ESSbase!$F$6:$G$6,0)) -> 93556533.65 | M30: =ROUND(L30-SUM(B30:K30),-1) -> 0
A31: Remission of rates | B31: =IFERROR(INDEX(Remission!$D$10:$D$18,MATCH(B$29,Remission!$A$10:$A$18,0),),0) -> 0 | C31: =IFERROR(INDEX(Remission!$D$10:$D$18,MATCH(C$29,Remission!$A$10:$A$18,0),),0) -> 0 | D31: =IFERROR(INDEX(Remission!$D$10:$D$18,MATCH(D$29,Remission!$A$10:$A$18,0),),0) -> 0 | E31: =IFERROR(INDEX(Remission!$D$10:$D$18,MATCH(E$29,Remission!$A$10:$A$18,0),),0) -> 0 | F31: =IFERROR(INDEX(Remission!$D$10:$D$18,MATCH(F$29,Remission!$A$10:$A$18,0),),0) -> 0 | G31: =IFERROR(INDEX(Remission!$D$10:$D$18,MATCH(G$29,Remission!$A$10:$A$18,0),),0) -> 0 | H31: =IFERROR(INDEX(Remission!$D$10:$D$18,MATCH(H$29,Remission!$A$10:$A$18,0),),0) -> 0 | I31: =IFERROR(INDEX(Remission!$D$10:$D$18,MATCH(I$29,Remission!$A$10:$A$18,0),),0) -> 0 | J31: =IFERROR(INDEX(Remission!$D$10:$D$18,MATCH(J$29,Remission!$A$10:$A$18,0),),0) -> 0 | K31: 0 | L31: =INDEX(ess_base_estract,MATCH(A31,ESSbase!$B$8:$B$25,0),MATCH(year_current,ESSbase!$F$6:$G$6,0)) -> 0 | M31: 0
A32: Public transport rate | B32: =IFERROR(INDEX('Public transport'!$I$10:$I$18,MATCH(B$29,'Public transport'!$A$10:$A$18,0),),0) -> 85197041.6 | C32: =IFERROR(INDEX('Public transport'!$I$10:$I$18,MATCH(C$29,'Public transport'!$A$10:$A$18,0),),0) -> 20591768.36 | D32: =IFERROR(INDEX('Public transport'!$I$10:$I$18,MATCH(D$29,'Public transport'!$A$10:$A$18,0),),0) -> 7605776.258 | E32: =IFERROR(INDEX('Public transport'!$I$10:$I$18,MATCH(E$29,'Public transport'!$A$10:$A$18,0),),0) -> 9503672.137 | F32: =IFERROR(INDEX('Public transport'!$I$10:$I$18,MATCH(F$29,'Public transport'!$A$10:$A$18,0),),0) -> 10361912.34 | G32: =IFERROR(INDEX('Public transport'!$I$10:$I$18,MATCH(G$29,'Public transport'!$A$10:$A$18,0),),0) -> 2385101.848 | H32: =IFERROR(INDEX('Public transport'!$I$10:$I$18,MATCH(H$29,'Public transport'!$A$10:$A$18,0),),0) -> 858764.898 | I32: =IFERROR(INDEX('Public transport'!$I$10:$I$18,MATCH(I$29,'Public transport'!$A$10:$A$18,0),),0) -> 1432820.377 | J32: =IFERROR(INDEX('Public transport'!$I$10:$I$18,MATCH(J$29,'Public transport'!$A$10:$A$18,0),),0) -> 0 | K32: =IFERROR(INDEX('Public transport'!$I$10:$I$18,MATCH(K$29,'Public transport'!$A$10:$A$18,0),),0) -> 0 | L32: =INDEX(ess_base_estract,MATCH(A32,ESSbase!$B$8:$B$25,0),MATCH(year_current,ESSbase!$F$6:$G$6,0)) -> 137936857.8 | M32: 0
A33: River management rate | B33: =IFERROR(INDEX('River management'!$C$10:$C$18,MATCH(B$29,'River management'!$A$10:$A$18,0),),0) -> 265571.54 | C33: =IFERROR(INDEX('River management'!$C$10:$C$18,MATCH(C$29,'River management'!$A$10:$A$18,0),),0) -> 8942063.71 | D33: =IFERROR(INDEX('River management'!$C$10:$C$18,MATCH(D$29,'River management'!$A$10:$A$18,0),),0) -> 1468314.42 | E33: =IFERROR(INDEX('River management'!$C$10:$C$18,MATCH(E$29,'River management'!$A$10:$A$18,0),),0) -> 92070 | F33: =IFERROR(INDEX('River management'!$C$10:$C$18,MATCH(F$29,'River management'!$A$10:$A$18,0),),0) -> 1748053.49 | G33: =IFERROR(INDEX('River management'!$C$10:$C$18,MATCH(G$29,'River management'!$A$10:$A$18,0),),0) -> 0 | H33: =IFERROR(INDEX('River management'!$C$10:$C$18,MATCH(H$29,'River management'!$A$10:$A$18,0),),0) -> 27451.4 | I33: =IFERROR(INDEX('River management'!$C$10:$C$18,MATCH(I$29,'River management'!$A$10:$A$18,0),),0) -> 0 | J33: =IFERROR(INDEX('River management'!$C$10:$C$18,MATCH(J$29,'River management'!$A$10:$A$18,0),),0) -> 0 | K33: =IFERROR(INDEX('River management'!$C$10:$C$18,MATCH(K$29,'River management'!$A$10:$A$18,0),),0) -> 0 | L33: =INDEX(ess_base_estract,MATCH(A33,ESSbase!$B$8:$B$25,0),MATCH(year_current,ESSbase!$F$6:$G$6,0)) -> 12543524.56 | M33: 0
A34: Stadium purposes rate | B34: =IFERROR(INDEX(Stadium!$I$10:$I$18,MATCH(B$29,Stadium!$A$10:$A$18,0),),0) -> 0 | C34: =IFERROR(INDEX(Stadium!$I$10:$I$18,MATCH(C$29,Stadium!$A$10:$A$18,0),),0) -> 0 | D34: =IFERROR(INDEX(Stadium!$I$10:$I$18,MATCH(D$29,Stadium!$A$10:$A$18,0),),0) -> 0 | E34: =IFERROR(INDEX(Stadium!$I$10:$I$18,MATCH(E$29,Stadium!$A$10:$A$18,0),),0) -> 0 | F34: =IFERROR(INDEX(Stadium!$I$10:$I$18,MATCH(F$29,Stadium!$A$10:$A$18,0),),0) -> 0 | G34: =IFERROR(INDEX(Stadium!$I$10:$I$18,MATCH(G$29,Stadium!$A$10:$A$18,0),),0) -> 0 | H34: =IFERROR(INDEX(Stadium!$I$10:$I$18,MATCH(H$29,Stadium!$A$10:$A$18,0),),0) -> 0 | I34: =IFERROR(INDEX(Stadium!$I$10:$I$18,MATCH(I$29,Stadium!$A$10:$A$18,0),),0) -> 0 | J34: =IFERROR(INDEX(Stadium!$I$10:$I$18,MATCH(J$29,Stadium!$A$10:$A$18,0),),0) -> 0 | K34: =IFERROR(INDEX(Stadium!$I$10:$I$18,MATCH(K$29,Stadium!$A$10:$A$18,0),),0) -> 0 | L34: =INDEX(ess_base_estract,MATCH(A34,ESSbase!$B$8:$B$25,0),MATCH(year_current,ESSbase!$F$6:$G$6,0)) -> 0 | M34: 0
A35: Economic development rate | B35: =IFERROR(INDEX('Economic Development'!$K$10:$K$18,MATCH(B$29,'Economic Development'!$A$10:$A$18,0),),0) -> 2237351.295 | C35: =IFERROR(INDEX('Economic Development'!$K$10:$K$18,MATCH(C$29,'Economic Development'!$A$10:$A$18,0),),0) -> 1018658.265 | D35: =IFERROR(INDEX('Economic Development'!$K$10:$K$18,MATCH(D$29,'Economic Development'!$A$10:$A$18,0),),0) -> 382267.5597 | E35: =IFERROR(INDEX('Economic Development'!$K$10:$K$18,MATCH(E$29,'Economic Development'!$A$10:$A$18,0),),0) -> 401911.8077 | F35: =IFERROR(INDEX('Economic Development'!$K$10:$K$18,MATCH(F$29,'Economic Development'!$A$10:$A$18,0),),0) -> 504498.4178 | G35: =IFERROR(INDEX('Economic Development'!$K$10:$K$18,MATCH(G$29,'Economic Development'!$A$10:$A$18,0),),0) -> 249573.8212 | H35: =IFERROR(INDEX('Economic Development'!$K$10:$K$18,MATCH(H$29,'Economic Development'!$A$10:$A$18,0),),0) -> 80709.30904 | I35: =IFERROR(INDEX('Economic Development'!$K$10:$K$18,MATCH(I$29,'Economic Development'!$A$10:$A$18,0),),0) -> 120864.3742 | J35: =IFERROR(INDEX('Economic Development'!$K$10:$K$18,MATCH(J$29,'Economic Development'!$A$10:$A$18,0),),0) -> 165 | K35: =IFERROR(INDEX('Economic Development'!$K$10:$K$18,MATCH(K$29,'Economic Development'!$A$10:$A$18,0),),0) -> 0 | L35: =INDEX(ess_base_estract,MATCH(A35,ESSbase!$B$8:$B$25,0),MATCH(year_current,ESSbase!$F$6:$G$6,0)) -> 4995999.85 | M35: 0
A36: District-Wide Rates | B36: =SUM(B30:B35) -> 130150744.2 | C36: 47015013.34 | D36: 16109438.3 | E36: 18141350.24 | F36: 22507958.88 | G36: 7332435.065 | H36: 2934643.862 | I36: =SUM(I30:I35) -> 4831918.922 | J36: 9413.045263 | K36: 0 | L36: =INDEX(ess_base_estract,MATCH(A36,ESSbase!$B$8:$B$25,0),MATCH(year_current,ESSbase!$F$6:$G$6,0)) -> 249032915.9 | M36: 0
A37: Rates Penalties | B37: 0 | C37: 0 | D37: 0 | E37: 0 | F37: 0 | G37: 0 | H37: 0 | I37: 0 | J37: 0 | K37: 0 | L37: =INDEX(ess_base_estract,MATCH(A37,ESSbase!$B$8:$B$25,0),MATCH(year_current,ESSbase!$F$6:$G$6,0)) -> 0 | M37: 0
A38: Remission of Rates Penalties | B38: 0 | C38: 0 | D38: 0 | E38: 0 | F38: 0 | G38: 0 | H38: 0 | I38: 0 | J38: 0 | K38: 0 | L38: =INDEX(ess_base_estract,MATCH(A38,ESSbase!$B$8:$B$25,0),MATCH(year_current,ESSbase!$F$6:$G$6,0)) -> 0 | M38: 0
A39: Pest management rate | B39: =IFERROR(INDEX(#REF!,MATCH(B$29,#REF!,0),),0) -> 0 | C39: =IFERROR(INDEX(#REF!,MATCH(C$29,#REF!,0),),0) -> 0 | D39: =IFERROR(INDEX(#REF!,MATCH(D$29,#REF!,0),),0) -> 0 | E39: =IFERROR(INDEX(#REF!,MATCH(E$29,#REF!,0),),0) -> 0 | F39: =IFERROR(INDEX(#REF!,MATCH(F$29,#REF!,0),),0) -> 0 | G39: =IFERROR(INDEX(#REF!,MATCH(G$29,#REF!,0),),0) -> 0 | H39: =IFERROR(INDEX(#REF!,MATCH(H$29,#REF!,0),),0) -> 0 | I39: =IFERROR(INDEX(#REF!,MATCH(I$29,#REF!,0),),0) -> 0 | J39: =IFERROR(INDEX(#REF!,MATCH(J$29,#REF!,0),),0) -> 0 | K39: =IFERROR(INDEX(#REF!,MATCH(K$29,#REF!,0),),0) -> 0 | L39: =INDEX(ess_base_estract,MATCH(A39,ESSbase!$B$8:$B$25,0),MATCH(year_current,ESSbase!$F$6:$G$6,0)) -> 0 | M39: 0
A40: River management rate - Non district wide | B40: 0 | C40: 0 | D40: 0 | E40: 0 | F40: 0 | G40: 0 | H40: 0 | I40: ='River management'!C31 -> 101760.84 | J40: 0 | K40: 0 | L40: =INDEX(ess_base_estract,MATCH(A40,ESSbase!$B$8:$B$25,0),MATCH(year_current,ESSbase!$F$6:$G$6,0)) -> 101760.84 | M40: 0
A41: Special Rates | B41: 0 | C41: 0 | D41: 0 | E41: 0 | F41: 0 | G41: 0 | H41: 0 | I41: 0 | J41: 0 | K41: ='Class Rates'!B91 -> 2180019.56 | L41: =INDEX(ess_base_estract,MATCH(A41,ESSbase!$B$8:$B$25,0),MATCH(year_current,ESSbase!$F$6:$G$6,0)) -> 2180019.465 | M41: 0
A42: Total Other Rates | B42: =SUM(B37:B41) -> 0 | C42: 0 | D42: 0 | E42: 0 | F42: 0 | G42: 0 | H42: 0 | I42: 101760.84 | J42: 0 | K42: 2180019.56 | L42: =INDEX(ess_base_estract,MATCH(A42,ESSbase!$B$8:$B$25,0),MATCH(year_current,ESSbase!$F$6:$G$6,0)) -> 2281780.305 | M42: 0
A43: Total Regnl Rates | B43: =SUM(B42,B36) -> 130150744.2 | C43: 47015013.34 | D43: 16109438.3 | E43: 18141350.24 | F43: 22507958.88 | G43: 7332435.065 | H43: 2934643.862 | I43: =SUM(I42,I36) -> 4933679.762 | J43: 9413.045263 | K43: 2180019.56 | L43: =INDEX(ess_base_estract,MATCH(A43,ESSbase!$B$8:$B$25,0),MATCH(year_current,ESSbase!$F$6:$G$6,0)) -> 251314696.2 | M43: 0
A44: Bulk Water Levies | B44: =IFERROR(INDEX('Water levy'!$C$10:$C$18,MATCH('Comparison - TA'!B29,'Water levy'!$A$10:$A$18,0),),0) -> 34122161.23 | C44: =IFERROR(INDEX('Water levy'!$C$10:$C$18,MATCH('Comparison - TA'!C29,'Water levy'!$A$10:$A$18,0),),0) -> 18214513 | D44: =IFERROR(INDEX('Water levy'!$C$10:$C$18,MATCH('Comparison - TA'!D29,'Water levy'!$A$10:$A$18,0),),0) -> 7788821 | E44: =IFERROR(INDEX('Water levy'!$C$10:$C$18,MATCH('Comparison - TA'!E29,'Water levy'!$A$10:$A$18,0),),0) -> 7605871 | F44: =IFERROR(INDEX('Water levy'!$C$10:$C$18,MATCH('Comparison - TA'!F29,'Water levy'!$A$10:$A$18,0),),0) -> 0 | G44: =IFERROR(INDEX('Water levy'!$C$10:$C$18,MATCH('Comparison - TA'!G29,'Water levy'!$A$10:$A$18,0),),0) -> 0 | H44: =IFERROR(INDEX('Water levy'!$C$10:$C$18,MATCH('Comparison - TA'!H29,'Water levy'!$A$10:$A$18,0),),0) -> 0 | I44: =IFERROR(INDEX('Water levy'!$C$10:$C$18,MATCH('Comparison - TA'!I29,'Water levy'!$A$10:$A$18,0),),0) -> 0 | J44: =IFERROR(INDEX('Water levy'!$C$10:$C$18,MATCH('Comparison - TA'!J29,'Water levy'!$A$10:$A$18,0),),0) -> 0 | K44: =IFERROR(INDEX('Water levy'!$C$10:$C$18,MATCH('Comparison - TA'!K29,'Water levy'!$A$10:$A$18,0),),0) -> 0 | L44: =INDEX(ess_base_estract,MATCH(A44,ESSbase!$B$8:$B$25,0),MATCH(year_current,ESSbase!$F$6:$G$6,0)) -> 67731366.23 | M44: =ROUND(L44-SUM(B44:K44),-1) -> 0
A45: Total Regnl Rates & levies | B45: =SUM(B43:B44) -> 164272905.5 | C45: =SUM(C43:C44) -> 65229526.34 | D45: 23898259.3 | E45: 25747221.24 | F45: 22507958.88 | G45: 7332435.065 | H45: 2934643.862 | I45: 4933679.762 | J45: 9413.045263 | K45: 2180019.56 | L45: =INDEX(ess_base_estract,MATCH(A45,ESSbase!$B$8:$B$25,0),MATCH(year_current,ESSbase!$F$6:$G$6,0)) -> 319046062.4 | M45: =ROUND(L45-SUM(B45:K45),-1) -> 0
A46: Warm Greater Wellington rate | K46: =L46 -> 775399.48 | L46: =INDEX(ess_base_estract,MATCH(A46,ESSbase!$B$8:$B$25,0),MATCH(year_current,ESSbase!$F$6:$G$6,0)) -> 775399.48 | M46: =ROUND(L46-SUM(B46:K46),-1) -> 0
A47: Total Rates & Levies | B47: =SUM(B45:B46) -> 164272905.5 | C47: =SUM(C45:C46) -> 65229526.34 | D47: 23898259.3 | E47: 25747221.24 | F47: 22507958.88 | G47: 7332435.065 | H47: 2934643.862 | I47: 4933679.762 | J47: 9413.045263 | K47: 2955419.04 | L47: =INDEX(ess_base_estract,MATCH(A47,ESSbase!$B$8:$B$25,0),MATCH(year_current,ESSbase!$F$6:$G$6,0)) -> 319821461.9 | M47: =ROUND(L47-SUM(B47:K47),-1) -> 0
A50: Delta
B51: TA
B52: Wellington city | C52: Hutt city | D52: Upper Hutt city | E52: Porirua city | F52: Kāpiti Coast district | G52: Masterton District | H52: Carterton District | I52: South Wairarapa District | J52: Tararua District | K52: Other | L52: Region wide
A53: General rate | B53: =B30-B7 -> 6984053.728 | C53: 3120359.258 | D53: 1048192.545 | E53: 1675148.183 | F53: 1317214.287 | G53: 797440.4769 | H53: 251833.9769 | I53: 381968.5525 | J53: 1308.391923 | K53: 0 | L53: 15577519.4 | M53: =ROUND(L53-SUM(B53:K53),-1) -> 0
A54: Remission of rates | B54: =B31-B8 -> 0 | C54: 0 | D54: 0 | E54: 0 | F54: 0 | G54: 0 | H54: 0 | I54: 0 | J54: 0 | K54: 0 | L54: 0 | M54: 0
A55: Public transport rate | B55: =B32-B9 -> 15167616.09 | C55: 4151797.15 | D55: 1316834.476 | E55: 2081844.018 | F55: 1459800.329 | G55: 431827.6227 | H55: 128567.3332 | I55: 189203.5051 | J55: 0 | K55: 0 | L55: 24927490.52 | M55: 0
A56: River management rate | B56: =B33-B10 -> 199749.28 | C56: 898612.71 | D56: 396937.42 | E56: 44038.6 | F56: 218416.28 | G56: 0 | H56: 1106.56 | I56: 0 | J56: 0 | K56: 0 | L56: 1758860.41 | M56: =ROUND(L56-SUM(B56:K56),-1) -> 0
A57: Stadium purposes rate | B57: =B34-B11 -> 0 | C57: 0 | D57: 0 | E57: 0 | F57: 0 | G57: 0 | H57: 0 | I57: 0 | J57: 0 | K57: 0 | L57: 0 | M57: =ROUND(L57-SUM(B57:K57),-1) -> 0
A58: Economic development rate | B58: =B35-B12 -> 115043.5698 | C58: 60680.6797 | D58: 18210.69059 | E58: 19267.19275 | F58: 17556.48451 | G58: 13228.85301 | H58: 3321.98484 | I58: 5191.864775 | J58: 0 | K58: 0 | L58: 252501.32 | M58: =ROUND(L58-SUM(B58:K58),-1) -> 0
A59: District-Wide Rates | B59: =B36-B13 -> 22466462.66 | C59: 8231449.797 | D59: 2780175.132 | E59: 3820297.994 | F59: 3012987.381 | G59: 1242496.953 | H59: 384829.8549 | I59: 576363.9224 | J59: 1308.391923 | K59: 0 | L59: 42516371.65 | M59: 0
A60: Rates Penalties | B60: =B37-B14 -> 0 | C60: 0 | D60: 0 | E60: 0 | F60: 0 | G60: 0 | H60: 0 | I60: 0 | J60: 0 | K60: 0 | L60: 0 | M60: 0
A61: Remission of Rates Penalties | B61: =B38-B15 -> 0 | C61: 0 | D61: 0 | E61: 0 | F61: 0 | G61: 0 | H61: 0 | I61: 0 | J61: 0 | K61: 0 | L61: 0 | M61: 0
A62: Pest management rate | B62: =B39-B16 -> 0 | C62: 0 | D62: 0 | E62: 0 | F62: 0 | G62: 0 | H62: 0 | I62: 0 | J62: 0 | K62: 0 | L62: 0 | M62: 0
A63: River management rate - Non district wide | B63: =B40-B17 -> 0 | C63: 0 | D63: 0 | E63: 0 | F63: 0 | G63: 0 | H63: 0 | I63: 145.34 | J63: 0 | K63: 0 | L63: 145.34 | M63: =ROUND(L63-SUM(B63:K63),-1) -> 0
A64: Special Rates | B64: =B41-B18 -> 0 | C64: 0 | D64: 0 | E64: 0 | F64: 0 | G64: 0 | H64: 0 | I64: 0 | J64: 0 | K64: 321804.3835 | L64: 321804.285 | M64: 0
A65: Total Other Rates | B65: =B42-B19 -> 0 | C65: 0 | D65: 0 | E65: 0 | F65: 0 | G65: 0 | H65: 0 | I65: 145.34 | J65: 0 | K65: 321804.3835 | L65: 321949.625 | M65: 0
A66: Total Regnl Rates | B66: =B43-B20 -> 22466462.66 | C66: 8231449.797 | D66: 2780175.132 | E66: 3820297.994 | F66: 3012987.381 | G66: 1242496.953 | H66: 384829.8549 | I66: 576509.2624 | J66: 1308.391923 | K66: 321804.3835 | L66: 42838321.27 | M66: 0
A67: Bulk Water Levies | B67: =B44-B21 -> 7854065.4 | C67: 3905449.24 | D67: 1601520.679 | E67: 1230690.64 | F67: 0 | G67: 0 | H67: 0 | I67: 0 | J67: 0 | K67: 0 | L67: 14591725.96 | M67: 0
A68: Total Regnl Rates & levies | B68: =B45-B22 -> 30320528.06 | C68: 12136899.04 | D68: 4381695.811 | E68: 5050988.634 | F68: 3012987.381 | G68: 1242496.953 | H68: 384829.8549 | I68: 576509.2624 | J68: 1308.391923 | K68: 321804.3835 | L68: 57430047.23 | M68: 0
A69: Warm Greater Wellington rate | B69: =B46-B23 -> 0 | C69: 0 | D69: 0 | E69: 0 | F69: 0 | G69: 0 | H69: 0 | I69: 0 | J69: 0 | K69: -363072.5548 | L69: -363072.5548 | M69: 0
A70: Total Rates & Levies | B70: =B47-B24 -> 30320528.06 | C70: 12136899.04 | D70: 4381695.811 | E70: 5050988.634 | F70: 3012987.381 | G70: 1242496.953 | H70: 384829.8549 | I70: 576509.2624 | J70: 1308.391923 | K70: =K47-K24 -> -41268.17129 | L70: =L47-L24 -> 57066974.68 | M70: 0

Sheet Comparison - Category
A1: Comparison of proposed vs current
A2: =check_total -> 0
A5: =year_previous&" rates" -> 2023/24 rates
J6: Rates | R6: Rates for average property | Z6: Cents/$ OR Economic Development Rate $/property
A7: =Control!A$65 -> TA full name | B7: =Control!B$65 -> Rating area | C7: =Control!C$65 -> Category group | D7: =Control!D$65 -> Concatenated name | F7: CV | G7: CV Assessments | H7: Average CV | J7: General rate | K7: River management rate | L7: Public transport rate | M7: Stadium purposes rate | N7: Remission of rates | O7: Economic development rate | P7: District-Wide rates | R7: General rate | S7: River management rate | T7: Public transport rate | U7: Stadium purposes rate | V7: Remission of rates | W7: Economic development rate | X7: District-Wide rates | Z7: General rate | AA7: River management rate | AB7: Public transport rate | AC7: Stadium purposes rate | AD7: Remission of rates | AE7: Economic development rate | AF7: District-Wide rates
A9: By TA
A10: =Control!A41 -> Wellington city | C10: =Control!B41 -> District wide | D10: =Control!C41 -> Wellington cityDistrict wide | F10: 115410735050 | G10: 80373 | H10: 1435939.122 | J10: 35466726.06 | K10: 65822.26 | L10: 70029425.52 | M10: 0 | N10: 0 | O10: 2122307.725 | P10: 107684281.6 | R10: =J10/$F10*$H10 -> 441.2766235 | S10: 0.8189598497 | T10: 871.3053577 | U10: 0 | V10: 0 | W10: 26.40572985 | X10: =IF('Comparison - Category'!C10="Residential",SUM(R10:U10,Control!$B$102),IF('Comparison - Category'!C10="Rural",SUM(R10:U10,Control!$B$103),P10/$F10*$H10)) -> 1339.806671
A11: =Control!A42 -> Hutt city | C11: =Control!B42 -> District wide | D11: =Control!C42 -> Hutt cityDistrict wide | F11: 39038769400 | G11: 41092 | H11: 950033.3252 | J11: 13342163.74 | K11: 8043451 | L11: 16439971.21 | M11: 0 | N11: 0 | O11: 957977.5858 | P11: 38783563.54 | R11: =J11/$F11*$H11 -> 324.690055 | S11: =K11/$F11*$H11 -> 195.7425046 | T11: =L11/$F11*$H11 -> 400.0771735 | U11: =M11/$F11*$H11 -> 0 | V11: =N11/$F11*$H11 -> 0 | W11: =O11/$F11*$H11 -> 23.31299488 | X11: =IF('Comparison - Category'!C11="Residential",SUM(R11:U11,Control!$B$102),IF('Comparison - Category'!C11="Rural",SUM(R11:U11,Control!$B$103),P11/$F11*$H11)) -> 943.822728
A12: =Control!A43 -> Upper Hutt city | C12: =Control!B43 -> District wide | D12: =Control!C43 -> Upper Hutt cityDistrict wide | F12: 16508539950 | G12: 17778 | H12: 928593.7648 | J12: 5604887.521 | K12: 1071377 | L12: 6288941.781 | M12: 0 | N12: 0 | O12: 364056.8691 | P12: 13329263.17 | R12: 315.2709822 | S12: 60.26420295 | T12: 353.7485533 | U12: 0 | V12: 0 | W12: 20.47794291 | X12: =IF('Comparison - Category'!C12="Residential",SUM(R12:U12,Control!$B$102),IF('Comparison - Category'!C12="Rural",SUM(R12:U12,Control!$B$103),P12/$F12*$H12)) -> 749.7616814
A13: =Control!A44 -> Porirua city | C13: =Control!B44 -> District wide | D13: =Control!C44 -> Porirua cityDistrict wide | F13: 19107939000 | G13: 19954 | H13: 957599.4287 | J13: 6468548.11 | K13: 48031.4 | L13: 7421828.118 | M13: 0 | N13: 0 | O13: 382644.6149 | P13: 14321052.24 | R13: 324.1730034 | S13: 2.407106345 | T13: 371.9468837 | U13: 0 | V13: 0 | W13: 19.17633632 | X13: =IF('Comparison - Category'!C13="Residential",SUM(R13:U13,Control!$B$102),IF('Comparison - Category'!C13="Rural",SUM(R13:U13,Control!$B$103),P13/$F13*$H13)) -> 717.7033298
A14: =Control!A45 -> Kāpiti Coast district | C14: =Control!B45 -> District wide | D14: =Control!C45 -> Kāpiti Coast districtDistrict wide | F14: 19946308650 | G14: 25753 | H14: 774523.6924 | J14: 8576280.35 | K14: 1529637.21 | L14: 8902112.007 | M14: 0 | N14: 0 | O14: 486941.9333 | P14: 19494971.5 | R14: =J14/$F14*$H14 -> 333.0206326 | S14: 59.39646682 | T14: 345.6728151 | U14: 0 | V14: 0 | W14: 18.90816345 | X14: =IF('Comparison - Category'!C14="Residential",SUM(R14:U14,Control!$B$102),IF('Comparison - Category'!C14="Rural",SUM(R14:U14,Control!$B$103),P14/$F14*$H14)) -> 756.9980779
A15: =Control!A46 -> Masterton district | C15: =Control!B46 -> District wide | D15: =Control!C46 -> Masterton districtDistrict wide | F15: 8934202155 | G15: 13374 | H15: 668027.6772 | J15: 3900318.919 | K15: 0 | L15: 1953274.226 | M15: 0 | N15: 0 | O15: 236344.9681 | P15: 6089938.112 | R15: 291.6344339 | S15: 0 | T15: 146.0501141 | U15: 0 | V15: 0 | W15: 17.67197309 | X15: =IF('Comparison - Category'!C15="Residential",SUM(R15:U15,Control!$B$102),IF('Comparison - Category'!C15="Rural",SUM(R15:U15,Control!$B$103),P15/$F15*$H15)) -> 455.356521
A16: =Control!A47 -> Carterton district | C16: =Control!B47 -> District wide | D16: =Control!C47 -> Carterton districtDistrict wide | F16: 3767174800 | G16: 5129 | H16: 734485.2408 | J16: 1715884.278 | K16: 26344.84 | L16: 730197.5648 | M16: 0 | N16: 0 | O16: 77387.3242 | P16: 2549814.007 | R16: 334.5455796 | S16: 5.136447651 | T16: 142.3664583 | U16: 0 | V16: 0 | W16: 15.08818955 | X16: =IF('Comparison - Category'!C16="Residential",SUM(R16:U16,Control!$B$102),IF('Comparison - Category'!C16="Rural",SUM(R16:U16,Control!$B$103),P16/$F16*$H16)) -> 497.1366752
A17: =Control!A48 -> South Wairarapa district | C17: =Control!B48 -> District wide | D17: =Control!C48 -> South Wairarapa districtDistrict wide | F17: 6431251700 | G17: 7242 | H17: 888049.1163 | J17: 2896265.618 | K17: 0 | L17: 1243616.872 | M17: 0 | N17: 0 | O17: 115672.5094 | P17: 4255555 | R17: 399.9262108 | S17: 0 | T17: 171.7228489 | U17: 0 | V17: 0 | W17: 15.97245366 | X17: =IF('Comparison - Category'!C17="Residential",SUM(R17:U17,Control!$B$102),IF('Comparison - Category'!C17="Rural",SUM(R17:U17,Control!$B$103),P17/$F17*$H17)) -> 587.6215133
A18: =Control!A49 -> Tararua district | C18: =Control!B49 -> District wide | D18: =Control!C49 -> Tararua districtDistrict wide | F18: 15976500 | G18: 11 | H18: 1452409.091 | J18: 7939.65334 | K18: 0 | L18: 0 | M18: 0 | N18: 0 | O18: 165 | P18: 8104.65334 | R18: 721.7866673 | S18: 0 | T18: 0 | U18: 0 | V18: 0 | W18: 15 | X18: =IF('Comparison - Category'!C18="Residential",SUM(R18:U18,Control!$B$102),IF('Comparison - Category'!C18="Rural",SUM(R18:U18,Control!$B$103),P18/$F18*$H18)) -> 736.7866673
A19: =Control!A50 -> Region wide | C19: =Control!B50 -> 0 | D19: =Control!C50 -> Region wide | F19: 229160897205 | G19: 210706 | H19: 1087586.007 | J19: 77979014.25 | K19: 10784664.15 | L19: 113009367.3 | M19: 0 | N19: 0 | O19: 4743498.53 | P19: 206516543.8 | R19: 370.0844506 | S19: 51.18346962 | T19: 536.3367313 | U19: 0 | V19: =N19/$F19*$H19 -> 0 | W19: =O19/$F19*$H19 -> 22.51240368 | X19: =IF('Comparison - Category'!C19="Residential",SUM(R19:U19,Control!$B$102),IF('Comparison - Category'!C19="Rural",SUM(R19:U19,Control!$B$103),P19/$F19*$H19)) -> 980.1170531
A21: By TA & Category
A22: =Control!A66 -> Wellington city | B22: =Control!B66 -> Wellington city | C22: =Control!C66 -> Wellington CBD | D22: =Control!D66 -> Wellington cityWellington CBD | F22: 13125483300 | G22: 3007 | H22: 4364976.156 | J22: 6252650.659 | K22: 7485.8632 | L22: 32874426.85 | M22: 0 | N22: 0 | O22: 660064.0879 | P22: 39794627.46 | R22: 2079.365035 | S22: 2.489478949 | T22: 10932.63281 | U22: 0 | V22: 0 | W22: 219.5091746 | X22: 13233.9965 | Z22: =J22/$F22*100 -> 0.04763748897 | AA22: =K22/$F22*100 -> 5.703304807e-05 | AB22: =L22/$F22*100 -> 0.2504626009 | AC22: =M22/$F22*100 -> 0 | AD22: =N22/$F22*100 -> 0 | AE22: =IF(OR('Comparison - Category'!C22="Residential",'Comparison - Category'!C22="Rural"),W22,O22/$F22*100) -> 0.00502887454 | AF22: =P22/$F22*100 -> 0.3031859975
A23: =Control!A67 -> Wellington city | B23: =Control!B67 -> Wellington city | C23: =Control!C67 -> Business | D23: =Control!D67 -> Wellington cityBusiness | F23: 6562077350 | G23: 1883 | H23: 3484905.656 | J23: 2390477.374 | K23: 3742.552729 | L23: 3287109.921 | M23: 0 | N23: 0 | O23: 329998.6372 | P23: 6011328.485 | R23: 1269.504713 | S23: 1.987547918 | T23: 1745.677069 | U23: 0 | V23: 0 | W23: 175.2515333 | X23: 3192.420863 | Z23: 0.03642866804 | AA23: 5.703304807e-05 | AB23: 0.05009252018 | AC23: =M23/$F23*100 -> 0 | AD23: =N23/$F23*100 -> 0 | AE23: =IF(OR('Comparison - Category'!C23="Residential",'Comparison - Category'!C23="Rural"),W23,O23/$F23*100) -> 0.00502887454 | AF23: =P23/$F23*100 -> 0.0916070958
A24: =Control!A68 -> Wellington city | B24: =Control!B68 -> Wellington city | C24: =Control!C68 -> Residential | D24: =Control!D68 -> Wellington cityResidential | F24: 94298860050 | G24: 74588 | H24: 1264263.153 | J24: 26424475.92 | K24: 53781.51418 | L24: 33740482.5 | M24: 0 | N24: 0 | O24: 1118820 | P24: 61337559.93 | R24: 354.2724824 | S24: 0.7210478117 | T24: 452.3580536 | U24: 0 | V24: 0 | W24: 15 | X24: 822.3515838 | Z24: 0.02802205234 | AA24: 5.703304807e-05 | AB24: 0.03578037156 | AC24: 0 | AD24: 0 | AE24: =IF(OR('Comparison - Category'!C24="Residential",'Comparison - Category'!C24="Rural"),W24,O24/$F24*100) -> 15 | AF24: 0.06504591879
A25: =Control!A69 -> Wellington city | B25: =Control!B69 -> Wellington city | C25: =Control!C69 -> Rural | D25: =Control!D69 -> Wellington cityRural | F25: 1424314350 | G25: 895 | H25: 1591412.682 | J25: 399122.1126 | K25: 812.3298879 | L25: 127406.2416 | M25: 0 | N25: 0 | O25: 13425 | P25: 540765.6841 | R25: 445.9464945 | S25: 0.9076311597 | T25: 142.3533426 | U25: 0 | V25: 0 | W25: 15 | X25: 604.2074683 | Z25: 0.02802205234 | AA25: 5.703304807e-05 | AB25: 0.008945092889 | AC25: 0 | AD25: 0 | AE25: =IF(OR('Comparison - Category'!C25="Residential",'Comparison - Category'!C25="Rural"),W25,O25/$F25*100) -> 15 | AF25: 0.03796673706
A26: =Control!A70 -> Hutt city | B26: =Control!B70 -> Hutt city | C26: =Control!C70 -> Business | D26: =Control!D70 -> Hutt cityBusiness | F26: 6730624900 | G26: 2322 | H26: 2898632.601 | J26: 2300305.59 | K26: 1386761.223 | L26: 3749587.763 | M26: 0 | N26: 0 | O26: 376427.5858 | P26: 7813082.162 | R26: 990.6570156 | S26: 597.2270554 | T26: 1614.809545 | U26: 0 | V26: 0 | W26: 162.1135167 | X26: 3364.807132 | Z26: 0.03417670163 | AA26: 0.02060375141 | AB26: 0.05570935565 | AC26: 0 | AD26: 0 | AE26: =IF(OR('Comparison - Category'!C26="Residential",'Comparison - Category'!C26="Rural"),W26,O26/$F26*100) -> 0.005592758345 | AF26: 0.116082567
A27: =Control!A71 -> Hutt city | B27: =Control!B71 -> Hutt city | C27: =Control!C71 -> Residential | D27: =Control!D71 -> Hutt cityResidential | F27: 31752589000 | G27: 38327 | H27: 828465.2856 | J27: 10851987.6 | K27: 6542224.503 | L27: 12635116.24 | M27: 0 | N27: 0 | O27: 574905 | P27: 30604233.35 | R27: 283.1421088 | S27: 170.6949279 | T27: 329.6661946 | U27: 0 | V27: 0 | W27: 15 | X27: 798.5032313 | Z27: 0.03417670163 | AA27: 0.02060375141 | AB27: 0.03979239689 | AC27: 0 | AD27: 0 | AE27: =IF(OR('Comparison - Category'!C27="Residential",'Comparison - Category'!C27="Rural"),W27,O27/$F27*100) -> 15 | AF27: 0.0963834267
A28: =Control!A72 -> Hutt city | B28: =Control!B72 -> Hutt city | C28: =Control!C72 -> Rural | D28: =Control!D72 -> Hutt cityRural | F28: 555555500 | G28: 443 | H28: 1254075.621 | J28: 189870.5456 | K28: 114465.2742 | L28: 55267.21238 | M28: 0 | N28: 0 | O28: 6645 | P28: 366248.0322 | R28: 428.6016832 | S28: 258.3866234 | T28: 124.7566871 | U28: 0 | V28: 0 | W28: 15 | X28: 826.7449936 | Z28: 0.03417670163 | AA28: 0.02060375141 | AB28: 0.009948099223 | AC28: 0 | AD28: 0 | AE28: =IF(OR('Comparison - Category'!C28="Residential",'Comparison - Category'!C28="Rural"),W28,O28/$F28*100) -> 15 | AF28: 0.06592465238
A29: =Control!A73 -> Upper Hutt city | B29: =Control!B73 -> Upper Hutt city | C29: =Control!C73 -> Business | D29: =Control!D73 -> Upper Hutt cityBusiness | F29: 1983151950 | G29: 770 | H29: 2575522.013 | J29: 673308.7027 | K29: 128703.2889 | L29: 1097519.427 | M29: 0 | N29: 0 | O29: 110181.8691 | P29: 2009713.287 | R29: 874.4268866 | S29: 167.1471285 | T29: 1425.349905 | U29: 0 | V29: 0 | W29: 143.0933365 | X29: 2610.017256 | Z29: 0.03395144294 | AA29: 0.006489834978 | AB29: 0.0553421752 | AC29: 0 | AD29: 0 | AE29: =IF(OR('Comparison - Category'!C29="Residential",'Comparison - Category'!C29="Rural"),W29,O29/$F29*100) -> 0.005555896466 | AF29: 0.1013393496
A30: =Control!A74 -> Upper Hutt city | B30: =Control!B74 -> Upper Hutt city | C30: =Control!C74 -> Residential | D30: =Control!D74 -> Upper Hutt cityResidential | F30: 12668638000 | G30: 15652 | H30: 809394.1988 | J30: 4301185.401 | K30: 822173.7001 | L30: 5007928.455 | M30: 0 | N30: 0 | O30: 234255 | P30: 10365542.56 | R30: 274.8010095 | S30: 52.52834782 | T30: 319.9545397 | U30: 0 | V30: 0 | W30: 15 | X30: 662.2838971 | Z30: 0.03395144294 | AA30: 0.006489834978 | AB30: 0.03953012514 | AC30: 0 | AD30: 0 | AE30: =IF(OR('Comparison - Category'!C30="Residential",'Comparison - Category'!C30="Rural"),W30,O30/$F30*100) -> 15 | AF30: 0.08182049686
A31: =Control!A75 -> Upper Hutt city | B31: =Control!B75 -> Upper Hutt city | C31: =Control!C75 -> Rural | D31: =Control!D75 -> Upper Hutt cityRural | F31: 1856750000 | G31: 1356 | H31: 1369284.661 | J31: 630393.4167 | K31: 120500.011 | L31: 183493.8996 | M31: 0 | N31: 0 | O31: 19620 | P31: 954007.3273 | R31: 464.8919002 | S31: 88.86431486 | T31: 135.319985 | U31: 0 | V31: 0 | W31: 15 | X31: 704.0762001 | Z31: 0.03395144294 | AA31: 0.006489834978 | AB31: 0.009882531285 | AC31: 0 | AD31: 0 | AE31: =IF(OR('Comparison - Category'!C31="Residential",'Comparison - Category'!C31="Rural"),W31,O31/$F31*100) -> 15 | AF31: 0.05138049427
A32: =Control!A76 -> Porirua city | B32: =Control!B76 -> Porirua city | C32: =Control!C76 -> Business | D32: =Control!D76 -> Porirua cityBusiness | F32: 1724715000 | G32: 814 | H32: 2118814.496 | J32: 583862.1294 | K32: 4335.395673 | L32: 951718.0262 | M32: 0 | N32: 0 | O32: 95544.61492 | P32: 1635460.166 | R32: 717.2753433 | S32: 5.32603891 | T32: 1169.186764 | U32: 0 | V32: 0 | W32: 117.3766768 | X32: 2009.164823 | Z32: 0.03385267302 | AA32: 0.0002513688159 | AB32: 0.05518117638 | AC32: 0 | AD32: 0 | AE32: =IF(OR('Comparison - Category'!C32="Residential",'Comparison - Category'!C32="Rural"),W32,O32/$F32*100) -> 0.005539733517 | AF32: 0.09482495173
A33: =Control!A77 -> Porirua city | B33: =Control!B77 -> Porirua city | C33: =Control!C77 -> Residential | D33: =Control!D77 -> Porirua cityResidential | F33: 16092655000 | G33: 18490 | H33: 870343.6993 | J33: 5447793.877 | K33: 40451.91631 | L33: 6342940.243 | M33: 0 | N33: 0 | O33: 277350 | P33: 12108536.04 | R33: 294.6346067 | S33: 2.187772651 | T33: 343.0470656 | U33: 0 | V33: 0 | W33: 15 | X33: 654.8694449 | Z33: 0.03385267302 | AA33: 0.0002513688159 | AB33: 0.03941512599 | AC33: 0 | AD33: 0 | AE33: =IF(OR('Comparison - Category'!C33="Residential",'Comparison - Category'!C33="Rural"),W33,O33/$F33*100) -> 15 | AF33: 0.07524262489
A34: =Control!A78 -> Porirua city | B34: =Control!B78 -> Porirua city | C34: =Control!C78 -> Rural | D34: =Control!D78 -> Porirua cityRural | F34: 1290569000 | G34: 650 | H34: 1985490.769 | J34: 436892.1036 | K34: 3244.088013 | L34: 127169.8493 | M34: 0 | N34: 0 | O34: 9750 | P34: 577056.041 | R34: 672.1416979 | S34: 4.990904636 | T34: 195.645922 | U34: 0 | V34: 0 | W34: 15 | X34: 887.7785246 | Z34: 0.03385267302 | AA34: 0.0002513688159 | AB34: 0.009853781496 | AC34: 0 | AD34: 0 | AE34: =IF(OR('Comparison - Category'!C34="Residential",'Comparison - Category'!C34="Rural"),W34,O34/$F34*100) -> 15 | AF34: 0.04471330405
A35: =Control!A79 -> Kāpiti Coast district | B35: =Control!B79 -> Kāpiti Coast district | C35: =Control!C79 -> Business | D35: =Control!D79 -> Kāpiti Coast districtBusiness | F35: 1758315500 | G35: 1254 | H35: 1402165.47 | J35: 756019.9201 | K35: 134841.2312 | L35: 1232341.935 | M35: 0 | N35: 0 | O35: 123716.9333 | P35: 2246920.019 | R35: 602.8866987 | S35: 107.5288925 | T35: 982.7288155 | U35: 0 | V35: 0 | W35: 98.65784157 | X35: 1791.802248 | Z35: 0.04299682964 | AA35: 0.00766877339 | AB35: 0.07008650806 | AC35: 0 | AD35: 0 | AE35: =IF(OR('Comparison - Category'!C35="Residential",'Comparison - Category'!C35="Rural"),W35,O35/$F35*100) -> 0.007036105485 | AF35: 0.1277882166
A36: =Control!A80 -> Kāpiti Coast district | B36: =Control!B80 -> Kāpiti Coast district excl Ōtaki | C36: =Control!C80 -> Residential | D36: =Control!D80 -> Kāpiti Coast district excl Ōtaki Residential | F36: 13794244800 | G36: 18439 | H36: 748101.5673 | J36: 5931087.937 | K36: 1057849.375 | L36: 6905646.067 | M36: 0 | N36: 0 | O36: 274710 | P36: 14169293.38 | R36: 321.6599565 | S36: 57.37021392 | T36: 374.5130466 | U36: 0 | V36: 0 | W36: 15 | X36: 768.543217 | Z36: 0.04299682964 | AA36: 0.00766877339 | AB36: 0.05006179147 | AC36: 0 | AD36: 0 | AE36: =IF(OR('Comparison - Category'!C36="Residential",'Comparison - Category'!C36="Rural"),W36,O36/$F36*100) -> 15 | AF36: 0.1027188772
A37: =Control!A81 -> Kāpiti Coast district | B37: =Control!B81 -> Ōtaki rating area | C37: =Control!C81 -> Residential | D37: =Control!D81 -> Ōtaki rating areaResidential | F37: 1711698400 | G37: 3322 | H37: 515261.4088 | J37: 735976.0451 | K37: 131266.2714 | L37: 428453.4418 | M37: 0 | N37: 0 | O37: 49275 | P37: 1344970.758 | R37: 221.5460702 | S37: 39.51422981 | T37: 128.974546 | U37: 0 | V37: 0 | W37: 15 | X37: 405.034846 | Z37: 0.04299682964 | AA37: 0.00766877339 | AB37: 0.02503089574 | AC37: 0 | AD37: 0 | AE37: =IF(OR('Comparison - Category'!C37="Residential",'Comparison - Category'!C37="Rural"),W37,O37/$F37*100) -> 15 | AF37: 0.07857521853
A38: =Control!A82 -> Kāpiti Coast district | B38: =Control!B82 -> Kāpiti Coast district | C38: =Control!C82 -> Rural | D38: =Control!D82 -> Kāpiti Coast districtRural | F38: 2682049950 | G38: 2738 | H38: 979565.3579 | J38: 1153196.448 | K38: 205680.3329 | L38: 335670.5633 | M38: 0 | N38: 0 | O38: 39240 | P38: 1733787.344 | R38: 421.1820482 | S38: 75.1206475 | T38: 122.5969917 | U38: 0 | V38: 0 | W38: 15 | X38: 633.8996874 | Z38: 0.04299682964 | AA38: 0.00766877339 | AB38: 0.01251544787 | AC38: 0 | AD38: 0 | AE38: =IF(OR('Comparison - Category'!C38="Residential",'Comparison - Category'!C38="Rural"),W38,O38/$F38*100) -> 15 | AF38: 0.0646441109
A39: =Control!A83 -> Masterton district | B39: =Control!B83 -> Masterton district | C39: =Control!C83 -> Business | D39: =Control!D83 -> Masterton districtBusiness | F39: 746922100 | G39: 584 | H39: 1278976.199 | J39: 326076.6151 | K39: 0 | L39: 379655.4221 | M39: 0 | N39: 0 | O39: 53359.96814 | P39: 759092.0054 | R39: 558.3503683 | S39: 0 | T39: 650.0949009 | U39: 0 | V39: 0 | W39: 91.36980846 | X39: 1299.815078 | Z39: 0.04365604058 | AA39: 0 | AB39: 0.0508293197 | AC39: 0 | AD39: 0 | AE39: =IF(OR('Comparison - Category'!C39="Residential",'Comparison - Category'!C39="Rural"),W39,O39/$F39*100) -> 0.007143980362 | AF39: 0.1016293406
A40: =Control!A84 -> Masterton district | B40: =Control!B84 -> Masterton district | C40: =Control!C84 -> Residential | D40: =Control!D84 -> Masterton districtResidential | F40: 4196271900 | G40: 8716 | H40: 481444.6879 | J40: 1831926.164 | K40: 0 | L40: 1066468.23 | M40: 0 | N40: 0 | O40: 128355 | P40: 3026749.393 | R40: 210.1796883 | S40: 0 | T40: 122.3575298 | U40: 0 | V40: 0 | W40: 15 | X40: 347.5372182 | Z40: 0.04365604058 | AA40: 0 | AB40: 0.02541465985 | AC40: 0 | AD40: 0 | AE40: =IF(OR('Comparison - Category'!C40="Residential",'Comparison - Category'!C40="Rural"),W40,O40/$F40*100) -> 15 | AF40: 0.07212948697
A41: =Control!A85 -> Masterton district | B41: =Control!B85 -> Masterton district | C41: =Control!C85 -> Rural | D41: =Control!D85 -> Masterton districtRural | F41: 3991008155 | G41: 4074 | H41: 979628.904 | J41: 1742316.14 | K41: 0 | L41: 507150.5736 | M41: 0 | N41: 0 | O41: 54630 | P41: 2304096.713 | R41: 427.6671919 | S41: 0 | T41: 124.4846769 | U41: 0 | V41: 0 | W41: 15 | X41: 567.1518688 | Z41: 0.04365604058 | AA41: 0 | AB41: 0.01270732993 | AC41: 0 | AD41: 0 | AE41: =IF(OR('Comparison - Category'!C41="Residential",'Comparison - Category'!C41="Rural"),W41,O41/$F41*100) -> 15 | AF41: 0.05773219758
A42: =Control!A86 -> Carterton district | B42: =Control!B86 -> Carterton district | C42: =Control!C86 -> Business | D42: =Control!D86 -> Carterton districtBusiness | F42: 133858500 | G42: 237 | H42: 564803.7975 | J42: 60970.27821 | K42: 936.1075481 | L42: 70988.52122 | M42: 0 | N42: 0 | O42: 9977.3242 | P42: 142872.2312 | R42: 257.2585578 | S42: 3.949820878 | T42: 299.5296254 | U42: 0 | V42: 0 | W42: 42.09841434 | X42: 602.8364185 | Z42: 0.04554830527 | AA42: 0.00069932619 | AB42: 0.05303250912 | AC42: 0 | AD42: 0 | AE42: =IF(OR('Comparison - Category'!C42="Residential",'Comparison - Category'!C42="Rural"),W42,O42/$F42*100) -> 0.007453635144 | AF42: 0.1067337757
A43: =Control!A87 -> Carterton district | B43: =Control!B87 -> Carterton district | C43: =Control!C87 -> Residential | D43: =Control!D87 -> Carterton districtResidential | F43: 1338796500 | G43: 2678 | H43: 499924.0105 | J43: 609799.1168 | K43: 9362.554555 | L43: 354998.688 | M43: 0 | N43: 0 | O43: 39030 | P43: 1013190.359 | R43: 227.7069144 | S43: 3.496099535 | T43: 132.5611232 | U43: 0 | V43: 0 | W43: 15 | X43: 378.7641372 | Z43: 0.04554830527 | AA43: 0.00069932619 | AB43: 0.02651625456 | AC43: 0 | AD43: 0 | AE43: =IF(OR('Comparison - Category'!C43="Residential",'Comparison - Category'!C43="Rural"),W43,O43/$F43*100) -> 15 | AF43: 0.07567919092
A44: =Control!A88 -> Carterton district | B44: =Control!B88 -> Carterton district | C44: =Control!C88 -> Rural | D44: =Control!D88 -> Carterton districtRural | F44: 2294519800 | G44: 2214 | H44: 1036368.473 | J44: 1045114.883 | K44: 16046.1779 | L44: 304210.3556 | M44: 0 | N44: 0 | O44: 28380 | P44: 1393751.416 | R44: 472.048276 | S44: 7.247596159 | T44: 137.4030513 | U44: 0 | V44: 0 | W44: 15 | X44: 631.6989234 | Z44: 0.04554830527 | AA44: 0.00069932619 | AB44: 0.01325812728 | AC44: 0 | AD44: 0 | AE44: =IF(OR('Comparison - Category'!C44="Residential",'Comparison - Category'!C44="Rural"),W44,O44/$F44*100) -> 15 | AF44: 0.06074261884
A45: =Control!A89 -> South Wairarapa district | B45: =Control!B89 -> South Wairarapa district | C45: =Control!C89 -> Business | D45: =Control!D89 -> South Wairarapa districtBusiness | F45: 286688000 | G45: 314 | H45: 913019.1083 | J45: 129107.775 | K45: 0 | L45: 150321.9322 | M45: 0 | N45: 0 | O45: 21127.50943 | P45: 300557.2167 | R45: 411.171258 | S45: 0 | T45: 478.7322682 | U45: 0 | V45: 0 | W45: 67.28506189 | X45: 957.1885881 | Z45: 0.04503424455 | AA45: 0 | AB45: 0.05243398126 | AC45: 0 | AD45: 0 | AE45: =IF(OR('Comparison - Category'!C45="Residential",'Comparison - Category'!C45="Rural"),W45,O45/$F45*100) -> 0.007369513002 | AF45: 0.1048377388
A46: =Control!A90 -> South Wairarapa district | B46: =Control!B90 -> South Wairarapa district | C46: =Control!C90 -> Residential | D46: =Control!D90 -> South Wairarapa districtResidential | F46: 2195790500 | G46: 3594 | H46: 610960.0723 | J46: 988857.6636 | K46: 0 | L46: 575670.1897 | M46: 0 | N46: 0 | O46: 52575 | P46: 1617102.853 | R46: 275.1412531 | S46: 0 | T46: 160.1753449 | U46: 0 | V46: 0 | W46: 15 | X46: 450.316598 | Z46: 0.04503424455 | AA46: 0 | AB46: 0.02621699063 | AC46: 0 | AD46: =N46/$F46*100 -> 0 | AE46: =IF(OR('Comparison - Category'!C46="Residential",'Comparison - Category'!C46="Rural"),W46,O46/$F46*100) -> 15 | AF46: 0.07364558929
A47: =Control!A91 -> South Wairarapa district | B47: =Control!B91 -> South Wairarapa district | C47: =Control!C91 -> Rural | D47: =Control!D91 -> South Wairarapa districtRural | F47: 3948773200 | G47: 3334 | H47: 1184395.081 | J47: 1778300.18 | K47: 0 | L47: 517624.7499 | M47: 0 | N47: 0 | O47: 41970 | P47: 2337894.93 | R47: 533.3833772 | S47: 0 | T47: 155.2563737 | U47: 0 | V47: 0 | W47: 15 | X47: 703.6397509 | Z47: 0.04503424455 | AA47: 0 | AB47: 0.01310849532 | AC47: 0 | AD47: 0 | AE47: =IF(OR('Comparison - Category'!C47="Residential",'Comparison - Category'!C47="Rural"),W47,O47/$F47*100) -> 15 | AF47: 0.05920560162
A48: =Control!A92 -> Tararua district | B48: =Control!B92 -> Tararua district | C48: =Control!C92 -> Rural | D48: =Control!D92 -> Tararua districtRural | F48: 15976500 | G48: 11 | H48: 1452409.091 | J48: 7939.65334 | K48: 0 | L48: 0 | M48: 0 | N48: 0 | O48: 165 | P48: 8104.65334 | R48: 721.7866673 | S48: 0 | T48: 0 | U48: 0 | V48: 0 | W48: 15 | X48: 736.7866673 | Z48: 0.04969582412 | AA48: 0 | AB48: 0 | AC48: 0 | AD48: 0 | AE48: =IF(OR('Comparison - Category'!C48="Residential",'Comparison - Category'!C48="Rural"),W48,O48/$F48*100) -> 15 | AF48: 0.05072859099
A49: =Control!A93 -> Region wide | C49: =Control!C93 -> 0 | D49: =Control!D93 -> Region wide | F49: 229160897205 | G49: 210706 | H49: 1087586.007 | J49: 77979014.25 | K49: 10784663.71 | L49: 113009367.3 | M49: 0 | N49: 0 | O49: 4743498.53 | P49: 206516543.8 | R49: 370.0844506 | S49: 51.18346753 | T49: 536.3367313 | U49: 0 | V49: 0 | W49: 22.51240368 | X49: 980.1170531 | Z49: 0.0340280629 | AA49: 0.004706153555 | AB49: 0.04931441999 | AC49: 0 | AD49: =N49/$F49*100 -> 0 | AE49: =O49/$F49*100 -> 0.00206994238 | AF49: 0.09011857883
A51: By category
A52: Region Wide | C52: =C22 -> Wellington CBD | D52: =A52&C52 -> Region WideWellington CBD | F52: =SUMIF($C$22:$C$48,$C52,F$22:F$48) -> 13125483300 | G52: 3007 | H52: =F52/G52 -> 4364976.156 | J52: =SUMIF($C$22:$C$48,$C52,J$22:J$48) -> 6252650.659 | K52: 7485.8632 | L52: 32874426.85 | M52: 0 | N52: 0 | O52: =SUMIF($C$22:$C$48,$C52,O$22:O$48) -> 660064.0879 | P52: =SUMIF($C$22:$C$48,$C52,P$22:P$48) -> 39794627.46 | R52: 2079.365035 | S52: 2.489478949 | T52: 10932.63281 | U52: 0 | V52: 0 | W52: 219.5091746 | X52: 13233.9965 | Z52: =J52/$F52*100 -> 0.04763748897 | AA52: 5.703304807e-05 | AB52: 0.2504626009 | AC52: 0 | AD52: 0 | AE52: =IF(OR('Comparison - Category'!C52="Residential",'Comparison - Category'!C52="Rural"),W52,O52/$F52*100) -> 0.00502887454 | AF52: =P52/$F52*100 -> 0.3031859975
A53: Region Wide | C53: =C23 -> Business | D53: =A53&C53 -> Region WideBusiness | F53: 19926353300 | G53: 8178 | H53: =F53/G53 -> 2436580.252 | J53: 7220128.385 | K53: 1659319.799 | L53: 10919242.95 | M53: 0 | N53: 0 | O53: 1120334.442 | P53: 20919025.57 | R53: 882.8721429 | S53: 202.90044 | T53: 1335.19723 | U53: 0 | V53: 0 | W53: 136.9936955 | X53: 2557.963508 | Z53: 0.0362340679 | AA53: 0.008327262764 | AB53: 0.05479799933 | AC53: 0 | AD53: 0 | AE53: =IF(OR('Comparison - Category'!C53="Residential",'Comparison - Category'!C53="Rural"),W53,O53/$F53*100) -> 0.005622375681 | AF53: =P53/$F53*100 -> 0.1049817057
A54: Region Wide | C54: =C24 -> Residential | D54: =A54&C54 -> Region WideResidential | F54: 178049544150 | G54: 183806 | H54: =F54/G54 -> 968681.8937 | J54: 57123089.72 | K54: 8657109.834 | L54: 67057704.05 | M54: 0 | N54: 0 | O54: 2749275 | P54: 135587178.6 | R54: 310.779244 | S54: 47.09916888 | T54: 364.8287001 | U54: 0 | V54: 0 | W54: 14.95748235 | X54: 737.707113 | Z54: 0.03208269361 | AA54: 0.004862191518 | AB54: 0.03766238458 | AC54: 0 | AD54: 0 | AE54: =IF(OR('Comparison - Category'!C54="Residential",'Comparison - Category'!C54="Rural"),W54,O54/$F54*100) -> 14.95748235 | AF54: =P54/$F54*100 -> 0.07615137644
A55: Region Wide | C55: =C25 -> Rural | D55: =A55&C55 -> Region WideRural | F55: 18059516455 | G55: 15715 | H55: =F55/G55 -> 1149189.72 | J55: 7383145.482 | K55: 460748.2138 | L55: 2157993.445 | M55: 0 | N55: 0 | O55: 213825 | P55: 10215712.14 | R55: 469.8151755 | S55: 29.31900819 | T55: 137.3206138 | U55: 0 | V55: 0 | W55: 13.60642698 | X55: 651.4547974 | Z55: 0.04088229882 | AA55: 0.00255127658 | AB55: 0.01194934234 | AC55: 0 | AD55: 0 | AE55: =IF(OR('Comparison - Category'!C55="Residential",'Comparison - Category'!C55="Rural"),W55,O55/$F55*100) -> 13.60642698 | AF55: =P55/$F55*100 -> 0.05656691954
A56: Region Wide | C56: Total | D56: =A56&C56 -> Region WideTotal | F56: =SUM(F52:F55) -> 229160897205 | G56: =SUM(G52:G55) -> 210706 | H56: =F56/G56 -> 1087586.007 | J56: =SUM(J52:J55) -> 77979014.25 | K56: 10784663.71 | L56: 113009367.3 | M56: 0 | N56: 0 | O56: 4743498.53 | P56: =SUM(P52:P55) -> 206516543.8 | R56: 370.0844506 | S56: 51.18346753 | T56: 536.3367313 | U56: 0 | V56: 0 | W56: 22.51240368 | X56: 980.1170531 | Z56: 0.0340280629 | AA56: 0.004706153555 | AB56: 0.04931441999 | AC56: 0 | AD56: 0 | AE56: =IF(OR('Comparison - Category'!C56="Residential",'Comparison - Category'!C56="Rural"),W56,O56/$F56*100) -> 0.00206994238 | AF56: =P56/$F56*100 -> 0.09011857883
J59: =IF(ABS(J19-SUM(J10:J18))>tolerance_dollar,1,0) -> 0 | K59: 0 | L59: 0 | M59: 0 | N59: 0 | O59: 0 | P59: 0
J60: =J49-SUM(J22:J48) -> 0 | K60: 0 | L60: 0 | M60: 0 | N60: 0 | O60: 0 | P60: 0
F61: =F49-F19 -> 0 | G61: =G49-G19 -> 0 | J61: =IF(ABS(J49-J19)>tolerance_dollar,1,0) -> 0 | K61: 0 | L61: 0 | M61: 0 | N61: 0 | O61: 0 | P61: =IF(ABS(P49-P19)>tolerance_dollar,1,0) -> 0 | R61: =IF(ABS(R49-R19)>tolerance_dollar,1,0) -> 0 | S61: 0 | T61: 0 | U61: 0 | V61: 0 | W61: 0 | X61: 0
A64: =year_current&" rates" -> 2024/25 rates
J65: Rates | R65: Rates / average CV | Z65: Cents/$ OR Economic Development Rate $/property
A66: =Control!A$65 -> TA full name | B66: =Control!B$65 -> Rating area | C66: =Control!C$65 -> Category group | D66: =Control!D$65 -> Concatenated name | F66: CV | G66: CV Assessments | H66: Average CV | J66: General rate | K66: River management rate | L66: Public transport rate | M66: Stadium purposes rate | N66: Remission of rates | O66: Economic development rate | P66: District-Wide rates | R66: General rate | S66: River management rate | T66: Public transport rate | U66: Stadium purposes rate | V66: Remission of rates | W66: Economic development rate | X66: District-Wide rates | Z66: General rate | AA66: River management rate | AB66: Public transport rate | AC66: Stadium purposes rate | AD66: Remission of rates | AE66: Economic development rate | AF66: District-Wide rates
A68: By TA
A69: =Control!A41 -> Wellington city | C69: =Control!B41 -> District wide | D69: =Control!C41 -> Wellington cityDistrict wide | F69: =INDEX(capital_values,MATCH($D69,capital_values_rows,0),MATCH(F$66&" "&year_current,capital_values_header,0)) -> 117326906550 | G69: =INDEX(assessments,MATCH($D69,assessments_rows,0),MATCH(G$66&" "&year_current,assessments_header,0)) -> 81121 | H69: =F69/G69 -> 1446319.776 | J69: =INDEX(Gen!$D$10:$D$18,MATCH($A69,Gen!$A$10:$A$18,0),) -> 42450779.79 | K69: =INDEX('River management'!$C$10:$C$18,MATCH($A69,'River management'!$A$10:$A$18,0),) -> 265571.54 | L69: =INDEX('Public transport'!$I$10:$I$18,MATCH($A69,'Public transport'!$A$10:$A$18,0),) -> 85197041.6 | M69: =INDEX(Stadium!$I$10:$I$18,MATCH($A69,Stadium!$A$10:$A$18,0),) -> 0 | N69: =INDEX(Remission!$D$10:$D$18,MATCH($A69,Remission!$A$10:$A$18,0),) -> 0 | O69: =INDEX('Economic Development'!$K$10:$K$18,MATCH($A69,'Economic Development'!$A$10:$A$18,0),) -> 2237351.295 | P69: =SUM(J69:O69) -> 130150744.2 | R69: =J69/$F69*$H69 -> 523.3019784 | S69: =K69/$F69*$H69 -> 3.27377054 | T69: =L69/$F69*$H69 -> 1050.246442 | U69: =M69/$F69*$H69 -> 0 | V69: =N69/$F69*$H69 -> 0 | W69: =O69/$F69*$H69 -> 27.58042054 | X69: =IF('Comparison - Category'!C69="Residential",SUM(R69:W69,Control!$B$102),IF('Comparison - Category'!C69="Rural",SUM(R69:V69,Control!$B$103),P69/$F69*$H69)) -> 1604.402611
A70: =Control!A42 -> Hutt city | C70: =Control!B42 -> District wide | D70: =Control!C42 -> Hutt cityDistrict wide | F70: 39707176000 | G70: 42082 | H70: =F70/G70 -> 943566.7506 | J70: =INDEX(Gen!$D$10:$D$18,MATCH($A70,Gen!$A$10:$A$18,0),) -> 16462523 | K70: =INDEX('River management'!$C$10:$C$18,MATCH($A70,'River management'!$A$10:$A$18,0),) -> 8942063.71 | L70: =INDEX('Public transport'!$I$10:$I$18,MATCH($A70,'Public transport'!$A$10:$A$18,0),) -> 20591768.36 | M70: =INDEX(Stadium!$I$10:$I$18,MATCH($A70,Stadium!$A$10:$A$18,0),) -> 0 | N70: =INDEX(Remission!$D$10:$D$18,MATCH($A70,Remission!$A$10:$A$18,0),) -> 0 | O70: =INDEX('Economic Development'!$K$10:$K$18,MATCH($A70,'Economic Development'!$A$10:$A$18,0),) -> 1018658.265 | P70: =SUM(J70:O70) -> 47015013.34 | R70: 391.2010598 | S70: 212.4914146 | T70: 489.3248506 | U70: 0 | V70: 0 | W70: 24.2065079 | X70: =IF('Comparison - Category'!C70="Residential",SUM(R70:W70,Control!$B$102),IF('Comparison - Category'!C70="Rural",SUM(R70:V70,Control!$B$103),P70/$F70*$H70)) -> 1117.223833
A71: =Control!A43 -> Upper Hutt city | C71: =Control!B43 -> District wide | D71: =Control!C43 -> Upper Hutt cityDistrict wide | F71: 16856900350 | G71: 18072 | H71: 932763.4102 | J71: =INDEX(Gen!$D$10:$D$18,MATCH($A71,Gen!$A$10:$A$18,0),) -> 6653080.066 | K71: =INDEX('River management'!$C$10:$C$18,MATCH($A71,'River management'!$A$10:$A$18,0),) -> 1468314.42 | L71: =INDEX('Public transport'!$I$10:$I$18,MATCH($A71,'Public transport'!$A$10:$A$18,0),) -> 7605776.258 | M71: =INDEX(Stadium!$I$10:$I$18,MATCH($A71,Stadium!$A$10:$A$18,0),) -> 0 | N71: =INDEX(Remission!$D$10:$D$18,MATCH($A71,Remission!$A$10:$A$18,0),) -> 0 | O71: =INDEX('Economic Development'!$K$10:$K$18,MATCH($A71,'Economic Development'!$A$10:$A$18,0),) -> 382267.5597 | P71: 16109438.3 | R71: 368.1429873 | S71: 81.24803121 | T71: 420.8596867 | U71: 0 | V71: 0 | W71: 21.15247674 | X71: =IF('Comparison - Category'!C71="Residential",SUM(R71:W71,Control!$B$102),IF('Comparison - Category'!C71="Rural",SUM(R71:V71,Control!$B$103),P71/$F71*$H71)) -> 891.4031819
A72: =Control!A44 -> Porirua city | C72: =Control!B44 -> District wide | D72: =Control!C44 -> Porirua cityDistrict wide | F72: 19409983800 | G72: 20191 | H72: 961318.5974 | J72: =INDEX(Gen!$D$10:$D$18,MATCH($A72,Gen!$A$10:$A$18,0),) -> 8143696.293 | K72: =INDEX('River management'!$C$10:$C$18,MATCH($A72,'River management'!$A$10:$A$18,0),) -> 92070 | L72: =INDEX('Public transport'!$I$10:$I$18,MATCH($A72,'Public transport'!$A$10:$A$18,0),) -> 9503672.137 | M72: =INDEX(Stadium!$I$10:$I$18,MATCH($A72,Stadium!$A$10:$A$18,0),) -> 0 | N72: =INDEX(Remission!$D$10:$D$18,MATCH($A72,Remission!$A$10:$A$18,0),) -> 0 | O72: =INDEX('Economic Development'!$K$10:$K$18,MATCH($A72,'Economic Development'!$A$10:$A$18,0),) -> 401911.8077 | P72: 18141350.24 | R72: 403.3329847 | S72: 4.559952454 | T72: 470.6885314 | U72: 0 | V72: 0 | W72: 19.90549293 | X72: =IF('Comparison - Category'!C72="Residential",SUM(R72:W72,Control!$B$102),IF('Comparison - Category'!C72="Rural",SUM(R72:V72,Control!$B$103),P72/$F72*$H72)) -> 898.4869614
A73: =Control!A45 -> Kāpiti Coast district | C73: =Control!B45 -> District wide | D73: =Control!C45 -> Kāpiti Coast districtDistrict wide | F73: 23142666100 | G73: 26046 | H73: 888530.5268 | J73: =INDEX(Gen!$D$10:$D$18,MATCH($A73,Gen!$A$10:$A$18,0),) -> 9893494.638 | K73: =INDEX('River management'!$C$10:$C$18,MATCH($A73,'River management'!$A$10:$A$18,0),) -> 1748053.49 | L73: =INDEX('Public transport'!$I$10:$I$18,MATCH($A73,'Public transport'!$A$10:$A$18,0),) -> 10361912.34 | M73: =INDEX(Stadium!$I$10:$I$18,MATCH($A73,Stadium!$A$10:$A$18,0),) -> 0 | N73: =INDEX(Remission!$D$10:$D$18,MATCH($A73,Remission!$A$10:$A$18,0),) -> 0 | O73: =INDEX('Economic Development'!$K$10:$K$18,MATCH($A73,'Economic Development'!$A$10:$A$18,0),) -> 504498.4178 | P73: 22507958.88 | R73: 379.8469876 | S73: 67.11408623 | T73: 397.8312346 | U73: 0 | V73: 0 | W73: 19.36951616 | X73: =IF('Comparison - Category'!C73="Residential",SUM(R73:W73,Control!$B$102),IF('Comparison - Category'!C73="Rural",SUM(R73:V73,Control!$B$103),P73/$F73*$H73)) -> 864.1618245
A74: =Control!A46 -> Masterton district | C74: =Control!B46 -> District wide | D74: =Control!C46 -> Masterton districtDistrict wide | F74: 10529984800 | G74: 13522 | H74: 778729.8329 | J74: =INDEX(Gen!$D$10:$D$18,MATCH($A74,Gen!$A$10:$A$18,0),) -> 4697759.395 | K74: =INDEX('River management'!$C$10:$C$18,MATCH($A74,'River management'!$A$10:$A$18,0),) -> 0 | L74: =INDEX('Public transport'!$I$10:$I$18,MATCH($A74,'Public transport'!$A$10:$A$18,0),) -> 2385101.848 | M74: =INDEX(Stadium!$I$10:$I$18,MATCH($A74,Stadium!$A$10:$A$18,0),) -> 0 | N74: =INDEX(Remission!$D$10:$D$18,MATCH($A74,Remission!$A$10:$A$18,0),) -> 0 | O74: =INDEX('Economic Development'!$K$10:$K$18,MATCH($A74,'Economic Development'!$A$10:$A$18,0),) -> 249573.8212 | P74: 7332435.065 | R74: 347.416018 | S74: 0 | T74: 176.3867659 | U74: 0 | V74: 0 | W74: 18.45687185 | X74: =IF('Comparison - Category'!C74="Residential",SUM(R74:W74,Control!$B$102),IF('Comparison - Category'!C74="Rural",SUM(R74:V74,Control!$B$103),P74/$F74*$H74)) -> 542.2596557
A75: =Control!A47 -> Carterton district | C75: =Control!B47 -> District wide | D75: =Control!C47 -> Carterton districtDistrict wide | F75: 4626940700 | G75: 5162 | H75: 896346.513 | J75: =INDEX(Gen!$D$10:$D$18,MATCH($A75,Gen!$A$10:$A$18,0),) -> 1967718.255 | K75: =INDEX('River management'!$C$10:$C$18,MATCH($A75,'River management'!$A$10:$A$18,0),) -> 27451.4 | L75: =INDEX('Public transport'!$I$10:$I$18,MATCH($A75,'Public transport'!$A$10:$A$18,0),) -> 858764.898 | M75: =INDEX(Stadium!$I$10:$I$18,MATCH($A75,Stadium!$A$10:$A$18,0),) -> 0 | N75: =INDEX(Remission!$D$10:$D$18,MATCH($A75,Remission!$A$10:$A$18,0),) -> 0 | O75: =INDEX('Economic Development'!$K$10:$K$18,MATCH($A75,'Economic Development'!$A$10:$A$18,0),) -> 80709.30904 | P75: 2934643.862 | R75: 381.1929978 | S75: 5.317977528 | T75: 166.3628241 | U75: 0 | V75: 0 | W75: 15.63527878 | X75: =IF('Comparison - Category'!C75="Residential",SUM(R75:W75,Control!$B$102),IF('Comparison - Category'!C75="Rural",SUM(R75:V75,Control!$B$103),P75/$F75*$H75)) -> 568.5090782
A76: =Control!A48 -> South Wairarapa district | C76: =Control!B48 -> District wide | D76: =Control!C48 -> South Wairarapa districtDistrict wide | F76: 7891083050 | G76: 7036 | H76: 1121529.711 | J76: =INDEX(Gen!$D$10:$D$18,MATCH($A76,Gen!$A$10:$A$18,0),) -> 3278234.171 | K76: =INDEX('River management'!$C$10:$C$18,MATCH($A76,'River management'!$A$10:$A$18,0),) -> 0 | L76: =INDEX('Public transport'!$I$10:$I$18,MATCH($A76,'Public transport'!$A$10:$A$18,0),) -> 1432820.377 | M76: =INDEX(Stadium!$I$10:$I$18,MATCH($A76,Stadium!$A$10:$A$18,0),) -> 0 | N76: =INDEX(Remission!$D$10:$D$18,MATCH($A76,Remission!$A$10:$A$18,0),) -> 0 | O76: =INDEX('Economic Development'!$K$10:$K$18,MATCH($A76,'Economic Development'!$A$10:$A$18,0),) -> 120864.3742 | P76: 4831918.922 | R76: 465.9229919 | S76: 0 | T76: 203.641327 | U76: 0 | V76: 0 | W76: 17.1779952 | X76: =IF('Comparison - Category'!C76="Residential",SUM(R76:W76,Control!$B$102),IF('Comparison - Category'!C76="Rural",SUM(R76:V76,Control!$B$103),P76/$F76*$H76)) -> 686.7423141
A77: =Control!A49 -> Tararua district | C77: =Control!B49 -> District wide | D77: =Control!C49 -> Tararua districtDistrict wide | F77: 20442000 | G77: 11 | H77: 1858363.636 | J77: =INDEX(Gen!$D$10:$D$18,MATCH($A77,Gen!$A$10:$A$18,0),) -> 9248.045263 | K77: =INDEX('River management'!$C$10:$C$18,MATCH($A77,'River management'!$A$10:$A$18,0),) -> 0 | L77: =INDEX('Public transport'!$I$10:$I$18,MATCH($A77,'Public transport'!$A$10:$A$18,0),) -> 0 | M77: =INDEX(Stadium!$I$10:$I$18,MATCH($A77,Stadium!$A$10:$A$18,0),) -> 0 | N77: =INDEX(Remission!$D$10:$D$18,MATCH($A77,Remission!$A$10:$A$18,0),) -> 0 | O77: =INDEX('Economic Development'!$K$10:$K$18,MATCH($A77,'Economic Development'!$A$10:$A$18,0),) -> 165 | P77: 9413.045263 | R77: 840.7313876 | S77: 0 | T77: 0 | U77: 0 | V77: 0 | W77: 15 | X77: =IF('Comparison - Category'!C77="Residential",SUM(R77:W77,Control!$B$102),IF('Comparison - Category'!C77="Rural",SUM(R77:V77,Control!$B$103),P77/$F77*$H77)) -> 855.7313876
A78: Region wide | D78: =Control!C50 -> Region wide | F78: =SUM(F69:F77) -> 239512083350 | G78: =SUM(G69:G77) -> 213243 | H78: =F78/G78 -> 1123188.491 | J78: =INDEX(ess_base_estract,MATCH(J66,ESSbase!$B$8:$B$25,0),MATCH(year_current,ESSbase!$F$6:$G$6,0)) -> 93556533.65 | K78: =INDEX(ess_base_estract,MATCH(K66,ESSbase!$B$8:$B$25,0),MATCH(year_current,ESSbase!$F$6:$G$6,0)) -> 12543524.56 | L78: =INDEX(ess_base_estract,MATCH(L66,ESSbase!$B$8:$B$25,0),MATCH(year_current,ESSbase!$F$6:$G$6,0)) -> 137936857.8 | M78: =INDEX(ess_base_estract,MATCH(M66,ESSbase!$B$8:$B$25,0),MATCH(year_current,ESSbase!$F$6:$G$6,0)) -> 0 | N78: =INDEX(ess_base_estract,MATCH(N66,ESSbase!$B$8:$B$25,0),MATCH(year_current,ESSbase!$F$6:$G$6,0)) -> 0 | O78: =INDEX(ess_base_estract,MATCH(O66,ESSbase!$B$8:$B$25,0),MATCH(year_current,ESSbase!$F$6:$G$6,0)) -> 4995999.85 | P78: =SUM(P69:P77) -> 249032915.9 | R78: 438.7320271 | S78: 58.8226791 | T78: 646.8529228 | U78: 0 | V78: 0 | W78: 23.42866987 | X78: =IF('Comparison - Category'!C78="Residential",SUM(R78:W78,Control!$B$102),IF('Comparison - Category'!C78="Rural",SUM(R78:V78,Control!$B$103),P78/$F78*$H78)) -> 1167.836299
A80: By TA & Category
A81: =Control!A66 -> Wellington city | B81: =Control!B66 -> Wellington city | C81: =Control!C66 -> Wellington CBD | D81: =Control!D66 -> Wellington cityWellington CBD | F81: =INDEX(capital_values,MATCH($D81,capital_values_rows,0),MATCH(F$66&" "&year_current,capital_values_header,0)) -> 13368376300 | G81: =INDEX(assessments,MATCH($D81,assessments_rows,0),MATCH(G$66&" "&year_current,assessments_header,0)) -> 2991 | H81: =F81/G81 -> 4469534.035 | J81: =($F81/INDEX($F$69:$F$77,MATCH($A81,$A$69:$A$77,0),)) * INDEX(J$69:J$77,MATCH($A81,$A$69:$A$77,0),) -> 4836895.603 | K81: =($F81/INDEX($F$69:$F$77,MATCH($A81,$A$69:$A$77,0),)) * INDEX(K$69:K$77,MATCH($A81,$A$69:$A$77,0),) -> 30259.55755 | L81: =INDEX('Public transport'!$I$23:$I$49,MATCH($D81,'Public transport'!$D$23:$D$49,0),) -> 40053106.49 | M81: =INDEX(Stadium!$I$23:$I$49,MATCH($D81,Stadium!$D$23:$D$49,0),) -> 0 | N81: =Remission!F24 -> 0 | O81: =INDEX('Economic Development'!$K$23:$K$49,MATCH($D81,'Economic Development'!$D$23:$D$49,0),) -> 736158.9514 | P81: =SUM(J81:O81) -> 45656420.6 | R81: =J81/$F81*$H81 -> 1617.149984 | S81: =K81/$F81*$H81 -> 10.11686979 | T81: =L81/$F81*$H81 -> 13391.20912 | U81: =M81/$F81*$H81 -> 0 | V81: 0 | W81: =IF(AND('Comparison - Category'!C81="Residential",Control!$B$102<>"Remainder"),Control!$B$102,IF(AND('Comparison - Category'!C81="Rural",Control!$B$102<>"Remainder"),Control!$B$103,O81/$F81*$H81)) -> 246.1246912 | X81: =IF('Comparison - Category'!C81="Residential",SUM(R81:V81,Control!$B$102),IF('Comparison - Category'!C81="Rural",SUM(R81:V81,Control!$B$103),P81/$F81*$H81)) -> 15264.60067 | Z81: =J81/$F81*100 -> 0.03618162367 | AA81: =K81/$F81*100 -> 0.0002263517788 | AB81: =L81/$F81*100 -> 0.2996108547 | AC81: =M81/$F81*100 -> 0 | AD81: 0 | AE81: =IF(OR('Comparison - Category'!C81="Residential",'Comparison - Category'!C81="Rural"),W81,O81/$F81*100) -> 0.005506719252 | AF81: =P81/$F81*100 -> 0.3415255494
A82: =Control!A67 -> Wellington city | B82: =Control!B67 -> Wellington city | C82: =Control!C67 -> Business | D82: =Control!D67 -> Wellington cityBusiness | F82: 6480398350 | G82: 1841 | H82: 3520042.558 | J82: 2344713.343 | K82: =($F82/INDEX($F$69:$F$77,MATCH($A82,$A$69:$A$77,0),)) * INDEX(K$69:K$77,MATCH($A82,$A$69:$A$77,0),) -> 14668.49694 | L82: =INDEX('Public transport'!$I$23:$I$49,MATCH($D82,'Public transport'!$D$23:$D$49,0),) -> 3883195.377 | M82: =INDEX(Stadium!$I$23:$I$49,MATCH($D82,Stadium!$D$23:$D$49,0),) -> 0 | N82: =Remission!F25 -> 0 | O82: =INDEX('Economic Development'!$K$23:$K$49,MATCH($D82,'Economic Development'!$D$23:$D$49,0),) -> 356857.3435 | P82: =SUM(J82:O82) -> 6599434.56 | R82: =J82/$F82*$H82 -> 1273.608551 | S82: 7.967678946 | T82: 2109.285919 | U82: 0 | V82: 0 | W82: =IF(AND('Comparison - Category'!C82="Residential",Control!$B$102<>"Remainder"),Control!$B$102,IF(AND('Comparison - Category'!C82="Rural",Control!$B$102<>"Remainder"),Control!$B$103,O82/$F82*$H82)) -> 193.8388612 | X82: =IF('Comparison - Category'!C82="Residential",SUM(R82:V82,Control!$B$102),IF('Comparison - Category'!C82="Rural",SUM(R82:V82,Control!$B$103),P82/$F82*$H82)) -> 3584.70101 | Z82: =J82/$F82*100 -> 0.03618162367 | AA82: 0.0002263517788 | AB82: 0.05992217094 | AC82: 0 | AD82: 0 | AE82: =IF(OR('Comparison - Category'!C82="Residential",'Comparison - Category'!C82="Rural"),W82,O82/$F82*100) -> 0.005506719252 | AF82: =P82/$F82*100 -> 0.1018368656
A83: =Control!A68 -> Wellington city | B83: =Control!B68 -> Wellington city | C83: =Control!C68 -> Residential | D83: =Control!D68 -> Wellington cityResidential | F83: 96040762550 | G83: 75387 | H83: 1273969.816 | J83: 34749107.27 | K83: 217389.9744 | L83: =INDEX('Public transport'!$I$23:$I$49,MATCH($D83,'Public transport'!$D$23:$D$49,0),) -> 41106935.64 | M83: =INDEX(Stadium!$I$23:$I$49,MATCH($D83,Stadium!$D$23:$D$49,0),) -> 0 | N83: =Remission!F26 -> 0 | O83: =INDEX('Economic Development'!$K$23:$K$49,MATCH($D83,'Economic Development'!$D$23:$D$49,0),) -> 1130805 | P83: 77204237.89 | R83: 460.9429646 | S83: 2.883653341 | T83: 545.2788365 | U83: 0 | V83: 0 | W83: =IF(AND('Comparison - Category'!C83="Residential",Control!$B$102<>"Remainder"),Control!$B$102,IF(AND('Comparison - Category'!C83="Rural",Control!$B$102<>"Remainder"),Control!$B$103,O83/$F83*$H83)) -> 15 | X83: =IF('Comparison - Category'!C83="Residential",SUM(R83:V83,Control!$B$102),IF('Comparison - Category'!C83="Rural",SUM(R83:V83,Control!$B$103),P83/$F83*$H83)) -> 1024.105454 | Z83: 0.03618162367 | AA83: 0.0002263517788 | AB83: 0.04280155067 | AC83: 0 | AD83: 0 | AE83: =IF(OR('Comparison - Category'!C83="Residential",'Comparison - Category'!C83="Rural"),W83,O83/$F83*100) -> 15 | AF83: 0.08038694804
A84: =Control!A69 -> Wellington city | B84: =Control!B69 -> Wellington city | C84: =Control!C69 -> Rural | D84: =Control!D69 -> Wellington cityRural | F84: 1437369350 | G84: 902 | H84: 1593535.865 | J84: 520063.5689 | K84: 3253.511092 | L84: =INDEX('Public transport'!$I$23:$I$49,MATCH($D84,'Public transport'!$D$23:$D$49,0),) -> 153804.0927 | M84: =INDEX(Stadium!$I$23:$I$49,MATCH($D84,Stadium!$D$23:$D$49,0),) -> 0 | N84: =Remission!F27 -> 0 | O84: =INDEX('Economic Development'!$K$23:$K$49,MATCH($D84,'Economic Development'!$D$23:$D$49,0),) -> 13530 | P84: 690651.1727 | R84: 576.5671496 | S84: 3.606996776 | T84: 170.5145151 | U84: 0 | V84: 0 | W84: =IF(AND('Comparison - Category'!C84="Residential",Control!$B$102<>"Remainder"),Control!$B$102,IF(AND('Comparison - Category'!C84="Rural",Control!$B$102<>"Remainder"),Control!$B$103,O84/$F84*$H84)) -> 15 | X84: =IF('Comparison - Category'!C84="Residential",SUM(R84:V84,Control!$B$102),IF('Comparison - Category'!C84="Rural",SUM(R84:V84,Control!$B$103),P84/$F84*$H84)) -> 765.6886615 | Z84: 0.03618162367 | AA84: 0.0002263517788 | AB84: 0.01070038767 | AC84: 0 | AD84: 0 | AE84: =IF(OR('Comparison - Category'!C84="Residential",'Comparison - Category'!C84="Rural"),W84,O84/$F84*100) -> 15 | AF84: 0.04804966606
A85: =Control!A70 -> Hutt city | B85: =Control!B70 -> Hutt city | C85: =Control!C70 -> Business | D85: =Control!D70 -> Hutt cityBusiness | F85: 6742241000 | G85: 2515 | H85: 2680811.531 | J85: 2795320.864 | K85: 1518353.976 | L85: =INDEX('Public transport'!$I$23:$I$49,MATCH($D85,'Public transport'!$D$23:$D$49,0),) -> 4629468.709 | M85: =INDEX(Stadium!$I$23:$I$49,MATCH($D85,Stadium!$D$23:$D$49,0),) -> 0 | N85: =($F85/INDEX($F$69:$F$77,MATCH($A85,$A$69:$A$77,0),))*INDEX(N$69:N$77,MATCH($A85,$A$69:$A$77,0),) -> 0 | O85: =INDEX('Economic Development'!$K$23:$K$49,MATCH($D85,'Economic Development'!$D$23:$D$49,0),) -> 425438.2655 | P85: 9368581.815 | R85: 1111.459588 | S85: 603.7192749 | T85: 1840.743026 | U85: 0 | V85: 0 | W85: =IF(AND('Comparison - Category'!C85="Residential",Control!$B$102<>"Remainder"),Control!$B$102,IF(AND('Comparison - Category'!C85="Rural",Control!$B$102<>"Remainder"),Control!$B$103,O85/$F85*$H85)) -> 169.1603441 | X85: =IF('Comparison - Category'!C85="Residential",SUM(R85:V85,Control!$B$102),IF('Comparison - Category'!C85="Rural",SUM(R85:V85,Control!$B$103),P85/$F85*$H85)) -> 3725.082233 | Z85: 0.04145981824 | AA85: 0.02252001933 | AB85: 0.06866364921 | AC85: 0 | AD85: 0 | AE85: =IF(OR('Comparison - Category'!C85="Residential",'Comparison - Category'!C85="Rural"),W85,O85/$F85*100) -> 0.006310042395 | AF85: 0.1389535292
A86: =Control!A71 -> Hutt city | B86: =Control!B71 -> Hutt city | C86: =Control!C71 -> Residential | D86: =Control!D71 -> Hutt cityResidential | F86: 32406254500 | G86: 39121 | H86: 828359.5639 | J86: 13435574.21 | K86: 7297894.777 | L86: =INDEX('Public transport'!$I$23:$I$49,MATCH($D86,'Public transport'!$D$23:$D$49,0),) -> 15893797.79 | M86: =INDEX(Stadium!$I$23:$I$49,MATCH($D86,Stadium!$D$23:$D$49,0),) -> 0 | N86: =($F86/INDEX($F$69:$F$77,MATCH($A86,$A$69:$A$77,0),))*INDEX(N$69:N$77,MATCH($A86,$A$69:$A$77,0),) -> 0 | O86: =INDEX('Economic Development'!$K$23:$K$49,MATCH($D86,'Economic Development'!$D$23:$D$49,0),) -> 586530 | P86: 37213796.79 | R86: 343.4363696 | S86: 186.5467339 | T86: 406.2727894 | U86: 0 | V86: 0 | W86: =IF(AND('Comparison - Category'!C86="Residential",Control!$B$102<>"Remainder"),Control!$B$102,IF(AND('Comparison - Category'!C86="Rural",Control!$B$102<>"Remainder"),Control!$B$103,O86/$F86*$H86)) -> 15 | X86: =IF('Comparison - Category'!C86="Residential",SUM(R86:V86,Control!$B$102),IF('Comparison - Category'!C86="Rural",SUM(R86:V86,Control!$B$103),P86/$F86*$H86)) -> 951.2558929 | Z86: 0.04145981824 | AA86: 0.02252001933 | AB86: 0.04904546372 | AC86: 0 | AD86: 0 | AE86: =IF(OR('Comparison - Category'!C86="Residential",'Comparison - Category'!C86="Rural"),W86,O86/$F86*100) -> 15 | AF86: 0.1148352297
A87: =Control!A72 -> Hutt city | B87: =Control!B72 -> Hutt city | C87: =Control!C72 -> Rural | D87: =Control!D72 -> Hutt cityRural | F87: 558680500 | G87: 446 | H87: 1252646.861 | J87: 231627.9198 | K87: 125814.9566 | L87: =INDEX('Public transport'!$I$23:$I$49,MATCH($D87,'Public transport'!$D$23:$D$49,0),) -> 68501.86049 | M87: =INDEX(Stadium!$I$23:$I$49,MATCH($D87,Stadium!$D$23:$D$49,0),) -> 0 | N87: 0 | O87: =INDEX('Economic Development'!$K$23:$K$49,MATCH($D87,'Economic Development'!$D$23:$D$49,0),) -> 6690 | P87: 432634.7369 | R87: 519.3451117 | S87: 282.0963152 | T87: 153.5916154 | U87: 0 | V87: 0 | W87: =IF(AND('Comparison - Category'!C87="Residential",Control!$B$102<>"Remainder"),Control!$B$102,IF(AND('Comparison - Category'!C87="Rural",Control!$B$102<>"Remainder"),Control!$B$103,O87/$F87*$H87)) -> 15 | X87: =IF('Comparison - Category'!C87="Residential",SUM(R87:V87,Control!$B$102),IF('Comparison - Category'!C87="Rural",SUM(R87:V87,Control!$B$103),P87/$F87*$H87)) -> 970.0330424 | Z87: 0.04145981824 | AA87: 0.02252001933 | AB87: 0.01226136593 | AC87: 0 | AD87: 0 | AE87: =IF(OR('Comparison - Category'!C87="Residential",'Comparison - Category'!C87="Rural"),W87,O87/$F87*100) -> 15 | AF87: 0.07743866788
A88: =Control!A73 -> Upper Hutt city | B88: =Control!B73 -> Upper Hutt city | C88: =Control!C73 -> Business | D88: =Control!D73 -> Upper Hutt cityBusiness | F88: 2074242950 | G88: 819 | H88: 2532653.175 | J88: 818662.0397 | K88: 180676.208 | L88: =INDEX('Public transport'!$I$23:$I$49,MATCH($D88,'Public transport'!$D$23:$D$49,0),) -> 1355826.569 | M88: =INDEX(Stadium!$I$23:$I$49,MATCH($D88,Stadium!$D$23:$D$49,0),) -> 0 | N88: 0 | O88: =INDEX('Economic Development'!$K$23:$K$49,MATCH($D88,'Economic Development'!$D$23:$D$49,0),) -> 124597.5597 | P88: 2479762.376 | R88: 999.58735 | S88: 220.6058706 | T88: 1655.465896 | U88: 0 | V88: 0 | W88: =IF(AND('Comparison - Category'!C88="Residential",Control!$B$102<>"Remainder"),Control!$B$102,IF(AND('Comparison - Category'!C88="Rural",Control!$B$102<>"Remainder"),Control!$B$103,O88/$F88*$H88)) -> 152.1337725 | X88: =IF('Comparison - Category'!C88="Residential",SUM(R88:V88,Control!$B$102),IF('Comparison - Category'!C88="Rural",SUM(R88:V88,Control!$B$103),P88/$F88*$H88)) -> 3027.792889 | Z88: 0.03946799191 | AA88: 0.008710465089 | AB88: 0.06536488742 | AC88: 0 | AD88: 0 | AE88: =IF(OR('Comparison - Category'!C88="Residential",'Comparison - Category'!C88="Rural"),W88,O88/$F88*100) -> 0.006006893247 | AF88: 0.1195502377
A89: =Control!A74 -> Upper Hutt city | B89: =Control!B74 -> Upper Hutt city | C89: =Control!C74 -> Residential | D89: =Control!D74 -> Upper Hutt cityResidential | F89: 12920826400 | G89: 15899 | H89: 812681.7033 | J89: 5099590.718 | K89: 1125464.073 | L89: =INDEX('Public transport'!$I$23:$I$49,MATCH($D89,'Public transport'!$D$23:$D$49,0),) -> 6032631.164 | M89: =INDEX(Stadium!$I$23:$I$49,MATCH($D89,Stadium!$D$23:$D$49,0),) -> 0 | N89: 0 | O89: =INDEX('Economic Development'!$K$23:$K$49,MATCH($D89,'Economic Development'!$D$23:$D$49,0),) -> 238170 | P89: 12495855.95 | R89: 320.7491489 | S89: 70.78835604 | T89: 379.4346289 | U89: 0 | V89: 0 | W89: =IF(AND('Comparison - Category'!C89="Residential",Control!$B$102<>"Remainder"),Control!$B$102,IF(AND('Comparison - Category'!C89="Rural",Control!$B$102<>"Remainder"),Control!$B$103,O89/$F89*$H89)) -> 15 | X89: =IF('Comparison - Category'!C89="Residential",SUM(R89:V89,Control!$B$102),IF('Comparison - Category'!C89="Rural",SUM(R89:V89,Control!$B$103),P89/$F89*$H89)) -> 785.9721338 | Z89: 0.03946799191 | AA89: 0.008710465089 | AB89: 0.0466892053 | AC89: 0 | AD89: 0 | AE89: =IF(OR('Comparison - Category'!C89="Residential",'Comparison - Category'!C89="Rural"),W89,O89/$F89*100) -> 15 | AF89: 0.09671096544
A90: =Control!A75 -> Upper Hutt city | B90: =Control!B75 -> Upper Hutt city | C90: =Control!C75 -> Rural | D90: =Control!D75 -> Upper Hutt cityRural | F90: 1861831000 | G90: 1354 | H90: 1375059.823 | J90: 734827.3084 | K90: 162174.1393 | L90: =INDEX('Public transport'!$I$23:$I$49,MATCH($D90,'Public transport'!$D$23:$D$49,0),) -> 217318.5245 | M90: =INDEX(Stadium!$I$23:$I$49,MATCH($D90,Stadium!$D$23:$D$49,0),) -> 0 | N90: 0 | O90: =INDEX('Economic Development'!$K$23:$K$49,MATCH($D90,'Economic Development'!$D$23:$D$49,0),) -> 19500 | P90: 1133819.972 | R90: 542.7084996 | S90: 119.7741058 | T90: 160.5011259 | U90: 0 | V90: 0 | W90: =IF(AND('Comparison - Category'!C90="Residential",Control!$B$102<>"Remainder"),Control!$B$102,IF(AND('Comparison - Category'!C90="Rural",Control!$B$102<>"Remainder"),Control!$B$103,O90/$F90*$H90)) -> 15 | X90: =IF('Comparison - Category'!C90="Residential",SUM(R90:V90,Control!$B$102),IF('Comparison - Category'!C90="Rural",SUM(R90:V90,Control!$B$103),P90/$F90*$H90)) -> 837.9837313 | Z90: 0.03946799191 | AA90: 0.008710465089 | AB90: 0.01167230132 | AC90: 0 | AD90: 0 | AE90: =IF(OR('Comparison - Category'!C90="Residential",'Comparison - Category'!C90="Rural"),W90,O90/$F90*100) -> 15 | AF90: 0.06089811439
A91: =Control!A76 -> Porirua city | B91: =Control!B76 -> Porirua city | C91: =Control!C76 -> Business | D91: =Control!D76 -> Porirua cityBusiness | F91: 1752175500 | G91: 856 | H91: 2046933.995 | J91: 735146.6787 | K91: 8311.330908 | L91: =INDEX('Public transport'!$I$23:$I$49,MATCH($D91,'Public transport'!$D$23:$D$49,0),) -> 1217512.662 | M91: =INDEX(Stadium!$I$23:$I$49,MATCH($D91,Stadium!$D$23:$D$49,0),) -> 0 | N91: 0 | O91: =INDEX('Economic Development'!$K$23:$K$49,MATCH($D91,'Economic Development'!$D$23:$D$49,0),) -> 111886.8077 | P91: 2072857.479 | R91: 858.8162135 | S91: 9.709498725 | T91: 1422.327876 | U91: 0 | V91: 0 | W91: =IF(AND('Comparison - Category'!C91="Residential",Control!$B$102<>"Remainder"),Control!$B$102,IF(AND('Comparison - Category'!C91="Rural",Control!$B$102<>"Remainder"),Control!$B$103,O91/$F91*$H91)) -> 130.7088875 | X91: =IF('Comparison - Category'!C91="Residential",SUM(R91:V91,Control!$B$102),IF('Comparison - Category'!C91="Rural",SUM(R91:V91,Control!$B$103),P91/$F91*$H91)) -> 2421.562476 | Z91: 0.04195622406 | AA91: 0.000474343518 | AB91: 0.06948577137 | AC91: 0 | AD91: 0 | AE91: =IF(OR('Comparison - Category'!C91="Residential",'Comparison - Category'!C91="Rural"),W91,O91/$F91*100) -> 0.006385593662 | AF91: 0.1183019326
A92: =Control!A77 -> Porirua city | B92: =Control!B77 -> Porirua city | C92: =Control!C77 -> Residential | D92: =Control!D77 -> Porirua cityResidential | F92: 16374013500 | G92: 18678 | H92: 876647.0447 | J92: 6869917.792 | K92: 77669.07167 | L92: =INDEX('Public transport'!$I$23:$I$49,MATCH($D92,'Public transport'!$D$23:$D$49,0),) -> 8126863.989 | M92: =INDEX(Stadium!$I$23:$I$49,MATCH($D92,Stadium!$D$23:$D$49,0),) -> 0 | N92: 0 | O92: =INDEX('Economic Development'!$K$23:$K$49,MATCH($D92,'Economic Development'!$D$23:$D$49,0),) -> 280170 | P92: 15354620.85 | R92: 367.8079983 | S92: 4.158318432 | T92: 435.1035437 | U92: 0 | V92: 0 | W92: =IF(AND('Comparison - Category'!C92="Residential",Control!$B$102<>"Remainder"),Control!$B$102,IF(AND('Comparison - Category'!C92="Rural",Control!$B$102<>"Remainder"),Control!$B$103,O92/$F92*$H92)) -> 15 | X92: =IF('Comparison - Category'!C92="Residential",SUM(R92:V92,Control!$B$102),IF('Comparison - Category'!C92="Rural",SUM(R92:V92,Control!$B$103),P92/$F92*$H92)) -> 822.0698604 | Z92: 0.04195622406 | AA92: 0.000474343518 | AB92: 0.04963269384 | AC92: 0 | AD92: 0 | AE92: =IF(OR('Comparison - Category'!C92="Residential",'Comparison - Category'!C92="Rural"),W92,O92/$F92*100) -> 15 | AF92: 0.09377432633
A93: =Control!A78 -> Porirua city | B93: =Control!B78 -> Porirua city | C93: =Control!C78 -> Rural | D93: =Control!D78 -> Porirua cityRural | F93: 1283794800 | G93: 657 | H93: 1954025.571 | J93: 538631.8228 | K93: 6089.597418 | L93: =INDEX('Public transport'!$I$23:$I$49,MATCH($D93,'Public transport'!$D$23:$D$49,0),) -> 159295.4856 | M93: =INDEX(Stadium!$I$23:$I$49,MATCH($D93,Stadium!$D$23:$D$49,0),) -> 0 | N93: 0 | O93: =INDEX('Economic Development'!$K$23:$K$49,MATCH($D93,'Economic Development'!$D$23:$D$49,0),) -> 9855 | P93: 713871.9058 | R93: 819.8353467 | S93: 9.268793635 | T93: 242.4588823 | U93: 0 | V93: 0 | W93: =IF(AND('Comparison - Category'!C93="Residential",Control!$B$102<>"Remainder"),Control!$B$102,IF(AND('Comparison - Category'!C93="Rural",Control!$B$102<>"Remainder"),Control!$B$103,O93/$F93*$H93)) -> 15 | X93: =IF('Comparison - Category'!C93="Residential",SUM(R93:V93,Control!$B$102),IF('Comparison - Category'!C93="Rural",SUM(R93:V93,Control!$B$103),P93/$F93*$H93)) -> 1086.563023 | Z93: 0.04195622406 | AA93: 0.000474343518 | AB93: 0.01240817346 | AC93: 0 | AD93: 0 | AE93: =IF(OR('Comparison - Category'!C93="Residential",'Comparison - Category'!C93="Rural"),W93,O93/$F93*100) -> 15 | AF93: 0.05560638708
A94: =Control!A79 -> Kāpiti Coast district | B94: =Control!B79 -> Kāpiti Coast district | C94: =Control!C79 -> Business | D94: =Control!D79 -> Kāpiti Coast districtBusiness | F94: 2118502900 | G94: 1245 | H94: 1701608.755 | J94: 905660.4365 | K94: 160018.5723 | L94: =INDEX('Public transport'!$I$23:$I$49,MATCH($D94,'Public transport'!$D$23:$D$49,0),) -> 1499908.904 | M94: =INDEX(Stadium!$I$23:$I$49,MATCH($D94,Stadium!$D$23:$D$49,0),) -> 0 | N94: 0 | O94: =INDEX('Economic Development'!$K$23:$K$49,MATCH($D94,'Economic Development'!$D$23:$D$49,0),) -> 137838.4178 | P94: 2703426.33 | R94: 727.4381016 | S94: 128.5289737 | T94: 1204.746107 | U94: 0 | V94: 0 | W94: =IF(AND('Comparison - Category'!C94="Residential",Control!$B$102<>"Remainder"),Control!$B$102,IF(AND('Comparison - Category'!C94="Rural",Control!$B$102<>"Remainder"),Control!$B$103,O94/$F94*$H94)) -> 110.7135886 | X94: =IF('Comparison - Category'!C94="Residential",SUM(R94:V94,Control!$B$102),IF('Comparison - Category'!C94="Rural",SUM(R94:V94,Control!$B$103),P94/$F94*$H94)) -> 2171.426771 | Z94: 0.04275002109 | AA94: 0.007553379902 | AB94: 0.07080041776 | AC94: 0 | AD94: 0 | AE94: =IF(OR('Comparison - Category'!C94="Residential",'Comparison - Category'!C94="Rural"),W94,O94/$F94*100) -> 0.006506406852 | AF94: 0.1276102256
A95: =Control!A80 -> Kāpiti Coast district | B95: =Control!B80 -> Kāpiti Coast district excl Ōtaki | C95: =Control!C80 -> Residential | D95: =Control!D80 -> Kāpiti Coast district excl Ōtaki Residential | F95: 15678065400 | G95: 18667 | H95: 839881.3628 | J95: 6702376.265 | K95: 1184223.841 | L95: =INDEX('Public transport'!$I$23:$I$49,MATCH($D95,'Public transport'!$D$23:$D$49,0),) -> 7928668.429 | M95: =INDEX(Stadium!$I$23:$I$49,MATCH($D95,Stadium!$D$23:$D$49,0),) -> 0 | N95: 0 | O95: =INDEX('Economic Development'!$K$23:$K$49,MATCH($D95,'Economic Development'!$D$23:$D$49,0),) -> 277035 | P95: 16092303.53 | R95: 359.0494597 | S95: 63.43943006 | T95: 424.7425097 | U95: 0 | V95: 0 | W95: =IF(AND('Comparison - Category'!C95="Residential",Control!$B$102<>"Remainder"),Control!$B$102,IF(AND('Comparison - Category'!C95="Rural",Control!$B$102<>"Remainder"),Control!$B$103,O95/$F95*$H95)) -> 15 | X95: =IF('Comparison - Category'!C95="Residential",SUM(R95:V95,Control!$B$102),IF('Comparison - Category'!C95="Rural",SUM(R95:V95,Control!$B$103),P95/$F95*$H95)) -> 862.2313995 | Z95: 0.04275002109 | AA95: 0.007553379902 | AB95: 0.05057172697 | AC95: 0 | AD95: 0 | AE95: =IF(OR('Comparison - Category'!C95="Residential",'Comparison - Category'!C95="Rural"),W95,O95/$F95*100) -> 15 | AF95: 0.1026421508
A96: =Control!A81 -> Kāpiti Coast district | B96: =Control!B81 -> Ōtaki rating area | C96: =Control!C81 -> Residential | D96: =Control!D81 -> Ōtaki rating areaResidential | F96: 2036169400 | G96: 3389 | H96: =F96/G96 -> 600817.1732 | J96: 870462.8479 | K96: 153799.6102 | L96: =INDEX('Public transport'!$I$23:$I$49,MATCH($D96,'Public transport'!$D$23:$D$49,0),) -> 514863.0149 | M96: =INDEX(Stadium!$I$23:$I$49,MATCH($D96,Stadium!$D$23:$D$49,0),) -> 0 | N96: 0 | O96: =INDEX('Economic Development'!$K$23:$K$49,MATCH($D96,'Economic Development'!$D$23:$D$49,0),) -> 50280 | P96: 1589405.473 | R96: =J96/$F96*$H96 -> 256.8494682 | S96: =K96/$F96*$H96 -> 45.38200361 | T96: =L96/$F96*$H96 -> 151.9218102 | U96: =M96/$F96*$H96 -> 0 | V96: 0 | W96: =IF(AND('Comparison - Category'!C96="Residential",Control!$B$102<>"Remainder"),Control!$B$102,IF(AND('Comparison - Category'!C96="Rural",Control!$B$102<>"Remainder"),Control!$B$103,O96/$F96*$H96)) -> 15 | X96: =IF('Comparison - Category'!C96="Residential",SUM(R96:V96,Control!$B$102),IF('Comparison - Category'!C96="Rural",SUM(R96:V96,Control!$B$103),P96/$F96*$H96)) -> 469.1532821 | Z96: 0.04275002109 | AA96: 0.007553379902 | AB96: 0.02528586349 | AC96: 0 | AD96: 0 | AE96: =IF(OR('Comparison - Category'!C96="Residential",'Comparison - Category'!C96="Rural"),W96,O96/$F96*100) -> 15 | AF96: 0.07805860716
A97: =Control!A82 -> Kāpiti Coast district | B97: =Control!B82 -> Kāpiti Coast district | C97: =Control!C82 -> Rural | D97: =Control!D82 -> Kāpiti Coast districtRural | F97: 3309928400 | G97: 2745 | H97: 1205802.696 | J97: 1414995.089 | K97: 250011.4665 | L97: =INDEX('Public transport'!$I$23:$I$49,MATCH($D97,'Public transport'!$D$23:$D$49,0),) -> 418471.9884 | M97: =INDEX(Stadium!$I$23:$I$49,MATCH($D97,Stadium!$D$23:$D$49,0),) -> 0 | N97: 0 | O97: =INDEX('Economic Development'!$K$23:$K$49,MATCH($D97,'Economic Development'!$D$23:$D$49,0),) -> 39345 | P97: 2122823.544 | R97: 515.4809067 | S97: 91.07885848 | T97: 152.4488118 | U97: 0 | V97: 0 | W97: =IF(AND('Comparison - Category'!C97="Residential",Control!$B$102<>"Remainder"),Control!$B$102,IF(AND('Comparison - Category'!C97="Rural",Control!$B$102<>"Remainder"),Control!$B$103,O97/$F97*$H97)) -> 15 | X97: =IF('Comparison - Category'!C97="Residential",SUM(R97:V97,Control!$B$102),IF('Comparison - Category'!C97="Rural",SUM(R97:V97,Control!$B$103),P97/$F97*$H97)) -> 774.008577 | Z97: 0.04275002109 | AA97: 0.007553379902 | AB97: 0.01264293174 | AC97: 0 | AD97: 0 | AE97: =IF(OR('Comparison - Category'!C97="Residential",'Comparison - Category'!C97="Rural"),W97,O97/$F97*100) -> 15 | AF97: 0.06413502914
A98: =Control!A83 -> Masterton district | B98: =Control!B83 -> Masterton district | C98: =Control!C83 -> Business | D98: =Control!D83 -> Masterton districtBusiness | F98: =INDEX(capital_values,MATCH($D98,capital_values_rows,0),MATCH(F$66&" "&year_current,capital_values_header,0)) -> 954405000 | G98: 601 | H98: 1588028.286 | J98: 425790.2686 | K98: 0 | L98: =INDEX('Public transport'!$I$23:$I$49,MATCH($D98,'Public transport'!$D$23:$D$49,0),) -> 503694.4699 | M98: =INDEX(Stadium!$I$23:$I$49,MATCH($D98,Stadium!$D$23:$D$49,0),) -> 0 | N98: 0 | O98: =INDEX('Economic Development'!$K$23:$K$49,MATCH($D98,'Economic Development'!$D$23:$D$49,0),) -> 64803.82115 | P98: 994288.5596 | R98: 708.4696648 | S98: 0 | T98: 838.0939599 | U98: 0 | V98: 0 | W98: =IF(AND('Comparison - Category'!C98="Residential",Control!$B$102<>"Remainder"),Control!$B$102,IF(AND('Comparison - Category'!C98="Rural",Control!$B$102<>"Remainder"),Control!$B$103,O98/$F98*$H98)) -> 107.8266575 | X98: =IF('Comparison - Category'!C98="Residential",SUM(R98:V98,Control!$B$102),IF('Comparison - Category'!C98="Rural",SUM(R98:V98,Control!$B$103),P98/$F98*$H98)) -> 1654.390282 | Z98: 0.04461316407 | AA98: 0 | AB98: 0.05277575766 | AC98: 0 | AD98: 0 | AE98: =IF(OR('Comparison - Category'!C98="Residential",'Comparison - Category'!C98="Rural"),W98,O98/$F98*100) -> 0.006789970835 | AF98: 0.1041788926
A99: =Control!A84 -> Masterton district | B99: =Control!B84 -> Masterton district | C99: =Control!C84 -> Residential | D99: =Control!D84 -> Masterton districtResidential | F99: =INDEX(capital_values,MATCH($D99,capital_values_rows,0),MATCH(F$66&" "&year_current,capital_values_header,0)) -> 4684053500 | G99: 8805 | H99: 531976.5474 | J99: 2089704.473 | K99: 0 | L99: =INDEX('Public transport'!$I$23:$I$49,MATCH($D99,'Public transport'!$D$23:$D$49,0),) -> 1236022.362 | M99: =INDEX(Stadium!$I$23:$I$49,MATCH($D99,Stadium!$D$23:$D$49,0),) -> 0 | N99: 0 | O99: =INDEX('Economic Development'!$K$23:$K$49,MATCH($D99,'Economic Development'!$D$23:$D$49,0),) -> 130095 | P99: =SUM(J99:O99) -> 3455821.835 | R99: 237.3315699 | S99: 0 | T99: 140.3773267 | U99: 0 | V99: 0 | W99: =IF(AND('Comparison - Category'!C99="Residential",Control!$B$102<>"Remainder"),Control!$B$102,IF(AND('Comparison - Category'!C99="Rural",Control!$B$102<>"Remainder"),Control!$B$103,O99/$F99*$H99)) -> 15 | X99: =IF('Comparison - Category'!C99="Residential",SUM(R99:V99,Control!$B$102),IF('Comparison - Category'!C99="Rural",SUM(R99:V99,Control!$B$103),P99/$F99*$H99)) -> 392.7088967 | Z99: 0.04461316407 | AA99: 0 | AB99: 0.02638787883 | AC99: 0 | AD99: 0 | AE99: =IF(OR('Comparison - Category'!C99="Residential",'Comparison - Category'!C99="Rural"),W99,O99/$F99*100) -> 15 | AF99: 0.073778445
A100: =Control!A85 -> Masterton district | B100: =Control!B85 -> Masterton district | C100: =Control!C85 -> Rural | D100: =Control!D85 -> Masterton districtRural | F100: 4891526300 | G100: 4116 | H100: 1188417.468 | J100: 2182264.654 | K100: 0 | L100: =INDEX('Public transport'!$I$23:$I$49,MATCH($D100,'Public transport'!$D$23:$D$49,0),) -> 645385.0165 | M100: =INDEX(Stadium!$I$23:$I$49,MATCH($D100,Stadium!$D$23:$D$49,0),) -> 0 | N100: 0 | O100: =INDEX('Economic Development'!$K$23:$K$49,MATCH($D100,'Economic Development'!$D$23:$D$49,0),) -> 54675 | P100: 2882324.67 | R100: 530.190635 | S100: 0 | T100: 156.7990808 | U100: 0 | V100: 0 | W100: =IF(AND('Comparison - Category'!C100="Residential",Control!$B$102<>"Remainder"),Control!$B$102,IF(AND('Comparison - Category'!C100="Rural",Control!$B$102<>"Remainder"),Control!$B$103,O100/$F100*$H100)) -> 15 | X100: =IF('Comparison - Category'!C100="Residential",SUM(R100:V100,Control!$B$102),IF('Comparison - Category'!C100="Rural",SUM(R100:V100,Control!$B$103),P100/$F100*$H100)) -> 701.9897158 | Z100: 0.04461316407 | AA100: 0 | AB100: 0.01319393942 | AC100: 0 | AD100: 0 | AE100: =IF(OR('Comparison - Category'!C100="Residential",'Comparison - Category'!C100="Rural"),W100,O100/$F100*100) -> 15 | AF100: 0.05892485277
A101: =Control!A86 -> Carterton district | B101: =Control!B86 -> Carterton district | C101: =Control!C86 -> Business | D101: =Control!D86 -> Carterton districtBusiness | F101: 198752500 | G101: 234 | H101: 849369.6581 | J101: 84524.2997 | K101: 1179.188309 | L101: =INDEX('Public transport'!$I$23:$I$49,MATCH($D101,'Public transport'!$D$23:$D$49,0),) -> 99989.18594 | M101: =INDEX(Stadium!$I$23:$I$49,MATCH($D101,Stadium!$D$23:$D$49,0),) -> 0 | N101: 0 | O101: =INDEX('Economic Development'!$K$23:$K$49,MATCH($D101,'Economic Development'!$D$23:$D$49,0),) -> 12864.30904 | P101: 198556.983 | R101: 361.214956 | S101: 5.039266277 | T101: 427.3042134 | U101: 0 | V101: 0 | W101: =IF(AND('Comparison - Category'!C101="Residential",Control!$B$102<>"Remainder"),Control!$B$102,IF(AND('Comparison - Category'!C101="Rural",Control!$B$102<>"Remainder"),Control!$B$103,O101/$F101*$H101)) -> 54.97567966 | X101: =IF('Comparison - Category'!C101="Residential",SUM(R101:V101,Control!$B$102),IF('Comparison - Category'!C101="Rural",SUM(R101:V101,Control!$B$103),P101/$F101*$H101)) -> 848.5341154 | Z101: 0.0425274146 | AA101: 0.0005932948309 | AB101: 0.05030839156 | AC101: 0 | AD101: 0 | AE101: =IF(OR('Comparison - Category'!C101="Residential",'Comparison - Category'!C101="Rural"),W101,O101/$F101*100) -> 0.006472526907 | AF101: 0.0999016279
A102: =Control!A87 -> Carterton district | B102: =Control!B87 -> Carterton district | C102: =Control!C87 -> Residential | D102: =Control!D87 -> Carterton districtResidential | F102: 1604807000 | G102: 2689 | H102: 596804.3882 | J102: 682482.9264 | K102: 9521.236976 | L102: =INDEX('Public transport'!$I$23:$I$49,MATCH($D102,'Public transport'!$D$23:$D$49,0),) -> 403676.2947 | M102: =INDEX(Stadium!$I$23:$I$49,MATCH($D102,Stadium!$D$23:$D$49,0),) -> 0 | N102: 0 | O102: =INDEX('Economic Development'!$K$23:$K$49,MATCH($D102,'Economic Development'!$D$23:$D$49,0),) -> 39180 | P102: 1134860.458 | R102: 253.8054765 | S102: 3.540809586 | T102: 150.1213442 | U102: 0 | V102: 0 | W102: =IF(AND('Comparison - Category'!C102="Residential",Control!$B$102<>"Remainder"),Control!$B$102,IF(AND('Comparison - Category'!C102="Rural",Control!$B$102<>"Remainder"),Control!$B$103,O102/$F102*$H102)) -> 15 | X102: =IF('Comparison - Category'!C102="Residential",SUM(R102:V102,Control!$B$102),IF('Comparison - Category'!C102="Rural",SUM(R102:V102,Control!$B$103),P102/$F102*$H102)) -> 422.4676304 | Z102: 0.0425274146 | AA102: 0.0005932948309 | AB102: 0.02515419578 | AC102: 0 | AD102: 0 | AE102: =IF(OR('Comparison - Category'!C102="Residential",'Comparison - Category'!C102="Rural"),W102,O102/$F102*100) -> 15 | AF102: 0.07071632029
A103: =Control!A88 -> Carterton district | B103: =Control!B88 -> Carterton district | C103: =Control!C88 -> Rural | D103: =Control!D88 -> Carterton districtRural | F103: 2823381200 | G103: 2239 | H103: 1261000.983 | J103: 1200711.029 | K103: 16750.97472 | L103: =INDEX('Public transport'!$I$23:$I$49,MATCH($D103,'Public transport'!$D$23:$D$49,0),) -> 355099.4173 | M103: =INDEX(Stadium!$I$23:$I$49,MATCH($D103,Stadium!$D$23:$D$49,0),) -> 0 | N103: 0 | O103: =INDEX('Economic Development'!$K$23:$K$49,MATCH($D103,'Economic Development'!$D$23:$D$49,0),) -> 28665 | P103: 1601226.421 | R103: 536.271116 | S103: 7.481453647 | T103: 158.597328 | U103: 0 | V103: 0 | W103: =IF(AND('Comparison - Category'!C103="Residential",Control!$B$102<>"Remainder"),Control!$B$102,IF(AND('Comparison - Category'!C103="Rural",Control!$B$102<>"Remainder"),Control!$B$103,O103/$F103*$H103)) -> 15 | X103: =IF('Comparison - Category'!C103="Residential",SUM(R103:V103,Control!$B$102),IF('Comparison - Category'!C103="Rural",SUM(R103:V103,Control!$B$103),P103/$F103*$H103)) -> 717.3498976 | Z103: 0.0425274146 | AA103: 0.0005932948309 | AB103: 0.01257709789 | AC103: 0 | AD103: 0 | AE103: =IF(OR('Comparison - Category'!C103="Residential",'Comparison - Category'!C103="Rural"),W103,O103/$F103*100) -> 15 | AF103: 0.05671307937
A104: =Control!A89 -> South Wairarapa district | B104: =Control!B89 -> South Wairarapa district | C104: =Control!C89 -> Business | D104: =Control!D89 -> South Wairarapa districtBusiness | F104: 402740000 | G104: 320 | H104: 1258562.5 | J104: 167312.3983 | K104: 0 | L104: =INDEX('Public transport'!$I$23:$I$49,MATCH($D104,'Public transport'!$D$23:$D$49,0),) -> 197924.5088 | M104: =INDEX(Stadium!$I$23:$I$49,MATCH($D104,Stadium!$D$23:$D$49,0),) -> 0 | N104: 0 | O104: =INDEX('Economic Development'!$K$23:$K$49,MATCH($D104,'Economic Development'!$D$23:$D$49,0),) -> 25464.37421 | P104: 390701.2813 | R104: 522.8512446 | S104: 0 | T104: 618.51409 | U104: 0 | V104: 0 | W104: =IF(AND('Comparison - Category'!C104="Residential",Control!$B$102<>"Remainder"),Control!$B$102,IF(AND('Comparison - Category'!C104="Rural",Control!$B$102<>"Remainder"),Control!$B$103,O104/$F104*$H104)) -> 79.5761694 | X104: =IF('Comparison - Category'!C104="Residential",SUM(R104:V104,Control!$B$102),IF('Comparison - Category'!C104="Rural",SUM(R104:V104,Control!$B$103),P104/$F104*$H104)) -> 1220.941504 | Z104: 0.04154352641 | AA104: 0 | AB104: 0.04914448746 | AC104: 0 | AD104: 0 | AE104: =IF(OR('Comparison - Category'!C104="Residential",'Comparison - Category'!C104="Rural"),W104,O104/$F104*100) -> 0.006322782492 | AF104: 0.09701079636
A105: =Control!A90 -> South Wairarapa district | B105: =Control!B90 -> South Wairarapa district | C105: =Control!C90 -> Residential | D105: =Control!D90 -> South Wairarapa districtResidential | F105: 2562801500 | G105: 3355 | H105: 763875.2608 | J105: 1064678.118 | K105: 0 | L105: =INDEX('Public transport'!$I$23:$I$49,MATCH($D105,'Public transport'!$D$23:$D$49,0),) -> 629737.8309 | M105: =INDEX(Stadium!$I$23:$I$49,MATCH($D105,Stadium!$D$23:$D$49,0),) -> 0 | N105: 0 | O105: =INDEX('Economic Development'!$K$23:$K$49,MATCH($D105,'Economic Development'!$D$23:$D$49,0),) -> 48990 | P105: 1743405.949 | R105: 317.3407207 | S105: 0 | T105: 187.7012909 | U105: 0 | V105: 0 | W105: =IF(AND('Comparison - Category'!C105="Residential",Control!$B$102<>"Remainder"),Control!$B$102,IF(AND('Comparison - Category'!C105="Rural",Control!$B$102<>"Remainder"),Control!$B$103,O105/$F105*$H105)) -> 15 | X105: =IF('Comparison - Category'!C105="Residential",SUM(R105:V105,Control!$B$102),IF('Comparison - Category'!C105="Rural",SUM(R105:V105,Control!$B$103),P105/$F105*$H105)) -> 520.0420116 | Z105: 0.04154352641 | AA105: 0 | AB105: 0.02457224373 | AC105: 0 | AD105: 0 | AE105: =IF(OR('Comparison - Category'!C105="Residential",'Comparison - Category'!C105="Rural"),W105,O105/$F105*100) -> 15 | AF105: 0.0680273501
A106: =Control!A91 -> South Wairarapa district | B106: =Control!B91 -> South Wairarapa district | C106: =Control!C91 -> Rural | D106: =Control!D91 -> South Wairarapa districtRural | F106: 4925541550 | G106: 3361 | H106: 1465498.825 | J106: 2046243.655 | K106: 0 | L106: =INDEX('Public transport'!$I$23:$I$49,MATCH($D106,'Public transport'!$D$23:$D$49,0),) -> 605158.0373 | M106: =INDEX(Stadium!$I$23:$I$49,MATCH($D106,Stadium!$D$23:$D$49,0),) -> 0 | N106: 0 | O106: =INDEX('Economic Development'!$K$23:$K$49,MATCH($D106,'Economic Development'!$D$23:$D$49,0),) -> 46410 | P106: 2697811.692 | R106: 608.8198913 | S106: 0 | T106: 180.0529715 | U106: 0 | V106: 0 | W106: =IF(AND('Comparison - Category'!C106="Residential",Control!$B$102<>"Remainder"),Control!$B$102,IF(AND('Comparison - Category'!C106="Rural",Control!$B$102<>"Remainder"),Control!$B$103,O106/$F106*$H106)) -> 15 | X106: =IF('Comparison - Category'!C106="Residential",SUM(R106:V106,Control!$B$102),IF('Comparison - Category'!C106="Rural",SUM(R106:V106,Control!$B$103),P106/$F106*$H106)) -> 803.8728628 | Z106: 0.04154352641 | AA106: 0 | AB106: 0.01228612186 | AC106: 0 | AD106: 0 | AE106: =IF(OR('Comparison - Category'!C106="Residential",'Comparison - Category'!C106="Rural"),W106,O106/$F106*100) -> 15 | AF106: 0.05477187969
A107: =Control!A92 -> Tararua district | B107: =Control!B92 -> Tararua district | C107: =Control!C92 -> Rural | D107: =Control!D92 -> Tararua districtRural | F107: 20442000 | G107: 11 | H107: 1858363.636 | J107: 9248.045263 | K107: 0 | L107: =INDEX('Public transport'!$I$23:$I$49,MATCH($D107,'Public transport'!$D$23:$D$49,0),) -> 0 | M107: =INDEX(Stadium!$I$23:$I$49,MATCH($D107,Stadium!$D$23:$D$49,0),) -> 0 | N107: 0 | O107: =INDEX('Economic Development'!$K$23:$K$49,MATCH($D107,'Economic Development'!$D$23:$D$49,0),) -> 165 | P107: =SUM(J107:O107) -> 9413.045263 | R107: 840.7313876 | S107: 0 | T107: 0 | U107: 0 | V107: 0 | W107: =IF(AND('Comparison - Category'!C107="Residential",Control!$B$102<>"Remainder"),Control!$B$102,IF(AND('Comparison - Category'!C107="Rural",Control!$B$102<>"Remainder"),Control!$B$103,O107/$F107*$H107)) -> 15 | X107: =IF('Comparison - Category'!C107="Residential",SUM(R107:V107,Control!$B$102),IF('Comparison - Category'!C107="Rural",SUM(R107:V107,Control!$B$103),P107/$F107*$H107)) -> 855.7313876 | Z107: 0.04524041318 | AA107: 0 | AB107: 0 | AC107: 0 | AD107: 0 | AE107: =IF(OR('Comparison - Category'!C107="Residential",'Comparison - Category'!C107="Rural"),W107,O107/$F107*100) -> 15 | AF107: 0.04604757491
A108: Region wide | D108: =Control!D93 -> Region wide | F108: =SUM(F81:F107) -> 239512083350 | G108: =SUM(G81:G107) -> 213243 | H108: 1123188.491 | J108: =SUM(J81:J107) -> 93556533.65 | K108: 12543524.56 | L108: 137936857.8 | M108: 0 | N108: 0 | O108: 4995999.85 | P108: 249032915.9 | R108: 438.7320271 | S108: 58.8226791 | T108: 646.8529228 | U108: 0 | V108: 0 | W108: =IF(AND('Comparison - Category'!C108="Residential",Control!$B$102<>"Remainder"),Control!$B$102,IF(AND('Comparison - Category'!C108="Rural",Control!$B$102<>"Remainder"),Control!$B$103,O108/$F108*$H108)) -> 23.42866987 | X108: =IF('Comparison - Category'!C108="Residential",SUM(R108:V108,Control!$B$102),IF('Comparison - Category'!C108="Rural",SUM(R108:V108,Control!$B$103),P108/$F108*$H108)) -> 1167.836299 | Z108: 0.0390613001 | AA108: 0.005237115549 | AB108: 0.05759077199 | AC108: 0 | AD108: 0 | AE108: =IF(OR('Comparison - Category'!C108="Residential",'Comparison - Category'!C108="Rural"),W108,O108/$F108*100) -> 0.002085907224 | AF108: 0.1039750949
A110: By category
A111: Region Wide | C111: =C81 -> Wellington CBD | D111: =A111&C111 -> Region WideWellington CBD | F111: =SUMIF($C$81:$C$107,$C111,F$81:F$107) -> 13368376300 | G111: 2991 | H111: =F111/G111 -> 4469534.035 | J111: =SUMIF($C$81:$C$107,$C111,J$81:J$107) -> 4836895.603 | K111: 30259.55755 | L111: 40053106.49 | M111: 0 | N111: 0 | O111: 736158.9514 | P111: =SUMIF($C$81:$C$107,$C111,P$81:P$107) -> 45656420.6 | R111: =J111/$F111*$H111 -> 1617.149984 | S111: 10.11686979 | T111: 13391.20912 | U111: 0 | V111: 0 | W111: 246.1246912 | X111: =IF('Comparison - Category'!C111="Residential",SUM(R111:U111,Control!$B$102),IF('Comparison - Category'!C111="Rural",SUM(R111:U111,Control!$B$103),P111/$F111*$H111)) -> 15264.60067
A112: Region Wide | C112: =C82 -> Business | D112: =A112&C112 -> Region WideBusiness | F112: 20723458200 | G112: 8431 | H112: =F112/G112 -> 2458007.14 | J112: 8277130.328 | K112: 1883207.773 | L112: 13387520.38 | M112: 0 | N112: 0 | O112: 1259750.899 | P112: =SUMIF($C$81:$C$107,$C112,P$81:P$107) -> 24807609.38 | R112: =J112/$F112*$H112 -> 981.7495349 | S112: 223.3670707 | T112: 1587.892348 | U112: 0 | V112: 0 | W112: 149.4189181 | X112: =IF('Comparison - Category'!C112="Residential",SUM(R112:U112,Control!$B$102),IF('Comparison - Category'!C112="Rural",SUM(R112:U112,Control!$B$103),P112/$F112*$H112)) -> 2942.427872
A113: Region Wide | C113: =C83 -> Residential | D113: =A113&C113 -> Region WideResidential | F113: 184307753750 | G113: 185990 | H113: =F113/G113 -> 990955.179 | J113: 71563894.63 | K113: 10065962.58 | L113: 81873196.52 | M113: 0 | N113: 0 | O113: 2781255 | P113: =SUMIF($C$81:$C$107,$C113,P$81:P$107) -> 166284308.7 | R113: 384.7728084 | S113: 54.12098814 | T113: 440.2021427 | U113: 0 | V113: 0 | W113: 14.95378784 | X113: =IF('Comparison - Category'!C113="Residential",SUM(R113:V113,Control!$B$102),IF('Comparison - Category'!C113="Rural",SUM(R113:V113,Control!$B$103),P113/$F113*$H113)) -> 894.0959392
A114: Region Wide | C114: =C84 -> Rural | D114: =A114&C114 -> Region WideRural | F114: 21112495100 | G114: 15831 | H114: =F114/G114 -> 1333617.276 | J114: 8878613.091 | K114: 564094.6456 | L114: 2623034.423 | M114: 0 | N114: 0 | O114: 218835 | P114: =SUMIF($C$81:$C$107,$C114,P$81:P$107) -> 12284577.16 | R114: 560.8371607 | S114: 35.63228132 | T114: 165.6897494 | U114: 0 | V114: 0 | W114: 13.823195 | X114: =IF('Comparison - Category'!C114="Residential",SUM(R114:V114,Control!$B$102),IF('Comparison - Category'!C114="Rural",SUM(R114:V114,Control!$B$103),P114/$F114*$H114)) -> 777.1591914
A115: Region Wide | C115: Total | D115: =A115&C115 -> Region WideTotal | F115: =SUM(F111:F114) -> 239512083350 | G115: =SUM(G111:G114) -> 213243 | H115: =F115/G115 -> 1123188.491 | J115: =SUM(J111:J114) -> 93556533.65 | K115: =SUM(K111:K114) -> 12543524.56 | L115: 137936857.8 | M115: 0 | N115: 0 | O115: 4995999.85 | P115: =SUM(P111:P114) -> 249032915.9 | R115: 438.7320271 | S115: 58.8226791 | T115: 646.8529228 | U115: 0 | V115: 0 | W115: 23.42866987 | X115: =IF('Comparison - Category'!C115="Residential",SUM(R115:V115,Control!$B$102),IF('Comparison - Category'!C115="Rural",SUM(R115:V115,Control!$B$103),P115/$F115*$H115)) -> 1167.836299
J118: =IF(ABS(J78-SUM(J69:J77))>tolerance_dollar,1,0) -> 0 | K118: 0 | L118: 0 | M118: 0 | N118: 0 | O118: 0 | P118: 0
J119: =J108-SUM(J81:J107) -> 0 | K119: 0 | L119: 0 | M119: 0 | N119: 0 | O119: 0 | P119: 0
F120: =F108-F78 -> 0 | G120: =G108-G78 -> 0 | J120: =IF(ABS(J108-J78)>tolerance_dollar,1,0) -> 0 | K120: =IF(ABS(K108-K78)>tolerance_dollar,1,0) -> 0 | L120: 0 | M120: 0 | N120: 0 | O120: 0 | P120: =IF(ABS(P108-P78)>tolerance_dollar,1,0) -> 0 | R120: =IF(ABS(R108-R78)>tolerance_dollar,1,0) -> 0 | S120: 0 | T120: 0 | U120: 0 | V120: 0 | W120: 0 | X120: 0
A123: Delta
J124: Rates | R124: Rates / average CV | Z124: Cents/$ OR Economic Development Rate $/property
A125: =Control!A$65 -> TA full name | B125: =Control!B$65 -> Rating area | C125: =Control!C$65 -> Category group | D125: =Control!D$65 -> Concatenated name | F125: CV | G125: CV Assessments | H125: Average CV | J125: General rate | K125: River management rate | L125: Public transport rate | M125: Stadium purposes rate | N125: Remission of rates | O125: Economic development rate | R125: General rate | S125: River management rate | T125: Public transport rate | U125: Remission of rates | V125: Stadium purposes rate | W125: Economic development rate | X125: District-Wide rates | Z125: General rate | AA125: River management rate | AB125: Public transport rate | AC125: Remission of rates | AD125: Stadium purposes rate | AE125: Economic development rate | AF125: District-Wide rates
A127: By TA
A128: =Control!A41 -> Wellington city | C128: =Control!B41 -> District wide | D128: =Control!C41 -> Wellington cityDistrict wide | F128: =F69-F10 -> 1916171500 | G128: 748 | H128: 10380.65404 | J128: =J69-J10 -> 6984053.728 | K128: =K69-K10 -> 199749.28 | L128: 15167616.09 | M128: 0 | N128: 0 | O128: 115043.5698 | P128: 22466462.66 | R128: =R69-R10 -> 82.02535488 | S128: 2.454810691 | T128: 178.941084 | U128: 0 | V128: 0 | W128: 1.174690695 | X128: =X69-X10 -> 264.5959403
A129: =Control!A42 -> Hutt city | C129: =Control!B42 -> District wide | D129: =Control!C42 -> Hutt cityDistrict wide | F129: 668406600 | G129: 990 | H129: -6466.574592 | J129: 3120359.258 | K129: =K70-K11 -> 898612.71 | L129: =L70-L11 -> 4151797.15 | M129: 0 | N129: 0 | O129: 60680.6797 | P129: 8231449.797 | R129: 66.51100479 | S129: 16.74891 | T129: 89.24767711 | U129: =U70-U11 -> 0 | V129: 0 | W129: 0.8935130167 | X129: =X70-X11 -> 173.4011049
A130: =Control!A43 -> Upper Hutt city | C130: =Control!B43 -> District wide | D130: =Control!C43 -> Upper Hutt cityDistrict wide | F130: 348360400 | G130: 294 | H130: 4169.645482 | J130: 1048192.545 | K130: 396937.42 | L130: 1316834.476 | M130: 0 | N130: 0 | O130: 18210.69059 | P130: 2780175.132 | R130: 52.87200512 | S130: 20.98382826 | T130: 67.11113333 | U130: 0 | V130: 0 | W130: 0.6745338297 | X130: 141.6415005
A131: =Control!A44 -> Porirua city | C131: =Control!B44 -> District wide | D131: =Control!C44 -> Porirua cityDistrict wide | F131: 302044800 | G131: 237 | H131: 3719.168709 | J131: 1675148.183 | K131: 44038.6 | L131: 2081844.018 | M131: 0 | N131: 0 | O131: 19267.19275 | P131: 3820297.994 | R131: 79.15998125 | S131: 2.152846109 | T131: 98.74164762 | U131: 0 | V131: 0 | W131: 0.7291566065 | X131: 180.7836316
A132: =Control!A45 -> Kāpiti Coast district | C132: =Control!B45 -> District wide | D132: =Control!C45 -> Kāpiti Coast districtDistrict wide | F132: 3196357450 | G132: 293 | H132: 114006.8344 | J132: 1317214.287 | K132: 218416.28 | L132: 1459800.329 | M132: 0 | N132: 0 | O132: 17556.48451 | P132: 3012987.381 | R132: 46.82635499 | S132: 7.717619413 | T132: 52.1584195 | U132: 0 | V132: 0 | W132: 0.4613527073 | X132: 107.1637466
A133: =Control!A46 -> Masterton district | C133: =Control!B46 -> District wide | D133: =Control!C46 -> Masterton districtDistrict wide | F133: 1595782645 | G133: 148 | H133: 110702.1557 | J133: 797440.4769 | K133: 0 | L133: 431827.6227 | M133: 0 | N133: 0 | O133: 13228.85301 | P133: 1242496.953 | R133: 55.78158414 | S133: 0 | T133: 30.33665182 | U133: 0 | V133: 0 | W133: 0.784898757 | X133: 86.90313471
A134: =Control!A47 -> Carterton district | C134: =Control!B47 -> District wide | D134: =Control!C47 -> Carterton districtDistrict wide | F134: 859765900 | G134: 33 | H134: 161861.2722 | J134: 251833.9769 | K134: 1106.56 | L134: 128567.3332 | M134: 0 | N134: 0 | O134: 3321.98484 | P134: 384829.8549 | R134: 46.6474182 | S134: 0.1815298775 | T134: 23.99636576 | U134: 0 | V134: 0 | W134: 0.5470892261 | X134: 71.37240307
A135: =Control!A48 -> South Wairarapa district | C135: =Control!B48 -> District wide | D135: =Control!C48 -> South Wairarapa districtDistrict wide | F135: 1459831350 | G135: -206 | H135: 233480.5952 | J135: 381968.5525 | K135: 0 | L135: 189203.5051 | M135: 0 | N135: 0 | O135: 5191.864775 | P135: 576363.9224 | R135: 65.99678111 | S135: 0 | T135: 31.91847812 | U135: 0 | V135: 0 | W135: 1.205541533 | X135: 99.12080076
A136: =Control!A49 -> Tararua district | C136: =Control!B49 -> District wide | D136: =Control!C49 -> Tararua districtDistrict wide | F136: 4465500 | G136: 0 | H136: 405954.5455 | J136: 1308.391923 | K136: 0 | L136: 0 | M136: 0 | N136: 0 | O136: 0 | P136: 1308.391923 | R136: 118.9447203 | S136: 0 | T136: 0 | U136: 0 | V136: 0 | W136: 0 | X136: 118.9447203
A137: Region wide | D137: =Control!C50 -> Region wide | F137: 10351186145 | G137: 2537 | H137: 35602.48376 | J137: 15577519.4 | K137: 1758860.41 | L137: 24927490.52 | M137: 0 | N137: 0 | O137: =O78-O19 -> 252501.32 | P137: =P78-P19 -> 42516372.09 | R137: 68.64757647 | S137: 7.639209482 | T137: 110.5161915 | U137: 0 | V137: 0 | W137: 0.9162661933 | X137: 187.7192458
A139: By TA & Category
A140: =Control!A66 -> Wellington city | B140: =Control!B66 -> Wellington city | C140: =Control!C66 -> Wellington CBD | D140: =Control!D66 -> Wellington cityWellington CBD | F140: =F81-F22 -> 242893000 | G140: -16 | H140: 104557.8798 | J140: =J81-J22 -> -1415755.056 | K140: 22773.69435 | L140: 7178679.634 | M140: 0 | N140: 0 | O140: 76094.86344 | P140: 5861793.136 | R140: =R81-R22 -> -462.2150503 | S140: 7.627390845 | T140: 2458.576315 | U140: 0 | V140: 0 | W140: 26.61551663 | X140: 2030.604173 | Z140: =Z81-Z22 -> -0.0114558653 | AA140: 0.0001693187307 | AB140: 0.04914825377 | AC140: 0 | AD140: 0 | AE140: 0.0004778447118 | AF140: =AF81-AF22 -> 0.03833955191
A141: =Control!A67 -> Wellington city | B141: =Control!B67 -> Wellington city | C141: =Control!C67 -> Business | D141: =Control!D67 -> Wellington cityBusiness | F141: -81679000 | G141: -42 | H141: 35136.90252 | J141: =J82-J23 -> -45764.03094 | K141: =K82-K23 -> 10925.94421 | L141: 596085.4557 | M141: 0 | N141: 0 | O141: 26858.70639 | P141: 588106.0754 | R141: 4.10383867 | S141: 5.980131028 | T141: 363.6088499 | U141: 0 | V141: 0 | W141: 18.58732796 | X141: 392.2801475 | Z141: -0.0002470443685 | AA141: 0.0001693187307 | AB141: 0.009829650754 | AC141: 0 | AD141: =AD82-AD23 -> 0 | AE141: 0.0004778447118 | AF141: 0.01022976983
A142: =Control!A68 -> Wellington city | B142: =Control!B68 -> Wellington city | C142: =Control!C68 -> Residential | D142: =Control!D68 -> Wellington cityResidential | F142: 1741902500 | G142: 799 | H142: 9706.663494 | J142: 8324631.358 | K142: 163608.4602 | L142: 7366453.144 | M142: 0 | N142: 0 | O142: 11985 | P142: 15866677.96 | R142: 106.6704822 | S142: 2.162605529 | T142: 92.92078289 | U142: 0 | V142: 0 | W142: 0 | X142: 201.7538707 | Z142: 0.008159571332 | AA142: 0.0001693187307 | AB142: 0.00702117911 | AC142: 0 | AD142: 0 | AE142: 0 | AF142: 0.01534102925
A143: =Control!A69 -> Wellington city | B143: =Control!B69 -> Wellington city | C143: =Control!C69 -> Rural | D143: =Control!D69 -> Wellington cityRural | F143: 13055000 | G143: 7 | H143: 2123.183181 | J143: 120941.4564 | K143: 2441.181204 | L143: 26397.85101 | M143: 0 | N143: 0 | O143: 105 | P143: 149885.4886 | R143: 130.6206551 | S143: 2.699365616 | T143: 28.16117252 | U143: 0 | V143: 0 | W143: 0 | X143: 161.4811932 | Z143: 0.008159571332 | AA143: 0.0001693187307 | AB143: 0.001755294778 | AC143: 0 | AD143: 0 | AE143: 0 | AF143: 0.010082929
A144: =Control!A70 -> Hutt city | B144: =Control!B70 -> Hutt city | C144: =Control!C70 -> Business | D144: =Control!D70 -> Hutt cityBusiness | F144: 11616100 | G144: 193 | H144: -217821.0704 | J144: 495015.2737 | K144: 131592.7538 | L144: 879880.9461 | M144: 0 | N144: 0 | O144: 49010.6797 | P144: 1555499.653 | R144: 120.8025724 | S144: 6.49221951 | T144: 225.9334807 | U144: 0 | V144: 0 | W144: 7.046827427 | X144: 360.2751001 | Z144: 0.007283116605 | AA144: 0.00191626792 | AB144: 0.01295429356 | AC144: 0 | AD144: 0 | AE144: 0.0007172840499 | AF144: 0.02287096213
A145: =Control!A71 -> Hutt city | B145: =Control!B71 -> Hutt city | C145: =Control!C71 -> Residential | D145: =Control!D71 -> Hutt cityResidential | F145: 653665500 | G145: 794 | H145: -105.7216518 | J145: 2583586.61 | K145: 755670.2738 | L145: 3258681.556 | M145: 0 | N145: 0 | O145: 11625 | P145: 6609563.439 | R145: 60.29426077 | S145: 15.85180596 | T145: 76.60659485 | U145: 0 | V145: 0 | W145: 0 | X145: 152.7526616 | Z145: 0.007283116605 | AA145: 0.00191626792 | AB145: 0.009253066828 | AC145: 0 | AD145: 0 | AE145: 0 | AF145: 0.01845180297
A146: =Control!A72 -> Hutt city | B146: =Control!B72 -> Hutt city | C146: =Control!C72 -> Rural | D146: =Control!D72 -> Hutt cityRural | F146: 3125000 | G146: 3 | H146: -1428.759781 | J146: 41757.37419 | K146: 11349.68243 | L146: 13234.64811 | M146: 0 | N146: 0 | O146: 45 | P146: 66386.70473 | R146: 90.74342857 | S146: 23.70969184 | T146: 28.83492835 | U146: 0 | V146: 0 | W146: 0 | X146: 143.2880488 | Z146: 0.007283116605 | AA146: 0.00191626792 | AB146: 0.002313266707 | AC146: 0 | AD146: 0 | AE146: 0 | AF146: 0.0115140155
A147: =Control!A73 -> Upper Hutt city | B147: =Control!B73 -> Upper Hutt city | C147: =Control!C73 -> Business | D147: =Control!D73 -> Upper Hutt cityBusiness | F147: 91091000 | G147: 49 | H147: -42868.83838 | J147: 145353.337 | K147: 51972.9191 | L147: 258307.1424 | M147: 0 | N147: 0 | O147: 14415.69059 | P147: 470049.0891 | R147: 125.1604635 | S147: 53.45874213 | T147: 230.1159916 | U147: 0 | V147: 0 | W147: 9.040436018 | X147: 417.7756332 | Z147: 0.005516548972 | AA147: 0.002220630111 | AB147: 0.01002271222 | AC147: 0 | AD147: 0 | AE147: 0.0004509967811 | AF147: 0.01821088808
A148: =Control!A74 -> Upper Hutt city | B148: =Control!B74 -> Upper Hutt city | C148: =Control!C74 -> Residential | D148: =Control!D74 -> Upper Hutt cityResidential | F148: 252188400 | G148: 247 | H148: 3287.504427 | J148: 798405.3166 | K148: 303290.3726 | L148: 1024702.709 | M148: 0 | N148: 0 | O148: 3915 | P148: 2130313.398 | R148: 45.94813933 | S148: 18.26000822 | T148: 59.48008917 | U148: 0 | V148: 0 | W148: 0 | X148: 123.6882367 | Z148: 0.005516548972 | AA148: 0.002220630111 | AB148: 0.007159080157 | AC148: 0 | AD148: 0 | AE148: 0 | AF148: 0.01489046859
A149: =Control!A75 -> Upper Hutt city | B149: =Control!B75 -> Upper Hutt city | C149: =Control!C75 -> Rural | D149: =Control!D75 -> Upper Hutt cityRural | F149: 5081000 | G149: -2 | H149: 5775.16198 | J149: 104433.8917 | K149: 41674.12831 | L149: 33824.62483 | M149: 0 | N149: 0 | O149: -120 | P149: 179812.6448 | R149: 77.81659934 | S149: 30.90979095 | T149: 25.18114092 | U149: 0 | V149: 0 | W149: 0 | X149: 133.9075312 | Z149: 0.005516548972 | AA149: 0.002220630111 | AB149: 0.001789770039 | AC149: 0 | AD149: 0 | AE149: 0 | AF149: 0.009517620124
A150: =Control!A76 -> Porirua city | B150: =Control!B76 -> Porirua city | C150: =Control!C76 -> Business | D150: =Control!D76 -> Porirua cityBusiness | F150: 27460500 | G150: 42 | H150: -71880.50099 | J150: 151284.5493 | K150: 3975.935236 | L150: 265794.6357 | M150: 0 | N150: 0 | O150: 16342.19275 | P150: 437397.313 | R150: =R91-R32 -> 141.5408702 | S150: 4.383459815 | T150: 253.1411117 | U150: 0 | V150: 0 | W150: 13.33221066 | X150: 412.3976524 | Z150: 0.008103551043 | AA150: 0.0002229747021 | AB150: 0.01430459499 | AC150: 0 | AD150: 0 | AE150: 0.0008458601452 | AF150: 0.02347698088
A151: =Control!A77 -> Porirua city | B151: =Control!B77 -> Porirua city | C151: =Control!C77 -> Residential | D151: =Control!D77 -> Porirua cityResidential | F151: 281358500 | G151: 188 | H151: 6303.345355 | J151: 1422123.915 | K151: 37217.15536 | L151: 1783923.746 | M151: 0 | N151: 0 | O151: 2820 | P151: 3246084.817 | R151: 73.17339162 | S151: 1.970545781 | T151: 92.05647811 | U151: 0 | V151: 0 | W151: 0 | X151: 167.2004155 | Z151: 0.008103551043 | AA151: 0.0002229747021 | AB151: 0.01021756785 | AC151: 0 | AD151: 0 | AE151: 0 | AF151: 0.01853170144
A152: =Control!A78 -> Porirua city | B152: =Control!B78 -> Porirua city | C152: =Control!C78 -> Rural | D152: =Control!D78 -> Porirua cityRural | F152: =F93-F34 -> -6774200 | G152: 7 | H152: -31465.19845 | J152: 101739.7191 | K152: 2845.509405 | L152: 32125.63632 | M152: 0 | N152: 0 | O152: 105 | P152: 136815.8649 | R152: 147.6936488 | S152: 4.277888999 | T152: 46.81296022 | U152: 0 | V152: 0 | W152: 0 | X152: 198.784498 | Z152: 0.008103551043 | AA152: 0.0002229747021 | AB152: 0.002554391963 | AC152: 0 | AD152: 0 | AE152: 0 | AF152: 0.01089308303
A153: =Control!A79 -> Kāpiti Coast district | B153: =Control!B79 -> Kāpiti Coast district | C153: =Control!C79 -> Business | D153: =Control!D79 -> Kāpiti Coast districtBusiness | F153: 360187400 | G153: -9 | H153: 299443.2845 | J153: 149640.5164 | K153: =K94-K35 -> 25177.3411 | L153: =L94-L35 -> 267566.9689 | M153: =M94-M35 -> 0 | N153: =N94-N35 -> 0 | O153: =O94-O35 -> 14121.48451 | P153: =P94-P35 -> 456506.3109 | R153: 124.5514029 | S153: 21.00008123 | T153: 222.0172918 | U153: 0 | V153: 0 | W153: 12.05574705 | X153: 379.624523 | Z153: -0.0002468085564 | AA153: -0.0001153934877 | AB153: 0.000713909704 | AC153: 0 | AD153: 0 | AE153: -0.0005296986329 | AF153: -0.0001779909731
A154: =Control!A80 -> Kāpiti Coast district | B154: =Control!B80 -> Kāpiti Coast district excl Ōtaki | C154: =Control!C80 -> Residential | D154: =Control!D80 -> Kāpiti Coast district excl Ōtaki Residential | F154: =F95-F36 -> 1883820600 | G154: 228 | H154: 91779.7955 | J154: =J95-J36 -> 771288.3273 | K154: 126374.4664 | L154: 1023022.362 | M154: 0 | N154: 0 | O154: 2325 | P154: 1923010.156 | R154: 37.38950325 | S154: 6.069216137 | T154: 50.22946309 | U154: 0 | V154: 0 | W154: 0 | X154: 93.68818248 | Z154: =Z95-Z36 -> -0.0002468085564 | AA154: -0.0001153934877 | AB154: 0.0005099355028 | AC154: 0 | AD154: 0 | AE154: 0 | AF154: -7.672638768e-05
A155: =Control!A81 -> Kāpiti Coast district | B155: =Control!B81 -> Ōtaki rating area | C155: =Control!C81 -> Residential | D155: =Control!D81 -> Ōtaki rating areaResidential | F155: 324471000 | G155: 67 | H155: 85555.76442 | J155: =J96-J37 -> 134486.8028 | K155: 22533.33882 | L155: 86409.57304 | M155: 0 | N155: 0 | O155: 1005 | P155: 244434.7147 | R155: 35.30339809 | S155: 5.867773804 | T155: 22.94726422 | U155: 0 | V155: 0 | W155: 0 | X155: 64.11843611 | Z155: =Z96-Z37 -> -0.0002468085564 | AA155: -0.0001153934877 | AB155: 0.0002549677514 | AC155: 0 | AD155: 0 | AE155: 0 | AF155: -0.00051661137
A156: =Control!A82 -> Kāpiti Coast district | B156: =Control!B82 -> Kāpiti Coast district | C156: =Control!C82 -> Rural | D156: =Control!D82 -> Kāpiti Coast districtRural | F156: 627878450 | G156: 7 | H156: 226237.3379 | J156: =J97-J38 -> 261798.641 | K156: 44331.13367 | L156: 82801.42509 | M156: 0 | N156: 0 | O156: 105 | P156: 389036.1998 | R156: 94.29885853 | S156: 15.95821098 | T156: 29.85182009 | U156: 0 | V156: 0 | W156: 0 | X156: 140.1088896 | Z156: =Z97-Z38 -> -0.0002468085564 | AA156: -0.0001153934877 | AB156: 0.0001274838757 | AC156: 0 | AD156: 0 | AE156: 0 | AF156: -0.0005090817604
A157: =Control!A83 -> Masterton district | B157: =Control!B83 -> Masterton district | C157: =Control!C83 -> Business | D157: =Control!D83 -> Masterton districtBusiness | F157: 207482900 | G157: 17 | H157: 309052.0876 | J157: =J98-J39 -> 99713.65345 | K157: 0 | L157: 124039.0478 | M157: 0 | N157: 0 | O157: 11443.85301 | P157: 235196.5542 | R157: 150.1192965 | S157: 0 | T157: 187.999059 | U157: 0 | V157: 0 | W157: 16.45684903 | X157: 354.5752045 | Z157: =Z98-Z39 -> 0.0009571234879 | AA157: 0 | AB157: 0.001946437958 | AC157: 0 | AD157: 0 | AE157: -0.0003540095264 | AF157: 0.002549551919
A158: =Control!A84 -> Masterton district | B158: =Control!B84 -> Masterton district | C158: =Control!C84 -> Residential | D158: =Control!D84 -> Masterton districtResidential | F158: =F99-F40 -> 487781600 | G158: 89 | H158: 50531.85949 | J158: =J99-J40 -> 257778.3095 | K158: 0 | L158: 169554.1321 | M158: 0 | N158: 0 | O158: 1740 | P158: 429072.4416 | R158: 27.15188157 | S158: 0 | T158: 18.01979693 | U158: 0 | V158: 0 | W158: 0 | X158: 45.1716785 | Z158: =Z99-Z40 -> 0.0009571234879 | AA158: 0 | AB158: 0.0009732189788 | AC158: 0 | AD158: 0 | AE158: 0 | AF158: 0.001648958022
A159: =Control!A85 -> Masterton district | B159: =Control!B85 -> Masterton district | C159: =Control!C85 -> Rural | D159: =Control!D85 -> Masterton districtRural | F159: 900518145 | G159: 42 | H159: 208788.5644 | J159: 439948.514 | K159: 0 | L159: 138234.4429 | M159: 0 | N159: 0 | O159: 45 | P159: 578227.9569 | R159: 102.5234431 | S159: 0 | T159: 32.3144039 | U159: 0 | V159: 0 | W159: 0 | X159: 134.837847 | Z159: 0.0009571234879 | AA159: 0 | AB159: 0.0004866094894 | AC159: 0 | AD159: 0 | AE159: 0 | AF159: 0.001192655187
A160: =Control!A86 -> Carterton district | B160: =Control!B86 -> Carterton district | C160: =Control!C86 -> Business | D160: =Control!D86 -> Carterton districtBusiness | F160: 64894000 | G160: -3 | H160: 284565.8607 | J160: 23554.0215 | K160: 243.0807606 | L160: 29000.66472 | M160: 0 | N160: 0 | O160: 2886.98484 | P160: 55684.75181 | R160: =R101-R42 -> 103.9563982 | S160: 1.089445399 | T160: 127.774588 | U160: 0 | V160: 0 | W160: 12.87726531 | X160: 245.6976969 | Z160: -0.003020890669 | AA160: -0.0001060313592 | AB160: -0.00272411756 | AC160: 0 | AD160: 0 | AE160: -0.0009811082377 | AF160: -0.006832147826
A161: =Control!A87 -> Carterton district | B161: =Control!B87 -> Carterton district | C161: =Control!C87 -> Residential | D161: =Control!D87 -> Carterton districtResidential | F161: 266010500 | G161: 11 | H161: 96880.37779 | J161: 72683.80967 | K161: 158.6824208 | L161: 48677.60669 | M161: 0 | N161: 0 | O161: 150 | P161: 121670.0988 | R161: 26.09856215 | S161: 0.04471005053 | T161: 17.56022102 | U161: 0 | V161: 0 | W161: 0 | X161: 43.70349322 | Z161: -0.003020890669 | AA161: -0.0001060313592 | AB161: -0.00136205878 | AC161: 0 | AD161: 0 | AE161: 0 | AF161: -0.004962870637
A162: =Control!A88 -> Carterton district | B162: =Control!B88 -> Carterton district | C162: =Control!C88 -> Rural | D162: =Control!D88 -> Carterton districtRural | F162: 528861400 | G162: 25 | H162: 224632.5092 | J162: 155596.1457 | K162: 704.7968186 | L162: 50889.06178 | M162: 0 | N162: 0 | O162: 285 | P162: 207475.0043 | R162: 64.22284002 | S162: 0.2338574875 | T162: 21.19427669 | U162: 0 | V162: 0 | W162: 0 | X162: 85.6509742 | Z162: -0.003020890669 | AA162: -0.0001060313592 | AB162: -0.0006810293901 | AC162: 0 | AD162: 0 | AE162: 0 | AF162: -0.004029539479
A163: =Control!A89 -> South Wairarapa district | B163: =Control!B89 -> South Wairarapa district | C163: =Control!C89 -> Business | D163: =Control!D89 -> South Wairarapa districtBusiness | F163: 116052000 | G163: 6 | H163: 345543.3917 | J163: 38204.62324 | K163: 0 | L163: 47602.57658 | M163: 0 | N163: 0 | O163: 4336.864775 | P163: 90144.0646 | R163: 111.6799865 | S163: 0 | T163: 139.7818218 | U163: 0 | V163: 0 | W163: 12.29110751 | X163: 263.7529158 | Z163: -0.003490718143 | AA163: 0 | AB163: -0.003289493805 | AC163: 0 | AD163: 0 | AE163: -0.00104673051 | AF163: -0.007826942458
A164: =Control!A90 -> South Wairarapa district | B164: =Control!B90 -> South Wairarapa district | C164: =Control!C90 -> Residential | D164: =Control!D90 -> South Wairarapa districtResidential | F164: 367011000 | G164: -239 | H164: 152915.1885 | J164: 75820.45434 | K164: 0 | L164: 54067.6412 | M164: 0 | N164: 0 | O164: -3585 | P164: 126303.0955 | R164: 42.19946761 | S164: 0 | T164: 27.52594594 | U164: 0 | V164: 0 | W164: 0 | X164: 69.72541355 | Z164: -0.003490718143 | AA164: 0 | AB164: -0.001644746902 | AC164: 0 | AD164: 0 | AE164: 0 | AF164: -0.005618239188
A165: =Control!A91 -> South Wairarapa district | B165: =Control!B91 -> South Wairarapa district | C165: =Control!C91 -> Rural | D165: =Control!D91 -> South Wairarapa districtRural | F165: 976768350 | G165: 27 | H165: 281103.7438 | J165: 267943.4749 | K165: 0 | L165: 87533.28737 | M165: 0 | N165: 0 | O165: 4440 | P165: 359916.7623 | R165: 75.43651405 | S165: 0 | T165: 24.79659782 | U165: 0 | V165: 0 | W165: 0 | X165: 100.2331119 | Z165: -0.003490718143 | AA165: 0 | AB165: -0.0008223734512 | AC165: 0 | AD165: 0 | AE165: 0 | AF165: -0.004433721928
A166: =Control!A92 -> Tararua district | B166: =Control!B92 -> Tararua district | C166: =Control!C92 -> Rural | D166: =Control!D92 -> Tararua districtRural | F166: 4465500 | G166: 0 | H166: 405954.5455 | J166: 1308.391923 | K166: 0 | L166: 0 | M166: 0 | N166: 0 | O166: 0 | P166: 1308.391923 | R166: 118.9447203 | S166: 0 | T166: 0 | U166: 0 | V166: 0 | W166: 0 | X166: 118.9447203 | Z166: -0.004455410931 | AA166: 0 | AB166: 0 | AC166: 0 | AD166: 0 | AE166: 0 | AF166: -0.004681016082
A167: Region wide | D167: =Control!D93 -> Region wide | F167: 10351186145 | G167: 2537 | H167: 35602.48376 | J167: 15577519.4 | K167: 1758860.85 | L167: 24927490.52 | M167: 0 | N167: 0 | O167: 252501.32 | P167: 42516372.09 | R167: 68.64757647 | S167: 7.63921157 | T167: 110.5161915 | U167: 0 | V167: 0 | W167: 0.9162661933 | X167: 187.7192458 | Z167: 0.005033237196 | AA167: 0.0005309619947 | AB167: 0.008276352004 | AC167: 0 | AD167: 0 | AE167: 1.596484428e-05 | AF167: 0.01385651604
A169: By category
A170: Region Wide | C170: =C140 -> Wellington CBD | D170: =A170&C170 -> Region WideWellington CBD | F170: =F111-F52 -> 242893000 | G170: -16 | H170: 104557.8798 | J170: =J111-J52 -> -1415755.056 | K170: 22773.69435 | L170: 7178679.634 | M170: 0 | N170: 0 | O170: =O111-O52 -> 76094.86344 | P170: =P111-P52 -> 5861793.136 | R170: =R111-R52 -> -462.2150503 | S170: 7.627390845 | T170: 2458.576315 | U170: 0 | V170: 0 | W170: 26.61551663 | X170: =X111-X52 -> 2030.604173
A171: Region Wide | C171: =C141 -> Business | D171: =A171&C171 -> Region WideBusiness | F171: 797104900 | G171: 253 | H171: 21426.88842 | J171: 1057001.944 | K171: 223887.9742 | L171: 2468277.438 | M171: 0 | N171: 0 | O171: 139416.4566 | P171: 3888583.812 | R171: =R112-R53 -> 98.87739193 | S171: 20.46663063 | T171: 252.6951179 | U171: 0 | V171: 0 | W171: 12.42522258 | X171: =X112-X53 -> 384.464363
A172: Region Wide | C172: =C142 -> Residential | D172: =A172&C172 -> Region WideResidential | F172: 6258209600 | G172: 2184 | H172: 22273.28536 | J172: 14440804.9 | K172: 1408852.75 | L172: 14815492.47 | M172: 0 | N172: 0 | O172: 31980 | P172: 30697130.12 | R172: =R113-R54 -> 73.99356436 | S172: 7.021819263 | T172: 75.3734426 | U172: 0 | V172: 0 | W172: -0.003694507461 | X172: =X113-X54 -> 156.3888262
A173: Region Wide | C173: =C143 -> Rural | D173: =A173&C173 -> Region WideRural | F173: 3052978645 | G173: 116 | H173: 184427.5559 | J173: 1495467.609 | K173: 103346.4318 | L173: 465040.9774 | M173: 0 | N173: 0 | O173: 5010 | P173: 2068865.018 | R173: =R114-R55 -> 91.02198525 | S173: 6.313273128 | T173: 28.36913563 | U173: 0 | V173: 0 | W173: 0.2167680166 | X173: =X114-X55 -> 125.704394
A174: Region Wide | C174: Total | D174: =A174&C174 -> Region WideTotal | F174: 10351186145 | G174: 2537 | H174: 35602.48376 | J174: 15577519.4 | K174: 1758860.85 | L174: 24927490.52 | M174: 0 | N174: 0 | O174: 252501.32 | P174: 42516372.09 | R174: 68.64757647 | S174: 7.63921157 | T174: 110.5161915 | U174: 0 | V174: 0 | W174: 0.9162661933 | X174: =X115-X56 -> 187.7192458
J177: =IF(ABS(J137-SUM(J128:J136))>tolerance_dollar,1,0) -> 0 | K177: =IF(ABS(K137-SUM(K128:K136))>tolerance_dollar,1,0) -> 0 | L177: =IF(ABS(L137-SUM(L128:L136))>tolerance_dollar,1,0) -> 0 | M177: =IF(ABS(M137-SUM(M128:M136))>tolerance_dollar,1,0) -> 0 | N177: =IF(ABS(O137-SUM(O128:O136))>tolerance_dollar,1,0) -> 0 | O177: =IF(ABS(P137-SUM(P128:P136))>tolerance_dollar,1,0) -> 0 | P177: =IF(ABS(Q137-SUM(Q128:Q136))>tolerance_dollar,1,0) -> 0
J178: =IF(ABS(J167-SUM(J140:J166))>tolerance_dollar,1,0) -> 0 | K178: 0 | L178: 0 | M178: 0 | N178: 0 | O178: 0 | P178: =IF(ABS(P167-SUM(P140:P166))>tolerance_dollar,1,0) -> 0
F179: =F167-F137 -> 0 | G179: =G167-G137 -> 0 | J179: =IF(ABS(J167-J137)>tolerance_dollar,1,0) -> 0 | K179: 0 | L179: 0 | M179: 0 | N179: 0 | O179: 0 | P179: =IF(ABS(P167-P137)>tolerance_dollar,1,0) -> 0 | R179: =IF(ABS(R167-R137)>tolerance_dollar,1,0) -> 0 | S179: 0 | T179: 0 | U179: 0 | V179: 0 | W179: 0 | X179: 0

Sheet Rates Check - ex-WCC KCDC UHC
A1: Wellington Regional Council
A2: =B5&" Check "&year_current -> Hutt city Check 2024/25
A3: =check_total -> 0
A4: Printed: | B4: =NOW() -> 2024-08-15T13:49:01.710
A5: TA to view | B5: Hutt city
D7: Excluding GST | H7: Including GST
A9: Total
A10: Rate | B10: Categories | D10: Rateable Capital Value | E10: Cents in Dollar | F10: Rates Set | H10: Cents in Dollar | I10: Rates Set
D11: $ | E11: Cents / $ | F11: $ | H11: Cents / $ | I11: $
A12: General rate | B12: District wide | D12: =INDEX(capital_values,MATCH($B$5&B12,capital_values_rows,0),MATCH("CV "&year_current,capital_values_header,0)) -> 39707176000 | E12: =INDEX(Gen!$E$10:$E$19,MATCH(B5,Gen!$A$10:$A$19,0),) -> 0.04145981824 | F12: =+E12*D12/100 -> 16462523 | H12: =+E12*(1+GST) -> 0.04767879097 | I12: =+F12*(1+GST) -> 18931901.45
A13: Remission of Rates | B13: District wide | D13: =INDEX(capital_values,MATCH($B$5&B13,capital_values_rows,0),MATCH("CV "&year_current,capital_values_header,0)) -> 39707176000 | E13: =INDEX(Remission!$E$10:$E$19,MATCH(B5,Remission!$A$10:$A$19,0),) -> 0 | F13: =+E13*D13/100 -> 0 | H13: 0 | I13: 0
A14: River management rate | B14: District wide | D14: =INDEX(capital_values,MATCH($B$5&B14,capital_values_rows,0),MATCH("CV "&year_current,capital_values_header,0)) -> 39707176000 | E14: =INDEX('River management'!$D$10:$D$19,MATCH(B5,'River management'!$A$10:$A$19,0),) -> 0.02252001933 | F14: =+E14*D14/100 -> 8942063.71 | H14: 0.02589802223 | I14: 10283373.27
A15: Public transport rate | B15: Wellington CBD | D15: =IFERROR(INDEX(capital_values,MATCH($B$5&B15,capital_values_rows,0),MATCH("CV "&year_current,capital_values_header,0)),0) -> 0 | E15: =IFERROR(INDEX('Public transport'!$J$23:$J$50,MATCH($B$5&B15,'Public transport'!$D$23:$D$50,0),),0) -> 0 | F15: =+E15*D15/100 -> 0 | H15: 0 | I15: 0
B16: Business | D16: 6742241000 | E16: =IFERROR(INDEX('Public transport'!$J$23:$J$50,MATCH($B$5&B16,'Public transport'!$D$23:$D$50,0),),0) -> 0.06866364921 | F16: 4629468.709 | H16: 0.07896319659 | I16: 5323889.016
B17: Residential | D17: 32406254500 | E17: =IFERROR(INDEX('Public transport'!$J$23:$J$50,MATCH($B$5&B17,'Public transport'!$D$23:$D$50,0),),0) -> 0.04904546372 | F17: 15893797.79 | H17: 0.05640228328 | I17: 18277867.46
B18: Rural | D18: 558680500 | E18: =IFERROR(INDEX('Public transport'!$J$23:$J$50,MATCH($B$5&B18,'Public transport'!$D$23:$D$50,0),),0) -> 0.01226136593 | F18: 68501.86049 | H18: 0.01410057082 | I18: 78777.13956
A19: Stadium purposes rate | B19: Wellington CBD | D19: 0 | E19: =IFERROR(INDEX(Stadium!$J$23:$J$49,MATCH($B$5&B19,Stadium!$D$23:$D$49,0),),0) -> 0 | F19: 0 | H19: 0 | I19: 0
B20: Business | D20: 6742241000 | E20: =IFERROR(INDEX(Stadium!$J$23:$J$49,MATCH($B$5&B20,Stadium!$D$23:$D$49,0),),0) -> 0 | F20: 0 | H20: 0 | I20: 0
B21: Residential | D21: 32406254500 | E21: =IFERROR(INDEX(Stadium!$J$23:$J$49,MATCH($B$5&B21,Stadium!$D$23:$D$49,0),),0) -> 0 | F21: 0 | H21: 0 | I21: 0
B22: Rural | D22: 558680500 | E22: =IFERROR(INDEX(Stadium!$J$23:$J$49,MATCH($B$5&B22,Stadium!$D$23:$D$49,0),),0) -> 0 | F22: 0 | H22: 0 | I22: 0
A23: Economic development rate | B23: Wellington CBD | D23: 0 | E23: =IFERROR(INDEX('Economic Development'!$L$23:$L$49,MATCH($B$5&B23,'Economic Development'!$D$23:$D$49,0),),0) -> 0 | F23: 0 | H23: 0 | I23: 0
B24: Business | D24: 6742241000 | E24: =IFERROR(INDEX('Economic Development'!$L$23:$L$49,MATCH($B$5&B24,'Economic Development'!$D$23:$D$49,0),),0) -> 0.006310042395 | F24: 425438.2655 | H24: 0.007256548754 | I24: 489254.0053
A26: Rate | B26: Categories | D26: Number of assessments | E26: Amount per rating unit | F26: Rates Set | H26: Amount per rating unit | I26: Rates Set
D27: # | E27: $ | F27: $ | H27: $ | I27: $
A28: =+A23 -> Economic development rate | B28: Residential | D28: =IFERROR(INDEX('Economic Development'!$G$23:$G$49,MATCH($B$5&B28,'Economic Development'!$D$23:$D$49,0),),0) -> 39102 | E28: =INDEX(WRS_value,MATCH(B28,WRS_categories,0),) -> 15 | F28: =D28*E28 -> 586530 | H28: =+E28*(1+GST) -> 17.25 | I28: =+F28*(1+GST) -> 674509.5
B29: Rural | D29: =IFERROR(INDEX('Economic Development'!$G$23:$G$49,MATCH($B$5&B29,'Economic Development'!$D$23:$D$49,0),),0) -> 446 | E29: =INDEX(WRS_value,MATCH(B29,WRS_categories,0),) -> 15 | F29: =D29*E29 -> 6690 | H29: =+E29*(1+GST) -> 17.25 | I29: =+F29*(1+GST) -> 7693.5
A32: District-Wide Rates | F32: =SUM(F12:F30) -> 47015013.34 | I32: =SUM(I12:I30) -> 54067265.34
A35: Rate | B35: Categories | D35: Rateable Capital Value or Land Value | E35: Cents in Dollar | F35: Rates Set | H35: Cents in Dollar | I35: Rates Set
D36: $ | E36: Cents / $ | F36: $ | H36: Cents / $ | I36: $
A37: Greytown river management rate | B37: Greytown Urban -CV | D37: =INDEX('Capital values'!$E$48:$F$49,MATCH(B37,'Capital values'!$A$48:$A$49,0),MATCH("CV "&year_current,capital_values_header,0)) -> 1429473500 | E37: =IF($B$5="South Wairarapa District",INDEX('River management'!$D$29:$D$30,MATCH(A37,'River management'!$A$29:$A$30,0),),0) -> 0 | F37: =+E37*D37/100 -> 0 | H37: =+E37*(1+GST) -> 0 | I37: =+F37*(1+GST) -> 0
A38: Donalds Creek stopbank river management rate | B38: Featherston Urban - LV | D38: =INDEX('Capital values'!$E$48:$F$49,MATCH(B38,'Capital values'!$A$48:$A$49,0),MATCH("CV "&year_current,capital_values_header,0)) -> 334432000 | E38: =IF($B$5="South Wairarapa District",INDEX('River management'!$D$29:$D$30,MATCH(A38,'River management'!$A$29:$A$30,0),),0) -> 0 | F38: =+E38*D38/100 -> 0 | H38: =+E38*(1+GST) -> 0 | I38: =+F38*(1+GST) -> 0
A41: Total regional rates (excl special rates) | F41: =SUM(F32:F40) -> 47015013.34 | I41: =SUM(I32:I40) -> 54067265.34
A43: Check | F43: =IF(ABS(INDEX('Comparison - TA'!$B$43:$L$43,,MATCH(B5,'Comparison - TA'!$B$29:$L$29,0))-F41)>tolerance_dollar,1,0) -> 0

Sheet Rates Check - WCC
A1: Wellington Regional Council
A2: =B5&" Check "&year_current -> Wellington City Check 2024/25
A3: =check_total -> 0
A4: Printed: | B4: =NOW() -> 2024-08-15T13:49:01.710
A5: TA to view | B5: Wellington City
D7: Excluding GST | H7: Including GST
A9: Total
A10: Rate | B10: Categories | D10: Rateable Capital Value | E10: Cents in Dollar | F10: Rates Set | H10: Cents in Dollar | I10: Rates Set
D11: $ | E11: Cents / $ | F11: $ | H11: Cents / $ | I11: $
A12: General rate | B12: Wellington CBD | D12: =INDEX(capital_values,MATCH($B$5&B12,capital_values_rows,0),MATCH("CV "&year_current,capital_values_header,0)) -> 13368376300 | E12: =Gen!$E$10 -> 0.03618162367 | F12: =+E12*D12/100 -> 4836895.603 | H12: =+E12*(1+GST) -> 0.04160886722 | I12: 5562429.944
B13: Business | D13: 6480398350 | E13: =Gen!$E$10 -> 0.03618162367 | F13: =+E13*D13/100 -> 2344713.343 | H13: =+E13*(1+GST) -> 0.04160886722 | I13: 2696420.345
B14: Residential | D14: 96040762550 | E14: =Gen!$E$10 -> 0.03618162367 | F14: =+E14*D14/100 -> 34749107.27 | H14: 0.04160886722 | I14: 39961473.36
B15: Rural | D15: 1437369350 | E15: =Gen!$E$10 -> 0.03618162367 | F15: =+E15*D15/100 -> 520063.5689 | H15: 0.04160886722 | I15: 598073.1043
A16: Remission of Rates | B16: District wide | D16: 117326906550 | E16: =INDEX(Remission!$E$10:$E$19,MATCH(B5,Remission!$A$10:$A$19,0),) -> 0 | F16: =+E16*D16/100 -> 0 | H16: 0 | I16: 0
A17: River management rate | B17: District wide | D17: 117326906550 | E17: =INDEX('River management'!$D$10:$D$19,MATCH(B5,'River management'!$A$10:$A$19,0),) -> 0.0002263517788 | F17: =+E17*D17/100 -> 265571.54 | H17: 0.0002603045456 | I17: 305407.271
A18: Public transport rate | B18: Wellington CBD | D18: =IFERROR(INDEX(capital_values,MATCH($B$5&B18,capital_values_rows,0),MATCH("CV "&year_current,capital_values_header,0)),0) -> 13368376300 | E18: =IFERROR(INDEX('Public transport'!$J$23:$J$50,MATCH($B$5&B18,'Public transport'!$D$23:$D$50,0),),0) -> 0.2996108547 | F18: 40053106.49 | H18: 0.3445524829 | I18: 46061072.46
B19: Business | D19: 6480398350 | E19: =IFERROR(INDEX('Public transport'!$J$23:$J$50,MATCH($B$5&B19,'Public transport'!$D$23:$D$50,0),),0) -> 0.05992217094 | F19: 3883195.377 | H19: 0.06891049658 | I19: 4465674.683
B20: Residential | D20: 96040762550 | E20: =IFERROR(INDEX('Public transport'!$J$23:$J$50,MATCH($B$5&B20,'Public transport'!$D$23:$D$50,0),),0) -> 0.04280155067 | F20: 41106935.64 | H20: 0.04922178327 | I20: 47272975.99
B21: Rural | D21: 1437369350 | E21: =IFERROR(INDEX('Public transport'!$J$23:$J$50,MATCH($B$5&B21,'Public transport'!$D$23:$D$50,0),),0) -> 0.01070038767 | F21: 153804.0927 | H21: 0.01230544582 | I21: 176874.7066
A22: Stadium purposes rate | B22: Wellington CBD | D22: 13368376300 | E22: =IFERROR(INDEX(Stadium!$J$23:$J$49,MATCH($B$5&B22,Stadium!$D$23:$D$49,0),),0) -> 0 | F22: 0 | H22: 0 | I22: 0
B23: Business | D23: 6480398350 | E23: =IFERROR(INDEX(Stadium!$J$23:$J$49,MATCH($B$5&B23,Stadium!$D$23:$D$49,0),),0) -> 0 | F23: 0 | H23: 0 | I23: 0
B24: Residential | D24: 96040762550 | E24: =IFERROR(INDEX(Stadium!$J$23:$J$49,MATCH($B$5&B24,Stadium!$D$23:$D$49,0),),0) -> 0 | F24: 0 | H24: 0 | I24: 0
B25: Rural | D25: 1437369350 | E25: =IFERROR(INDEX(Stadium!$J$23:$J$49,MATCH($B$5&B25,Stadium!$D$23:$D$49,0),),0) -> 0 | F25: 0 | H25: 0 | I25: 0
A26: Economic development rate | B26: Wellington CBD | D26: 13368376300 | E26: =IFERROR(INDEX('Economic Development'!$L$23:$L$49,MATCH($B$5&B26,'Economic Development'!$D$23:$D$49,0),),0) -> 0.005506719252 | F26: 736158.9514 | H26: 0.00633272714 | I26: 846582.7941
B27: Business | D27: 6480398350 | E27: =IFERROR(INDEX('Economic Development'!$L$23:$L$49,MATCH($B$5&B27,'Economic Development'!$D$23:$D$49,0),),0) -> 0.005506719252 | F27: 356857.3435 | H27: 0.00633272714 | I27: 410385.9451
A29: Rate | B29: Categories | D29: Number of assessments | E29: Amount per rating unit | F29: Rates Set | H29: Amount per rating unit | I29: Rates Set
D30: # | E30: $ | F30: $ | H30: $ | I30: $
A31: =+A26 -> Economic development rate | B31: Residential | D31: =IFERROR(INDEX('Economic Development'!$G$23:$G$49,MATCH($B$5&B31,'Economic Development'!$D$23:$D$49,0),),0) -> 75387 | E31: =INDEX(WRS_value,MATCH(B31,WRS_categories,0),) -> 15 | F31: =D31*E31 -> 1130805 | H31: =+E31*(1+GST) -> 17.25 | I31: =+F31*(1+GST) -> 1300425.75
B32: Rural | D32: =IFERROR(INDEX('Economic Development'!$G$23:$G$49,MATCH($B$5&B32,'Economic Development'!$D$23:$D$49,0),),0) -> 902 | E32: =INDEX(WRS_value,MATCH(B32,WRS_categories,0),) -> 15 | F32: =D32*E32 -> 13530 | H32: =+E32*(1+GST) -> 17.25 | I32: =+F32*(1+GST) -> 15559.5
A35: District-Wide Rates | F35: =SUM(F12:F33) -> 130150744.2 | I35: =SUM(I12:I33) -> 149673355.9
A37: Total regional rates (excl special rates) | F37: =SUM(F35:F36) -> 130150744.2 | I37: =SUM(I35:I36) -> 149673355.9
A39: Check | F39: =IF(ABS(INDEX('Comparison - TA'!$B$43:$L$43,,MATCH(B5,'Comparison - TA'!$B$29:$L$29,0))-F37)>tolerance_dollar,1,0) -> 0

Sheet Rates Check - UHC
A1: Wellington Regional Council
A2: =B5&" Check "&year_current -> Upper Hutt city Check 2024/25
A3: =check_total -> 0
A4: Printed: | B4: =NOW() -> 2024-08-15T13:49:01.710
A5: TA to view | B5: Upper Hutt city
D7: Excluding GST | H7: Including GST
A10: Rate | B10: Categories | D10: Rateable Capital Value | E10: Cents in Dollar | F10: Rates Set | H10: Cents in Dollar | I10: Rates Set
D11: $ | E11: Cents / $ | F11: $ | H11: Cents / $ | I11: $
A12: General rate | B12: District wide | D12: ='UHCC Adjustments'!$D$20 -> 16707040350 | E12: =Gen!E24 -> 0.03950833516 | F12: =+E12*D12/100 -> 6600673.497 | H12: =+E12*(1+GST) -> 0.04543458544 | I12: 7590774.522
A13: Remission of rates | B13: District wide | D13: ='UHCC Adjustments'!$D$20 -> 16707040350 | E13: =Remission!E35 -> 0 | F13: =+E13*D13/100 -> 0 | H13: 0 | I13: 0
A14: River management rate | B14: District wide | D14: ='UHCC Adjustments'!$D$20 -> 16707040350 | E14: ='River management'!D24 -> 0.008719368721 | F14: =+E14*D14/100 -> 1456748.45 | H14: 0.01002727403 | I14: 1675260.718
A15: Public transport rate | B15: Wellington CBD | D15: 0 | E15: 0 | F15: 0 | H15: 0 | I15: 0
B16: Business | D16: ='UHCC Adjustments'!D16 -> 1978645950 | E16: ='Public transport'!J55 -> 0.06377961628 | F16: 1261972.794 | H16: 0.07334655872 | I16: 1451268.714
B17: Residential | D17: ='UHCC Adjustments'!D17 -> 12875867400 | E17: ='Public transport'!J57 -> 0.04671093967 | F17: 6014438.654 | H17: 0.05371758062 | I17: 6916604.452
B18: Rural | D18: ='UHCC Adjustments'!D18 -> 1852527000 | E18: ='Public transport'!J59 -> 0.01165802253 | F18: 215968.015 | H18: 0.01340672591 | I18: 248363.2172
A19: Stadium purposes rate | B19: Wellington CBD | D19: 0 | E19: 0 | F19: 0 | H19: 0 | I19: 0
B20: Business | D20: ='UHCC Adjustments'!D16 -> 1978645950 | E20: =Stadium!J55 -> 0 | F20: 0 | H20: 0 | I20: 0
B21: Residential | D21: ='UHCC Adjustments'!D17 -> 12875867400 | E21: =Stadium!J57 -> 0 | F21: 0 | H21: 0 | I21: 0
B22: Rural | D22: ='UHCC Adjustments'!D18 -> 1852527000 | E22: =Stadium!J59 -> 0 | F22: 0 | H22: 0 | I22: 0
A23: Economic development rate | B23: Wellington CBD | D23: 0 | E23: =IFERROR(INDEX('Economic Development'!$L$23:$L$49,MATCH($B$5&B23,'Economic Development'!$D$23:$D$49,0),),0) -> 0 | F23: 0 | H23: 0 | I23: 0
B24: Business | D24: ='UHCC Adjustments'!D16 -> 1978645950 | E24: =IFERROR(INDEX('Economic Development'!$L$23:$L$49,MATCH($B$5&B24,'Economic Development'!$D$23:$D$49,0),),0) -> 0.006006893247 | F24: 118855.15 | H24: 0.006907927234 | I24: 136683.4224
A26: Rate | B26: Categories | D26: Number of assessments | E26: Amount per rating unit | F26: Rates Set | H26: Amount per rating unit | I26: Rates Set
D27: # | E27: $ | F27: $ | H27: $ | I27: $
A28: =+A23 -> Economic development rate | B28: Residential | D28: =IFERROR(INDEX('Economic Development'!$G$23:$G$49,MATCH($B$5&B28,'Economic Development'!$D$23:$D$49,0),),0) -> 15878 | E28: =INDEX(WRS_value,MATCH(B28,WRS_categories,0),) -> 15 | F28: =D28*E28 -> 238170 | H28: =+E28*(1+GST) -> 17.25 | I28: =+F28*(1+GST) -> 273895.5
B29: Rural | D29: =IFERROR(INDEX('Economic Development'!$G$23:$G$49,MATCH($B$5&B29,'Economic Development'!$D$23:$D$49,0),),0) -> 1300 | E29: =INDEX(WRS_value,MATCH(B29,WRS_categories,0),) -> 15 | F29: =D29*E29 -> 19500 | H29: =+E29*(1+GST) -> 17.25 | I29: =+F29*(1+GST) -> 22425
A32: District-Wide Rates | F32: =SUM(F12:F30) -> 15926326.56 | I32: =SUM(I12:I30) -> 18315275.54
A34: Total regional rates (excl special rates) | F34: =SUM(F32:F33) -> 15926326.56 | I34: =SUM(I32:I33) -> 18315275.54
A38: Trentham Military Camp
A39: Rate | B39: Categories | D39: Rateable Capital Value | E39: Cents in Dollar | F39: Rates Set | H39: Cents in Dollar | I39: Rates Set
D40: $ | E40: Cents / $ | F40: $ | H40: Cents / $ | I40: $
A41: General rate | B41: Trentham Military Camp | D41: =Gen!B23 -> 149860000 | E41: =IF(B5="Upper Hutt City",Gen!E23,0) -> 0.03497035175 | F41: =+E41*D41/100 -> 52406.56914 | H41: =+E41*(1+GST) -> 0.04021590452 | I41: 60267.55451
A42: Remission of rates | B42: Trentham Military Camp | D42: =Remission!B34 -> 149860000 | E42: =IF(B5="Upper Hutt City",Remission!E34,0) -> 0 | F42: =+E42*D42/100 -> 0
A43: River management rate | B43: Trentham Military Camp | D43: ='River management'!B23 -> 149860000 | E43: =IF(B5="Upper Hutt City",'River management'!D23,0) -> 0.007717849664 | F43: 11565.96951 | H43: 0.008875527114 | I43: 13300.86493
A44: Public transport rate | B44: Business | D44: ='Public transport'!E54 -> 95597000 | E44: =IF(B5="Upper Hutt City",'Public transport'!J54,0) -> 0.09817648523 | F44: 93853.77458 | H44: 0.112902958 | I44: 107931.8408
B45: Residential | D45: ='Public transport'!E56 -> 44959000 | E45: =IF(B5="Upper Hutt City",'Public transport'!J56,0) -> 0.04046466897 | F45: 18192.51052 | H45: 0.04653436932 | I45: 20921.3871
B46: Rural | D46: ='Public transport'!E58 -> 9304000 | E46: =IF(B5="Upper Hutt City",'Public transport'!J58,0) -> 0.01451536411 | F46: 1350.509477 | H46: 0.01669266872 | I46: 1553.085898
A47: Stadium purposes Rate | B47: Business | D47: =Stadium!E54 -> 95597000 | E47: =IF(B5="Upper Hutt City",Stadium!J54,0) -> 0 | F47: 0 | H47: 0 | I47: 0
B48: Residential | D48: =Stadium!E56 -> 44959000 | E48: =IF(B5="Upper Hutt City",Stadium!J56,0) -> 0 | F48: 0 | H48: 0 | I48: 0
B49: Rural | D49: =Stadium!E58 -> 9304000 | E49: =IF(B5="Upper Hutt City",Stadium!J58,0) -> 0 | F49: 0 | H49: 0 | I49: 0
A50: Economic development rate | B50: Business | D50: ='UHCC Adjustments'!D9 -> 95597000 | E50: =IF(B5="Upper Hutt City",'Economic Development'!L30,0) -> 0.006006893247 | F50: 5742.409737 | H50: 0.006907927234 | I50: 6603.771198
B51: No change for residential or rural as it is a fixed charge per property
A52: Trentham Military Camp | F52: =SUM(F41:F51) -> 183111.743 | I52: =SUM(I41:I51) -> 210578.5044
A54: Check | F54: =ROUND(INDEX('Comparison - TA'!$B$43:$L$43,,MATCH(B5,'Comparison - TA'!$B$29:$L$29,0))-F34-F52,0) -> 0

Sheet Rates Check - KCDC
A1: Wellington Regional Council
A2: =B5&" Check "&year_current -> Kāpiti Coast district Check 2024/25
A3: =check_total -> 0
A4: Printed: | B4: =NOW() -> 2024-08-15T13:49:01.710
A5: TA to view | B5: Kāpiti Coast district
D7: Excluding GST | H7: Including GST
A9: Total
A10: Rate | B10: Categories | D10: Rateable Capital Value | E10: Cents in Dollar | F10: Rates Set | H10: Cents in Dollar | I10: Rates Set
D11: $ | E11: Cents / $ | F11: $ | H11: Cents / $ | I11: $
A12: General rate | B12: District wide | D12: =INDEX(capital_values,MATCH($B$5&B12,capital_values_rows,0),MATCH("CV "&year_current,capital_values_header,0)) -> 23142666100 | E12: =INDEX(Gen!$E$10:$E$19,MATCH(B5,Gen!$A$10:$A$19,0),) -> 0.04275002109 | F12: =+E12*D12/100 -> 9893494.638 | H12: =+E12*(1+GST) -> 0.04916252425 | I12: 11377518.83
A13: Remission of rates | B13: District wide | D13: =INDEX(capital_values,MATCH($B$5&B13,capital_values_rows,0),MATCH("CV "&year_current,capital_values_header,0)) -> 23142666100 | E13: =INDEX(Remission!$E$10:$E$19,MATCH(B5,Remission!$A$10:$A$19,0),) -> 0 | F13: =+E13*D13/100 -> 0 | H13: 0 | I13: 0
A14: River management rate | B14: District wide | D14: =INDEX(capital_values,MATCH($B$5&B14,capital_values_rows,0),MATCH("CV "&year_current,capital_values_header,0)) -> 23142666100 | E14: =INDEX('River management'!$D$10:$D$19,MATCH(B5,'River management'!$A$10:$A$19,0),) -> 0.007553379902 | F14: =+E14*D14/100 -> 1748053.49 | H14: 0.008686386887 | I14: 2010261.513
A15: Public transport rate | B15: Wellington CBD | D15: =IFERROR(INDEX(capital_values,MATCH($B$5&B15,capital_values_rows,0),MATCH("CV "&year_current,capital_values_header,0)),0) -> 0 | E15: =IFERROR(INDEX('Public transport'!$J$23:$J$52,MATCH($B$5&B15,'Public transport'!$D$23:$D$52,0),),0) -> 0 | F15: 0 | H15: 0 | I15: 0
B16: Business | D16: 2118502900 | E16: =IFERROR(INDEX('Public transport'!$J$23:$J$52,MATCH($B$5&B16,'Public transport'!$D$23:$D$52,0),),0) -> 0.07080041776 | F16: 1499908.904 | H16: 0.08142048043 | I16: 1724895.239
B17: Residential - excl-Otaki | D17: =IFERROR(INDEX(capital_values,MATCH("Kāpiti Coast district excl Ōtaki Residential",capital_values_rows,0),MATCH("CV "&year_current,capital_values_header,0)),0) -> 15678065400 | E17: =IFERROR(INDEX('Public transport'!$J$23:$J$52,MATCH("Kāpiti Coast district excl Ōtaki Residential",'Public transport'!$D$23:$D$52,0),),0) -> 0.05057172697 | F17: 7928668.429 | H17: 0.05815748602 | I17: 9117968.693
B18: Residential - Otaki | D18: =IFERROR(INDEX(capital_values,MATCH("Ōtaki rating areaResidential",capital_values_rows,0),MATCH("CV "&year_current,capital_values_header,0)),0) -> 2036169400 | E18: =IFERROR(INDEX('Public transport'!$J$23:$J$52,MATCH("Ōtaki rating areaResidential",'Public transport'!$D$23:$D$52,0),),0) -> 0.02528586349 | F18: 514863.0149 | H18: =+E18*(1+GST) -> 0.02907874301 | I18: =+F18*(1+GST) -> 592092.4671
B19: Rural | D19: 3309928400 | E19: =IFERROR(INDEX('Public transport'!$J$23:$J$52,MATCH($B$5&B19,'Public transport'!$D$23:$D$52,0),),0) -> 0.01264293174 | F19: 418471.9884 | H19: =+E19*(1+GST) -> 0.01453937151 | I19: =+F19*(1+GST) -> 481242.7866
A20: Stadium purposes rate | B20: Wellington CBD | D20: 0 | E20: =IFERROR(INDEX(Stadium!$J$23:$J$49,MATCH($B$5&B20,Stadium!$D$23:$D$49,0),),0) -> 0 | F20: 0 | H20: 0 | I20: 0
B21: Business | D21: 2118502900 | E21: =IFERROR(INDEX(Stadium!$J$23:$J$49,MATCH($B$5&B21,Stadium!$D$23:$D$49,0),),0) -> 0 | F21: 0 | H21: 0 | I21: 0
B22: Residential - excl-Otaki | D22: =IFERROR(INDEX(capital_values,MATCH("Kāpiti Coast district excl Ōtaki Residential",capital_values_rows,0),MATCH("CV "&year_current,capital_values_header,0)),0) -> 15678065400 | E22: =IFERROR(INDEX(Stadium!$J$23:$J$49,MATCH("Kāpiti Coast district excl Ōtaki Residential",Stadium!$D$23:$D$49,0),),0) -> 0 | F22: 0 | H22: 0 | I22: 0
B23: Residential - Otaki | D23: =IFERROR(INDEX(capital_values,MATCH("Ōtaki rating areaResidential",capital_values_rows,0),MATCH("CV "&year_current,capital_values_header,0)),0) -> 2036169400 | E23: =IFERROR(INDEX(Stadium!$J$23:$J$49,MATCH("Ōtaki rating areaResidential",Stadium!$D$23:$D$49,0),),0) -> 0 | F23: =+E23*D23/100 -> 0 | H23: =+E23*(1+GST) -> 0 | I23: =+F23*(1+GST) -> 0
B24: Rural | D24: 3309928400 | E24: =IFERROR(INDEX(Stadium!$J$23:$J$49,MATCH($B$5&B24,Stadium!$D$23:$D$49,0),),0) -> 0 | F24: 0 | H24: 0 | I24: 0
A25: Economic development rate | B25: Wellington CBD | D25: 0 | E25: =IFERROR(INDEX('Economic Development'!$L$23:$L$49,MATCH($B$5&B25,'Economic Development'!$D$23:$D$49,0),),0) -> 0 | F25: 0 | H25: 0 | I25: 0
B26: Business | D26: 2118502900 | E26: =IFERROR(INDEX('Economic Development'!$L$23:$L$49,MATCH($B$5&B26,'Economic Development'!$D$23:$D$49,0),),0) -> 0.006506406852 | F26: 137838.4178 | H26: 0.007482367879 | I26: 158514.1805
A28: Rate | B28: Categories | D28: Number of assessments | E28: Amount per rating unit | F28: Rates Set | H28: Amount per rating unit | I28: Rates Set
D29: # | E29: $ | F29: $ | H29: $ | I29: $
A30: =+A25 -> Economic development rate | B30: Residential | D30: =SUMIFS('Economic Development'!$G$23:$G$49,'Economic Development'!$A$23:$A$49,$B$5,'Economic Development'!$C$23:$C$49,$B30) -> 21821 | E30: =F30/D30 -> 15 | F30: =SUMIFS('Economic Development'!$K$23:$K$49,'Economic Development'!$A$23:$A$49,$B$5,'Economic Development'!$C$23:$C$49,$B30) -> 327315 | H30: =+E30*(1+GST) -> 17.25 | I30: =+F30*(1+GST) -> 376412.25
B31: Rural | D31: =SUMIFS('Economic Development'!$G$23:$G$49,'Economic Development'!$A$23:$A$49,$B$5,'Economic Development'!$C$23:$C$49,$B31) -> 2623 | E31: =F31/D31 -> 15 | F31: =SUMIFS('Economic Development'!$K$23:$K$49,'Economic Development'!$A$23:$A$49,$B$5,'Economic Development'!$C$23:$C$49,$B31) -> 39345 | H31: =+E31*(1+GST) -> 17.25 | I31: =+F31*(1+GST) -> 45246.75
A34: District-Wide Rates | F34: =SUM(F12:F32) -> 22507958.88 | I34: =SUM(I12:I32) -> 25884152.71
A36: Total regional rates (excl special rates) | F36: =SUM(F34:F35) -> 22507958.88 | I36: =SUM(I34:I35) -> 25884152.71
A38: Check | F38: =INDEX('Comparison - TA'!$B$43:$L$43,,MATCH(B5,'Comparison - TA'!$B$29:$L$29,0))-F36 -> 0

Sheet Checks
A1: Wellington Regional Council
A2: Value checks
A3: =check_total -> 0
A5: Tab/component | B5: Check | D5: Check notes
A7: OVERALL | B7: =SUM(B9:B47) -> 0
A10: Capital values tab
A11: Populated | B11: =SUM('Capital values'!J8:K140) -> 0
A12: TA total matches category
A13: Capital values | B13: =SUM('Capital values'!E51:F51) -> 0
A14: No. of Assessments (#) | B14: =SUM('Capital values'!E97:F97) -> 0
A15: Number of Assessments Contiguous for WRS | B15: =SUM('Capital values'!E143:F143) -> 0
A17: Rate model checks
A18: General rate | B18: =SUM(Gen!B28:D29) -> 0
A19: River management rate | B19: =SUM('River management'!B34:C36) -> 0
A20: Stadium rate | B20: =SUM(Stadium!E63:I66) -> 0
A21: Economic development rate | B21: =SUM('Economic Development'!E52:K54) -> 0
A22: Public transport rate | B22: =SUM('Public transport'!E63:I66) -> 0
A23: Water Levy | B23: =SUM('Water levy'!B21:C21) -> 0
A24: Class rates - schemes | B24: =SUM('Class Rates'!B92:H92) -> 0
A26: Comparison - TA | B26: =SUM('Comparison - TA'!M7:M68) -> 0
A28: Comparison - category
A29: Previous year | B29: =SUM('Comparison - Category'!F59:W61) -> 0
A30: Current year | B30: =SUM('Comparison - Category'!F118:W120) -> 0
A31: Delta | B31: =SUM('Comparison - Category'!F177:W179) -> 0
A33: Rates check
A34: ex-KCDC & UHC | B34: ='Rates Check - ex-WCC KCDC UHC'!F43 -> 0
A35: UHC | B35: ='Rates Check - UHC'!F54 -> 0
A36: KCDC | B36: ='Rates Check - KCDC'!F38 -> 0
A38: Rates
A39: 1 | B39: =SUM('1'!J19:K46) -> 0
A40: 2 | B40: =SUM('2'!J21:K41) -> 0
A41: 3 - changes | B41: =SUM('3'!V14:Y39) -> 0
A42: 3 - inputs | B42: =SUM('3'!W64:W124) -> 0
A43: 4 | B43: =SUM('4'!W16:X24) -> 0
A44: 5 | B44: =SUM('5'!R20:S42) -> 0
A45: Impact for annual plan - excl GST | B45: ='Impact - excl GST'!L197+'Impact - excl GST'!L201 -> 0
A46: Impact for annual plan - incl GST | B46: ='Impact - incl GST'!L197+'Impact - incl GST'!L201 -> 0

Sheet >>Rates

Sheet 1
A1: Summary of Rates and Water Levies
A3: Rates for Greater Wellington are mostly allocated to ratepayers on the basis of their capital values. Within the region, different territorial authorities undertake general revaluations at different times. To equalise the values, each year Council gets Quotable Value or another registered valuer to estimate the projected valuations of all the rateable land in the districts within the region. This means that rates are assessed on a consistent valuation basis, regardless of the timing of individual territorial authority revaluations.
A4: The summary information in this section should be read in conjunction with the Funding Impact Statement and the Revenue and Financing policy.
A5: All figures on this page exclude GST.
A6: ="This table shows the rates and levies for GWRC in "&year_current&", with the changes from last year "&year_previous&". Rates comprise the general rate and various targeted rates. GWRC also charges a water supply levy directly to the four city councils in the region, and they set their own rates to cover the cost of this levy." -> This table shows the rates and levies for GWRC in 2024/25, with the changes from last year 2023/24. Rates comprise the general rate and various targeted rates. GWRC also charges a water supply levy directly to the four city councils in the region, and they set their own rates to cover the cost of this levy.
A8: ="The total rate increase in regional rates for "&year_current&" is "&ROUND(E37*100,1)&"%. The water supply levy, which is charged to the four metropolitan city councils is proposed to increase by "&ROUND(E39*100,1)&"% compared to "&year_previous&". When the water supply levy is included, Greater Wellington Regional Council's overall increase is "&ROUND(E41*100,1)&"%" -> The total rate increase in regional rates for 2024/25 is 20.5%. The water supply levy, which is charged to the four metropolitan city councils is proposed to increase by 27.5% compared to 2023/24. When the water supply levy is included, Greater Wellington Regional Council's overall increase is 22%
A10: Summary of rates and levies
B11: =year_previous -> 2023/24 | C11: =year_current -> 2024/25
B12: Plan | C12: Plan | D12: Change | E12: Change
B13: $000s | C13: $000s | D13: $000s | E13: % | G13: Row lookup | H13: Column lookup
A14: General rates
A15: =ESSbase!C38 -> Catchment Management (excluding forests) | B15: =ESSbase!F38/1000 -> 36272.88581 | C15: =ESSbase!G38/1000 -> 47426.12366 | D15: =C15-B15 -> 11153.23785 | E15: =ROUND(D15/B15,4) -> 0.3075
A16: Other | B16: =ESSbase!F43/1000-SUM(B15,B17:B18) -> 46416.3321 | C16: =ESSbase!G43/1000-SUM(C15,C17:C18) -> 53391.94248 | D16: =C16-B16 -> 6975.61038 | E16: =ROUND(D16/B16,4) -> 0.1503
A17: =ESSbase!C39 -> Strategy Group | B17: =ESSbase!F39/1000 -> 8990.28292 | C17: =ESSbase!G39/1000 -> 7297.9702 | D17: =C17-B17 -> -1692.31272 | E17: =ROUND(D17/B17,4) -> -0.1882
A18: =ESSbase!C41 -> Investment Management. | B18: =ESSbase!F41/1000 -> -13700.48658 | C18: =ESSbase!G41/1000 -> -14559.50304 | D18: =C18-B18 -> -859.01646 | E18: =-ROUND(D18/B18,4) -> -0.0627
A19: General rate | B19: =INDEX('Comparison - TA'!$B$7:$L$24,MATCH(G19,'Comparison - TA'!$A$7:$A$24,0),MATCH(H19,'Comparison - TA'!$B$6:$L$6,0))/1000 -> 77979.01425 | C19: =INDEX('Comparison - TA'!$B$30:$L$47,MATCH(G19,'Comparison - TA'!$A$30:$A$47,0),MATCH(H19,'Comparison - TA'!$B$29:$L$29,0))/1000 -> 93556.53365 | D19: =C19-B19 -> 15577.5194 | E19: =ROUND(D19/B19,4) -> 0.1998 | G19: General rate | H19: Region wide | J19: =INDEX(ess_base_estract,MATCH($A19,ESSbase!$B$8:$B$25,0),MATCH(B$11,ESSbase!$F$6:$G$6,0))/1000-B19 -> 0 | K19: =INDEX(ess_base_estract,MATCH($A19,ESSbase!$B$8:$B$25,0),MATCH(C$11,ESSbase!$F$6:$G$6,0))/1000-C19 -> 0
A22: Remission of rates | B22: =ESSbase!F9 -> 0 | C22: =ESSbase!G9/1000 -> 0 | D22: =+B22-C22 -> 0 | J22: =INDEX(ess_base_estract,MATCH($A22,ESSbase!$B$8:$B$25,0),MATCH(B$11,ESSbase!$F$6:$G$6,0))/1000-B22 -> 0 | K22: =INDEX(ess_base_estract,MATCH($A22,ESSbase!$B$8:$B$25,0),MATCH(C$11,ESSbase!$F$6:$G$6,0))/1000-C22 -> 0
A24: Targeted rates
A25: Region wide targeted rates1
A26: River management rate | B26: =INDEX('Comparison - TA'!$B$7:$L$24,MATCH(G26,'Comparison - TA'!$A$7:$A$24,0),MATCH(H26,'Comparison - TA'!$B$6:$L$6,0))/1000 -> 10784.66415 | C26: =INDEX('Comparison - TA'!$B$30:$L$47,MATCH(G26,'Comparison - TA'!$A$30:$A$47,0),MATCH(H26,'Comparison - TA'!$B$29:$L$29,0))/1000 -> 12543.52456 | D26: =C26-B26 -> 1758.86041 | E26: =ROUND(D26/B26,4) -> 0.1631 | G26: River management rate | H26: Region wide | J26: =INDEX(ess_base_estract,MATCH($A26,ESSbase!$B$8:$B$25,0),MATCH(B$11,ESSbase!$F$6:$G$6,0))/1000-B26 -> 0 | K26: =INDEX(ess_base_estract,MATCH($A26,ESSbase!$B$8:$B$25,0),MATCH(C$11,ESSbase!$F$6:$G$6,0))/1000-C26 -> 0
A27: Public transport rate | B27: =INDEX('Comparison - TA'!$B$7:$L$24,MATCH(G27,'Comparison - TA'!$A$7:$A$24,0),MATCH(H27,'Comparison - TA'!$B$6:$L$6,0))/1000 -> 113009.3673 | C27: =INDEX('Comparison - TA'!$B$30:$L$47,MATCH(G27,'Comparison - TA'!$A$30:$A$47,0),MATCH(H27,'Comparison - TA'!$B$29:$L$29,0))/1000 -> 137936.8578 | D27: =C27-B27 -> 24927.49052 | E27: =ROUND(D27/B27,4) -> 0.2206 | G27: Public transport rate | H27: Region wide | J27: =INDEX(ess_base_estract,MATCH($A27,ESSbase!$B$8:$B$25,0),MATCH(B$11,ESSbase!$F$6:$G$6,0))/1000-B27 -> 0 | K27: =INDEX(ess_base_estract,MATCH($A27,ESSbase!$B$8:$B$25,0),MATCH(C$11,ESSbase!$F$6:$G$6,0))/1000-C27 -> 0
A28: Stadium purposes rate | B28: =INDEX('Comparison - TA'!$B$7:$L$24,MATCH(G28,'Comparison - TA'!$A$7:$A$24,0),MATCH(H28,'Comparison - TA'!$B$6:$L$6,0))/1000 -> 0 | C28: =INDEX('Comparison - TA'!$B$30:$L$47,MATCH(G28,'Comparison - TA'!$A$30:$A$47,0),MATCH(H28,'Comparison - TA'!$B$29:$L$29,0))/1000 -> 0 | D28: =C28-B28 -> 0 | E28: =ROUND(D28/B28,4) ->  | G28: Stadium purposes rate | H28: Region wide | J28: =INDEX(ess_base_estract,MATCH($A28,ESSbase!$B$8:$B$25,0),MATCH(B$11,ESSbase!$F$6:$G$6,0))/1000-B28 -> 0 | K28: =INDEX(ess_base_estract,MATCH($A28,ESSbase!$B$8:$B$25,0),MATCH(C$11,ESSbase!$F$6:$G$6,0))/1000-C28 -> 0
A29: Economic development rate | B29: =INDEX('Comparison - TA'!$B$7:$L$24,MATCH(G29,'Comparison - TA'!$A$7:$A$24,0),MATCH(H29,'Comparison - TA'!$B$6:$L$6,0))/1000 -> 4743.49853 | C29: =INDEX('Comparison - TA'!$B$30:$L$47,MATCH(G29,'Comparison - TA'!$A$30:$A$47,0),MATCH(H29,'Comparison - TA'!$B$29:$L$29,0))/1000 -> 4995.99985 | D29: =C29-B29 -> 252.50132 | E29: =ROUND(D29/B29,4) -> 0.0532 | G29: Economic development rate | H29: Region wide | J29: =INDEX(ess_base_estract,MATCH($A29,ESSbase!$B$8:$B$25,0),MATCH(B$11,ESSbase!$F$6:$G$6,0))/1000-B29 -> 0 | K29: =INDEX(ess_base_estract,MATCH($A29,ESSbase!$B$8:$B$25,0),MATCH(C$11,ESSbase!$F$6:$G$6,0))/1000-C29 -> 0
A31: Specific area targeted rates:
A32: Pest management rate | B32: =INDEX('Comparison - TA'!$B$7:$L$24,MATCH(G32,'Comparison - TA'!$A$7:$A$24,0),MATCH(H32,'Comparison - TA'!$B$6:$L$6,0))/1000 -> 0 | C32: =INDEX('Comparison - TA'!$B$30:$L$47,MATCH(G32,'Comparison - TA'!$A$30:$A$47,0),MATCH(H32,'Comparison - TA'!$B$29:$L$29,0))/1000 -> 0 | D32: =C32-B32 -> 0 | E32: =ROUND(D32/B32,4) ->  | G32: Pest management rate | H32: Region wide | J32: =INDEX(ess_base_estract,MATCH($A32,ESSbase!$B$8:$B$25,0),MATCH(B$11,ESSbase!$F$6:$G$6,0))/1000-B32 -> 0 | K32: =INDEX(ess_base_estract,MATCH($A32,ESSbase!$B$8:$B$25,0),MATCH(C$11,ESSbase!$F$6:$G$6,0))/1000-C32 -> 0
A33: South Wairarapa district – river rates | B33: =INDEX('Comparison - TA'!$B$7:$L$24,MATCH(G33,'Comparison - TA'!$A$7:$A$24,0),MATCH(H33,'Comparison - TA'!$B$6:$L$6,0))/1000 -> 101.6155 | C33: =INDEX('Comparison - TA'!$B$30:$L$47,MATCH(G33,'Comparison - TA'!$A$30:$A$47,0),MATCH(H33,'Comparison - TA'!$B$29:$L$29,0))/1000 -> 101.76084 | D33: =C33-B33 -> 0.14534 | E33: =ROUND(D33/B33,4) -> 0.0014 | G33: River management rate - Non district wide | H33: Region wide | J33: =INDEX(ess_base_estract,MATCH($G33,ESSbase!$B$8:$B$25,0),MATCH(B$11,ESSbase!$F$6:$G$6,0))/1000-B33 -> 0 | K33: =INDEX(ess_base_estract,MATCH($G33,ESSbase!$B$8:$B$25,0),MATCH(C$11,ESSbase!$F$6:$G$6,0))/1000-C33 -> 0
A34: Wairarapa scheme and stopbank rates | B34: =INDEX('Comparison - TA'!$B$7:$L$24,MATCH(G34,'Comparison - TA'!$A$7:$A$24,0),MATCH(H34,'Comparison - TA'!$B$6:$L$6,0))/1000 -> 1858.21518 | C34: =INDEX('Comparison - TA'!$B$30:$L$47,MATCH(G34,'Comparison - TA'!$A$30:$A$47,0),MATCH(H34,'Comparison - TA'!$B$29:$L$29,0))/1000 -> 2180.019465 | D34: =C34-B34 -> 321.804285 | E34: =ROUND(D34/B34,4) -> 0.1732 | G34: Special Rates | H34: Region wide | J34: =INDEX(ess_base_estract,MATCH($G34,ESSbase!$B$8:$B$25,0),MATCH(B$11,ESSbase!$F$6:$G$6,0))/1000-B34 -> 0 | K34: =INDEX(ess_base_estract,MATCH($G34,ESSbase!$B$8:$B$25,0),MATCH(C$11,ESSbase!$F$6:$G$6,0))/1000-C34 -> 0
A35: Total targeted rates 2 | B35: =SUM(B26:B34) -> 130497.3607 | C35: =SUM(C26:C34) -> 157758.1625 | D35: =SUM(D26:D34) -> 27260.80188 | E35: =ROUND(D35/B35,4) -> 0.2089
A37: Total regional rates | B37: =INDEX('Comparison - TA'!$B$7:$L$24,MATCH(G37,'Comparison - TA'!$A$7:$A$24,0),MATCH(H37,'Comparison - TA'!$B$6:$L$6,0))/1000 -> 208476.3749 | C37: =INDEX('Comparison - TA'!$B$30:$L$47,MATCH(G37,'Comparison - TA'!$A$30:$A$47,0),MATCH(H37,'Comparison - TA'!$B$29:$L$29,0))/1000 -> 251314.6962 | D37: =C37-B37 -> 42838.32127 | E37: =ROUND(D37/B37,6) -> 0.205483 | G37: Total Regnl Rates | H37: Region wide | J37: =INDEX(ess_base_estract,MATCH($G37,ESSbase!$B$8:$B$25,0),MATCH(B$11,ESSbase!$F$6:$G$6,0))/1000-B37 -> 0 | K37: =INDEX(ess_base_estract,MATCH($G37,ESSbase!$B$8:$B$25,0),MATCH(C$11,ESSbase!$F$6:$G$6,0))/1000-C37 -> 0
A39: Water supply levy | B39: =INDEX('Comparison - TA'!$B$7:$L$24,MATCH(G39,'Comparison - TA'!$A$7:$A$24,0),MATCH(H39,'Comparison - TA'!$B$6:$L$6,0))/1000 -> 53139.64027 | C39: =INDEX('Comparison - TA'!$B$30:$L$47,MATCH(G39,'Comparison - TA'!$A$30:$A$47,0),MATCH(H39,'Comparison - TA'!$B$29:$L$29,0))/1000 -> 67731.36623 | D39: =C39-B39 -> 14591.72596 | E39: =ROUND(D39/B39,6) -> 0.274592 | G39: Bulk Water Levies | H39: Region wide | J39: =INDEX(ess_base_estract,MATCH($G39,ESSbase!$B$8:$B$25,0),MATCH(B$11,ESSbase!$F$6:$G$6,0))/1000-B39 -> 0 | K39: =INDEX(ess_base_estract,MATCH($G39,ESSbase!$B$8:$B$25,0),MATCH(C$11,ESSbase!$F$6:$G$6,0))/1000-C39 -> 0
A41: Total regional rates and levies | B41: =INDEX('Comparison - TA'!$B$7:$L$24,MATCH(G41,'Comparison - TA'!$A$7:$A$24,0),MATCH(H41,'Comparison - TA'!$B$6:$L$6,0))/1000 -> 261616.0152 | C41: =INDEX('Comparison - TA'!$B$30:$L$47,MATCH(G41,'Comparison - TA'!$A$30:$A$47,0),MATCH(H41,'Comparison - TA'!$B$29:$L$29,0))/1000 -> 319046.0624 | D41: =C41-B41 -> 57430.04723 | E41: =ROUND(D41/B41,6) -> 0.21952 | G41: Total Regnl Rates & levies | H41: Region wide | J41: =INDEX(ess_base_estract,MATCH($G41,ESSbase!$B$8:$B$25,0),MATCH(B$11,ESSbase!$F$6:$G$6,0))/1000-B41 -> 0 | K41: =INDEX(ess_base_estract,MATCH($G41,ESSbase!$B$8:$B$25,0),MATCH(C$11,ESSbase!$F$6:$G$6,0))/1000-C41 -> 0
A43: Warm Greater Wellington rates 3 | B43: =INDEX('Comparison - TA'!$B$7:$L$24,MATCH(G43,'Comparison - TA'!$A$7:$A$24,0),MATCH(H43,'Comparison - TA'!$B$6:$L$6,0))/1000 -> 1138.472035 | C43: =INDEX('Comparison - TA'!$B$30:$L$47,MATCH(G43,'Comparison - TA'!$A$30:$A$47,0),MATCH(H43,'Comparison - TA'!$B$29:$L$29,0))/1000 -> 775.39948 | G43: Warm Greater Wellington rate | H43: Region wide | J43: =INDEX(ess_base_estract,MATCH($G43,ESSbase!$B$8:$B$25,0),MATCH(B$11,ESSbase!$F$6:$G$6,0))/1000-B43 -> 0 | K43: =INDEX(ess_base_estract,MATCH($G43,ESSbase!$B$8:$B$25,0),MATCH(C$11,ESSbase!$F$6:$G$6,0))/1000-C43 -> 0
A45: Total rates and levies | B45: =INDEX('Comparison - TA'!$B$7:$L$24,MATCH(G45,'Comparison - TA'!$A$7:$A$24,0),MATCH(H45,'Comparison - TA'!$B$6:$L$6,0))/1000 -> 262754.4872 | C45: =INDEX('Comparison - TA'!$B$30:$L$47,MATCH(G45,'Comparison - TA'!$A$30:$A$47,0),MATCH(H45,'Comparison - TA'!$B$29:$L$29,0))/1000 -> 319821.4619 | G45: Total Rates & Levies | H45: Region wide | J45: =INDEX(ess_base_estract,MATCH($G45,ESSbase!$B$8:$B$25,0),MATCH(B$11,ESSbase!$F$6:$G$6,0))/1000-B45 -> 0 | K45: =INDEX(ess_base_estract,MATCH($G45,ESSbase!$B$8:$B$25,0),MATCH(C$11,ESSbase!$F$6:$G$6,0))/1000-C45 -> 0
J46: =SUM(B43,B39,B25:B34,B15:B18)-B45 -> 0 | K46: =ROUND(SUM(C43,C39,C25:C34,C15:C18)-C45,0) -> 0
A48: 1 Region-wide rates are charged to all ratepayers in the region. They exclude targeted rates for Wairarapa river and drainage schemes, and "Warm Greater Wellington", because those rates only apply to highly specific ratepayers in those work programmes.
A49: 2 This total excludes "Warm Greater Wellington" targeted rates because they only apply to ratepayers who participate in the scheme.
A50: 3 The Warm Greater Wellington scheme assists regional ratepayers to insulate thier homes. Only ratepayers who participate in the scheme are charged this rate.
C52: =+C19+C35+C39+C43 -> 319821.4619

Sheet 2
A1: Impact on each City and District
A3: Rates increases vary among cities and districts because of differing equalised capital values. Targeted rates are applied according to the Revenue and Financing policy. The next page shows the different rates paid in each city and district.
A6: All figures on this page exclude GST.
A8: Impact on each city and district
B9: =year_previous -> 2023/24 | C9: =year_current -> 2024/25
B10: Plan | C10: Plan | D10: Change | E10: Change | G10: Row lookup | H10: Column lookup
A11: Region-wide rates1 | B11: $000s | C11: $000s | D11: $000s | E11: %
A12: Wellington city | B12: =INDEX('Comparison - TA'!$B$7:$L$24,MATCH(G12,'Comparison - TA'!$A$7:$A$24,0),MATCH(H12,'Comparison - TA'!$B$6:$L$6,0))/1000 -> 107684.2816 | C12: =INDEX('Comparison - TA'!$B$30:$L$47,MATCH(G12,'Comparison - TA'!$A$30:$A$47,0),MATCH($H12,'Comparison - TA'!$B$29:$L$29,0))/1000 -> 130150.7442 | D12: =C12-B12 -> 22466.46266 | E12: =ROUND(+D12/B12,4) -> 0.2086 | G12: District-wide rates | H12: Wellington city
A13: Hutt city | B13: =INDEX('Comparison - TA'!$B$7:$L$24,MATCH(G13,'Comparison - TA'!$A$7:$A$24,0),MATCH(H13,'Comparison - TA'!$B$6:$L$6,0))/1000 -> 38783.56354 | C13: =INDEX('Comparison - TA'!$B$30:$L$47,MATCH(G13,'Comparison - TA'!$A$30:$A$47,0),MATCH($H13,'Comparison - TA'!$B$29:$L$29,0))/1000 -> 47015.01334 | D13: =C13-B13 -> 8231.449797 | E13: =ROUND(+D13/B13,4) -> 0.2122 | G13: District-wide rates | H13: Hutt city
A14: Upper Hutt city | B14: =INDEX('Comparison - TA'!$B$7:$L$24,MATCH(G14,'Comparison - TA'!$A$7:$A$24,0),MATCH(H14,'Comparison - TA'!$B$6:$L$6,0))/1000 -> 13329.26317 | C14: =INDEX('Comparison - TA'!$B$30:$L$47,MATCH(G14,'Comparison - TA'!$A$30:$A$47,0),MATCH($H14,'Comparison - TA'!$B$29:$L$29,0))/1000 -> 16109.4383 | D14: 2780.175132 | E14: =ROUND(+D14/B14,4) -> 0.2086 | G14: District-wide rates | H14: Upper Hutt city
A15: Porirua city | B15: =INDEX('Comparison - TA'!$B$7:$L$24,MATCH(G15,'Comparison - TA'!$A$7:$A$24,0),MATCH(H15,'Comparison - TA'!$B$6:$L$6,0))/1000 -> 14321.05224 | C15: =INDEX('Comparison - TA'!$B$30:$L$47,MATCH(G15,'Comparison - TA'!$A$30:$A$47,0),MATCH($H15,'Comparison - TA'!$B$29:$L$29,0))/1000 -> 18141.35024 | D15: 3820.297994 | E15: 0.2668 | G15: District-wide rates | H15: Porirua city
A16: Kāpiti Coast district | B16: =INDEX('Comparison - TA'!$B$7:$L$24,MATCH(G16,'Comparison - TA'!$A$7:$A$24,0),MATCH(H16,'Comparison - TA'!$B$6:$L$6,0))/1000 -> 19494.9715 | C16: =INDEX('Comparison - TA'!$B$30:$L$47,MATCH(G16,'Comparison - TA'!$A$30:$A$47,0),MATCH($H16,'Comparison - TA'!$B$29:$L$29,0))/1000 -> 22507.95888 | D16: 3012.987381 | E16: 0.1546 | G16: District-wide rates | H16: Kāpiti Coast district
A17: Masterton district | B17: =INDEX('Comparison - TA'!$B$7:$L$24,MATCH(G17,'Comparison - TA'!$A$7:$A$24,0),MATCH(H17,'Comparison - TA'!$B$6:$L$6,0))/1000 -> 6089.938112 | C17: =INDEX('Comparison - TA'!$B$30:$L$47,MATCH(G17,'Comparison - TA'!$A$30:$A$47,0),MATCH($H17,'Comparison - TA'!$B$29:$L$29,0))/1000 -> 7332.435065 | D17: 1242.496953 | E17: 0.204 | G17: District-wide rates | H17: Masterton district
A18: Carterton district | B18: =INDEX('Comparison - TA'!$B$7:$L$24,MATCH(G18,'Comparison - TA'!$A$7:$A$24,0),MATCH(H18,'Comparison - TA'!$B$6:$L$6,0))/1000 -> 2549.814007 | C18: =INDEX('Comparison - TA'!$B$30:$L$47,MATCH(G18,'Comparison - TA'!$A$30:$A$47,0),MATCH($H18,'Comparison - TA'!$B$29:$L$29,0))/1000 -> 2934.643862 | D18: 384.8298549 | E18: 0.1509 | G18: District-wide rates | H18: Carterton district
A19: South Wairarapa district | B19: =INDEX('Comparison - TA'!$B$7:$L$24,MATCH(G19,'Comparison - TA'!$A$7:$A$24,0),MATCH(H19,'Comparison - TA'!$B$6:$L$6,0))/1000 -> 4255.555 | C19: =INDEX('Comparison - TA'!$B$30:$L$47,MATCH(G19,'Comparison - TA'!$A$30:$A$47,0),MATCH($H19,'Comparison - TA'!$B$29:$L$29,0))/1000 -> 4831.918922 | D19: 576.3639224 | E19: =ROUND(+D19/B19,4) -> 0.1354 | G19: District-wide rates | H19: South Wairarapa district
A20: Tararua district | B20: =INDEX('Comparison - TA'!$B$7:$L$24,MATCH(G20,'Comparison - TA'!$A$7:$A$24,0),MATCH(H20,'Comparison - TA'!$B$6:$L$6,0))/1000 -> 8.10465334 | C20: =INDEX('Comparison - TA'!$B$30:$L$47,MATCH(G20,'Comparison - TA'!$A$30:$A$47,0),MATCH($H20,'Comparison - TA'!$B$29:$L$29,0))/1000 -> 9.413045263 | D20: 1.308391923 | E20: 0.1614 | G20: District-wide rates | H20: Tararua district
